Workbook

Sheet Green Star SA
B13: Green Star SA - Interiors PILOT v0.1 validates the environmental initiatives of fitouts.
B15: You are invited to use Green Star SA - Interiors PILOT v0.1 to predict a Green Star SA rating. The Green Building Council of South Africa (GBCSA) does not endorse any self-assessed rating and you are prohibited from presenting self-assessment results in the public domain. The GBCSA offers a formal certification process for ratings of Four Stars and above. This service provides for independent third party review of points claimed to ensure all points can be demonstrated to be achieved by the provision of the necessary documentary evidence. The use of Green Star SA - Interiors PILOT v0.1 without formal certification by the GBCSA does not entitle the user or any other party to promote a Green Star SA rating publicly.
B17: Use the tabs at the bottom of the pages to navigate.
B19: © Green Building Council of South Africa
B20: Last Modified: 5 November 2014
B22: Sponsored by:

Sheet Introduction
B3: Green Star SA - Interiors PILOT v0.1 v0.1
B7: Introduction to Green Star SA - Interiors PILOT v0.1
B11: What is Green Star SA?
B13: What does Green Star SA - Interiors PILOT v0.1 do?
B15: Who can use Green Star SA - Interiors PILOT v0.1?
B17: What do Green Star SA ratings mean?
B19: Acknowledgements
B25: What is Green Star SA?
B26: The Green Star SA environmental rating system for buildings was developed by the Green Building Council of South Africa (GBCSA). Green Star SA is a comprehensive rating system for evaluating the environmental design and performance of South African buildings based on a number of criteria, including energy and water efficiency, indoor environment quality and resource conservation.
B28: The Green Star SA environmental rating system is based upon the Australian Green Star system and has been customised for the South African environment by the GBCSA, under licence from the Green Building Council of Australia.
B29: Green Star SA has built on existing systems and tools in overseas markets, primarily the Australian Green Star system, but also including the British Building Research Establishment Environmental Assessment Method (BREEAM) system and the North American Leadership in Energy and Environmental Design (LEED) system. Environmental measurement criteria relevant to the South African marketplace and environmental context have been created.
B31: The Green Star rating system was created to:
B33: • establish a common language and standard of measurement for green buildings;
B34: • promote integrated, whole-building design;
B35: • raise awareness of green building benefits;
B36: • recognise and reward environmental leadership; and
B37: • reduce the environmental impact of development.
B41: What does Green Star SA - Interiors PILOT do?
B43: Green Star SA - Interiors PILOT v0.1 validates the environmental initiatives of fitouts.
B47: Who can use Green Star SA - Interiors PILOT v0.1?
B48: The GBCSA encourages all interested parties to use Green Star SA - Interiors PILOT v0.1 to validate the environmental initiatives of fitouts. The use of Green Star SA - Interiors PILOT v0.1 is encouraged on all such projects as a guide for green and sustainable design, procurement and construction.
B50: The use of Green Star SA - Interiors PILOT v0.1 without formal certification by the GBCSA does not entitle the user or any other party to promote the Green Star rating achieved. No fee is payable to the GBCSA for such use, however formal recognition of the Green Star SA rating - and the right to promote the same - requires undertaking the formal certification process offered by the GBCSA.
B54: What do Green Star SA ratings mean?
B55: Green Star SA rating tools use six stars to measure performance. Projects that obtain a predicted rating of one, two or three stars are not eligible for formal certification. Projects that obtain a predicted 4 Star rating or above are eligible to apply for formal certification, whereby a:
B56: • 4 Star Green Star Certified Rating recognises and rewards "Best Practice";
B57: • 5 Star Green Star Certified Rating recognises and rewards "South African Excellence"; and
B58: • 6 Star Green Star Certified Rating recognises and rewards "World Leadership".
B60: The Green Star SA – Interiors PILOT v0.1 provides only one rating (i.e. Green Star SA – Interiors PILOT v0.1 rating).
B62: Again, the use of Green Star SA - Interiors PILOT v0.1 without formal certification by the GBCSA does not entitle the user or any other party to promote a Green Star SA rating publicly.
B67: Acknowledgements
B68: The Green Building Council would like to acknowledge all parties that worked on and supported the development of the Green Star SA – Interiors PILOT v0.1 rating tool.
B70: The GBCSA thanks all those individuals and organisations who provided feedback and expertise to the technical development of the Green Star SA – Interiors PILOT v0.1 rating tool. In particular, the GBCSA would like to thank all Technical Steering Committee and Technical Working Group members, as well as technical consultants Arup and Solid Green Consulting. The GBCSA also acknowledges the tremendous support of the Green Building Council of Australia.
B72: The Green Star SA - Interiors PILOT v0.1 tool Principal sponsor Standard Bank, along with the Associate sponsor Saint Gobain, provided much-needed financial support to develop the rating tool.
B74: Green Star SA – Interiors PILOT v0.1 is based on national and international guidelines, including primarily the Australian Green Star system, as well as the US LEED Green Building Rating System and UK's BREEAM Environmental Assessment Method.
B76: Green Star SA - Interiors PILOT v0.1 Tool Sponsors:

Sheet How to Use
B3: Green Star SA - Interiors PILOT v0.1 v0.1
B7: How to use this tool
A9: 1. | B9: Complete the Building Input worksheet as the type of fitout and location may affect the predicted rating.
A11: 2. | B11: Complete the remaining worksheets by reviewing each credit in each category and entering the number of points you predict the fitout will achieve in the 'No. of Points Achieved' column. Calculators are provided for a number of the tool's credits.
A13: 3. | B13: Enter any points that may be achieved but need to be confirmed in the 'Points to be Confirmed' column.
A15: 4. | B15: Enter any comments required in the 'Comments' column.
A17: 5. | B17: The predicted rating is shown in the Summary worksheet. More detail on point scores (both achieved and those to be confirmed) are shown in the Credit Summary and Graphical Summary worksheets at the end of the tool.
B19: NOTE: The Green Star SA - Interiors PILOT v0.1 should be used together with the Green Star SA - Interiors PILOT v0.1 Technical Manual and the definitions contained therein.
B20: Limitations
B21: The GBCSA does not endorse any self-assessed rating achieved by the use of Green Star - SA Interiors PILOT v0.1. The GBCSA offers a formal certification process for ratings of Four Stars and above; this service provides for independent third party review of points claimed to ensure all points can be demonstrated to be achieved by the provision of the necessary documentary evidence. The use of Green Star SA - Interiors PILOT v0.1 without formal certification does not entitle the user or any other party to promote the Green Star SA rating achieved.
B22: The application of Green Star SA - Interiors PILOT v0.1 to all eligible projects is encouraged to assess and improve their environmental design attributes. No fee is payable to the GBCSA for such use, however formal recognition of the Green Star SA rating - and the right to promote the same - requires undertaking the formal certification process offered by the GBCSA.

Sheet Disclaimer
B3: Green Star SA - Interiors PILOT v0.1 v0.1
B7: Disclaimer
B10: Authorisation, Acknowledgement and Disclaimer
B11: The Green Star SA environmental rating system for buildings (“Green Star SA”) and the Green Star SA – Interiors rating tool (“Green Star SA – Interiors”) have been developed by the Green Building Council of South Africa (“GBCSA”). Green Star SA – Interiors PILOT v0.1 is intended for use by fitout project teams and other interested parties as a guide for green and sustainable design, procurement and construction. As with all Green Star SA rating tools, Green Star SA - Interiors PILOT v0.1 may be subject to further development in the future.
B13: Green Star SA and Green Star SA - Interiors PILOT v0.1 have been developed with the assistance and participation of representatives from many organisations. The views and opinions expressed have been determined upon by the GBCSA and its Committees.
B15: The GBCSA authorises you to view and use Green Star SA - Interiors PILOT v0.1 for information purposes only. In exchange for this authorisation, you agree that the GBCSA retains all copyright and other proprietary rights contained in and in relation to Green Star SA - Interiors PILOT v0.1 and agree not to sell, let, distribute, modify, or use for another purpose the tool or to reproduce, display or distribute the tool in any way for any public or commercial purpose, including display on a website or in a networked environment. Unauthorised use of Green Star SA and/or Green Star SA - Interiors PILOT v0.1 will violate copyright and other laws, and is prohibited. All text, graphics, layout and other elements of content contained in Green Star SA and its rating tools are owned by the GBCSA and are protected by copyright, trade mark and other laws.
B17: The GBCSA does not accept responsibility, including for negligence, for any inaccuracy, error or omission within Green Star SA and/or its rating tools and makes no warranty, expressed or implied, including the warranties of merchantability and fitness for a particular purpose, nor assumes any legal liability or responsibility to you or any third parties for the accuracy, completeness, use of or reliance on any information contained in Green Star SA and/or Green Star SA – Interiors PILOT v0.1, or for any injuries, losses or damages (including, without limitation, equitable relief and economic loss) arising out of such use or reliance.
B20: Green Star SA and Green Star SA - Interiors PILOT v0.1 are not substitutes for professional advice, nor do they purport to be a professional service. You should seek your own professional and other appropriate advice on the matters addressed by them.
B22: As a condition of use, you undertake not to institute legal proceedings in whatever form against the trade mark and copyright proprietor, and agree to waive and release the GBCSA, its Interiors, agents, employees and its members from any and all claims, demands and causes of action for any injury, loss, destruction or damage (including, without limitation, equitable relief and economic loss) that you may now or hereafter have a right to assert against such parties as a result of your use of, or reliance on, Green Star SA and/or Green Star SA – Interiors PILOT v0.1.
B24: The GBCSA does not endorse or otherwise acknowledge any self-assessed Green Star SA rating achieved by the use of Green Star SA – Interiors PILOT v0.1. The GBCSA offers a formal certification process for ratings of Four Stars and above. The service provides for independent third party review of points claimed to ensure all credits can be demonstrated to be achieved by the provision of the necessary documentary evidence. The use of Green Star SA - Interiors PILOT v0.1 without formal certification by the GBCSA does not entitle the user or any other party to promote the achieved Green Star SA rating or make use of the Green Star trade marks in whatever manner or form.
B26: The application of Green Star SA - Interiors PILOT v0.1 to all eligible projects is encouraged to assess and improve their environmental attributes. No fee is payable to the GBCSA for such use; however, formal recognition of the Green Star SA rating - and the right to promote the same - requires undertaking the formal certification process offered by the GBCSA and use of this service shall not constitute such a certification process.
B28: You are only authorised to proceed to use Green Star SA and Green Star SA – Interiors PILOT v0.1 on this basis.
B30: © 2013 Green Building Council of South Africa. All rights reserved.

Sheet Change Log
B3: Green Star SA - Interiors PILOT v0.1 v0.1
B7: Change Log
B10: Green Star SA Interiors PILOT v0.1 Tool Release Date:
B12: 2014-09-02
B16: Changes & Amendments
B18: The GBCSA reserves the right to correct errors and omissions in the Green Star SA - Interiors PILOT v0.1 rating tool as necessary. The changes noted in this change log do not reflect Technical Clarifications or Credit Interpretation Request rulings. Project teams are advised to check the GBCSA website for the latest TC and CIR rulings. The changes noted in this change log also do not represent changes to points awarded for credits, or changes to credit criteria. The changes noted below are those of minor nature related to the operation of the rating tool and associated calculators.
B20: Reissue Date | C20: Changes
B21: 2014-11-05 | C21: Added a row in the Potable Water Calculator for showers

Sheet R1 Pre-Submission Checklist
B3: Green Star SA - Interiors PILOT v0.1
B7: Round 1 Pre-Submission Checklist
B8: Please complete the white cells only below, and submit the completed submission only if all aspects have been addressed.
C11: Administration
B12: 1 | C12: Signed Certification Agreement has been received by the GBCSA | D12: Please Confirm
B13: 2 | C13: The correct and full assessment fee has been received by the GBCSA | D13: Please Confirm
B14: 3 | C14: No Credit Interpretation Requests or Technical Clarifications are outstanding | D14: Please Confirm
B15: 4 | C15: The latest version of the GSSA rating tool has been used | D15: Please Confirm
C17: Eligibility
C18: In the projects opinion, the project meets the following Eligibility Criteria:
B19: 5 | C19: Eligibility Criteria 1: Spatial differentiation | D19: Please Confirm
B20: 6 | C20: Eligibility Criteria 2: Space use | D20: Please Confirm
B21: 7 | C21: Eligibility Criteria 3: Conditional requirements (project meets the Ene-0 conditional requirement) | D21: Please Confirm
B22: 8 | C22: Eligibility Criteria 4: Timing of Certification (project must be certified within 12 months of practical completion) | D22: Please Confirm
C24: Submission content and presentation
B25: 9 | C25: All files are in PDF format only and unlocked, in one layer. | D25: Please Confirm
B26: 10 | C26: Within each category folder, one merged PDF file is provided for each credit targetted | D26: Please Confirm
B27: 11 | C27: Bookmarks have been added for each documentation requirement in the individual credit pdf files | D27: Please Confirm
B28: 12 | C28: Each page of all documents must be marked by use of a label indicating what Documentation Requirement it is supporting | D28: Please Confirm
B29: 13 | C29: Relevant sections of the documentation and drawings have been highlighted to draw the assessors attention to relevant information | D29: Please Confirm
B30: 14 | C30: A general section is included to provide an overview of the project. (It should include architectural drawings, elevations, site plans and complete area summary table for GFA and UA) | D30: Please Confirm
B31: 15 | C31: A completed Green Star SA Excel spreadsheet (for the relevant tool) is included | D31: Please Confirm
B32: 16 | C32: Credit cover sheets (based on the template provided) are included for each credit | D32: Please Confirm
B33: 17 | C33: All reports, letters and drawings referring to the project are on a letterhead and signed where stipulated or where they confirm a commitment | D33: Please Confirm
B34: 18 | C34: Drawings are not in draft form and where applicable carry the "Tender", "For Construction" or “As Built’ stamp/status | D34: Please Confirm
B35: 19 | C35: Specifications are not in draft format | D35: Please Confirm
B36: 20 | C36: All relevant information is included within the credit it supports. (Appendices for each credit can be included, but they must be within the credit itself, clearly referenced within the documentation and have relevant sections highlighted.) | D36: Please Confirm
B37: 21 | C37: All relevant communication with the GBCSA is included (including CIR Rulings and Technical Clarifications relevant to this project) | D37: Please Confirm
B38: 22 | C38: All drawings are still legible after scaling (especially small stamps, monitors/sensors etc.) | D38: Please Confirm
B39: 23 | C39: All inputs are consistent throughout the submission. (E.g. the fresh air rates claimed in IEQ-1 Ventilation Rates are consistent with Energy modelling in Ene-1. Assessors will not award points and will require conformation where there are inconsistencies.) | D39: Please Confirm
B40: 24 | C40: Submission for each credit includes all documentation stipulated in the Technical Manual and the TC/CIR portal on the GBCSA website | D40: Please Confirm
B41: 25 | C41: All credits claiming “na” have the required supporting documentation | D41: Please Confirm
B42: 26 | C42: CD/DVD cover and CD/DVD, communicates the official project name, project reference number, project address, Green Star SA Tool, contact person’s details, submission round and date. | D42: Please Confirm
B43: 27 | C43: Folders are included within the digital submission (CD’s) and correspond to the Green Star SA categories and are in the correct order, following the categories and credits. | D43: Please Confirm
B44: 28 | C44: All documents are orientated in the same direction | D44: Please Confirm
B45: 29 | C45: The AP declaration has been signed and submitted with the submission | D45: Please Confirm
C47: Submission delivery
B48: 30 | C48: Four digital copies (four CDs) have been prepared for the submission | D48: Please Confirm
B51: Name: ___________________________________ Company: ___________________________________
B53: Signature of Applicant: ___________________________________
B55: Note: If any of the above have not been complied with, the GBCSA reserves the right to return submission documentation to the project for re-submission and compliance with the above.

Sheet R2 Pre-Submission Checklist
B3: Green Star SA - Interiors PILOT v0.1
B7: Round 2 Pre-Submission Checklist
B8: Please complete the white cells only below, and submit the completed submission only if all aspects have been addressed.
C11: Administration
B12: 1 | C12: No Credit Interpretation Requests or Technical Clarifications are outstanding | D12: Please Confirm
C14: Eligibility
B15: 2 | C15: Eligibility has been established and all conditional requirements have been met OR any eligibility issues raised in Round 1 have been addressed | D15: Please Confirm
C17: Submission content and presentation
B18: 3 | C18: All files are in PDF format only and unlocked, in one layer. | D18: Please Confirm
B19: 4 | C19: Within each category folder, one merged PDF file is provided for each credit targetted | D19: Please Confirm
B20: 5 | C20: Bookmarks have been added for each documentation requirement in the individual credit pdf files | D20: Please Confirm
B21: 6 | C21: Each page of all documents must be marked by use of a label indicating what Documentation Requirement it is supporting | D21: Please Confirm
B22: 7 | C22: Relevant sections of the documentation and drawings have been highlighted to draw the assessors attention to relevant information | D22: Please Confirm
B23: 8 | C23: A general section is included to provide an overview of the project. (It should include architectural drawings, elevations, site plans, complete area summary table for GFA and UA, and 2 x images/renderings of the project) | D23: Please Confirm
B24: 9 | C24: A completed Green Star SA Excel spreadsheet (for the relevant tool) is included | D24: Please Confirm
B25: 10 | C25: Credit cover sheets (based on the template provided) are included for each credit | D25: Please Confirm
B26: 11 | C26: All reports, letters and drawings referring to the project are on a letterhead and signed where stipulated or where they confirm a commitment | D26: Please Confirm
B27: 12 | C27: Drawings are not in draft form and where applicable carry the "Tender", "For Construction" or “As Built’ stamp/status | D27: Please Confirm
B28: 13 | C28: Specifications are not in draft format | D28: Please Confirm
B29: 14 | C29: All relevant information is included within the credit it supports. (Appendices for each credit can be included, but they must be within the credit itself, clearly referenced within the documentation and have relevant sections highlighted.) | D29: Please Confirm
B30: 15 | C30: All relevant communication with the GBCSA is included (including CIR Rulings and Technical Clarifications relevant to this project) | D30: Please Confirm
B31: 16 | C31: All drawings are still legible after scaling (especially small stamps, monitors/sensors etc.) | D31: Please Confirm
B32: 17 | C32: All inputs are consistent throughout the submission. (E.g. the fresh air rates claimed in IEQ-1 Ventilation Rates are consistent with Energy modelling in Ene-1. Assessors will not award points and will require conformation where there are inconsistencies.) | D32: Please Confirm
B33: 18 | C33: Submission for each credit includes all documentation stipulated in the Technical Manual and the TC/CIR portal on the GBCSA website | D33: Please Confirm
B34: 19 | C34: All credits claiming “na” have the required supporting documentation | D34: Please Confirm
B35: 20 | C35: CD/DVD cover and CD/DVD, communicates the official project name, project reference number, project address, Green Star SA Tool, contact person’s details, submission round and date. | D35: Please Confirm
B36: 21 | C36: Folders are included within the digital submission (CD’s) and correspond to the Green Star SA categories and are in the correct order, following the categories and credits. | D36: Please Confirm
B37: 22 | C37: All documents are orientated in the same direction | D37: Please Confirm
B38: 23 | C38: All comments from Round 1 have been clearly addressed; new information and/or new credits are highlighted. | D38: Please Confirm
B39: 24 | C39: The AP declaration has been signed and submitted with the submission | D39: Please Confirm
C41: Submission delivery
B42: 25 | C42: Four digital copies (four CDs) have been prepared for the submission | D42: Please Confirm
B45: Name: ___________________________________ Company: ___________________________________
B47: Signature of Applicant: ___________________________________
B49: Note: If any of the above have not been complied with, the GBCSA reserves the right to return submission documentation to the project for re-submission and compliance with the above.

Sheet Applicant Declaration
B3: Green Star SA - Interiors PILOT v0.1
B7: Green Star SA Project Submission - Applicant Declaration
B8: *This page must be printed and signed by the project applicant, and included in the general section of the project submission for Round 1 and Round 2.
B11: The Green Building Council of South Africa (GBCSA) aims to ensure that every Green Star SA submission is of a good quality and reflects the appropriate correct and true contractual documents on the project (whether they are Design or As Built project contractual documents). In this regard, the GBCSA requires that all Green Star SA project applicants sign this acknowledgement and declaration letter. Acknowledgement and declaration by the Green Star SA project applicant: I/We,__________________________________________________, the person/s responsible for compiling the Green Star SA submission on behalf of ________________________________________________ (the Applicant), confirm that I/we have taken due care, and acknowledge and declare that (to the best of my/our knowledge): 1. I/We have read and understood the relevant technical manual, the conditions of certification and any relevant Technical Clarifications, Errata and Credit Interpretation Requests. 2. All documentation submitted by me/us on behalf of the Applicant towards this Green Star SA submission has been verified by the appropriate professional/s as being true, correct and accurate. 3. All documentation submitted by me/us on behalf of the Applicant complies with all applicable legislation. 4. All documents and reports submitted to me/us by the Applicant's project team are true and correct and accurately reflect the project’s contractual documentation (whether for a Design or As Built submission). 5. All documents and reports which I/we have prepared for the submission are true and correct and accurately reflect the project’s contractual documentation (whether for a Design or As Built submission). 6. I/We have disclosed all applicable information relevant to the Application and undertake to disclose any further information that may influence the Application. Where the GBCSA identifies any serious or systematic non-conformances on project documentation in a submission from the Applicant, the GBCSA has the right to query such non-conformance/s with the Applicant, at which point the Applicant is required to investigate this further with its project team, and provide a written response to the GBCSA by no later than 7 (seven) business days from the date on which the query was made to the Applicant by the GBCSA. If the response from the Applicant confirms that the information provided was incorrect, the Applicant's project team can: a) For a Round 1 submission re-submit the correct information in Round 2 (as per assessor comments) or clarify that the information is not available and concede the point in Round 2 b) For a Round 2 submission, confirm to the GBCSA the incorrect nature of the information submitted, in which event the incorrect information will be excluded from the submission documents counted in the Round 2 results. If the response from the Applicant confirms that the information provided was correct, the Applicant's project team can, on behalf of the Applicant: c) In a Round 1 submission re-submit the correct information in Round 2. d) In a Round 2 submission, notify the GBCSA that such information was in fact correct, in which event the GBCSA will run this by the assessors for a final review before the results are published. Where these processes are not followed and the relevant submission documents remain under question, the GBCSA will notify the Applicant, and the credit/s to which this information relates will be unobtainable. Where this incomplete process occurs more than once, with the Applicant, the GBCSA reserves the right not to accept any further submissions from this Applicant in future. At the first instance where this incomplete process occurs, the Applicant will be placed on twelve (12) months’ probation, during which time any similar infringement would allow the GBCSA to exercise its right to not accept any further submissions from the Applicant. Further to this, where the Applicant is a Green Star SA Accredited Professional (GSSA AP), the GBCSA reserves the right to remove the Applicant’s GSSA AP qualification and remove them from the GSSA AP registry on the GBCSA’s website. Signature: ___________________________________ Date: ___________________________________ Name: ___________________________________ Company: ___________________________________ Signature of Applicant’s line manager warranting that s/he is duly authorised: ___________________________________ Name of Applicant’s line manager warranting that s/he is duly authorised: ___________________________________

Sheet Building Input
B1: Green Star SA - Interiors PILOT v0.1 | C1: Building Input Worksheet
B3: Name of fitout:
B4: Address of fitout: | G4: Provinces
G5: Eastern Cape
G6: Free State
B7: Postcode: | G7: Gauteng
B8: Province: | G8: KwaZulu-Natal
G9: Limpopo
B10: Applicant Details | G10: Mpumalanga
B11: Applicant: | G11: Northern Cape
B12: Contact Person: | G12: North West
G13: Western Cape
B14: Green Star Accredited Professional:
B15: Project Manager:
B16: Architect or interior designer:
B17: Structural/Civil Engineer:
B18: Mechanical Engineer:
B19: Electrical Engineer:
B20: Wet Services Engineer:
B21: Fire Systems Engineer:
B22: Quantity Surveyor:
B23: Acoustic Consultant:
B24: Landscaping Consultant:
B25: Other consultant:
B26: Other consultant:
B27: Building Surveyor:
B28: Main Contractor:
B29: Local Planning Authority:
B31: Type of Building | F31: Building Code Classification | G31: Occupancy | H31: Area m²
B32: Total Building Gross Floor Area (GFA) in m² excluding car parks and external areas: (i)
B33: Breakdown of areas that make up the tenancy
B34: Space Type | C34: Conditioned Area | D34: Mechanically Ventilated Area | E34: Naturally Ventilated Area
B35: A1-Entertainment and public assembly | F35: A1 | G35: A1: Entertainment and public assembly
B36: A2-Theatrical and indoor sport | F36: A2 | G36: A2: Theatrical and indoor sport
B37: A3-Places of instruction | F37: A3 | G37: A3: Places of instruction
B38: A4-Worship | F38: A4 | G38: A4: Worship
B39: B1-High risk commercial service | F39: B1 | G39: B1: High risk commercial service
B40: B2-Moderate risk commercial service | F40: B2 | G40: B2: Moderate risk commercial service
B41: B3-Low risk commercial service | F41: B3 | G41: B3: Low risk commercial service
B42: C1-Exhibition hall | F42: C1 | G42: C1: Exhibition hall
B43: C2-Museum | F43: C2 | G43: C2: Museum
B44: D1-High risk industrial | F44: D1 | G44: D1: High risk industrial
B45: D2-Moderate risk industrial | F45: D2 | G45: D2: Moderate risk industrial
B46: D3-Low risk industrial | F46: D3 | G46: D3: Low risk industrial
B47: E2-Hospital | F47: E2 | G47: E2: Hospital
B48: E3-Other institutional (residential) | F48: E3 | G48: E3: Other institutional (residential)
B49: E4-Health care | F49: E4 | G49: E4: Health care
B50: F1-Large shop | F50: F1 | G50: F1: Large shop
B51: F2-Small shop | F51: F2 | G51: F2: Small shop
B52: F3-Wholesalers' store | F52: F3 | G52: F3: Wholesalers' store
B53: G1-Offices | F53: G1 | G53: G1: Offices
B54: H1-Hotel | F54: H1 | G54: H1: Hotel
B55: H2-Dormitory | F55: H2 | G55: H2: Dormitory
B56: H3-Domestic residence | F56: H3 | G56: H3: Domestic residence
B57: H4-Dwelling house | F57: H4 | G57: H4: Dwelling house
B58: H5-Hospitality | F58: H5 | G58: H5: Hospitality
B59: Common areas - reception, ablutions, circulation
B60: Car park area
B61: External Area
B65: NOTE: Use of Green Star SA - Interiors PILOT v0.1 may predict a rating that differs from that achieved via formal Green Star SA certification. Detailed guidance on credit compliance criteria is contained in the Green Star SA - Interiors PILOT v0.1 Technical Manual.

Sheet Management
A1: Green Star SA - Interiors PILOT v0.1 | I1: Category Score
A2: Management | D2: Category Summary: | E2: =E19 -> 12.5 | F2: =F19 -> 12.5 | G2: =G19 -> 0 | H2: =H19 -> 0 | I2: ='Credit Summary'!I14 -> 0
A3: Credit Summary for: | C3: =IF(' Building Input'!$C$3=0,"",' Building Input'!$C$3) ->  | G3: =IF(OR((J3=Calculation!$D$97),(J3=Calculation!$D$98),((G2+H2)>F2)),Calculation!$D$99,"") ->  | J3: =T(J5:J15) -> 
A4: Ref No. | B4: Title | C4: Aim of Credit | D4: Credit Criteria Summary | E4: No of points available | F4: No. of Points Available | G4: No. of Points Achieved | H4: Points to be Confirmed | I4: Comments
A5: INT-Man-1 | B5: Green Star Accredited Professional | C5: To encourage and recognise the engagement of professionals who can assist the project team with the integration of Green Star SA aims and processes throughout all stages of a fitout’s design and construction phases. | D5: One point is awarded where: • A member of the design team is a Green Star SA Accredited Professional and has; – Been contractually engaged by the Tenant or Building Owner to provide green building advice based on Green Star SA from the schematic design phase through to practical completion; AND – Provided guidance to the project team regarding, or was responsible for, the Green Star SA documentation submission compilation. | E5: 1 | F5: =IF(G5="na", 0,E5) -> 1 | J5: =IF(ISBLANK(G5),IF(H5>F5,Calculation!$D$97,""),IF(G5="na","",IF(OR(G5="na",ISNUMBER(G5)),IF(G5+H5>F5,Calculation!$D$97,""),Calculation!$D$98))) -> 
A6: INT-Man-2 | B6: Commissioning & Tuning | C6: To encourage and recognise effective commissioning and tuning processes during a project's design and construction phase that ensure all services and installations can operate to their optimal design potential. | D6: Up to two points are awarded independently as follows: Commissioning One point is awarded where: • Comprehensive pre-commissioning and commissioning activities are performed for all nominated systems. AND • The works outlined above are done in exact accordance with the CIBSE Commissioning Codes or ASHRAE Commissioning Guideline 1-1996. OR For small tenants (less than 2500m2), one point is awarded where: • Commissioning is contractually required to be performed for all applicable services provided within the fitout in accordance with system/equipment/appliance manufacturer‘s commissioning specifications or requirements; | E6: 1 | F6: =IF(G6="na", 0,E6) -> 1 | J6: =IF(OR(ISTEXT(G6)=TRUE,ISTEXT(H6)=TRUE),Calculation!$D$100,IF(G6+H6>F6,Calculation!$D$97,"")) -> 
D7: Tuning One point is awarded where: • Prior to occupation, the Tenant commits to a tuning process of all nominated systems and implements a comprehensive tuning program that; ­ Continues for a period of no less than 12 months after commencement; AND; ­ An Operations and Maintenance Manual has been developed; AND; ­ The owner has engaged all parties to tune the nominated systems. This engagement includes requirements for: • Verification that nominated systems are performing to their design potential; • Reviews of environmental performance against environmental targets; • Collection of user feedback to match the occupant's needs and the system performance; • Adjustment of all the systems to account for all deficiencies; and • Management, communication, and assignment of responsibilities for the tuning process within the team. | E7: 1 | F7: =IF(G7="na", 0,E7) -> 1
A8: INT-Man-3 | B8: Occupant Users' Guide | C8: To encourage and recognise information management that enables fitout occupants and users to optimise the fitout’s environmental performance. | D8: One point is awarded where: • A simple and easy-to-read ‘Occupant Users’ Guide’, which includes information relevant for the end users, is created and made available to the fitout owner and occupants; AND • The Occupants Users’ Guide, at a minimum, contains the sections and information (where applicable), in accordance with the Additional Guidance in the Green Star SA - Interiors PILOT v0.1 Technical Manual: | E8: 1 | F8: =IF(G8="na", 0,E8) -> 1 | J8: =IF(OR(ISTEXT(G8)=TRUE,ISTEXT(H8)=TRUE),Calculation!$D$100,IF(G8+H8>F8,Calculation!$D$97,"")) -> 
A9: INT-Man-4 | B9: Environmental Management | C9: To encourage and recognise the adoption of a formal environmental management system in line with established guidelines during construction. | D9: Up to 1.5 points are awarded independently as follows: Half a point is awarded where: The Contractor implements a comprehensive, project-specific Environmental Management Plan (EMP) throughout the construction phase of the project (i.e. from construction commencement to practical completion) in accordance with Table Man-4.1 provided in the additional guidance AND • The Contractor and Sub-Contractors demonstrate compliance with the EMP AND • The EMP explicitly addresses how the energy, water, waste, and indoor air quality impacts from construction works are managed, reported, and minimized through the implementation of an environmental management plan, in accordance with the Additional Guidance. | E9: 0.5 | F9: 0.5 | J9: =IF(OR(ISTEXT(G9)=TRUE,ISTEXT(H9)=TRUE),Calculation!$D$100,IF(G9+H9>F9,Calculation!$D$97,"")) -> 
D10: Half a point is awarded where: • The Contractor has valid ISO14001 Environmental Management System (EMS) accreditation throughout the construction phase of the project (i.e. from construction commencement to practical completion); AND • All Sub-Contractors working on the project and engaged by the Contractor adhere to all applicable ISO14001 or EPA requirements. OR • The Contractor has a valid EMS in place, in accordance with the EPA South Australia Small Business Environmental Management Solutions, in accordance with table Man-4.2 provided in the Additional Guidance. | E10: 0.5 | F10: 0.5
D11: Half a point is awarded where: • The construction impacts from energy, and water usage, as well as waste generation have been monitored, and tracked and documentary evidence of this is submitted to the GBCSA. | E11: 0.5 | F11: 0.5
A12: INT-Man-5 | B12: Construction Waste Management | C12: To recognise and encourage management practises that minimise the amount of demolition and construction waste going to disposal. | D12: Up to 1.5 points are awarded where: • The Contractor develops and implements a Waste Management Plan (WMP) throughout the construction phase of the project (i.e. from construction commencement to practical completion); AND • The Contractor retains waste records and issues regular reports to the Tenant; AND • The Contractor diverts a minimum percentage (by mass) of all demolition and construction waste for reuse or recycling, awarded as follows: – 30% for half a point; – 50% for 1 point; – 70% for 1.5 points | E12: 1.5 | F12: =IF(G12="na", 0,E12) -> 1.5 | J12: =IF(OR(ISTEXT(G12)=TRUE,ISTEXT(H12)=TRUE),Calculation!$D$100,IF(G12+H12>F12,Calculation!$D$97,"")) -> 
A13: INT-Man-6 | B13: Work space efficiency | C13: To encourage and recognise the design of workspaces that promotes spatial efficiency and improvement of productivity and occupant performance. | D13: Up to two points are awarded as follows: Minimum Compliance (Fit for Purpose) One point is awarded where: • It can be demonstrated how the purposes for which the fit-out is created are transferred from inception to the implemented design | E13: 1 | F13: =IF(G13="na", 0,E13) -> 1
D14: Spatial Efficiency An additional half a point is awarded where: • The 1st point above is achieved; AND • The criterion has been met to demonstrate how the fit-out is encouraging a more efficient use of space. | E14: 0.5 | F14: 0.5
D15: Well Being / Occupant Performance An additional half a point is awarded where: • The 1st point above is achieved; AND • A Post-Occupancy User Survey/ Evaluation is conducted to measure the fit-out success | E15: 0.5 | F15: 0.5
A16: INT-Man-7 | B16: Green Lease | C16: To encourage and recognise collaboration between the building owner and tenants in order to manage and operate the building along environmentally sustainable principles whilst realising mutual benefit. | D16: Up to 2.5 points are available as follows: One & half points are awarded where: • The tenant has a signed agreement with the building owner/landlord that demonstrates that the tenant is committed to on-going performance that requires the tenant to participate in the following environmental initiatives while occupying the space: ­ Electrical energy monitoring & reporting (minimum quarterly) and have submitted an energy management plan at the beginning of each year to the landlord; ­ Water monitoring & reporting (minimum quarterly) and have submitted a water management plan at the beginning of each year; ­ Waste reduction/recycling monitoring & reporting (minimum quarterly) and have submitted a waste management plan at the beginning of each year; ­ The preparation of a procurement policy at the beginning of each year regarding the use of environmentally friendly consumables (cleaning products, toiletry products, paper and plastic consumable products). | E16: 1.5 | F16: 1.5
D17: An additional point is awarded where: • The tenant has a signed agreement with the building owner/landlord is in the form of a Performance Agreement. | E17: 1 | F17: =IF(G17="na", 0,E17) -> 1
A18: INT-Man-8 | B18: Learning Resources | C18: To encourage and recognise sustainability initiatives implemented in the development as learning resources for building users and visitors | D18: Half a point is awarded where: • Within the fitout, the following ‘Learning Resources’ are provided for fitout occupants and visitors: – A minimum of one sustainability initiative related to a Green Star SA - Interiors Energy Credit is described and displayed, and the resulting energy use and greenhouse gas emissions are continuously presented; AND – A minimum of one sustainability initiative related to a Green Star SA - Interiors Water Credit is described and displayed, and the resulting potable water savings are continuously presented; AND – A minimum of one sustainability initiative, related to a Green Star SA - Interiors Credit and not related to energy and water, and the resulting benefit(s) are described and displayed. | E18: 1 | F18: 1
D19: Total Points: | E19: =SUM(E5:E18) -> 12.5 | F19: =SUM(F5:F18) -> 12.5 | G19: =SUM(G5:G18) -> 0 | H19: =SUM(H5:H18) -> 0
A23: =Calculation!$C$86 -> Project Teams are to refer to the Green Star SA Interiors PILOT Technical Manual for explicit credit criteria and documentation requirements.
A24: =Calculation!$C$87 -> The Green Star Technical Clarifications (TC) and Credit Interpretation Request (CIR) rulings provide an essential source of information to all
A25: =Calculation!$C$88 -> projects undertaking Green Star assessment. They are available on the GBCSA website http://www.gbcsa.org.za . Technical Clarifications
A26: =Calculation!$C$89 -> often represent the GBCSA answers to technical queries and complement Green Star SA Technical Manuals. They do not amend but clarify
A27: =Calculation!$C$90 -> Credit Criteria or Compliance Requirements. They are an extension of the Technical Manual; it is the responsibility of the project teams to stay
A28: =Calculation!$C$91 -> up-to-date with this section of the GBCSA website. The CIR rulings offer alternative compliance options whenever those have been deemed
A29: =Calculation!$C$92 -> equivalent in meeting the Aim of Credit.

Sheet IEQ
A1: Green Star SA - Interiors PILOT v0.1 | I1: Category Score
A2: Indoor Environment Quality | D2: Category Summary: | E2: =E33 -> 25 | F2: =F33 -> 25 | G2: =G33 -> 0 | H2: =H33 -> 0 | I2: ='Credit Summary'!I28 -> 0
A3: Credit Summary for: | C3: =IF(' Building Input'!$C$3=0,"",' Building Input'!$C$3) ->  | G3: =IF(OR((J3=Calculation!$D$97),(J3=Calculation!$D$98),((G2+H2)>F2)),Calculation!$D$99,"") ->  | J3: =T(J5:J31) -> 
A4: Ref No. | B4: Title | C4: Aim of Credit | D4: Credit Criteria Summary | E4: No. of Points Available | F4: No. of Points Available | G4: No. of Points Achieved | H4: Points to be Confirmed | I4: Comments
A5: INT-IEQ-1 | B5: Quality of Internal Air | C5: To encourage and recognise projects that provide high quality air to occupants. | D5: Up to four points are available as follows: Entry of outdoor pollutants Half a point is available where: • It is demonstrated that a contract exists requiring the regular replacement of air filters and maintenance of the fresh air ducting. | E5: 0.5 | F5: =IF(G5="na",0,E5) -> 0.5 | J5: =IF(OR(ISTEXT(G5)=TRUE,ISTEXT(H5)=TRUE),Calculation!$D$100,IF(G5+H5>F5,Calculation!$D$97,"")) -> 
D6: Provision of outside air Up to two points are awarded as follows: Naturally ventilated spaces Up to two points are awarded where: • It is demonstrated that 95% of the Nominated Area is naturally ventilated in accordance with SANS 10400-O:2011; Mechanically ventilated spaces Up to two points are awarded where: • It is demonstrated that for 95% of the Nominated Area, outside air is provided at rates greater than the l/s per person requirements of SANS 10400-O:2011, awarded as follows: – 33% improvement for one point; – 66% improvement for two points; Mixed-mode ventilated spaces Up to two points are awarded where: • Both modes of operation individually satisfy the relevant criteria for naturally ventilated spaces and mechanically ventilated spaces. Points awarded are limited to the maximum points awarded under the mechanically ventilated space criteria. Underfloor displacement ventilated spaces; Up to two points are awarded where: • It is demonstrated that for 95% of the Nominated Area, outside air is provided at rates greater than the requirements of SANS 10400-O:2011, awarded as follows: – 10% improvement for one point; – 40% improvement for two points; | E6: 2 | F6: =IF(G6="na",0,E6) -> 2
D7: Use of CO2 control Up to one point is awarded where: • It is demonstrated that CO2 is monitored and outside air rates are controlled such that CO2 levels are kept at: - 700ppm for half a point; OR - 600ppm for one point. | E7: 1 | F7: =IF(G7="na",0,E7) -> 1
D8: Exhaust of pollutants Half a point is awarded where: • It is demonstrated that a dedicated room is provided to house photocopy and print equipment, and that this room is provided with a dedicated exhaust riser; OR •All printing or photocopy equipment located throughout the project is certified in accordance with one of the following test methodologies: ECMA-328, RAL-UZ 122 or GGPS.003; OR No photocopy or print equipment is used in the space. | E8: 0.5 | F8: =IF(G8="na",0,E8) -> 0.5
A9: INT-IEQ-2 | B9: Thermal Comfort | C9: To encourage, recognise and reward fitouts that achieve a high level of thermal comfort. | D9: Compliance Route 1 – Modelling Up to two points are awarded where a high level of thermal comfort is achieved for the occupied area on an area-weighted basis: Mechanically Ventilated Spaces, Mixed Mode and Naturally Ventilated Spaces Up to two points are awarded where: • The Predicted Mean Vote (PMV) levels, calculated in accordance with ISO7730 using standard clothing and metabolic rate values, are within the following limits for at least 98% of occupied hours: – One point for PMV levels between -1 and +1 (inclusive); OR – Two points for PMV levels between -0.5 and +0.5 (inclusive). Naturally Ventilated Spaces An alternate method to show compliance is available in naturally ventilated spaces. Up to two points are awarded where: • Internal operative temperatures are within the ASHRAE Standard 55-2004 Acceptability Limits for at least 98% of occupied hours, awarded as follows: – One point for meeting the 80% Acceptability Limits; OR – Two points for meeting the 90% Acceptability Limits. For the purpose of this credit ‘Nominated Area’ is defined as Occupied Space. | E9: 2 | F9: =IF(G9="na",0,E9) -> 2
D10: Compliance Route 2 – Deemed to satisfy One point is awarded where: • No seating is provided within two metres of the external façade. OR One point is awarded where: • Occupants have localised control of either air velocity or temperature. Note that for naturally ventilated spaces this can be in the form of openable windows.
A11: INT-IEQ-3 | B11: Lighting Comfort | C11: To encourage, recognise and reward well-lit spaces that provide high levels of lighting comfort to occupants. | D11: Minimum compliance • It is a condition of this credit that all lights, where relevant, contain high frequency ballasts, and that the lights accurately address the perception of colour in the space. Projects are only eligible to achieve points for this credit where the above minimum compliance requirement is met first. | E11: 0 | F11: =IF(G11="na",0,E11) -> 0
D12: General Illuminance One point is awarded where: • Lighting levels provided in the nominated area are appropriate to the tasks performed in each space type. | E12: 1 | F12: 1 | I12: Need to Confirm Which point Targetted
D13: Individual Control One point is awarded where: • Each occupant in the nominated area has the ability to control the lighting levels in their immediate environment. | E13: 1 | F13: 1
D14: Glare One point is awarded where: • Glare from bare lamps in all working spaces is eliminated. | E14: 1 | F14: 1
A15: INT-IEQ-4 | B15: Visual Comfort | C15: To encourage and recognise the delivery of well daylit spaces that provide high levels of visual comfort and views to occupants. | D15: Up to three points are awarded independently as follows: Daylight Glare Control One point is awarded where: • The glare in the nominated area from sunlight through all viewing façades is reduced through a combination of blinds (to have a visual light transmittance (VLT) of ≤ 10%), screens, fixed devices, or other means. | E15: 1 | F15: 1 | I15: Need to Confirm Which
D16: Daylight One point is awarded where: • A minimum percentage of 30% of the floor area (occupied space) has a Daylight Illuminance level of at least 250 lux, OR • A minimum percentage of 30% of the floor area (occupied space) has a Daylight Factor of not less than 2.0% at desk-height level (under a uniform sky), measured through either a Daylight Factor, Daylight Illuminance or Daylight Autonomy model / calculation. | E16: 1 | F16: 1
D17: Views One point is awarded where: • A minimum percentage of 60% of the occupied area has a direct line of sight to a high quality internal or external view. | E17: 1 | F17: 1
A18: INT-IEQ-5 | B18: Acoustic Quality | C18: To encourage and recognise fitouts that are designed to provide appropriate acoustic qualities to enable the functionality of the space. | D18: Two points are available in this credit. Each point is independent from the other. Internal noise levels Half a point is awarded where: • Internal sound levels in the nominated area are appropriate and relevant to the activity type in the room in accordance with SANS 10103:2008. This includes the influence of all sound generated by the building systems and the outside constant noise sources such as external mechanical plants. | E18: 0.5 | F18: 0.5 | I18: Need to confirm Which
D19: Reverberation Half a point is awarded where: • The nominated area has been built to provide appropriate sound reverberation characteristics not to impact on the functionality of the space in accordance with AS/NZS 2107. | E19: 0.5 | F19: 0.5
D20: Interference Half a point is awarded where: • The interior of the building has been designed/built to minimize interference between spaces | E20: 0.5 | F20: 0.5
D21: Speech privacy Half a point is awarded where: • Enclosed spaces have been created to provide appropriate speech privacy levels, if applicable in accordance with SANS10218:2012 Part 1. | E21: 0.5 | F21: 0.5
A22: INT-IEQ-6 | B22: Hazardous Waste | C22: To encourage and recognise actions taken to reduce health risks to occupants from the presence of hazardous materials. | D22: Half a point is awarded where: • A comprehensive hazardous material survey has been carried out on the project site, as defined by the South African Occupational Health and Safety Act (OH&S); AND • Wherever Hazardous Materials are found they have been treated in accordance with the standards listed in Table IEQ-6.1 in the Green Star SA - Interiors PILOT v0.1 technical manual. Where this falls under the landlord’s responsibility and is not in the tenant’s control (as per the lease agreement), the credit is ‘Not Applicable’ and is excluded from the points available. | E22: 0.5 | F22: 0.5
A23: INT-IEQ-7 | B23: Reduced Exposure to Air Pollutants | C23: To encourage and recognise projects that safeguard occupant health through the reduction of internal air pollutant levels. | D23: Up to five points are available independently as follows: Paints One point is awarded where: • At least 95 % of all internally applied paints in the nominated area meet the Total VOC limits stipulated in Table IEQ-7.1 in the Green Star SA - Interiors PILOT v0.1 technical manual; OR • No paint is applied in the nominated area | E23: 1 | F23: 1 | J23: =IF(OR(ISTEXT(G23)=TRUE,ISTEXT(H23)=TRUE),Calculation!$D$100,IF(G23+H23>F23,Calculation!$D$97,"")) -> 
D24: Adhesives and sealants One point is awarded where: • At least 95% of all internally applied adhesives and sealants in the nominated area are less than the Total VOC limits stipulated in Table IEQ-7.2 in Green Star SA - Interiors PILOT v0.1 technical manual; OR • No adhesives and sealants are applied in the nominated area. | E24: 1 | F24: 1
D25: Carpets and flooring One point is awarded where: • At least 95% of all carpets and flooring in the nominated area meet the Total VOC limits stipulated in Table IEQ-7.3 in the Green Star SA - Interiors PILOT v0.1 technical manual OR • No new carpets or flooring installed in the nominated area | E25: 1 | F25: 1
D26: Engineered wood products Two points are awarded where: • All engineered wood products are less than the formaldehyde limits stipulated in in Table IEQ-7.4 in the Green Star SA - Interiors PILOT v0.1 technical manual; OR • No new engineered wood products are used in the project. | E26: 2 | F26: 2
A27: INT-IEQ-8 | B27: Mould Prevention | C27: To encourage and recognise the design of services that reduce the risk of mould growth and its associated detrimental impact on occupant health. | D27: Half a point is awarded where it is demonstrated that for 95% of the nominated area: • The mechanically air-conditioned ventilation system maintains humidity levels at no more than 60% relative humidity in the space and no more than 80% relative humidity in the supply ductwork; AND • For fit outs in which existing HVAC supply ducting and equipment is being re-used, a visual inspection for mould is to be carried out and, if any mould is found, it must be appropriately cleaned. OR • The fitout is naturally ventilated. If the air conditioning system is of such a design that it has no supply air ducting then the credit is ‘Not Applicable’ If the air conditioning air handling plant does not service the fit out exclusively then the credit is ‘Not Applicable’. | E27: 0.5 | F27: 0.5
A28: INT-IEQ-9 | B28: Ergonomics | C28: To encourage and recognise the choice of equipment and design of spaces that promotes wellbeing, efficiency and effectiveness | D28: Up to three points are available for this credit: Design One point is awarded where • Only ergonomically-designed furniture and equipment are specified for the project. Product data sheets must be provided for each new furniture item (chair, desk, screen environment) to demonstrate ergonomic design features. Any re-used furniture requires a short report written by a suitably trained professional describing the specifications and indicating the dimensions. | E28: 1 | F28: 1
D29: Implementation One point is awarded where: • An ergonomics assessment is conducted for each user. | E29: 1 | F29: =IF(G29="na",0,E29) -> 1
D30: Operation One point is awarded where: • An on-going ergonomics operational plan is established to ensure that good ergonomics principles are employed throughout the design life. | E30: 1 | F30: =IF(G30="na",0,E30) -> 1
A31: INT-IEQ-10 | B31: Indoor Plants | C31: To encourage and recognise the installation of indoor plants that both improves the indoor environment quality and also provides occupants with a connection to nature. | D31: One point is awarded where: • Provide one Plant Unit for every 50m2 of regularly occupied space in the project or a number of plants equalling 0.5 Plant Units per Full Time Equivalent occupant, whichever is greater; AND; • At least 70% of the plants incorporated into the fitout are suited to the indoor environments; AND • An Indoor Horticultural Maintenance Plan with an Interior Landscape Contractor must be in place for a minimum of two (2) years to ensure that the health and number of plants in the space is maintained. | E31: 1 | F31: =IF(G31="na",0,E31) -> 1 | J31: =IF(OR(ISTEXT(G31)=TRUE,ISTEXT(H31)=TRUE),Calculation!$D$100,IF(G31+H31>F31,Calculation!$D$97,"")) -> 
A32: INT-IEQ-11 | B32: Universal Access | C32: To encourage and recognise designs which provide universal access, to and within fitouts, to meet the changing needs of occupants. | D32: One point is awarded where: • All fitouts, including peripheral exterior access to, are designed wholly in accordance with the requirements of SANS 10400-S: Facilities for persons with disabilities; AND • For all fitouts, the design of at least one toilet facility on the entry level of the interior space facilitates wheelchair user access in accordance with the requirements defined in Additional Guidance. | E32: 1 | F32: =IF(G32="na",0,E32) -> 1
D33: Total Points: | E33: =SUM(E5:E32) -> 25 | F33: =SUM(F5:F32) -> 25 | G33: =SUM(G5:G32) -> 0 | H33: =SUM(H5:H32) -> 0
A37: =Calculation!$C$86 -> Project Teams are to refer to the Green Star SA Interiors PILOT Technical Manual for explicit credit criteria and documentation requirements.
A38: =Calculation!$C$87 -> The Green Star Technical Clarifications (TC) and Credit Interpretation Request (CIR) rulings provide an essential source of information to all
A39: =Calculation!$C$88 -> projects undertaking Green Star assessment. They are available on the GBCSA website http://www.gbcsa.org.za . Technical Clarifications
A40: =Calculation!$C$89 -> often represent the GBCSA answers to technical queries and complement Green Star SA Technical Manuals. They do not amend but clarify
A41: =Calculation!$C$90 -> Credit Criteria or Compliance Requirements. They are an extension of the Technical Manual; it is the responsibility of the project teams to stay
A42: =Calculation!$C$91 -> up-to-date with this section of the GBCSA website. The CIR rulings offer alternative compliance options whenever those have been deemed
A43: =Calculation!$C$92 -> equivalent in meeting the Aim of Credit.

Sheet Energy
A1: Green Star SA - Interiors PILOT v0.1 | I1: Category Score
A2: Energy | D2: Category Summary: | E2: =E18 -> 13 | F2: =F18 -> 13 | G2: =G18 -> 0 | H2: =H18 -> 0 | I2: ='Credit Summary'!I33 -> 0
A3: Credit Summary for: | C3: =IF(' Building Input'!$C$3=0,"",' Building Input'!$C$3) ->  | G3: =IF(OR((J3=Calculation!$D$97),(J3=Calculation!$D$98),((G2+H2)>F2)),Calculation!$D$99,"") ->  | J3: =T(J7:J16) -> 
A4: Ref No. | B4: Title | C4: Aim of Credit | D4: Credit Criteria Summary | F4: No. of Points Available | G4: No. of Points Achieved | H4: Points to be Confirmed | I4: Comments
A5: INT-Ene-0 | B5: Conditional Requirement | C5: To encourage and recognise projects that minimise the greenhouse gas emissions associated with operational energy consumption, and maximise potential operational energy efficiency of a tenant fitout. | D5: To meet the Ene-0 Conditional Requirement, the Project must demonstrate compliance using one of the three compliance routes described below: NOTE: Projects are required to select Compliance Route 1 OR Compliance Route 2. Projects are NOT required to demonstrate compliance to all routes. | F5: Conditional Requirement Achieved? | G5: ='Energy Calculator'!I5 -> Not Achieved | I5: =IF('Energy Calculator'!I5="Achieved",'Energy Calculator'!X115,'Energy Calculator'!X116) -> Compliance is determined from information entered into the Energy Calculator. The project team acknowledges that the design does NOT meet the minimum energy efficiency requirements as stipulated in the Green Star SA - Interiors PILOT v0.1 Technical Manual. This Green Star SA project is therefore NOT eligible for formal certification by the GBCSA. Please refer to the Technical Manual for further information.
A6: INT-Ene-1 | B6: Greenhouse Gas Emissions | C6: To encourage and recognise projects that minimise the greenhouse gas emissions associated with operational energy consumption, and maximise potential operational energy efficiency of a tenant fitout. | D6: Up to ten points are awarded where it is demonstrated that the building’s predicted greenhouse gas emissions have been reduced below the Conditional Requirement. | F6: Chosen Compliance Route | G6: Modeling
D7: Compliance Route 1 – Energy Modelling (maximum 20 points available) The tenancy is to be modelled using the GBCSA protocol, and the predicted carbon emissions compared with a baseline tenancy in the same location constructed to the requirements of the SANS 204:2008 ‘deemed to satisfy’ clauses. Points are then awarded on a linear scale with 0 points for the baseline building and 20 points for a net zero operating emissions building. The points are determined by the Green Star SA Energy Calculator. | E7: =IF(G6="Modeling",10,"N/A") -> 10 | F7: =IF($G$6="Modeling",E7,"N/A") -> 10 | G7: =IF($G$6="Modeling",'Energy Calculator'!I2,"N/A") -> 0 | H7: =IF($G$6="Modeling",'Energy Calculator'!J2,"N/A") -> 0
D8: Compliance Route 2 – Deemed to Satisfy (maximum 10 points available) As an alternative to the energy modelling route, 10 points are available by meeting prescriptive requirements related to systems including lighting, HVAC and equipment. Please refer to the Green Star SA - Inteiors PILOT Technical Manual for full details. | E8: =IF($G$6="Deemed To Satisfy",SUM(E9:E15),"N/A") -> N/A | F8: =IF($G$6="Deemed To Satisfy",SUM(F9:F15),"N/A") -> N/A | G8: =IF($G$6="Deemed To Satisfy",SUM(G9:G15),"N/A") -> N/A | H8: =IF($G$6="Deemed To Satisfy",SUM(H9:H15),"N/A") -> N/A
D9: Part A - Artificial lighting Up to two points are available where: • The effective installed lighting power density for at least 95% of the tenancy area is less than the values prescribed in the Green Star SA - Inteiors PILOT Technical Manual. | E9: 2 | F9: =IF(G9="na",0,E9) -> 2
D10: Part B - Lighting controls One point is awarded where: • Occupancy sensors that control lighting are installed for at least 75% of the tenancy, excluding open plan desk areas. | E10: 1 | F10: =IF(G10="na",0,E10) -> 1
D11: Part B - Lighting controls One point is awarded where: • Photocell sensors that control lighting are installed for at least 25% of the tenancy, excluding open plan desk areas | E11: 1 | F11: 1
D12: Part C - Equipment Up to 2 points are available as follows: One point is available where: • 75% of appliances and equipment installed in the fitout are energy efficient. OR Two points are available where • 90% of appliances and equipment installed in the fitout are energy efficient. An energy efficient appliance is defined to be one which has achieved either a minimum B rating of the European Energy Rating labelling system or has an ENERGY STAR® rating. Note: this requirement applies to appliances, office equipment, electronics, and commercial food service equipment. Excluded are HVAC, lighting, and building envelope products. | E12: 2 | F12: 2
D13: Part D - Plug Load Control One point is awarded where: • Plug load controls are used for 75% of plug points. These may be either motion sensors or timer based. Equipment includes but is not limited to computers, washing machines; televisions and AV equipment, printing and photocopy equipment. Only appliances and equipment that are not regularly removed from the space, such as laptops, tablet and mobile phones, are considered for this criterion. | E13: 1 | F13: 1
D14: Part E - HVAC Two points are awarded where: • The fitout is naturally ventilated OR • The equipment in the fitout meets the minimum efficiency as per the Green Star SA - Interiors PILOT v0.1 techncial manual. OR • Any one of the initiatives below have been implemented: ­ Economy cycle for systems serving at least 90% of the occupied area ­ Evaporative cooling ­ Ammonia based heat rejection ­ Heat recovery chiller, heat pumps or ventilators ­ Radiant Cooling systems ­ Variable refrigerant flow systems For systems not included in the list above, the project team can submit a CIR showing that the proposed system has equal or improved performance over at least one of the systems listed above. | E14: 2 | F14: 2
D15: Part F - Space Heating One point is awarded where: • The fitout makes no use of resistive heating for space heating purposes | E15: 1 | F15: =IF(G15="na",0,E15) -> 1
A16: INT-Ene-2 | B16: Energy Sub-metering | C16: To encourage and recognise the installation of energy sub-metering that facilitates on-going management of energy consumption. | D16: Up to three points are awarded as follows: Two points are awarded where: • Electrical sub-metering is provided for all substantive electrical energy uses within the project; AND • An effective monitoring system is installed to monitor all sub-meters and a metering strategy is prepared . | E16: 2 | F16: =IF(G16="na",0,E16) -> 2 | J16: =IF(OR(ISTEXT(G16)=TRUE,ISTEXT(H16)=TRUE),Calculation!$D$100,IF(G16+H16>F16,Calculation!$D$97,"")) -> 
D17: An additional point is awarded where: • The above points are achieved; AND • Electrical sub-metering is provided separately for lighting and separately for power consumption. Where the tenancy is greater than one floor, this must be provided separately for each floor. | E17: 1 | F17: =IF(G17="na",0,E17) -> 1 | G17: 0
D18: Total Points: | E18: =SUM(E16:E17)+SUM(E7:E8) -> 13 | F18: =SUM(F16:F17)+SUM(F7:F8) -> 13 | G18: =SUM(G16:G17)+SUM(G7:G8) -> 0 | H18: =SUM(H16:H17)+SUM(H7:H8) -> 0
A22: =Calculation!$C$86 -> Project Teams are to refer to the Green Star SA Interiors PILOT Technical Manual for explicit credit criteria and documentation requirements.
A23: =Calculation!$C$87 -> The Green Star Technical Clarifications (TC) and Credit Interpretation Request (CIR) rulings provide an essential source of information to all
A24: =Calculation!$C$88 -> projects undertaking Green Star assessment. They are available on the GBCSA website http://www.gbcsa.org.za . Technical Clarifications
A25: =Calculation!$C$89 -> often represent the GBCSA answers to technical queries and complement Green Star SA Technical Manuals. They do not amend but clarify
A26: =Calculation!$C$90 -> Credit Criteria or Compliance Requirements. They are an extension of the Technical Manual; it is the responsibility of the project teams to stay
A27: =Calculation!$C$91 -> up-to-date with this section of the GBCSA website. The CIR rulings offer alternative compliance options whenever those have been deemed
A28: =Calculation!$C$92 -> equivalent in meeting the Aim of Credit.

Sheet Energy Calculator
B1: =Calculation!N31 -> Green Star SA - Interiors PILOT v0.1
B2: Energy Calculator | G2: Points Achieved: | I2: =I74 -> 0
G5: Ene-0 Conditional Requirement Result: | I5: =IF(OR(H12="Compliance Route 2",H12=X129),"Achieved",IF(AND(H70-H71>0,H12=X127),"Achieved","Not Achieved")) -> Not Achieved | O5: Points for Route 2: | P5: 4 | Q5: points
B6: Notes & Instructions | O6: Points for Route 3: | P6: 0 | Q6: points
B7: 1. User must enter values into or select options in white cells ONLY
B8: 2. Refer to Green Star SA - Office v1 Energy Calculator & Modelling Protocol Guide for
B9: detailed information and assistance in using this calculator.
B12: Please select compliance route adopted: | H12: Compliance Route 1
O15: FUEL CO2 FACTORS kgCO2/kWh
B16: Route 1 - If Building is Naturally Ventilated: Is thermal comfort criteria met? (internal temperatures or PMV within specified limits for 90% of occupied hours) | H16: n/a | J16: =IF(H16="no","Energy modelling of actual building must include a cooling system (refer Energy Modelling Protocol for more information)","") ->  | O16: biogas | P16: 0.025
O17: coal | P17: 0.354
O18: diesel | P18: 0.267
O19: LPG | P19: 0.227
B20: Route 2 - ASHRAE Advanced Energy Design Guide for Small Office Buildings: 'Deemed to Satisfy' route has been met? (non-modelling compliance route available for office buildings smaller than 2000m2 UA) | H20: =IF(U127>U128,"Not Available",IF(H12=X127,"No; Route 1 used",IF(H12=X129,"No; Route 3 used",IF(H12=X130,"No","Yes")))) ->  | O20: mains electricity | P20: 1.2
I21: =IF(U127>U128,"(Area limit exceeded)","") ->  | O21: natural gas | P21: 0.202
O22: oil | P22: 0.264
O23: town gas (from coal) | P23: 0.16
B24: Route 3 - SANS 204:2008 'Deemed to Satisfy' route has been met? (prescriptive non-modelling compliance route available for all office buildings) | H24: =IF(H12=X127,"No; Route 1 used",IF(H12=X128,"No; Route 2 used",IF(H12=X130,"No","Yes"))) -> No; Route 1 used
B28: Office Usable Floor Area | F28: =' Building Input'!C32 -> 0 | G28: m²
B29: Total Common Area | F29: =' Building Input'!C59 -> 0 | G29: m²
B30: Total Car Park Area | F30: =' Building Input'!C60 -> 0 | G30: m²
B31: External Area (excluding Car Parking) | F31: =' Building Input'!C61 -> 0 | G31: m²
B33: ENERGY USE
E34: Notional SANS 204 Building | F34: Actual Building | O34: choose from drop down
E35: Electrical use kWh/year | F35: Electrical use kWh/year | G35: Gas use kWh/year | O35: =IF($Z$127=$X$127,"No","-") -> No
O36: =IF($Z$127=$X$127,"Yes","-") -> Yes
O37: =IF($Z$127=$X$127,"n/a","-") -> n/a
D38: fuel CO2 factor | E38: =P20 -> 1.2 | F38: =P20 -> 1.2 | G38: =P21 -> 0.202
B39: Heating
B40: Cooling & Heat Rejection | O40: Notional car park lighting at | P40: 9 | Q40: kWh/m2
B41: Pumps | O41: Notional external lighting at | P41: 6 | Q41: kWh/m2
B42: Fans | O42: supplementary cooling | P42: 0.1 | Q42: of base build
B43: Extract and Miscellaneous Fans
B44: Common Area Lighting | O44: Notional Building Supplementary Cooling | P44: =P42*E40 -> 0 | Q44: kwh/year
B45: Car Park Lighting
B46: External Lighting
B47: Lifts
B48: Domestic Hot Water
B49: Lighting (tenant) | H49: Note- efficient tenant lighting is rewarded by Green Star SA credits Ene-3 and Ene-4
B50: Small Power (tenant)
B51: SUB TOTALS (kWh/year) | E51: =SUM(E39:E50) -> 0 | F51: =SUM(F39:F50) -> 0 | G51: =SUM(G39:G50) -> 0
B53: ON SITE RENEWABLE ELECTRICITY GENERATION (actual building only)
F54: kWh/year | G54: fuel factor kgCO2/kWh | H54: net saving kgCO2/year | I54: net saving kgCO2/m²/year
B55: Renewable Electricity generated on site including photovoltaics, wind turbines etc. | G55: 0 | H55: =F55*F38-F55*G55 -> 0 | I55: =IF(F28=0,0,H55/$F$28) -> 0
B57: OTHER ON SITE GENERATION (actual building only)
F58: kWh/year | G58: fuel factor kgCO2/kWh | H58: net saving kgCO2/year | I58: net saving kgCO2/m²/year
B59: Onsite Electricity Generation (e.g. electricity from a co-generation system)
B60: Base building on site electricity generation | F60: =IF(F59>(SUM(F39:F48)),SUM(F39:F48),F59) -> 0
B61: Overall Generation Efficiency | F61: 1
B62: Type of fuel used | F62: mains electricity | G62: =VLOOKUP(F62,fueltype,2) -> 1.2
B63: Amount of fuel used (calorific value in kWh) | F63: =F60/F61 -> 0 | H63: =F60*F38-F63*G62 -> 0 | I63: =IF(F28=0,0,H63/$F$28) -> 0
B65: TOTALS
C66: Energy usage (notional building) | H66: =IF(F28=0,0,E51/$F$28) -> 0 | I66: kWh/m²/year
C67: Energy usage (actual building) | H67: =IF(F28=0,0,(F51+G51-F55)/$F$28) -> 0 | I67: kWh/m²/year
C68: Carbon emissions (notional building) | H68: =IF(F28=0,0,(E51*E38)/$F$28) -> 0 | I68: kgCO2/m²/year
C69: Carbon emissions (actual building) | H69: =IF(F28=0,0,(F51*F38+G51*G38-H55-H63)/$F$28) -> 0 | I69: kgCO2/m²/year
C70: Base Building Carbon emissions (notional building) | H70: =H68 -> 0 | I70: kgCO2/m²/year
C71: Base Building Carbon emissions (actual building) | H71: =H69 -> 0 | I71: kgCO2/m²/year
B72: PERCENTAGE IMPROVEMENT OVER NOTIONAL BUILDING | H72: =IF(H70=0,0,(H70-H71)/H70) -> 0
T73: Number modelling points achieved without checks (original)
B74: Energy Calculator Results (Compliance Route 1 only): | I74: =IF(H16="No",0,I77) -> 0
B77: Energy Calculator Results (Compliance Route 1 only): | I77: =IF(H12=X127,T79,"-") -> 0 | T77: =IF(H71>0,20-20*(H71/H70),20) -> 20
T78: Number modelling points achieved within performance band
T79: =VLOOKUP(1,W82:X102,2,FALSE) -> 0
T81: % Reduction from Notional ( R ) | U81: Lower Limit | V81: Upper Limit | W81: Band Check | X81: Point Awarded
T82: 0 ≤ R < 5 | U82: 0 | V82: 5 | W82: =IF((AND(($H$72*100)>=U82,($H$72*100)<V82)),1,0) -> 1 | X82: 0
T83: 5 ≤ R < 10 | U83: 5 | V83: 10 | W83: =IF((AND(($H$72*100)>=U83,($H$72*100)<V83)),1,0) -> 0 | X83: 1
T84: 10 ≤ R < 15 | U84: 10 | V84: 15 | W84: 0 | X84: 2
T85: 15 ≤ R < 20 | U85: 15 | V85: 20 | W85: 0 | X85: 3
T86: 20 ≤ R < 30 | U86: 20 | V86: 25 | W86: 0 | X86: 4
B87: DOMESTIC HOT WATER ENERGY USAGE (notional building only) | T87: 30 ≤ R < 40 | U87: 25 | V87: 30 | W87: 0 | X87: 5
T88: 40 ≤ R < 50 | U88: 30 | V88: 35 | W88: 0 | X88: 6
C89: Usable floor area | F89: =F28 -> 0 | G89: m2 | H89: Note: Water saving devices are currently not rewarded for reducing energy use associated with hot water production. | T89: 50 ≤ R < 60 | U89: 35 | V89: 40 | W89: 0 | X89: 7
C90: Hot water consumption per day per m2 | F90: 0.15 | G90: L/m2/day | T90: 60 ≤ R < 80 | U90: 40 | V90: 45 | W90: 0 | X90: 8
C91: Hot water usage per day for usable area | F91: =F89*F90 -> 0 | G91: litres/day | T91: 80 ≤ R < 100 | U91: 45 | V91: 50 | W91: 0 | X91: 9
C92: Hot water usage per day for usable area | F92: =F91/1000 -> 0 | G92: m3/day | T92: 100 ≤ R | U92: 50 | V92: 55 | W92: 0 | X92: 10
C93: Efficiency factor to account for distribution losses | F93: 0.9
C95: Notional building energy use | F95: =(F92*1000*4200*55)/(3600*1000)*260/F93 -> 0 | G95: kWh/year
C97: Hot water usage in Joules is:
C98: m3 of water x (1 m3 = 1000kg) x specific heat capacity (=4200J/kg/K) x temp difference (=55 degrees) x 260 days / 0.9 efficiency factor
C99: Joules are then converted to kWh by dividing by (1 kWh = 3 600 000 joules).
X105: Ene-0 Conditional Requirement
AB106: This is referenced to Office GFA (area check >=2,200m2)
AB107: This is referenced to Office GFA (area check < 2,200m2)
X110: Outcomes
X111: YES; Ene- Conditional Requirement achieved
X112: NO; Ene- Conditional Requirement NOT achieved
X114: Comments
X115: Compliance is determined from information entered into the Energy Calculator. The project team acknowledges that the design meets the minimum energy efficiency requirements as stipulated in the Green Star SA - Inteiors PILOT Technical Manual. Green Star SA projects are only eligible for formal certification by the GBCSA when ALL Eligibility Criterion (and Conditional Requirements) are met. Please refer to the Technical Manual for further information.
X116: Compliance is determined from information entered into the Energy Calculator. The project team acknowledges that the design does NOT meet the minimum energy efficiency requirements as stipulated in the Green Star SA - Interiors PILOT v0.1 Technical Manual. This Green Star SA project is therefore NOT eligible for formal certification by the GBCSA. Please refer to the Technical Manual for further information.
X117: As the Office GFA of the project entered in the 'Building Input' page is greater or equal to 2,200m, Compliance Route 2 is not available to this project. Please select an alternative option.
X119: Error Message
V120: =HLOOKUP(Energy!#REF!,X120:Z123,3) ->  | W120: 1 | X120: Compliance Route 1 | Z120: =X111 -> YES; Ene- Conditional Requirement achieved | AD120: TRUE | AE120: =IF(AD120=FALSE,0,1) -> 1
W121: 2 | X121: Compliance Route 2 | Z121: =X111 -> YES; Ene- Conditional Requirement achieved | AD121: FALSE | AE121: =IF(AD121=FALSE,0,1) -> 0
W122: 3 | X122: - | Z122: Compliance route NOT available. | AD122: FALSE | AE122: =IF(AD122=FALSE,0,1) -> 0
W123: 4 | X123: None | Z123: =X112 -> NO; Ene- Conditional Requirement NOT achieved
X126: Options | Z126: Output
T127: Office GFA | U127: =#REF! ->  | X127: Compliance Route 1 | Z127: =H12 -> Compliance Route 1
T128: ASHRAE Limit | U128: 2000 | X128: =IF(U127<U128,"Compliance Route 2","-") ->  | Z128: If Office GFA < 2200 then available or not.
X129: Compliance Route 3
X130: None

Sheet Transport
A1: Green Star SA - Interiors PILOT v0.1 | I1: Category Score
A2: Transport | D2: Category Summary: | E2: =E9 -> 3 | F2: =F9 -> 3 | G2: =G9 -> 0 | H2: =H9 -> 0 | I2: ='Credit Summary'!I39 -> 0
A3: Credit Summary for: | C3: =IF(' Building Input'!$C$3=0,"",' Building Input'!$C$3) ->  | G3: =IF(OR((J3=Calculation!$D$97),(J3=Calculation!$D$98),((G2+H2)>F2)),Calculation!$D$99,"") ->  | J3: =T(J7:J7) -> 
A4: Ref No. | B4: Title | C4: Aim of Credit | D4: Credit Criteria Summary | E4: No. of Points Available | F4: No. of Points Available | G4: No. of Points Achieved | H4: Points to be Confirmed | I4: Comments
A5: INT-Tra-1 | B5: Commuting Mass Transport | C5: To encourage and recognise the selection of sites/premises that are near public transport and facilitate the use of mass transport. | D5: One point is available where: • The project is located within 1000m of a mass transport facilities (i.e. bus station, train station and taxi rank); | E5: 1 | F5: =IF(G5="na",0,E5) -> 1
A6: INT-Tra-2 | B6: Local connectivity | C6: To encourage and recognise tenants that choose to locate their premises within walking distance of high quality amenities such as shops and parks, thus reducing private vehicle use and the associated negative environmental impacts. | D6: One point is awarded where: • At least five amenities listed below are located, within 1000m unimpeded walking distance of the tenancy’s building entrance, or are within the building itself. Accepted amenities: hardware store, public sports field, pharmacy, gym, pool or sports facility, library, bank or ATM, cinema or theatre, places of worship, officially designated ‘Trading Area’, community centre, hospital, clinic or healthcare centre, registered childcare centre, post office, retail shop, school, university or technikon, hair salon, community food garden, supermarket or grocery store, laundromat, convenience store, restaurant or food outlet, recycling depot, garden nursery, car wash and playground Projects within a retail centre or a mixed use development can use amenities within the development to demonstrate compliance with this credit. | E6: 1 | F6: =IF(G6="na",0,E6) -> 1
A7: INT-Tra-3 | B7: Alternative Transport | C7: To encourage and recognise projects that promote and facilitate the use of alternative modes of transport over the use of private cars. | D7: One point is available for this credit. Each half point is independent of each other. Cyclist facilities Half a point is awarded where: • Common users have access to secure bicycle storage, secure showers and lockers/personal storage space. Note that it must be convenient for staff to arrive at the project, lock their bicycle, go to a location where they can securely store items in a locker or otherwise, take what is needed for a shower and change clothes. | E7: 0.5 | F7: =IF(G7="na",0,E7) -> 0.5 | J7: =IF(ISBLANK(G7),IF(H7>F7,Calculation!$D$97,""),IF(G7="na","",IF(OR(G7="na",ISNUMBER(G7)),IF(G7+H7>F7,Calculation!$D$97,""),Calculation!$D$98))) -> 
D8: Parking or Reduced use of private fossil fuel vehicles Half a point is available where: • 5% of the tenant parking spaces provided for occupants and visitors are kept for mopeds, scooters, motorbikes, carpooling and electric vehicles OR Half a point is available where the operational travel is further reduced by encouraging the reduction of private car use through any of these initiatives: - No parking is provided for staff - Provide electric vehicles electric vehicles and charging facilities for staff to encourage the use of this vehicle during work travel by staff. - Provide access to car sharing programs - Provide access to bicycle share programs for fitout staff - Providing leased or purchased bicycles | E8: 0.5 | F8: =IF(G8="na",0,E8) -> 0.5
D9: Total Points: | E9: =SUM(E5:E8) -> 3 | F9: =SUM(F5:F8) -> 3 | G9: =SUM(G5:G8) -> 0 | H9: =SUM(H5:H8) -> 0
A13: =Calculation!$C$86 -> Project Teams are to refer to the Green Star SA Interiors PILOT Technical Manual for explicit credit criteria and documentation requirements.
A14: =Calculation!$C$87 -> The Green Star Technical Clarifications (TC) and Credit Interpretation Request (CIR) rulings provide an essential source of information to all
A15: =Calculation!$C$88 -> projects undertaking Green Star assessment. They are available on the GBCSA website http://www.gbcsa.org.za . Technical Clarifications
A16: =Calculation!$C$89 -> often represent the GBCSA answers to technical queries and complement Green Star SA Technical Manuals. They do not amend but clarify
A17: =Calculation!$C$90 -> Credit Criteria or Compliance Requirements. They are an extension of the Technical Manual; it is the responsibility of the project teams to stay
A18: =Calculation!$C$91 -> up-to-date with this section of the GBCSA website. The CIR rulings offer alternative compliance options whenever those have been deemed
A19: =Calculation!$C$92 -> equivalent in meeting the Aim of Credit.

Sheet Water
A1: Green Star SA - Interiors PILOT v0.1 v0.1 | J1: Category Score
A2: Water | D2: Category Summary: | E2: =E8 -> 8 | F2: =F8 -> 8 | G2: =G8 -> 0 | H2: =H8 -> 0 | J2: =G8 -> 0
A3: Credit Summary for: | C3: =IF(' Building Input'!$C$3=0,"",' Building Input'!$C$3) ->  | G3: =IF(OR((K3=Calculation!$D$97),(K3=Calculation!$D$98),((G2+H2)>#REF!)),Calculation!$D$99,"") ->  | K3: =T(#REF!) -> 
A4: Ref No. | B4: Title | C4: Aim of Credit | D4: Credit Criteria Summary | F4: No. of Points Available | G4: No. of Points Achieved | H4: Points to be Confirmed | J4: Comments
A5: INT-Wat-1 | B5: Potable Water | C5: To encourage and recognise interior fitouts that minimise potable water consumption. | D5: Up to six points are awarded where the water efficiency performance of the fitout achieves a minimum percentage reduction in potable water consumption from a reference case using the Green Star SA – Interiors PILOT v0.1 Potable Water Calculator. | E5: 6 | F5: =IF(G5="na",0,E5) -> 6
A6: INT-Wat-2 | B6: Water Sub-Metering | C6: To encourage and recognise the design of systems that both monitor and manage water consumption. | D6: Up to two points are awarded as follows: One point is awarded where: • Water meters are installed for all major water uses in the project. | E6: 1 | F6: =IF(G6="na",0,E6) -> 1
D7: An additional point is awarded where: • The above is achieved; AND • A metering and verification strategy is developed for the project; AND • Occupants are provided with a dedicated visual display of the water consumption data, as provided by their sub-metering system | E7: 1 | F7: =IF(G7="na",0,E7) -> 1
D8: Total Points: | E8: =SUM(F5:F7) -> 8 | F8: =SUM(F5:F7) -> 8 | G8: =SUM(G5:G7) -> 0 | H8: =SUM(H5:H7) -> 0
A12: =Calculation!$C$86 -> Project Teams are to refer to the Green Star SA Interiors PILOT Technical Manual for explicit credit criteria and documentation requirements.
A13: =Calculation!$C$87 -> The Green Star Technical Clarifications (TC) and Credit Interpretation Request (CIR) rulings provide an essential source of information to all
A14: =Calculation!$C$88 -> projects undertaking Green Star assessment. They are available on the GBCSA website http://www.gbcsa.org.za . Technical Clarifications
A15: =Calculation!$C$89 -> often represent the GBCSA answers to technical queries and complement Green Star SA Technical Manuals. They do not amend but clarify
A16: =Calculation!$C$90 -> Credit Criteria or Compliance Requirements. They are an extension of the Technical Manual; it is the responsibility of the project teams to stay
A17: =Calculation!$C$91 -> up-to-date with this section of the GBCSA website. The CIR rulings offer alternative compliance options whenever those have been deemed
A18: =Calculation!$C$92 -> equivalent in meeting the Aim of Credit.

Sheet Potable Water Calculator
B1: Green Star SA - Interiors PILOT v0.1 v0.1 | D1: Please provide input in the white cells only | K1: Points Achieved | M1: ='Potable Water Calculator'!D477 -> 0 | N1: Calculations | P1: Calculation result | BF1: =K1 -> Points Achieved | BH1: =M1 -> 0 | DJ1: Assumptions and Notional Buildinng Benchmarks
B2: Potable Water Calculator | D2: Shortcut navigation links: | L2: Heading (units)
C3: Building Info: | D3: STEP 1 Building Information Input | L3: Input | M3: unit | BJ3: Jan | BK3: Feb | BL3: Mar | BM3: Apr | BN3: May | BO3: Jun | BP3: Jul | BQ3: Aug | BR3: Sep | BS3: Oct | BT3: Nov | BU3: Dec | BV3: Total | BX3: Links / Constants
C4: Water demands: | D4: STEP 2a Occupant Ammenity Water | G4: STEP 2b Heat Rejection | I4: STEP 2c Irrigation | J4: STEP 2d Pools | L4: Calculations or Links | M4: Actual Building | BE4: =D31 -> Beaufort West | BJ4: =D36 -> 35 | BK4: =D37 -> 30 | BL4: =D38 -> 30 | BM4: =D39 -> 20 | BN4: =D40 -> 11 | BO4: =D41 -> 8 | BP4: =D42 -> 9 | BQ4: =D43 -> 14 | BR4: =D44 -> 12 | BS4: =D45 -> 21 | BT4: =D46 -> 27 | BU4: =D47 -> 19 | BV4: =SUM(BJ4:BU4) -> 236 | BX4: Local calculations
D5: STEP 2e Laundry Facilities | F5: STEP 2f Large Kitchens | H5: STEP 2g Other Major Water Uses | L5: Main page row heading | M5: Notional Building | N5: Error Checking and quality control | BE5: Number of rainy days | BJ5: =E36 -> 6 | BK5: =E37 -> 6 | BL5: =E38 -> 5 | BM5: =E39 -> 3 | BN5: =E40 -> 2 | BO5: =E41 -> 2 | BP5: =E42 -> 2 | BQ5: =E43 -> 2 | BR5: =E44 -> 2 | BS5: =E45 -> 4 | BT5: =E46 -> 5 | BU5: =E47 -> 4 | BV5: =SUM(BJ5:BU5) -> 43 | BX5: Input
C6: Sustainable Supply: | D6: STEP 3 Sustainable Water Supplies | G6: SUMMARY | L6: Not applicable | BE6: Number of days in month | BJ6: 31 | BK6: 28 | BL6: 31 | BM6: 30 | BN6: 31 | BO6: 30 | BP6: 31 | BQ6: 31 | BR6: 30 | BS6: 31 | BT6: 30 | BU6: 31 | BV6: =SUM(BJ6:BU6) -> 365
B7: Building Information Inputs | BE7: Interval between rainy days | BJ7: =IFERROR(ROUND(BJ6/BJ5,0),BJ6) -> 5 | BK7: 5 | BL7: 6 | BM7: 10 | BN7: 16 | BO7: 15 | BP7: 16 | BQ7: 16 | BR7: 15 | BS7: 8 | BT7: 6 | BU7: 8 | DN7: Occupant Densities
BE8: Rain per rainy day | BJ8: =IFERROR(BJ4/BJ5,BJ4) -> 5.833333333 | BK8: 5 | BL8: 6 | BM8: 6.666666667 | BN8: 5.5 | BO8: 4 | BP8: 4.5 | BQ8: 7 | BR8: 6 | BS8: 5.25 | BT8: 5.4 | BU8: 4.75 | DP8: m2 per person | EQ8: GYM PROFILE
B9: STEP 1a - Please provide occupant information | N9: Total UA accounted for | P9: # of occupants calculations | R9: Person-hours per year calculations | W9: Shower usage per year calculations | AG9: Summary of schedules for calculations | DN9: Office | DP9: 15 | DS9: A1 | DU9: A2 | DW9: A3 | DY9: A4 | EA9: B1,B2,B3,D1,D2,D3,D4 Industrial (light) | EC9: C1 | EE9: C2 | EG9: G1 | EI9: B1,B2,B3,D1,D2,D3,D4,G1 (24 hour facility) | EK9: F1,F2,F3 Retail | EM9: F1,F2,F4 (Restaurant) | EO9: H1 | EQ9: Gym | ES9: H2,H3,H4,H5 | EU9: E1,E2,E3 | EW9: Common Areas , Reception, Ablutions | EY9: User defined
B10: Occupant Type | C10: Design Number of Occupants | D10: Occupancy profile | F10: Peak days per week | G10: Percentage of occupants with access to showers | N10: =SUM(C13:C27)=#REF! ->  | AJ10: Hours per day | AL10: Max occupancy | BE10: Total Area | BJ10: =N402 -> 0 | DN10: A1 | DP10: 5
N11: Irrigation | Q11: Maximum design number of occupants | R11: Number of days | T11: Occupied hours per person per year | V11: Total occupied person-hours per year | W11: Number of occupants with shower access | Y11: % of occupants who use shower | Z11: Shower usage per year | AG11: <Please select> | AJ11: Peak | AK11: Off-peak | AL11: Peak | AM11: Off-peak | BE11: Weighted Run-off co-efficient (mm captured per m2 of roof area) | BJ11: =N400 -> 0 | DN11: A2 | DP11: 5
D12: Click here to enter a 'User Defined' profile | AG12: =DS9 -> A1 | AJ12: =DS39 -> 8 | AK12: =DT39 -> 0 | AL12: =DS40 -> 1 | AM12: =DT40 -> 0
N13: =E30="yes" -> FALSE | AG13: =DU9 -> A2 | AJ13: =DU39 -> 9.3 | AK13: =DV39 -> 0 | AL13: =DU40 -> 0.8 | AM13: =DV40 -> 0 | BE13: Collection factor (m3 captured per mm of rain) | BJ13: =BJ10*BJ11/1000 -> 0 | BP13: DEMAND | DN13: A3 | DP13: 5 | DR13: Time
R14: Peak | S14: Off-peak | T14: Peak | U14: Off-peak | W14: Peak day | X14: Off-peak day | AG14: =DW9 -> A3 | AJ14: =DW39 -> 9.05 | AK14: =DX39 -> 0 | AL14: =DW40 -> 0.9 | AM14: =DX40 -> 0 | BE14: First flush lost per event (m3) | BJ14: =DK364*BJ10/1000 -> 0 | DN14: A4 | DP14: 5
Q15: =C13 -> 0 | R15: =IFERROR(VLOOKUP(F13,$S$38:$AF$40,14,FALSE),0) -> 0 | S15: =IF(R15>0,365-R15,0) -> 0 | T15: =IFERROR(VLOOKUP(D13,$AG$12:$AM$28,4,FALSE)*R15,0) -> 0 | U15: =IFERROR(VLOOKUP(D13,$AG$12:$AM$28,5,FALSE)*S15,0) -> 0 | V15: =Q15*(T15+U15) -> 0 | W15: =IFERROR($Q15*$G13*VLOOKUP($D13,$AG$12:$AM$28,6,FALSE),0) -> 0 | X15: =IFERROR($Q15*$G13*VLOOKUP($D13,$AG$12:$AM$28,7,FALSE),0) -> 0 | Y15: =IF(D13=$ES$9,$DK$77,VLOOKUP($E$91,$DJ$72:$DK$76,2,FALSE)) -> 0 | Z15: =Y15*(W15*R15+X15*S15) -> 0 | AG15: =DY9 -> A4 | AJ15: =DY39 -> 7.1 | AK15: =DZ39 -> 0 | AL15: =DY40 -> 1 | AM15: =DZ40 -> 0 | BE15: Weekdays per year | BJ15: 261 | BP15: Toilets | BS15: Urinals | BV15: Indoor taps | BY15: Showers | CB15: Heat Rejection | CE15: Irrigation | CH15: Swimming Pool | CK15: =B422 -> Laundry Facilities | CN15: =B423 -> Large Kitchens | CQ15: =B398 -> {Other Water Use 1} | CT15: =B399 -> {Other Water Use 2} | CW15: =B426 -> {Other Water Use 3} | DN15: A3 Tertiary Education | DP15: 5 | DR15: 12am - 1am | DS15: 0 | DT15: 0 | DU15: 0 | DV15: 0 | DW15: 0 | DX15: 0 | DY15: 0 | DZ15: 0 | EA15: 0 | EB15: 0 | EC15: 0 | ED15: 0 | EE15: 0 | EF15: 0 | EG15: 0 | EH15: 0 | EI15: 0.85 | EJ15: 0 | EK15: 0 | EL15: 0 | EM15: 0.15 | EN15: 0 | EO15: 0.9 | EP15: 0 | EQ15: 0 | ER15: 0 | ES15: 1 | ET15: 0 | EU15: 0.5 | EV15: 0 | EW15: 0 | EX15: 0
Q16: 0 | R16: =IFERROR(VLOOKUP(F14,$S$38:$AL$40,14,FALSE),0) -> 0 | S16: 0 | T16: 0 | U16: 0 | V16: 0 | W16: 0 | X16: 0 | Y16: =IF(D14=$ES$9,$DK$77,VLOOKUP($E$91,$DJ$72:$DK$76,2,FALSE)) -> 0 | Z16: 0 | AG16: =EA9 -> B1,B2,B3,D1,D2,D3,D4 Industrial (light) | AJ16: =EA39 -> 12.6 | AK16: =EB39 -> 0 | AL16: =EA40 -> 0.85 | AM16: =EB40 -> 0 | BP16: % connected to rain | BR16: =$C$415 -> 0 | BU16: =$C$416 -> 0 | BX16: =$C$417 -> 0 | CA16: =$C$418 -> 0 | CD16: =$C$419 -> 0 | CG16: =$C$420 -> 0 | CJ16: =$C$421 -> 0 | CM16: =C422 -> 0 | CP16: =C423 -> 0 | CS16: =C424 -> 0 | CV16: =C425 -> 0 | CY16: =C426 -> 0 | CZ16: =CZ386 -> 0 | DA16: 0 | DB16: 0 | DC16: 0 | DD16: 0 | DE16: Total Municipal Water Used | DF16: 0 | DN16: A3 Primary and Secondary Schools | DP16: 5 | DR16: 1am - 2am | DS16: 0 | DT16: 0 | DU16: 0 | DV16: 0 | DW16: 0 | DX16: 0 | DY16: 0 | DZ16: 0 | EA16: 0 | EB16: 0 | EC16: 0 | ED16: 0 | EE16: 0 | EF16: 0 | EG16: 0 | EH16: 0 | EI16: 0.85 | EJ16: 0 | EK16: 0 | EL16: 0 | EM16: 0.15 | EN16: 0 | EO16: 0.9 | EP16: 0 | EQ16: 0 | ER16: 0 | ES16: 1 | ET16: 0 | EU16: 0.5 | EV16: 0 | EW16: 0 | EX16: 0
Q17: 0 | R17: 0 | S17: 0 | T17: 0 | U17: 0 | V17: 0 | W17: 0 | X17: 0 | Y17: 0 | Z17: 0 | AG17: =EC9 -> C1 | AJ17: =EC39 -> 8 | AK17: =ED39 -> 0 | AL17: =EC40 -> 1 | AM17: =ED40 -> 0 | BE17: DESIGN YEAR | BJ17: DESIGN RAINFALL YEAR | BM17: SUPPLY | BP17: % also connected to grey | BR17: =D415 -> 0 | BU17: =D416 -> 0 | BX17: =D417 -> 0 | CA17: =D418 -> 0 | CD17: =D419 -> 0 | CG17: =D420 -> 0 | CJ17: =D421 -> 0 | CM17: =D422 -> 0 | CP17: =D423 -> 0 | CS17: =D424 -> 0 | CV17: =D425 -> 0 | CY17: =D426 -> 0 | CZ17: SAVING DUE TO STORAGE | DC17: STORAGE | DN17: A4 Places of Worship | DP17: 5 | DR17: 2am - 3am | DS17: 0 | DT17: 0 | DU17: 0 | DV17: 0 | DW17: 0 | DX17: 0 | DY17: 0 | DZ17: 0 | EA17: 0 | EB17: 0 | EC17: 0 | ED17: 0 | EE17: 0 | EF17: 0 | EG17: 0 | EH17: 0 | EI17: 0.85 | EJ17: 0 | EK17: 0 | EL17: 0 | EM17: 0.05 | EN17: 0 | EO17: 0.9 | EP17: 0 | EQ17: 0 | ER17: 0 | ES17: 1 | ET17: 0 | EU17: 0.5 | EV17: 0 | EW17: 0 | EX17: 0
Q18: 0 | R18: 0 | S18: 0 | T18: 0 | U18: 0 | V18: 0 | W18: 0 | X18: 0 | Y18: 0 | Z18: 0 | AG18: =EE9 -> C2 | AJ18: =EE39 -> 8 | AK18: =EF39 -> 0 | AL18: =EE40 -> 0.9 | AM18: =EF40 -> 0 | BE18: Month | BF18: Nr of weekdays | BG18: Day | BH18: Day of week index | BI18: Weekday | BJ18: Rainy day | BK18: Rain per rainy day | BL18: Actual Design Rainfall (mm) | BM18: Gross run-off generated (m3) | BN18: First flush volume lost (m3) | BO18: Harvested rainwater available (m3) | BP18: Gross demand | BQ18: Reduction from greywater | BR18: Net demand | BS18: Gross demand | BT18: Reduction from greywater | BU18: Net demand | BV18: Gross demand | BW18: Reduction from greywater | BX18: Net demand | BY18: Gross demand | BZ18: Reduction from greywater | CA18: Net demand | CB18: Gross demand | CC18: Reduction from greywater | CD18: Net demand | CE18: Gross demand | CF18: Reduction from greywater | CG18: Net demand | CH18: Gross demand | CI18: Reduction from greywater | CJ18: Net demand | CK18: Gross demand | CL18: Reduction from greywater | CM18: Net demand | CN18: Gross demand | CO18: Reduction from greywater | CP18: Net demand | CQ18: Gross demand | CR18: Reduction from greywater | CS18: Net demand | CT18: Gross demand | CU18: Reduction from greywater | CV18: Net demand | CW18: Gross demand | CX18: Reduction from greywater | CY18: Net demand | CZ18: Total Supply | DA18: Total Demand | DB18: Excess Supply | DC18: Year 1 | DD18: Year 2 | DE18: Year 3 | DF18: Municipal Water Used | DN18: Airport / Public Transport terminal buildings | DP18: 10 | DR18: 3am - 4am | DS18: 0 | DT18: 0 | DU18: 0 | DV18: 0 | DW18: 0 | DX18: 0 | DY18: 0 | DZ18: 0 | EA18: 0 | EB18: 0 | EC18: 0 | ED18: 0 | EE18: 0 | EF18: 0 | EG18: 0 | EH18: 0 | EI18: 0.85 | EJ18: 0 | EK18: 0 | EL18: 0 | EM18: 0 | EN18: 0 | EO18: 0.9 | EP18: 0 | EQ18: 0 | ER18: 0 | ES18: 1 | ET18: 0 | EU18: 0.5 | EV18: 0 | EW18: 0 | EX18: 0
Q19: 0 | R19: 0 | S19: 0 | T19: 0 | U19: 0 | V19: 0 | W19: 0 | X19: 0 | Y19: 0 | Z19: 0 | AG19: =EG9 -> G1 | AJ19: =EG39 -> 8.35 | AK19: =EH39 -> 0 | AL19: =EE40 -> 0.9 | AM19: =EF40 -> 0 | DN19: C1 Convention Centre / Exhibition hall | DP19: 10 | DR19: 4am - 5am | DS19: 0 | DT19: 0 | DU19: 0 | DV19: 0 | DW19: 0 | DX19: 0 | DY19: 0 | DZ19: 0 | EA19: 0.1 | EB19: 0 | EC19: 0 | ED19: 0 | EE19: 0 | EF19: 0 | EG19: 0 | EH19: 0 | EI19: 0.85 | EJ19: 0 | EK19: 0 | EL19: 0 | EM19: 0 | EN19: 0 | EO19: 0.9 | EP19: 0 | EQ19: 0 | ER19: 0 | ES19: 1 | ET19: 0 | EU19: 0.5 | EV19: 0 | EW19: 0 | EX19: 0
Q20: 0 | R20: 0 | S20: 0 | T20: 0 | U20: 0 | V20: 0 | W20: 0 | X20: 0 | Y20: 0 | Z20: 0 | AG20: =EI9 -> B1,B2,B3,D1,D2,D3,D4,G1 (24 hour facility) | AJ20: =EI39 -> 20.4 | AK20: =EJ39 -> 0 | AL20: =EI40 -> 0.85 | AM20: =EJ40 -> 0 | BE20: Jan | BF20: 21 | BG20: 1 | BH20: 5 | BI20: =BH20<=5 -> TRUE | BJ20: =MOD(BG20,$BJ$7)=0 -> FALSE | BK20: =IF(BJ20,BJ$8,0) -> 0 | BL20: =BK20 -> 0 | BM20: =BL20*$BJ$13 -> 0 | BN20: =$BJ$14*(BL20>0) -> 0 | BO20: =BM20-BN20 -> 0 | BP20: =$Q$334/$BF$20*BR$16*$BI20 -> 0 | BQ20: =AQ$369/$BF20*$BI20 -> 0 | BR20: =IF(BP20-(BQ20*$BR$17)>0,BP20-(BQ20*$BR$17),0) -> 0 | BS20: =$R$334/$BF$20*BU$16*$BI20 -> 0 | BT20: =AR$369/$BF20*$BI20 -> 0 | BU20: =IF(BS20-(BT20*BU$17)>0,BS20-(BT20*BU$17),0) -> 0 | BV20: =$S$334/$BF$20*BX$16*$BI20 -> 0 | BW20: =AS$369/$BF20*$BI20 -> 0 | BX20: =IF(BV20-(BW20*BX$17)>0,BV20-(BW20*BX$17),0) -> 0 | BY20: =$T$334/$BF$20*CA$16*$BI20 -> 0 | BZ20: =AT$369/$BF20*$BI20 -> 0 | CA20: =IF(BY20-(BZ20*CA$17)>0,BY20-(BZ20*CA$17),0) -> 0 | CB20: =$W$334/BF20*$CD$16*BI20 -> 0 | CC20: =AU$369/$BF20*$BI20 -> 0 | CD20: =IF(CB20-(CC20*CD$17)>0,CB20-(CC20*CD$17),0) -> 0 | CE20: =$X$334/BF20*$CG$16*BI20 -> 0 | CF20: =AV$369/$BF20*$BI20 -> 0 | CG20: =IF(CE20-(CF20*CG$17)>0,CE20-(CF20*CG$17),0) -> 0 | CH20: =$Y$334/BF20*BI20*$CJ$16 -> 0 | CI20: =AW$369/$BF20*$BI20 -> 0 | CJ20: =IF(CH20-(CI20*CJ$17)>0,CH20-(CI20*CJ$17),0) -> 0 | CK20: =$Z$334/BF20*BI20*$CM$16 -> 0 | CL20: =AX$369/$BF20*$BI20 -> 0 | CM20: =IF(CK20-(CL20*CM$17)>0,CK20-(CL20*CM$17),0) -> 0 | CN20: =$AA$334/BF20*BI20*$CP$16 -> 0 | CO20: =$AY$369/$BF20*$BI20 -> 0 | CP20: =IF(CN20-(CO20*CP$17)>0,CN20-(CO20*CP$17),0) -> 0 | CQ20: =$AB$334/BF20*BI20*$CS$16 -> 0 | CR20: =AZ$369/$BF20*$BI20 -> 0 | CS20: =IF(CQ20-(CR20*CS$17)>0,CQ20-(CR20*CS$17),0) -> 0 | CT20: =$AC$334/BF20*BI20*$CV$16 -> 0 | CU20: =BA$369/$BF20*$BI20 -> 0 | CV20: =IF(CT20-(CU20*CV$17)>0,CT20-(CU20*CV$17),0) -> 0 | CW20: =$AD$334/BF20*BI20*$CY$16 -> 0 | CX20: =BB$369/$BF20*$BI20 -> 0 | CY20: =IF(CW20-(CX20*CY$17)>0,CW20-(CX20*CY$17),0) -> 0 | CZ20: =BO20 -> 0 | DA20: =BR20+BU20+BX20+CA20+CD20+CG20+CJ20+CM20+CP20+CS20+CV20+CY20 -> 0 | DB20: =CZ20-DA20 -> 0 | DC20: =IF($DB20<0,0,IF($DB20>$F$405,$F$405,$DB20)) -> 0 | DD20: =IF($DB20+DC384<0,0,IF($DB20+DC384>$F$405,$F$405,$DB20+DC384)) -> 0 | DE20: =IF($DB20+DD384<0,0,IF($DB20+DD384>$F$405,$F$405,$DB20+DD384)) -> 0 | DF20: =IF(DA20-(DE384+CZ20)<0,0,DA20-(DE384+CZ20)) -> 0 | DN20: C2 Libraries / Museums / Galleries | DP20: 20 | DR20: 5am - 6am | DS20: 0 | DT20: 0 | DU20: 0 | DV20: 0 | DW20: 0 | DX20: 0 | DY20: 0 | DZ20: 0 | EA20: 0.15 | EB20: 0 | EC20: 0 | ED20: 0 | EE20: 0 | EF20: 0 | EG20: 0 | EH20: 0 | EI20: 0.85 | EJ20: 0 | EK20: 0 | EL20: 0 | EM20: 0 | EN20: 0 | EO20: 0.9 | EP20: 0 | EQ20: 0 | ER20: 0 | ES20: 1 | ET20: 0 | EU20: 0.5 | EV20: 0 | EW20: 0 | EX20: 0
Q21: 0 | R21: 0 | S21: 0 | T21: 0 | U21: 0 | V21: 0 | W21: 0 | X21: 0 | Y21: 0 | Z21: 0 | AG21: =EK9 -> F1,F2,F3 Retail | AJ21: =EK39 -> 3.95 | AK21: =EL39 -> 0 | AL21: =EK40 -> 0.55 | AM21: =EL40 -> 0 | BE21: Jan | BF21: 21 | BG21: 2 | BH21: 6 | BI21: FALSE | BJ21: FALSE | BK21: 0 | BL21: =IF(SUM(BL$20:BL20,BK21)>$BJ$4,0,BK21) -> 0 | BM21: 0 | BN21: 0 | BO21: 0 | BP21: 0 | BQ21: 0 | BR21: 0 | BS21: 0 | BT21: 0 | BU21: 0 | BV21: 0 | BW21: 0 | BX21: 0 | BY21: 0 | BZ21: 0 | CA21: 0 | CB21: 0 | CC21: 0 | CD21: 0 | CE21: 0 | CF21: 0 | CG21: 0 | CH21: 0 | CI21: 0 | CJ21: 0 | CK21: 0 | CL21: 0 | CM21: 0 | CN21: 0 | CO21: 0 | CP21: 0 | CQ21: 0 | CR21: 0 | CS21: 0 | CT21: 0 | CU21: 0 | CV21: 0 | CW21: 0 | CX21: 0 | CY21: 0 | CZ21: 0 | DA21: 0 | DB21: 0 | DC21: =IF(DC20+$DB21<0,0,IF(DC20+$DB21>$F$405,$F$405,DC20+$DB21)) -> 0 | DD21: =IF(DD20+$DB21<0,0,IF(DD20+$DB21>$F$405,$F$405,DD20+$DB21)) -> 0 | DE21: =IF(DE20+$DB21<0,0,IF(DE20+$DB21>$F$405,$F$405,DE20+$DB21)) -> 0 | DF21: =IF(DA21-(DE20+CZ21)<0,0,DA21-(DE20+CZ21)) -> 0 | DN21: Courts | DP21: 15 | DR21: 6am - 7am | DS21: 0 | DT21: 0 | DU21: 0.3 | DV21: 0 | DW21: 0 | DX21: 0 | DY21: 0 | DZ21: 0 | EA21: 0.55 | EB21: 0 | EC21: 0 | ED21: 0 | EE21: 0.15 | EF21: 0 | EG21: 0.1 | EH21: 0 | EI21: 0.85 | EJ21: 0 | EK21: 0 | EL21: 0 | EM21: 0 | EN21: 0 | EO21: 0.7 | EP21: 0 | EQ21: 0 | ER21: 0 | ES21: 0.7 | ET21: 0 | EU21: 0.5 | EV21: 0 | EW21: 0.15 | EX21: 0
Q22: 0 | R22: 0 | S22: 0 | T22: 0 | U22: 0 | V22: 0 | W22: 0 | X22: 0 | Y22: 0 | Z22: 0 | AG22: =EM9 -> F1,F2,F4 (Restaurant) | AJ22: =EM39 -> 7.5 | AK22: =EN39 -> 0 | AL22: =EM40 -> 0.8 | AM22: =EN40 -> 0 | BE22: Jan | BF22: 21 | BG22: 3 | BH22: 7 | BI22: FALSE | BJ22: FALSE | BK22: 0 | BL22: =IF(SUM(BL$20:BL21,BK22)>$BJ$4,0,BK22) -> 0 | BM22: 0 | BN22: 0 | BO22: 0 | BP22: 0 | BQ22: 0 | BR22: 0 | BS22: 0 | BT22: 0 | BU22: 0 | BV22: 0 | BW22: 0 | BX22: 0 | BY22: 0 | BZ22: 0 | CA22: 0 | CB22: 0 | CC22: 0 | CD22: 0 | CE22: 0 | CF22: 0 | CG22: 0 | CH22: 0 | CI22: 0 | CJ22: 0 | CK22: 0 | CL22: 0 | CM22: 0 | CN22: 0 | CO22: 0 | CP22: 0 | CQ22: 0 | CR22: 0 | CS22: 0 | CT22: 0 | CU22: 0 | CV22: 0 | CW22: 0 | CX22: 0 | CY22: 0 | CZ22: 0 | DA22: 0 | DB22: 0 | DC22: 0 | DD22: 0 | DE22: 0 | DF22: 0 | DN22: Gym | DP22: 5 | DR22: 7am - 8am | DS22: 0 | DT22: 0 | DU22: 0.3 | DV22: 0 | DW22: 0.25 | DX22: 0 | DY22: 0.1 | DZ22: 0 | EA22: 0.85 | EB22: 0 | EC22: 0 | ED22: 0 | EE22: 0.3 | EF22: 0 | EG22: 0.15 | EH22: 0 | EI22: 0.85 | EJ22: 0 | EK22: 0.15 | EL22: 0 | EM22: 0.05 | EN22: 0 | EO22: 0.4 | EP22: 0 | EQ22: 0.25 | ER22: 0 | ES22: 0.4 | ET22: 0 | EU22: 0.65 | EV22: 0 | EW22: 0.15 | EX22: 0
Q23: 0 | R23: 0 | S23: 0 | T23: 0 | U23: 0 | V23: 0 | W23: 0 | X23: 0 | Y23: 0 | Z23: 0 | AG23: =EO9 -> H1 | AJ23: =EQ39 -> 7.25 | AK23: =ER39 -> 0 | AL23: =EQ40 -> 1 | AM23: =ER40 -> 0 | BE23: Jan | BF23: 21 | BG23: 4 | BH23: 1 | BI23: TRUE | BJ23: FALSE | BK23: 0 | BL23: =IF(SUM(BL$20:BL22,BK23)>$BJ$4,0,BK23) -> 0 | BM23: 0 | BN23: 0 | BO23: 0 | BP23: 0 | BQ23: 0 | BR23: 0 | BS23: 0 | BT23: 0 | BU23: 0 | BV23: 0 | BW23: 0 | BX23: 0 | BY23: 0 | BZ23: 0 | CA23: 0 | CB23: 0 | CC23: 0 | CD23: 0 | CE23: 0 | CF23: 0 | CG23: 0 | CH23: 0 | CI23: 0 | CJ23: 0 | CK23: 0 | CL23: 0 | CM23: 0 | CN23: 0 | CO23: 0 | CP23: 0 | CQ23: 0 | CR23: 0 | CS23: 0 | CT23: 0 | CU23: 0 | CV23: 0 | CW23: 0 | CX23: 0 | CY23: 0 | CZ23: 0 | DA23: 0 | DB23: 0 | DC23: 0 | DD23: 0 | DE23: 0 | DF23: 0 | DR23: 8am - 9am | DS23: 0 | DT23: 0 | DU23: 0.45 | DV23: 0 | DW23: 0.75 | DX23: 0 | DY23: 0.25 | DZ23: 0 | EA23: 0.85 | EB23: 0 | EC23: 0 | ED23: 0 | EE23: 0.3 | EF23: 0 | EG23: 0.55 | EH23: 0 | EI23: 0.85 | EJ23: 0 | EK23: 0.15 | EL23: 0 | EM23: 0.05 | EN23: 0 | EO23: 0.4 | EP23: 0 | EQ23: 1 | ER23: 0 | ES23: 0.05 | ET23: 0 | EU23: 0.8 | EV23: 0 | EW23: 0.15 | EX23: 0
Q24: 0 | R24: 0 | S24: 0 | T24: 0 | U24: 0 | V24: 0 | W24: 0 | X24: 0 | Y24: 0 | Z24: 0 | AG24: =EQ9 -> Gym | AJ24: =ES39 -> 13.65 | AK24: =ER39 -> 0 | AL24: =EQ40 -> 1 | AM24: =ER40 -> 0 | BE24: Jan | BF24: 21 | BG24: 5 | BH24: 2 | BI24: TRUE | BJ24: TRUE | BK24: 5.833333333 | BL24: =IF(SUM(BL$20:BL23,BK24)>$BJ$4,0,BK24) -> 5.833333333 | BM24: 0 | BN24: 0 | BO24: 0 | BP24: 0 | BQ24: 0 | BR24: 0 | BS24: 0 | BT24: 0 | BU24: 0 | BV24: 0 | BW24: 0 | BX24: 0 | BY24: 0 | BZ24: 0 | CA24: 0 | CB24: 0 | CC24: 0 | CD24: 0 | CE24: 0 | CF24: 0 | CG24: 0 | CH24: 0 | CI24: 0 | CJ24: 0 | CK24: 0 | CL24: 0 | CM24: 0 | CN24: 0 | CO24: 0 | CP24: 0 | CQ24: 0 | CR24: 0 | CS24: 0 | CT24: 0 | CU24: 0 | CV24: 0 | CW24: 0 | CX24: 0 | CY24: 0 | CZ24: 0 | DA24: 0 | DB24: 0 | DC24: 0 | DD24: 0 | DE24: 0 | DF24: 0 | DR24: 9am - 10am | DS24: 0.75 | DT24: 0 | DU24: 0.8 | DV24: 0 | DW24: 0.9 | DX24: 0 | DY24: 0.75 | DZ24: 0 | EA24: 0.85 | EB24: 0 | EC24: 0.75 | ED24: 0 | EE24: 0.5 | EF24: 0 | EG24: 0.85 | EH24: 0 | EI24: 0.85 | EJ24: 0 | EK24: 0.3 | EL24: 0 | EM24: 0.05 | EN24: 0 | EO24: 0.2 | EP24: 0 | EQ24: 0.25 | ER24: 0 | ES24: 0.05 | ET24: 0 | EU24: 0.8 | EV24: 0 | EW24: 0.15 | EX24: 0
Q25: 0 | R25: 0 | S25: 0 | T25: 0 | U25: 0 | V25: 0 | W25: 0 | X25: 0 | Y25: 0 | Z25: 0 | AG25: =ES9 -> H2,H3,H4,H5 | AJ25: =EU39 -> 15 | AK25: =EV39 -> 0 | AL25: =ES40 -> 1 | AM25: =ET40 -> 0 | BE25: Jan | BF25: 21 | BG25: 6 | BH25: 3 | BI25: TRUE | BJ25: FALSE | BK25: 0 | BL25: =IF(SUM(BL$20:BL24,BK25)>$BJ$4,0,BK25) -> 0 | BM25: 0 | BN25: 0 | BO25: 0 | BP25: 0 | BQ25: 0 | BR25: 0 | BS25: 0 | BT25: 0 | BU25: 0 | BV25: 0 | BW25: 0 | BX25: 0 | BY25: 0 | BZ25: 0 | CA25: 0 | CB25: 0 | CC25: 0 | CD25: 0 | CE25: 0 | CF25: 0 | CG25: 0 | CH25: 0 | CI25: 0 | CJ25: 0 | CK25: 0 | CL25: 0 | CM25: 0 | CN25: 0 | CO25: 0 | CP25: 0 | CQ25: 0 | CR25: 0 | CS25: 0 | CT25: 0 | CU25: 0 | CV25: 0 | CW25: 0 | CX25: 0 | CY25: 0 | CZ25: 0 | DA25: 0 | DB25: 0 | DC25: 0 | DD25: 0 | DE25: 0 | DF25: 0 | DR25: 10am - 11am | DS25: 1 | DT25: 0 | DU25: 0.8 | DV25: 0 | DW25: 0.9 | DX25: 0 | DY25: 1 | DZ25: 0 | EA25: 0.85 | EB25: 0 | EC25: 1 | ED25: 0 | EE25: 0.9 | EF25: 0 | EG25: 0.85 | EH25: 0 | EI25: 0.85 | EJ25: 0 | EK25: 0.3 | EL25: 0 | EM25: 0.2 | EN25: 0 | EO25: 0.2 | EP25: 0 | EQ25: 0 | ER25: 0 | ES25: 0.05 | ET25: 0 | EU25: 0.8 | EV25: 0 | EW25: 0.15 | EX25: 0
Q26: 0 | R26: 0 | S26: 0 | T26: 0 | U26: 0 | V26: 0 | W26: 0 | X26: 0 | Y26: 0 | Z26: 0 | AG26: =EU9 -> E1,E2,E3 | AJ26: =EW39 -> 1.95 | AK26: =EX39 -> 0 | AL26: =ES40 -> 1 | AM26: =EV40 -> 0 | BE26: Jan | BF26: 21 | BG26: 7 | BH26: 4 | BI26: TRUE | BJ26: FALSE | BK26: 0 | BL26: =IF(SUM(BL$20:BL25,BK26)>$BJ$4,0,BK26) -> 0 | BM26: 0 | BN26: 0 | BO26: 0 | BP26: 0 | BQ26: 0 | BR26: 0 | BS26: 0 | BT26: 0 | BU26: 0 | BV26: 0 | BW26: 0 | BX26: 0 | BY26: 0 | BZ26: 0 | CA26: 0 | CB26: 0 | CC26: 0 | CD26: 0 | CE26: 0 | CF26: 0 | CG26: 0 | CH26: 0 | CI26: 0 | CJ26: 0 | CK26: 0 | CL26: 0 | CM26: 0 | CN26: 0 | CO26: 0 | CP26: 0 | CQ26: 0 | CR26: 0 | CS26: 0 | CT26: 0 | CU26: 0 | CV26: 0 | CW26: 0 | CX26: 0 | CY26: 0 | CZ26: 0 | DA26: 0 | DB26: 0 | DC26: 0 | DD26: 0 | DE26: 0 | DF26: 0 | DR26: 11am - 12pm | DS26: 1 | DT26: 0 | DU26: 0.8 | DV26: 0 | DW26: 0.9 | DX26: 0 | DY26: 1 | DZ26: 0 | EA26: 0.85 | EB26: 0 | EC26: 1 | ED26: 0 | EE26: 0.9 | EF26: 0 | EG26: 0.85 | EH26: 0 | EI26: 0.85 | EJ26: 0 | EK26: 0.45 | EL26: 0 | EM26: 0.5 | EN26: 0 | EO26: 0.2 | EP26: 0 | EQ26: 0 | ER26: 0 | ES26: 0.05 | ET26: 0 | EU26: 0.8 | EV26: 0 | EW26: 0.15 | EX26: 0
Q27: 0 | R27: 0 | S27: 0 | T27: 0 | U27: 0 | V27: 0 | W27: 0 | X27: 0 | Y27: 0 | Z27: 0 | AG27: =EW9 -> Common Areas , Reception, Ablutions | AJ27: =EW39 -> 1.95 | AK27: =EX39 -> 0 | AL27: =EW40 -> 0.15 | AM27: =EX40 -> 0 | BE27: Jan | BF27: 21 | BG27: 8 | BH27: 5 | BI27: TRUE | BJ27: FALSE | BK27: 0 | BL27: =IF(SUM(BL$20:BL26,BK27)>$BJ$4,0,BK27) -> 0 | BM27: 0 | BN27: 0 | BO27: 0 | BP27: 0 | BQ27: 0 | BR27: 0 | BS27: 0 | BT27: 0 | BU27: 0 | BV27: 0 | BW27: 0 | BX27: 0 | BY27: 0 | BZ27: 0 | CA27: 0 | CB27: 0 | CC27: 0 | CD27: 0 | CE27: 0 | CF27: 0 | CG27: 0 | CH27: 0 | CI27: 0 | CJ27: 0 | CK27: 0 | CL27: 0 | CM27: 0 | CN27: 0 | CO27: 0 | CP27: 0 | CQ27: 0 | CR27: 0 | CS27: 0 | CT27: 0 | CU27: 0 | CV27: 0 | CW27: 0 | CX27: 0 | CY27: 0 | CZ27: 0 | DA27: 0 | DB27: 0 | DC27: 0 | DD27: 0 | DE27: 0 | DF27: 0 | DR27: 12pm - 1pm | DS27: 0.75 | DT27: 0 | DU27: 0.8 | DV27: 0 | DW27: 0.9 | DX27: 0 | DY27: 0.5 | DZ27: 0 | EA27: 0.85 | EB27: 0 | EC27: 0.75 | ED27: 0 | EE27: 0.9 | EF27: 0 | EG27: 0.85 | EH27: 0 | EI27: 0.85 | EJ27: 0 | EK27: 0.45 | EL27: 0 | EM27: 0.8 | EN27: 0 | EO27: 0.2 | EP27: 0 | EQ27: 0.25 | ER27: 0 | ES27: 0.05 | ET27: 0 | EU27: 0.8 | EV27: 0 | EW27: 0.15 | EX27: 0
C28: =SUM(C13:C27) -> 0 | Q28: 0 | R28: 0 | S28: 0 | T28: 0 | U28: 0 | V28: 0 | W28: 0 | X28: 0 | Y28: 0 | Z28: 0 | AJ28: =EY39 -> 0 | AK28: =EZ39 -> 0 | AL28: =EX40 -> 0 | AM28: =EZ40 -> 0 | BE28: Jan | BF28: 21 | BG28: 9 | BH28: 6 | BI28: FALSE | BJ28: FALSE | BK28: 0 | BL28: =IF(SUM(BL$20:BL27,BK28)>$BJ$4,0,BK28) -> 0 | BM28: 0 | BN28: 0 | BO28: 0 | BP28: 0 | BQ28: 0 | BR28: 0 | BS28: 0 | BT28: 0 | BU28: 0 | BV28: 0 | BW28: 0 | BX28: 0 | BY28: 0 | BZ28: 0 | CA28: 0 | CB28: 0 | CC28: 0 | CD28: 0 | CE28: 0 | CF28: 0 | CG28: 0 | CH28: 0 | CI28: 0 | CJ28: 0 | CK28: 0 | CL28: 0 | CM28: 0 | CN28: 0 | CO28: 0 | CP28: 0 | CQ28: 0 | CR28: 0 | CS28: 0 | CT28: 0 | CU28: 0 | CV28: 0 | CW28: 0 | CX28: 0 | CY28: 0 | CZ28: 0 | DA28: 0 | DB28: 0 | DC28: 0 | DD28: 0 | DE28: 0 | DF28: 0 | DR28: 1pm - 2pm | DS28: 0.75 | DT28: 0 | DU28: 0.8 | DV28: 0 | DW28: 0.75 | DX28: 0 | DY28: 0.5 | DZ28: 0 | EA28: 0.85 | EB28: 0 | EC28: 0.75 | ED28: 0 | EE28: 0.9 | EF28: 0 | EG28: 0.85 | EH28: 0 | EI28: 0.85 | EJ28: 0 | EK28: 0.55 | EL28: 0 | EM28: 0.7 | EN28: 0 | EO28: 0.2 | EP28: 0 | EQ28: 1 | ER28: 0 | ES28: 0.05 | ET28: 0 | EU28: 0.8 | EV28: 0 | EW28: 0.15 | EX28: 0
Q29: 0 | R29: 0 | S29: 0 | T29: 0 | U29: 0 | V29: 0 | W29: 0 | X29: 0 | Y29: 0 | Z29: 0 | BE29: Jan | BF29: 21 | BG29: 10 | BH29: 7 | BI29: FALSE | BJ29: TRUE | BK29: 5.833333333 | BL29: =IF(SUM(BL$20:BL28,BK29)>$BJ$4,0,BK29) -> 5.833333333 | BM29: 0 | BN29: 0 | BO29: 0 | BP29: 0 | BQ29: 0 | BR29: 0 | BS29: 0 | BT29: 0 | BU29: 0 | BV29: 0 | BW29: 0 | BX29: 0 | BY29: 0 | BZ29: 0 | CA29: 0 | CB29: 0 | CC29: 0 | CD29: 0 | CE29: 0 | CF29: 0 | CG29: 0 | CH29: 0 | CI29: 0 | CJ29: 0 | CK29: 0 | CL29: 0 | CM29: 0 | CN29: 0 | CO29: 0 | CP29: 0 | CQ29: 0 | CR29: 0 | CS29: 0 | CT29: 0 | CU29: 0 | CV29: 0 | CW29: 0 | CX29: 0 | CY29: 0 | CZ29: 0 | DA29: 0 | DB29: 0 | DC29: 0 | DD29: 0 | DE29: 0 | DF29: 0 | DR29: 2pm - 3pm | DS29: 1 | DT29: 0 | DU29: 0.8 | DV29: 0 | DW29: 0.9 | DX29: 0 | DY29: 1 | DZ29: 0 | EA29: 0.85 | EB29: 0 | EC29: 1 | ED29: 0 | EE29: 0.9 | EF29: 0 | EG29: 0.85 | EH29: 0 | EI29: 0.85 | EJ29: 0 | EK29: 0.55 | EL29: 0 | EM29: 0.4 | EN29: 0 | EO29: 0.2 | EP29: 0 | EQ29: 1 | ER29: 0 | ES29: 0.05 | ET29: 0 | EU29: 0.8 | EV29: 0 | EW29: 0.15 | EX29: 0
B30: STEP 1b - Please provide information regarding the building location | U30: Total | V30: =SUM(V15:V29) -> 0 | Z30: =SUM(Z15:Z29) -> 0 | BE30: Jan | BF30: 21 | BG30: 11 | BH30: 1 | BI30: TRUE | BJ30: FALSE | BK30: 0 | BL30: =IF(SUM(BL$20:BL29,BK30)>$BJ$4,0,BK30) -> 0 | BM30: 0 | BN30: 0 | BO30: 0 | BP30: 0 | BQ30: 0 | BR30: 0 | BS30: 0 | BT30: 0 | BU30: 0 | BV30: 0 | BW30: 0 | BX30: 0 | BY30: 0 | BZ30: 0 | CA30: 0 | CB30: 0 | CC30: 0 | CD30: 0 | CE30: 0 | CF30: 0 | CG30: 0 | CH30: 0 | CI30: 0 | CJ30: 0 | CK30: 0 | CL30: 0 | CM30: 0 | CN30: 0 | CO30: 0 | CP30: 0 | CQ30: 0 | CR30: 0 | CS30: 0 | CT30: 0 | CU30: 0 | CV30: 0 | CW30: 0 | CX30: 0 | CY30: 0 | CZ30: 0 | DA30: 0 | DB30: 0 | DC30: 0 | DD30: 0 | DE30: 0 | DF30: 0 | DR30: 3pm - 4pm | DS30: 1 | DT30: 0 | DU30: 0.8 | DV30: 0 | DW30: 0.9 | DX30: 0 | DY30: 1 | DZ30: 0 | EA30: 0.85 | EB30: 0 | EC30: 1 | ED30: 0 | EE30: 0.9 | EF30: 0 | EG30: 0.85 | EH30: 0 | EI30: 0.85 | EJ30: 0 | EK30: 0.45 | EL30: 0 | EM30: 0.2 | EN30: 0 | EO30: 0.3 | EP30: 0 | EQ30: 0.5 | ER30: 0 | ES30: 0.05 | ET30: 0 | EU30: 0.8 | EV30: 0 | EW30: 0.15 | EX30: 0
B31: Select building location | D31: Beaufort West | BE31: Jan | BF31: 21 | BG31: 12 | BH31: 2 | BI31: TRUE | BJ31: FALSE | BK31: 0 | BL31: =IF(SUM(BL$20:BL30,BK31)>$BJ$4,0,BK31) -> 0 | BM31: 0 | BN31: 0 | BO31: 0 | BP31: 0 | BQ31: 0 | BR31: 0 | BS31: 0 | BT31: 0 | BU31: 0 | BV31: 0 | BW31: 0 | BX31: 0 | BY31: 0 | BZ31: 0 | CA31: 0 | CB31: 0 | CC31: 0 | CD31: 0 | CE31: 0 | CF31: 0 | CG31: 0 | CH31: 0 | CI31: 0 | CJ31: 0 | CK31: 0 | CL31: 0 | CM31: 0 | CN31: 0 | CO31: 0 | CP31: 0 | CQ31: 0 | CR31: 0 | CS31: 0 | CT31: 0 | CU31: 0 | CV31: 0 | CW31: 0 | CX31: 0 | CY31: 0 | CZ31: 0 | DA31: 0 | DB31: 0 | DC31: 0 | DD31: 0 | DE31: 0 | DF31: 0 | DR31: 4pm - 5pm | DS31: 1 | DT31: 0 | DU31: 0.8 | DV31: 0 | DW31: 0.9 | DX31: 0 | DY31: 0.5 | DZ31: 0 | EA31: 0.85 | EB31: 0 | EC31: 1 | ED31: 0 | EE31: 0.9 | EF31: 0 | EG31: 0.85 | EH31: 0 | EI31: 0.85 | EJ31: 0 | EK31: 0.3 | EL31: 0 | EM31: 0.25 | EN31: 0 | EO31: 0.5 | EP31: 0 | EQ31: 0 | ER31: 0 | ES31: 0.05 | ET31: 0 | EU31: 0.8 | EV31: 0 | EW31: 0.15 | EX31: 0
B32: SANS 204 climatic region | D32: =IFERROR(VLOOKUP($D$31,'Rainfall data'!$B$4:$Q$34,16,FALSE),"") -> Zone 1 - Cold Interior | BE32: Jan | BF32: 21 | BG32: 13 | BH32: 3 | BI32: TRUE | BJ32: FALSE | BK32: 0 | BL32: =IF(SUM(BL$20:BL31,BK32)>$BJ$4,0,BK32) -> 0 | BM32: 0 | BN32: 0 | BO32: 0 | BP32: 0 | BQ32: 0 | BR32: 0 | BS32: 0 | BT32: 0 | BU32: 0 | BV32: 0 | BW32: 0 | BX32: 0 | BY32: 0 | BZ32: 0 | CA32: 0 | CB32: 0 | CC32: 0 | CD32: 0 | CE32: 0 | CF32: 0 | CG32: 0 | CH32: 0 | CI32: 0 | CJ32: 0 | CK32: 0 | CL32: 0 | CM32: 0 | CN32: 0 | CO32: 0 | CP32: 0 | CQ32: 0 | CR32: 0 | CS32: 0 | CT32: 0 | CU32: 0 | CV32: 0 | CW32: 0 | CX32: 0 | CY32: 0 | CZ32: 0 | DA32: 0 | DB32: 0 | DC32: 0 | DD32: 0 | DE32: 0 | DF32: 0 | DR32: 5pm - 6pm | DS32: 0.75 | DT32: 0 | DU32: 0.8 | DV32: 0 | DW32: 0.75 | DX32: 0 | DY32: 0.5 | DZ32: 0 | EA32: 0.85 | EB32: 0 | EC32: 0.75 | ED32: 0 | EE32: 0.3 | EF32: 0 | EG32: 0.5 | EH32: 0 | EI32: 0.85 | EJ32: 0 | EK32: 0.15 | EL32: 0 | EM32: 0.5 | EN32: 0 | EO32: 0.5 | EP32: 0 | EQ32: 0 | ER32: 0 | ES32: 0.4 | ET32: 0 | EU32: 0.65 | EV32: 0 | EW32: 0.15 | EX32: 0
BE33: Jan | BF33: 21 | BG33: 14 | BH33: 4 | BI33: TRUE | BJ33: FALSE | BK33: 0 | BL33: =IF(SUM(BL$20:BL32,BK33)>$BJ$4,0,BK33) -> 0 | BM33: 0 | BN33: 0 | BO33: 0 | BP33: 0 | BQ33: 0 | BR33: 0 | BS33: 0 | BT33: 0 | BU33: 0 | BV33: 0 | BW33: 0 | BX33: 0 | BY33: 0 | BZ33: 0 | CA33: 0 | CB33: 0 | CC33: 0 | CD33: 0 | CE33: 0 | CF33: 0 | CG33: 0 | CH33: 0 | CI33: 0 | CJ33: 0 | CK33: 0 | CL33: 0 | CM33: 0 | CN33: 0 | CO33: 0 | CP33: 0 | CQ33: 0 | CR33: 0 | CS33: 0 | CT33: 0 | CU33: 0 | CV33: 0 | CW33: 0 | CX33: 0 | CY33: 0 | CZ33: 0 | DA33: 0 | DB33: 0 | DC33: 0 | DD33: 0 | DE33: 0 | DF33: 0 | DR33: 6pm - 7pm | DS33: 0 | DT33: 0 | DU33: 0.45 | DV33: 0 | DW33: 0.25 | DX33: 0 | DY33: 0 | DZ33: 0 | EA33: 0.85 | EB33: 0 | EC33: 0 | ED33: 0 | EE33: 0.15 | EF33: 0 | EG33: 0.15 | EH33: 0 | EI33: 0.85 | EJ33: 0 | EK33: 0.15 | EL33: 0 | EM33: 0.8 | EN33: 0 | EO33: 0.5 | EP33: 0 | EQ33: 0.5 | ER33: 0 | ES33: 0.7 | ET33: 0 | EU33: 0.5 | EV33: 0 | EW33: 0.15 | EX33: 0
D34: Average rainfall | E34: # rainy days | R34: Number of days in week | S34: (based on 2010) | BE34: Jan | BF34: 21 | BG34: 15 | BH34: 5 | BI34: TRUE | BJ34: TRUE | BK34: 5.833333333 | BL34: =IF(SUM(BL$20:BL33,BK34)>$BJ$4,0,BK34) -> 5.833333333 | BM34: 0 | BN34: 0 | BO34: 0 | BP34: 0 | BQ34: 0 | BR34: 0 | BS34: 0 | BT34: 0 | BU34: 0 | BV34: 0 | BW34: 0 | BX34: 0 | BY34: 0 | BZ34: 0 | CA34: 0 | CB34: 0 | CC34: 0 | CD34: 0 | CE34: 0 | CF34: 0 | CG34: 0 | CH34: 0 | CI34: 0 | CJ34: 0 | CK34: 0 | CL34: 0 | CM34: 0 | CN34: 0 | CO34: 0 | CP34: 0 | CQ34: 0 | CR34: 0 | CS34: 0 | CT34: 0 | CU34: 0 | CV34: 0 | CW34: 0 | CX34: 0 | CY34: 0 | CZ34: 0 | DA34: 0 | DB34: 0 | DC34: 0 | DD34: 0 | DE34: 0 | DF34: 0 | DR34: 7pm - 8pm | DS34: 0 | DT34: 0 | DU34: 0.3 | DV34: 0 | DW34: 0 | DX34: 0 | DY34: 0 | DZ34: 0 | EA34: 0.85 | EB34: 0 | EC34: 0 | ED34: 0 | EE34: 0 | EF34: 0 | EG34: 0.05 | EH34: 0 | EI34: 0.85 | EJ34: 0 | EK34: 0 | EL34: 0 | EM34: 0.8 | EN34: 0 | EO34: 0.7 | EP34: 0 | EQ34: 1 | ER34: 0 | ES34: 1 | ET34: 0 | EU34: 0.5 | EV34: 0 | EW34: 0 | EX34: 0
D35: (mm/month) | E35: (days per month) | T35: Jan | U35: Feb | V35: Mar | W35: Apr | X35: May | Y35: Jun | Z35: Jul | AA35: Aug | AB35: Sep | AC35: Oct | AD35: Nov | AE35: Dec | AF35: Total | BE35: Jan | BF35: 21 | BG35: 16 | BH35: 6 | BI35: FALSE | BJ35: FALSE | BK35: 0 | BL35: =IF(SUM(BL$20:BL34,BK35)>$BJ$4,0,BK35) -> 0 | BM35: 0 | BN35: 0 | BO35: 0 | BP35: 0 | BQ35: 0 | BR35: 0 | BS35: 0 | BT35: 0 | BU35: 0 | BV35: 0 | BW35: 0 | BX35: 0 | BY35: 0 | BZ35: 0 | CA35: 0 | CB35: 0 | CC35: 0 | CD35: 0 | CE35: 0 | CF35: 0 | CG35: 0 | CH35: 0 | CI35: 0 | CJ35: 0 | CK35: 0 | CL35: 0 | CM35: 0 | CN35: 0 | CO35: 0 | CP35: 0 | CQ35: 0 | CR35: 0 | CS35: 0 | CT35: 0 | CU35: 0 | CV35: 0 | CW35: 0 | CX35: 0 | CY35: 0 | CZ35: 0 | DA35: 0 | DB35: 0 | DC35: 0 | DD35: 0 | DE35: 0 | DF35: 0 | DR35: 8pm - 9pm | DS35: 0 | DT35: 0 | DU35: 0.3 | DV35: 0 | DW35: 0 | DX35: 0 | DY35: 0 | DZ35: 0 | EA35: 0.5 | EB35: 0 | EC35: 0 | ED35: 0 | EE35: 0 | EF35: 0 | EG35: 0.05 | EH35: 0 | EI35: 0.85 | EJ35: 0 | EK35: 0 | EL35: 0 | EM35: 0.8 | EN35: 0 | EO35: 0.7 | EP35: 0 | EQ35: 1 | ER35: 0 | ES35: 1 | ET35: 0 | EU35: 0.5 | EV35: 0 | EW35: 0 | EX35: 0
C36: January | D36: =IFERROR(VLOOKUP($D$31,'Rainfall data'!$B$3:$O$33,'Potable Water Calculator'!O38,FALSE),"") -> 35 | E36: =IFERROR(VLOOKUP($D$31,'Rainfall data'!$B$44:$P$74,'Potable Water Calculator'!O38,FALSE),"") -> 6 | S36: Total days in month | T36: 31 | U36: 28 | V36: 31 | W36: 30 | X36: 31 | Y36: 30 | Z36: 31 | AA36: 31 | AB36: 30 | AC36: 31 | AD36: 30 | AE36: 31 | AF36: - | BE36: Jan | BF36: 21 | BG36: 17 | BH36: 7 | BI36: FALSE | BJ36: FALSE | BK36: 0 | BL36: =IF(SUM(BL$20:BL35,BK36)>$BJ$4,0,BK36) -> 0 | BM36: 0 | BN36: 0 | BO36: 0 | BP36: 0 | BQ36: 0 | BR36: 0 | BS36: 0 | BT36: 0 | BU36: 0 | BV36: 0 | BW36: 0 | BX36: 0 | BY36: 0 | BZ36: 0 | CA36: 0 | CB36: 0 | CC36: 0 | CD36: 0 | CE36: 0 | CF36: 0 | CG36: 0 | CH36: 0 | CI36: 0 | CJ36: 0 | CK36: 0 | CL36: 0 | CM36: 0 | CN36: 0 | CO36: 0 | CP36: 0 | CQ36: 0 | CR36: 0 | CS36: 0 | CT36: 0 | CU36: 0 | CV36: 0 | CW36: 0 | CX36: 0 | CY36: 0 | CZ36: 0 | DA36: 0 | DB36: 0 | DC36: 0 | DD36: 0 | DE36: 0 | DF36: 0 | DR36: 9pm - 10pm | DS36: 0 | DT36: 0 | DU36: 0 | DV36: 0 | DW36: 0 | DX36: 0 | DY36: 0 | DZ36: 0 | EA36: 0.15 | EB36: 0 | EC36: 0 | ED36: 0 | EE36: 0 | EF36: 0 | EG36: 0 | EH36: 0 | EI36: 0.85 | EJ36: 0 | EK36: 0 | EL36: 0 | EM36: 0.5 | EN36: 0 | EO36: 0.8 | EP36: 0 | EQ36: 0.5 | ER36: 0 | ES36: 1 | ET36: 0 | EU36: 0.5 | EV36: 0 | EW36: 0 | EX36: 0
C37: February | D37: =IFERROR(VLOOKUP($D$31,'Rainfall data'!$B$3:$O$33,'Potable Water Calculator'!O39,FALSE),"") -> 30 | E37: =IFERROR(VLOOKUP($D$31,'Rainfall data'!$B$44:$P$74,'Potable Water Calculator'!O39,FALSE),"") -> 6 | O37: vlookup column index | R37: # peak days | S37: Weekends in month | T37: 5 | U37: 4 | V37: 4 | W37: 4 | X37: 5 | Y37: 4 | Z37: 5 | AA37: 4 | AB37: 4 | AC37: 5 | AD37: 4 | AE37: 4 | AF37: - | BE37: Jan | BF37: 21 | BG37: 18 | BH37: 1 | BI37: TRUE | BJ37: FALSE | BK37: 0 | BL37: =IF(SUM(BL$20:BL36,BK37)>$BJ$4,0,BK37) -> 0 | BM37: 0 | BN37: 0 | BO37: 0 | BP37: 0 | BQ37: 0 | BR37: 0 | BS37: 0 | BT37: 0 | BU37: 0 | BV37: 0 | BW37: 0 | BX37: 0 | BY37: 0 | BZ37: 0 | CA37: 0 | CB37: 0 | CC37: 0 | CD37: 0 | CE37: 0 | CF37: 0 | CG37: 0 | CH37: 0 | CI37: 0 | CJ37: 0 | CK37: 0 | CL37: 0 | CM37: 0 | CN37: 0 | CO37: 0 | CP37: 0 | CQ37: 0 | CR37: 0 | CS37: 0 | CT37: 0 | CU37: 0 | CV37: 0 | CW37: 0 | CX37: 0 | CY37: 0 | CZ37: 0 | DA37: 0 | DB37: 0 | DC37: 0 | DD37: 0 | DE37: 0 | DF37: 0 | DR37: 10pm - 11pm | DS37: 0 | DT37: 0 | DU37: 0 | DV37: 0 | DW37: 0 | DX37: 0 | DY37: 0 | DZ37: 0 | EA37: 0.05 | EB37: 0 | EC37: 0 | ED37: 0 | EE37: 0 | EF37: 0 | EG37: 0 | EH37: 0 | EI37: 0.85 | EJ37: 0 | EK37: 0 | EL37: 0 | EM37: 0.35 | EN37: 0 | EO37: 0.9 | EP37: 0 | EQ37: 0 | ER37: 0 | ES37: 1 | ET37: 0 | EU37: 0.5 | EV37: 0 | EW37: 0 | EX37: 0
C38: March | D38: =IFERROR(VLOOKUP($D$31,'Rainfall data'!$B$3:$O$33,'Potable Water Calculator'!O40,FALSE),"") -> 30 | E38: =IFERROR(VLOOKUP($D$31,'Rainfall data'!$B$44:$P$74,'Potable Water Calculator'!O40,FALSE),"") -> 5 | O38: 3 | R38: 5 | S38: 5 day week | T38: =T36-(T37*(7-$R38)) -> 21 | U38: 20 | V38: 23 | W38: 22 | X38: 21 | Y38: 22 | Z38: 21 | AA38: 23 | AB38: 22 | AC38: 21 | AD38: 22 | AE38: 23 | AF38: =SUM(T38:AE38) -> 261 | BE38: Jan | BF38: 21 | BG38: 19 | BH38: 2 | BI38: TRUE | BJ38: FALSE | BK38: 0 | BL38: =IF(SUM(BL$20:BL37,BK38)>$BJ$4,0,BK38) -> 0 | BM38: 0 | BN38: 0 | BO38: 0 | BP38: 0 | BQ38: 0 | BR38: 0 | BS38: 0 | BT38: 0 | BU38: 0 | BV38: 0 | BW38: 0 | BX38: 0 | BY38: 0 | BZ38: 0 | CA38: 0 | CB38: 0 | CC38: 0 | CD38: 0 | CE38: 0 | CF38: 0 | CG38: 0 | CH38: 0 | CI38: 0 | CJ38: 0 | CK38: 0 | CL38: 0 | CM38: 0 | CN38: 0 | CO38: 0 | CP38: 0 | CQ38: 0 | CR38: 0 | CS38: 0 | CT38: 0 | CU38: 0 | CV38: 0 | CW38: 0 | CX38: 0 | CY38: 0 | CZ38: 0 | DA38: 0 | DB38: 0 | DC38: 0 | DD38: 0 | DE38: 0 | DF38: 0 | DR38: 11pm - 12am | DS38: 0 | DT38: 0 | DU38: 0 | DV38: 0 | DW38: 0 | DX38: 0 | DY38: 0 | DZ38: 0 | EA38: 0.05 | EB38: 0 | EC38: 0 | ED38: 0 | EE38: 0 | EF38: 0 | EG38: 0 | EH38: 0 | EI38: 0.85 | EJ38: 0 | EK38: 0 | EL38: 0 | EM38: 0.2 | EN38: 0 | EO38: 0.9 | EP38: 0 | EQ38: 0 | ER38: 0 | ES38: 1 | ET38: 0 | EU38: 0.5 | EV38: 0 | EW38: 0 | EX38: 0
C39: April | D39: =IFERROR(VLOOKUP($D$31,'Rainfall data'!$B$3:$O$33,'Potable Water Calculator'!O41,FALSE),"") -> 20 | E39: =IFERROR(VLOOKUP($D$31,'Rainfall data'!$B$44:$P$74,'Potable Water Calculator'!O41,FALSE),"") -> 3 | O39: 4 | R39: 6 | S39: 6 day week | T39: =T36-(T37*(7-$R39)) -> 26 | U39: 24 | V39: 27 | W39: 26 | X39: 26 | Y39: 26 | Z39: 26 | AA39: 27 | AB39: 26 | AC39: 26 | AD39: 26 | AE39: 27 | AF39: =SUM(T39:AE39) -> 313 | BE39: Jan | BF39: 21 | BG39: 20 | BH39: 3 | BI39: TRUE | BJ39: TRUE | BK39: 5.833333333 | BL39: =IF(SUM(BL$20:BL38,BK39)>$BJ$4,0,BK39) -> 5.833333333 | BM39: 0 | BN39: 0 | BO39: 0 | BP39: 0 | BQ39: 0 | BR39: 0 | BS39: 0 | BT39: 0 | BU39: 0 | BV39: 0 | BW39: 0 | BX39: 0 | BY39: 0 | BZ39: 0 | CA39: 0 | CB39: 0 | CC39: 0 | CD39: 0 | CE39: 0 | CF39: 0 | CG39: 0 | CH39: 0 | CI39: 0 | CJ39: 0 | CK39: 0 | CL39: 0 | CM39: 0 | CN39: 0 | CO39: 0 | CP39: 0 | CQ39: 0 | CR39: 0 | CS39: 0 | CT39: 0 | CU39: 0 | CV39: 0 | CW39: 0 | CX39: 0 | CY39: 0 | CZ39: 0 | DA39: 0 | DB39: 0 | DC39: 0 | DD39: 0 | DE39: 0 | DF39: 0 | DR39: Daily occupancy (person hours per day) | DS39: =SUM(DS15:DS38) -> 8 | DT39: =SUM(DT15:DT38) -> 0 | DU39: 9.3 | DV39: 0 | DW39: 9.05 | DX39: 0 | DY39: 7.1 | DZ39: 0 | EA39: 12.6 | EB39: 0 | EC39: 8 | ED39: 0 | EE39: 8 | EF39: 0 | EG39: 8.35 | EH39: 0 | EI39: 20.4 | EJ39: 0 | EK39: 3.95 | EL39: 0 | EM39: 7.5 | EN39: 0 | EO39: 13.9 | EP39: 0 | EQ39: 7.25 | ER39: 0 | ES39: 13.65 | ET39: 0 | EU39: 15 | EV39: 0 | EW39: 1.95 | EX39: 0 | EY39: =SUM(EY15:EY38) -> 0 | EZ39: =SUM(EZ15:EZ38) -> 0
C40: May | D40: =IFERROR(VLOOKUP($D$31,'Rainfall data'!$B$3:$O$33,'Potable Water Calculator'!O42,FALSE),"") -> 11 | E40: =IFERROR(VLOOKUP($D$31,'Rainfall data'!$B$44:$P$74,'Potable Water Calculator'!O42,FALSE),"") -> 2 | O40: 5 | R40: 7 | S40: 7day week | T40: =T36-(T37*(7-$R40)) -> 31 | U40: 28 | V40: 31 | W40: 30 | X40: 31 | Y40: 30 | Z40: 31 | AA40: 31 | AB40: 30 | AC40: 31 | AD40: 30 | AE40: 31 | AF40: =SUM(T40:AE40) -> 365 | BE40: Jan | BF40: 21 | BG40: 21 | BH40: 4 | BI40: TRUE | BJ40: FALSE | BK40: 0 | BL40: =IF(SUM(BL$20:BL39,BK40)>$BJ$4,0,BK40) -> 0 | BM40: 0 | BN40: 0 | BO40: 0 | BP40: 0 | BQ40: 0 | BR40: 0 | BS40: 0 | BT40: 0 | BU40: 0 | BV40: 0 | BW40: 0 | BX40: 0 | BY40: 0 | BZ40: 0 | CA40: 0 | CB40: 0 | CC40: 0 | CD40: 0 | CE40: 0 | CF40: 0 | CG40: 0 | CH40: 0 | CI40: 0 | CJ40: 0 | CK40: 0 | CL40: 0 | CM40: 0 | CN40: 0 | CO40: 0 | CP40: 0 | CQ40: 0 | CR40: 0 | CS40: 0 | CT40: 0 | CU40: 0 | CV40: 0 | CW40: 0 | CX40: 0 | CY40: 0 | CZ40: 0 | DA40: 0 | DB40: 0 | DC40: 0 | DD40: 0 | DE40: 0 | DF40: 0 | DR40: Maximum occupancy | DS40: =MAX(DS15:DS38) -> 1 | DT40: =MAX(DT15:DT38) -> 0 | DU40: 0.8 | DV40: 0 | DW40: 0.9 | DX40: 0 | DY40: 1 | DZ40: 0 | EA40: 0.85 | EB40: 0 | EC40: 1 | ED40: 0 | EE40: 0.9 | EF40: 0 | EG40: 0.85 | EH40: 0 | EI40: 0.85 | EJ40: 0 | EK40: 0.55 | EL40: 0 | EM40: 0.8 | EN40: 0 | EO40: 0.9 | EP40: 0 | EQ40: 1 | ER40: 0 | ES40: 1 | ET40: 0 | EU40: 0.8 | EV40: 0 | EW40: 0.15 | EX40: 0 | EY40: 0 | EZ40: 0
C41: June | D41: =IFERROR(VLOOKUP($D$31,'Rainfall data'!$B$3:$O$33,'Potable Water Calculator'!O43,FALSE),"") -> 8 | E41: =IFERROR(VLOOKUP($D$31,'Rainfall data'!$B$44:$P$74,'Potable Water Calculator'!O43,FALSE),"") -> 2 | O41: 6 | BE41: Jan | BF41: 21 | BG41: 22 | BH41: 5 | BI41: TRUE | BJ41: FALSE | BK41: 0 | BL41: =IF(SUM(BL$20:BL40,BK41)>$BJ$4,0,BK41) -> 0 | BM41: 0 | BN41: 0 | BO41: 0 | BP41: 0 | BQ41: 0 | BR41: 0 | BS41: 0 | BT41: 0 | BU41: 0 | BV41: 0 | BW41: 0 | BX41: 0 | BY41: 0 | BZ41: 0 | CA41: 0 | CB41: 0 | CC41: 0 | CD41: 0 | CE41: 0 | CF41: 0 | CG41: 0 | CH41: 0 | CI41: 0 | CJ41: 0 | CK41: 0 | CL41: 0 | CM41: 0 | CN41: 0 | CO41: 0 | CP41: 0 | CQ41: 0 | CR41: 0 | CS41: 0 | CT41: 0 | CU41: 0 | CV41: 0 | CW41: 0 | CX41: 0 | CY41: 0 | CZ41: 0 | DA41: 0 | DB41: 0 | DC41: 0 | DD41: 0 | DE41: 0 | DF41: 0
C42: July | D42: =IFERROR(VLOOKUP($D$31,'Rainfall data'!$B$3:$O$33,'Potable Water Calculator'!O44,FALSE),"") -> 9 | E42: =IFERROR(VLOOKUP($D$31,'Rainfall data'!$B$44:$P$74,'Potable Water Calculator'!O44,FALSE),"") -> 2 | O42: 7 | BE42: Jan | BF42: 21 | BG42: 23 | BH42: 6 | BI42: FALSE | BJ42: FALSE | BK42: 0 | BL42: =IF(SUM(BL$20:BL41,BK42)>$BJ$4,0,BK42) -> 0 | BM42: 0 | BN42: 0 | BO42: 0 | BP42: 0 | BQ42: 0 | BR42: 0 | BS42: 0 | BT42: 0 | BU42: 0 | BV42: 0 | BW42: 0 | BX42: 0 | BY42: 0 | BZ42: 0 | CA42: 0 | CB42: 0 | CC42: 0 | CD42: 0 | CE42: 0 | CF42: 0 | CG42: 0 | CH42: 0 | CI42: 0 | CJ42: 0 | CK42: 0 | CL42: 0 | CM42: 0 | CN42: 0 | CO42: 0 | CP42: 0 | CQ42: 0 | CR42: 0 | CS42: 0 | CT42: 0 | CU42: 0 | CV42: 0 | CW42: 0 | CX42: 0 | CY42: 0 | CZ42: 0 | DA42: 0 | DB42: 0 | DC42: 0 | DD42: 0 | DE42: 0 | DF42: 0
C43: August | D43: =IFERROR(VLOOKUP($D$31,'Rainfall data'!$B$3:$O$33,'Potable Water Calculator'!O45,FALSE),"") -> 14 | E43: =IFERROR(VLOOKUP($D$31,'Rainfall data'!$B$44:$P$74,'Potable Water Calculator'!O45,FALSE),"") -> 2 | O43: 8 | BE43: Jan | BF43: 21 | BG43: 24 | BH43: 7 | BI43: FALSE | BJ43: FALSE | BK43: 0 | BL43: =IF(SUM(BL$20:BL42,BK43)>$BJ$4,0,BK43) -> 0 | BM43: 0 | BN43: 0 | BO43: 0 | BP43: 0 | BQ43: 0 | BR43: 0 | BS43: 0 | BT43: 0 | BU43: 0 | BV43: 0 | BW43: 0 | BX43: 0 | BY43: 0 | BZ43: 0 | CA43: 0 | CB43: 0 | CC43: 0 | CD43: 0 | CE43: 0 | CF43: 0 | CG43: 0 | CH43: 0 | CI43: 0 | CJ43: 0 | CK43: 0 | CL43: 0 | CM43: 0 | CN43: 0 | CO43: 0 | CP43: 0 | CQ43: 0 | CR43: 0 | CS43: 0 | CT43: 0 | CU43: 0 | CV43: 0 | CW43: 0 | CX43: 0 | CY43: 0 | CZ43: 0 | DA43: 0 | DB43: 0 | DC43: 0 | DD43: 0 | DE43: 0 | DF43: 0
C44: September | D44: =IFERROR(VLOOKUP($D$31,'Rainfall data'!$B$3:$O$33,'Potable Water Calculator'!O46,FALSE),"") -> 12 | E44: =IFERROR(VLOOKUP($D$31,'Rainfall data'!$B$44:$P$74,'Potable Water Calculator'!O46,FALSE),"") -> 2 | O44: 9 | BE44: Jan | BF44: 21 | BG44: 25 | BH44: 1 | BI44: TRUE | BJ44: TRUE | BK44: 5.833333333 | BL44: =IF(SUM(BL$20:BL43,BK44)>$BJ$4,0,BK44) -> 5.833333333 | BM44: 0 | BN44: 0 | BO44: 0 | BP44: 0 | BQ44: 0 | BR44: 0 | BS44: 0 | BT44: 0 | BU44: 0 | BV44: 0 | BW44: 0 | BX44: 0 | BY44: 0 | BZ44: 0 | CA44: 0 | CB44: 0 | CC44: 0 | CD44: 0 | CE44: 0 | CF44: 0 | CG44: 0 | CH44: 0 | CI44: 0 | CJ44: 0 | CK44: 0 | CL44: 0 | CM44: 0 | CN44: 0 | CO44: 0 | CP44: 0 | CQ44: 0 | CR44: 0 | CS44: 0 | CT44: 0 | CU44: 0 | CV44: 0 | CW44: 0 | CX44: 0 | CY44: 0 | CZ44: 0 | DA44: 0 | DB44: 0 | DC44: 0 | DD44: 0 | DE44: 0 | DF44: 0
C45: October | D45: =IFERROR(VLOOKUP($D$31,'Rainfall data'!$B$3:$O$33,'Potable Water Calculator'!O47,FALSE),"") -> 21 | E45: =IFERROR(VLOOKUP($D$31,'Rainfall data'!$B$44:$P$74,'Potable Water Calculator'!O47,FALSE),"") -> 4 | O45: 10 | BE45: Jan | BF45: 21 | BG45: 26 | BH45: 2 | BI45: TRUE | BJ45: FALSE | BK45: 0 | BL45: =IF(SUM(BL$20:BL44,BK45)>$BJ$4,0,BK45) -> 0 | BM45: 0 | BN45: 0 | BO45: 0 | BP45: 0 | BQ45: 0 | BR45: 0 | BS45: 0 | BT45: 0 | BU45: 0 | BV45: 0 | BW45: 0 | BX45: 0 | BY45: 0 | BZ45: 0 | CA45: 0 | CB45: 0 | CC45: 0 | CD45: 0 | CE45: 0 | CF45: 0 | CG45: 0 | CH45: 0 | CI45: 0 | CJ45: 0 | CK45: 0 | CL45: 0 | CM45: 0 | CN45: 0 | CO45: 0 | CP45: 0 | CQ45: 0 | CR45: 0 | CS45: 0 | CT45: 0 | CU45: 0 | CV45: 0 | CW45: 0 | CX45: 0 | CY45: 0 | CZ45: 0 | DA45: 0 | DB45: 0 | DC45: 0 | DD45: 0 | DE45: 0 | DF45: 0
C46: November | D46: =IFERROR(VLOOKUP($D$31,'Rainfall data'!$B$3:$O$33,'Potable Water Calculator'!O48,FALSE),"") -> 27 | E46: =IFERROR(VLOOKUP($D$31,'Rainfall data'!$B$44:$P$74,'Potable Water Calculator'!O48,FALSE),"") -> 5 | O46: 11 | BE46: Jan | BF46: 21 | BG46: 27 | BH46: 3 | BI46: TRUE | BJ46: FALSE | BK46: 0 | BL46: =IF(SUM(BL$20:BL45,BK46)>$BJ$4,0,BK46) -> 0 | BM46: 0 | BN46: 0 | BO46: 0 | BP46: 0 | BQ46: 0 | BR46: 0 | BS46: 0 | BT46: 0 | BU46: 0 | BV46: 0 | BW46: 0 | BX46: 0 | BY46: 0 | BZ46: 0 | CA46: 0 | CB46: 0 | CC46: 0 | CD46: 0 | CE46: 0 | CF46: 0 | CG46: 0 | CH46: 0 | CI46: 0 | CJ46: 0 | CK46: 0 | CL46: 0 | CM46: 0 | CN46: 0 | CO46: 0 | CP46: 0 | CQ46: 0 | CR46: 0 | CS46: 0 | CT46: 0 | CU46: 0 | CV46: 0 | CW46: 0 | CX46: 0 | CY46: 0 | CZ46: 0 | DA46: 0 | DB46: 0 | DC46: 0 | DD46: 0 | DE46: 0 | DF46: 0
C47: December | D47: =IFERROR(VLOOKUP($D$31,'Rainfall data'!$B$3:$O$33,'Potable Water Calculator'!O49,FALSE),"") -> 19 | E47: =IFERROR(VLOOKUP($D$31,'Rainfall data'!$B$44:$P$74,'Potable Water Calculator'!O49,FALSE),"") -> 4 | O47: 12 | BE47: Jan | BF47: 21 | BG47: 28 | BH47: 4 | BI47: TRUE | BJ47: FALSE | BK47: 0 | BL47: =IF(SUM(BL$20:BL46,BK47)>$BJ$4,0,BK47) -> 0 | BM47: 0 | BN47: 0 | BO47: 0 | BP47: 0 | BQ47: 0 | BR47: 0 | BS47: 0 | BT47: 0 | BU47: 0 | BV47: 0 | BW47: 0 | BX47: 0 | BY47: 0 | BZ47: 0 | CA47: 0 | CB47: 0 | CC47: 0 | CD47: 0 | CE47: 0 | CF47: 0 | CG47: 0 | CH47: 0 | CI47: 0 | CJ47: 0 | CK47: 0 | CL47: 0 | CM47: 0 | CN47: 0 | CO47: 0 | CP47: 0 | CQ47: 0 | CR47: 0 | CS47: 0 | CT47: 0 | CU47: 0 | CV47: 0 | CW47: 0 | CX47: 0 | CY47: 0 | CZ47: 0 | DA47: 0 | DB47: 0 | DC47: 0 | DD47: 0 | DE47: 0 | DF47: 0
C48: Total | D48: =SUM(D36:D47) -> 236 | E48: =SUM(E36:E47) -> 43 | O48: 13 | BE48: Jan | BF48: 21 | BG48: 29 | BH48: 5 | BI48: TRUE | BJ48: FALSE | BK48: 0 | BL48: =IF(SUM(BL$20:BL47,BK48)>$BJ$4,0,BK48) -> 0 | BM48: 0 | BN48: 0 | BO48: 0 | BP48: 0 | BQ48: 0 | BR48: 0 | BS48: 0 | BT48: 0 | BU48: 0 | BV48: 0 | BW48: 0 | BX48: 0 | BY48: 0 | BZ48: 0 | CA48: 0 | CB48: 0 | CC48: 0 | CD48: 0 | CE48: 0 | CF48: 0 | CG48: 0 | CH48: 0 | CI48: 0 | CJ48: 0 | CK48: 0 | CL48: 0 | CM48: 0 | CN48: 0 | CO48: 0 | CP48: 0 | CQ48: 0 | CR48: 0 | CS48: 0 | CT48: 0 | CU48: 0 | CV48: 0 | CW48: 0 | CX48: 0 | CY48: 0 | CZ48: 0 | DA48: 0 | DB48: 0 | DC48: 0 | DD48: 0 | DE48: 0 | DF48: 0
O49: 14 | BE49: Jan | BF49: 21 | BG49: 30 | BH49: 6 | BI49: FALSE | BJ49: TRUE | BK49: 5.833333333 | BL49: =IF(SUM(BL$20:BL48,BK49)>$BJ$4,0,BK49) -> 5.833333333 | BM49: 0 | BN49: 0 | BO49: 0 | BP49: 0 | BQ49: 0 | BR49: 0 | BS49: 0 | BT49: 0 | BU49: 0 | BV49: 0 | BW49: 0 | BX49: 0 | BY49: 0 | BZ49: 0 | CA49: 0 | CB49: 0 | CC49: 0 | CD49: 0 | CE49: 0 | CF49: 0 | CG49: 0 | CH49: 0 | CI49: 0 | CJ49: 0 | CK49: 0 | CL49: 0 | CM49: 0 | CN49: 0 | CO49: 0 | CP49: 0 | CQ49: 0 | CR49: 0 | CS49: 0 | CT49: 0 | CU49: 0 | CV49: 0 | CW49: 0 | CX49: 0 | CY49: 0 | CZ49: 0 | DA49: 0 | DB49: 0 | DC49: 0 | DD49: 0 | DE49: 0 | DF49: 0
O50: 15 | BE50: Jan | BF50: 21 | BG50: 31 | BH50: 7 | BI50: FALSE | BJ50: FALSE | BK50: 0 | BL50: =$BJ$4-SUM(BL20:BL49) -> 0 | BM50: 0 | BN50: 0 | BO50: 0 | BP50: 0 | BQ50: 0 | BR50: 0 | BS50: 0 | BT50: 0 | BU50: 0 | BV50: 0 | BW50: 0 | BX50: 0 | BY50: 0 | BZ50: 0 | CA50: 0 | CB50: 0 | CC50: 0 | CD50: 0 | CE50: 0 | CF50: 0 | CG50: 0 | CH50: 0 | CI50: 0 | CJ50: 0 | CK50: 0 | CL50: 0 | CM50: 0 | CN50: 0 | CO50: 0 | CP50: 0 | CQ50: 0 | CR50: 0 | CS50: 0 | CT50: 0 | CU50: 0 | CV50: 0 | CW50: 0 | CX50: 0 | CY50: 0 | CZ50: 0 | DA50: 0 | DB50: 0 | DC50: 0 | DD50: 0 | DE50: 0 | DF50: 0
BE51: Feb | BF51: 20 | BG51: 1 | BH51: 1 | BI51: TRUE | BJ51: =MOD(BG51,$BK$7)=0 -> FALSE | BK51: =IF(BJ51,BK$8,0) -> 0 | BL51: =BK51 -> 0 | BM51: 0 | BN51: 0 | BO51: 0 | BP51: =$Q$335/$BF$51*BR$16*$BI51 -> 0 | BQ51: =AQ$370/$BF51*$BI51 -> 0 | BR51: 0 | BS51: =$R$335/$BF51*BU$16*$BI51 -> 0 | BT51: =AR$370/$BF51*$BI51 -> 0 | BU51: 0 | BV51: =$S$335/$BF51*BX$16*$BI51 -> 0 | BW51: =AS$370/$BF51*$BI51 -> 0 | BX51: 0 | BY51: =$T$335/$BF51*CA$16*$BI51 -> 0 | BZ51: =AT$370/$BF51*$BI51 -> 0 | CA51: 0 | CB51: =$W$335/BF51*$C$419*BI51 -> 0 | CC51: =AU$370/$BF51*$BI51 -> 0 | CD51: 0 | CE51: =$X$335/BF51*BI51*$C$420 -> 0 | CF51: =AV$370/$BF51*$BI51 -> 0 | CG51: 0 | CH51: =$Y$335/BF51*BI51*$C$421 -> 0 | CI51: =AW$370/$BF51*$BI51 -> 0 | CJ51: 0 | CK51: =$Z$335/BF51*BI51*$CM$16 -> 0 | CL51: =AX$370/$BF51*$BI51 -> 0 | CM51: 0 | CN51: =$AA$335/BF51*BI51*$CP$16 -> 0 | CO51: =$AY$370/$BF51*$BI51 -> 0 | CP51: 0 | CQ51: =$AB$335/BF51*BI51*$CS$16 -> 0 | CR51: =AZ$370/$BF51*$BI51 -> 0 | CS51: 0 | CT51: =$AC$335/BF51*BI51*$CV$16 -> 0 | CU51: =BA$370/$BF51*$BI51 -> 0 | CV51: 0 | CW51: =$AD$335/BF51*BI51*$CY$16 -> 0 | CX51: =BB$370/$BF51*$BI51 -> 0 | CY51: 0 | CZ51: 0 | DA51: 0 | DB51: 0 | DC51: 0 | DD51: 0 | DE51: 0 | DF51: 0
B52: Water Demand | BE52: Feb | BF52: 20 | BG52: 2 | BH52: 2 | BI52: TRUE | BJ52: FALSE | BK52: 0 | BL52: =IF(SUM(BL$51:BL51,BK52)>$BK$4,0,BK52) -> 0 | BM52: 0 | BN52: 0 | BO52: 0 | BP52: 0 | BQ52: 0 | BR52: 0 | BS52: 0 | BT52: 0 | BU52: 0 | BV52: 0 | BW52: 0 | BX52: 0 | BY52: 0 | BZ52: 0 | CA52: 0 | CB52: 0 | CC52: 0 | CD52: 0 | CE52: 0 | CF52: 0 | CG52: 0 | CH52: 0 | CI52: 0 | CJ52: 0 | CK52: 0 | CL52: 0 | CM52: 0 | CN52: 0 | CO52: 0 | CP52: 0 | CQ52: 0 | CR52: 0 | CS52: 0 | CT52: 0 | CU52: 0 | CV52: 0 | CW52: 0 | CX52: 0 | CY52: 0 | CZ52: 0 | DA52: 0 | DB52: 0 | DC52: 0 | DD52: 0 | DE52: 0 | DF52: 0
B53: Occupant Amenity Water | BE53: Feb | BF53: 20 | BG53: 3 | BH53: 3 | BI53: TRUE | BJ53: FALSE | BK53: 0 | BL53: =IF(SUM(BL$51:BL52,BK53)>$BK$4,0,BK53) -> 0 | BM53: 0 | BN53: 0 | BO53: 0 | BP53: 0 | BQ53: 0 | BR53: 0 | BS53: 0 | BT53: 0 | BU53: 0 | BV53: 0 | BW53: 0 | BX53: 0 | BY53: 0 | BZ53: 0 | CA53: 0 | CB53: 0 | CC53: 0 | CD53: 0 | CE53: 0 | CF53: 0 | CG53: 0 | CH53: 0 | CI53: 0 | CJ53: 0 | CK53: 0 | CL53: 0 | CM53: 0 | CN53: 0 | CO53: 0 | CP53: 0 | CQ53: 0 | CR53: 0 | CS53: 0 | CT53: 0 | CU53: 0 | CV53: 0 | CW53: 0 | CX53: 0 | CY53: 0 | CZ53: 0 | DA53: 0 | DB53: 0 | DC53: 0 | DD53: 0 | DE53: 0 | DF53: 0
B54: STEP 2a - Please provide information regarding the indoor fittings installed in the building | BE54: Feb | BF54: 20 | BG54: 4 | BH54: 4 | BI54: TRUE | BJ54: FALSE | BK54: 0 | BL54: =IF(SUM(BL$51:BL53,BK54)>$BK$4,0,BK54) -> 0 | BM54: 0 | BN54: 0 | BO54: 0 | BP54: 0 | BQ54: 0 | BR54: 0 | BS54: 0 | BT54: 0 | BU54: 0 | BV54: 0 | BW54: 0 | BX54: 0 | BY54: 0 | BZ54: 0 | CA54: 0 | CB54: 0 | CC54: 0 | CD54: 0 | CE54: 0 | CF54: 0 | CG54: 0 | CH54: 0 | CI54: 0 | CJ54: 0 | CK54: 0 | CL54: 0 | CM54: 0 | CN54: 0 | CO54: 0 | CP54: 0 | CQ54: 0 | CR54: 0 | CS54: 0 | CT54: 0 | CU54: 0 | CV54: 0 | CW54: 0 | CX54: 0 | CY54: 0 | CZ54: 0 | DA54: 0 | DB54: 0 | DC54: 0 | DD54: 0 | DE54: 0 | DF54: 0
BE55: Feb | BF55: 20 | BG55: 5 | BH55: 5 | BI55: TRUE | BJ55: TRUE | BK55: 5 | BL55: =IF(SUM(BL$51:BL54,BK55)>$BK$4,0,BK55) -> 5 | BM55: 0 | BN55: 0 | BO55: 0 | BP55: 0 | BQ55: 0 | BR55: 0 | BS55: 0 | BT55: 0 | BU55: 0 | BV55: 0 | BW55: 0 | BX55: 0 | BY55: 0 | BZ55: 0 | CA55: 0 | CB55: 0 | CC55: 0 | CD55: 0 | CE55: 0 | CF55: 0 | CG55: 0 | CH55: 0 | CI55: 0 | CJ55: 0 | CK55: 0 | CL55: 0 | CM55: 0 | CN55: 0 | CO55: 0 | CP55: 0 | CQ55: 0 | CR55: 0 | CS55: 0 | CT55: 0 | CU55: 0 | CV55: 0 | CW55: 0 | CX55: 0 | CY55: 0 | CZ55: 0 | DA55: 0 | DB55: 0 | DC55: 0 | DD55: 0 | DE55: 0 | DF55: 0
B56: WC | P56: Person-hours per year | R56: =$V$30 -> 0 | T56: Actual Building | X56: Notional Building | BE56: Feb | BF56: 20 | BG56: 6 | BH56: 6 | BI56: FALSE | BJ56: FALSE | BK56: 0 | BL56: =IF(SUM(BL$51:BL55,BK56)>$BK$4,0,BK56) -> 0 | BM56: 0 | BN56: 0 | BO56: 0 | BP56: 0 | BQ56: 0 | BR56: 0 | BS56: 0 | BT56: 0 | BU56: 0 | BV56: 0 | BW56: 0 | BX56: 0 | BY56: 0 | BZ56: 0 | CA56: 0 | CB56: 0 | CC56: 0 | CD56: 0 | CE56: 0 | CF56: 0 | CG56: 0 | CH56: 0 | CI56: 0 | CJ56: 0 | CK56: 0 | CL56: 0 | CM56: 0 | CN56: 0 | CO56: 0 | CP56: 0 | CQ56: 0 | CR56: 0 | CS56: 0 | CT56: 0 | CU56: 0 | CV56: 0 | CW56: 0 | CX56: 0 | CY56: 0 | CZ56: 0 | DA56: 0 | DB56: 0 | DC56: 0 | DD56: 0 | DE56: 0 | DF56: 0
B57: Type | E57: Flow rate (litres/flush) | F57: % of each type | R57: Uses per person-hour | S57: Uses per year | T57: Duration per use (min) | U57: Litres/min | V57: Litres per use | W57: Demand per year | X57: Duration per use (min) | Y57: Litres/min | Z57: Litres per use | AA57: Demand per year | BE57: Feb | BF57: 20 | BG57: 7 | BH57: 7 | BI57: FALSE | BJ57: FALSE | BK57: 0 | BL57: =IF(SUM(BL$51:BL56,BK57)>$BK$4,0,BK57) -> 0 | BM57: 0 | BN57: 0 | BO57: 0 | BP57: 0 | BQ57: 0 | BR57: 0 | BS57: 0 | BT57: 0 | BU57: 0 | BV57: 0 | BW57: 0 | BX57: 0 | BY57: 0 | BZ57: 0 | CA57: 0 | CB57: 0 | CC57: 0 | CD57: 0 | CE57: 0 | CF57: 0 | CG57: 0 | CH57: 0 | CI57: 0 | CJ57: 0 | CK57: 0 | CL57: 0 | CM57: 0 | CN57: 0 | CO57: 0 | CP57: 0 | CQ57: 0 | CR57: 0 | CS57: 0 | CT57: 0 | CU57: 0 | CV57: 0 | CW57: 0 | CX57: 0 | CY57: 0 | CZ57: 0 | DA57: 0 | DB57: 0 | DC57: 0 | DD57: 0 | DE57: 0 | DF57: 0 | DK57: Fitting consumption | DL57: Uses per day (based on 9.5hr workday) | DM57: Uses per person-hour | DN57: Duration per use (s)
BE58: Feb | BF58: 20 | BG58: 8 | BH58: 1 | BI58: TRUE | BJ58: FALSE | BK58: 0 | BL58: =IF(SUM(BL$51:BL57,BK58)>$BK$4,0,BK58) -> 0 | BM58: 0 | BN58: 0 | BO58: 0 | BP58: 0 | BQ58: 0 | BR58: 0 | BS58: 0 | BT58: 0 | BU58: 0 | BV58: 0 | BW58: 0 | BX58: 0 | BY58: 0 | BZ58: 0 | CA58: 0 | CB58: 0 | CC58: 0 | CD58: 0 | CE58: 0 | CF58: 0 | CG58: 0 | CH58: 0 | CI58: 0 | CJ58: 0 | CK58: 0 | CL58: 0 | CM58: 0 | CN58: 0 | CO58: 0 | CP58: 0 | CQ58: 0 | CR58: 0 | CS58: 0 | CT58: 0 | CU58: 0 | CV58: 0 | CW58: 0 | CX58: 0 | CY58: 0 | CZ58: 0 | DA58: 0 | DB58: 0 | DC58: 0 | DD58: 0 | DE58: 0 | DF58: 0 | DJ58: Toilet - no urinal (l/flush) | DK58: 4 | DL58: 2.3 | DM58: =DL58/9.5 -> 0.2421052632 | DN58: -
P59: Toilet | R59: =IF(D67="Yes",DM59,DM58) -> 0.1368421053 | S59: =R59*$R$56 -> 0 | T59: n/a | U59: n/a | V59: =F58*E58+F59*E59+F60*E60+F61*E61 -> 0 | W59: =S59*V59/1000 -> 0 | X59: n/a | Y59: n/a | Z59: =DK58 -> 4 | AA59: =S59*Z59/1000 -> 0 | BE59: Feb | BF59: 20 | BG59: 9 | BH59: 2 | BI59: TRUE | BJ59: FALSE | BK59: 0 | BL59: =IF(SUM(BL$51:BL58,BK59)>$BK$4,0,BK59) -> 0 | BM59: 0 | BN59: 0 | BO59: 0 | BP59: 0 | BQ59: 0 | BR59: 0 | BS59: 0 | BT59: 0 | BU59: 0 | BV59: 0 | BW59: 0 | BX59: 0 | BY59: 0 | BZ59: 0 | CA59: 0 | CB59: 0 | CC59: 0 | CD59: 0 | CE59: 0 | CF59: 0 | CG59: 0 | CH59: 0 | CI59: 0 | CJ59: 0 | CK59: 0 | CL59: 0 | CM59: 0 | CN59: 0 | CO59: 0 | CP59: 0 | CQ59: 0 | CR59: 0 | CS59: 0 | CT59: 0 | CU59: 0 | CV59: 0 | CW59: 0 | CX59: 0 | CY59: 0 | CZ59: 0 | DA59: 0 | DB59: 0 | DC59: 0 | DD59: 0 | DE59: 0 | DF59: 0 | DJ59: Toilet with urinal (l/flush) | DK59: 4 | DL59: 1.3 | DM59: =DL59/9.5 -> 0.1368421053 | DN59: -
P60: Urinal | R60: =IF(D67="Yes",DM60,0) -> 0.1052631579 | S60: =R60*R56 -> 0 | T60: n/a | U60: n/a | V60: =F69*E69+F70*E70+F71*E71+F72*E72 -> 0 | W60: =S60*V60/1000 -> 0 | X60: n/a | Y60: n/a | Z60: =DK60 -> 2 | AA60: =S60*Z60/1000 -> 0 | BE60: Feb | BF60: 20 | BG60: 10 | BH60: 3 | BI60: TRUE | BJ60: TRUE | BK60: 5 | BL60: =IF(SUM(BL$51:BL59,BK60)>$BK$4,0,BK60) -> 5 | BM60: 0 | BN60: 0 | BO60: 0 | BP60: 0 | BQ60: 0 | BR60: 0 | BS60: 0 | BT60: 0 | BU60: 0 | BV60: 0 | BW60: 0 | BX60: 0 | BY60: 0 | BZ60: 0 | CA60: 0 | CB60: 0 | CC60: 0 | CD60: 0 | CE60: 0 | CF60: 0 | CG60: 0 | CH60: 0 | CI60: 0 | CJ60: 0 | CK60: 0 | CL60: 0 | CM60: 0 | CN60: 0 | CO60: 0 | CP60: 0 | CQ60: 0 | CR60: 0 | CS60: 0 | CT60: 0 | CU60: 0 | CV60: 0 | CW60: 0 | CX60: 0 | CY60: 0 | CZ60: 0 | DA60: 0 | DB60: 0 | DC60: 0 | DD60: 0 | DE60: 0 | DF60: 0 | DJ60: Urinal (l/flush) | DK60: 2 | DL60: 1 | DM60: =DL60/9.5 -> 0.1052631579 | DN60: -
N61: Please complete for 100% of fittings | P61: Urinals - autoflush | S61: =365*C74 -> 0 | T61: n/a | U61: n/a | V61: =D74*E74 -> 0 | W61: =S61*V61/1000 -> 0 | BE61: Feb | BF61: 20 | BG61: 11 | BH61: 4 | BI61: TRUE | BJ61: FALSE | BK61: 0 | BL61: =IF(SUM(BL$51:BL60,BK61)>$BK$4,0,BK61) -> 0 | BM61: 0 | BN61: 0 | BO61: 0 | BP61: 0 | BQ61: 0 | BR61: 0 | BS61: 0 | BT61: 0 | BU61: 0 | BV61: 0 | BW61: 0 | BX61: 0 | BY61: 0 | BZ61: 0 | CA61: 0 | CB61: 0 | CC61: 0 | CD61: 0 | CE61: 0 | CF61: 0 | CG61: 0 | CH61: 0 | CI61: 0 | CJ61: 0 | CK61: 0 | CL61: 0 | CM61: 0 | CN61: 0 | CO61: 0 | CP61: 0 | CQ61: 0 | CR61: 0 | CS61: 0 | CT61: 0 | CU61: 0 | CV61: 0 | CW61: 0 | CX61: 0 | CY61: 0 | CZ61: 0 | DA61: 0 | DB61: 0 | DC61: 0 | DD61: 0 | DE61: 0 | DF61: 0 | DJ61: Taps (l/min) | DK61: 9
B62: =IF(F62<>1,$N$61,"") -> Please complete for 100% of fittings | F62: =SUM(F58:F61) -> 0 | N62: Toilet usage adjusted accordingly | P62: Taps | R62: =DM63 -> 0.2631578947 | S62: =R62*$R$56 -> 0 | T62: Calculated using table below | V62: =F82*E82*U82+F83*E83*U83+F84*E84*U84+F85*E85*U85 -> 0 | W62: =S62*V62/1000 -> 0 | X62: =DN63/60 -> 0.15 | Y62: =DK61 -> 9 | Z62: =X62*Y62 -> 1.35 | AA62: =S62*Z62/1000 -> 0 | BE62: Feb | BF62: 20 | BG62: 12 | BH62: 5 | BI62: TRUE | BJ62: FALSE | BK62: 0 | BL62: =IF(SUM(BL$51:BL61,BK62)>$BK$4,0,BK62) -> 0 | BM62: 0 | BN62: 0 | BO62: 0 | BP62: 0 | BQ62: 0 | BR62: 0 | BS62: 0 | BT62: 0 | BU62: 0 | BV62: 0 | BW62: 0 | BX62: 0 | BY62: 0 | BZ62: 0 | CA62: 0 | CB62: 0 | CC62: 0 | CD62: 0 | CE62: 0 | CF62: 0 | CG62: 0 | CH62: 0 | CI62: 0 | CJ62: 0 | CK62: 0 | CL62: 0 | CM62: 0 | CN62: 0 | CO62: 0 | CP62: 0 | CQ62: 0 | CR62: 0 | CS62: 0 | CT62: 0 | CU62: 0 | CV62: 0 | CW62: 0 | CX62: 0 | CY62: 0 | CZ62: 0 | DA62: 0 | DB62: 0 | DC62: 0 | DD62: 0 | DE62: 0 | DF62: 0 | DJ62: <Please select> | DN62: 0
B63: Actual Building Predicted Consumtion (m3 / year) | F63: =W59 -> 0 | P63: Showers | S63: =Z30 -> 0 | T63: 5 | U63: =F93*E93+F94*E94+F95*E95 -> 0 | V63: =U63*$DN$66/60 -> 0 | W63: =V63*Z30/1000 -> 0 | X63: =DN66/60 -> 5 | Y63: =DK66 -> 12 | Z63: =X63*Y63 -> 60 | AA63: =S63*Z63/1000 -> 0 | BE63: Feb | BF63: 20 | BG63: 13 | BH63: 6 | BI63: FALSE | BJ63: FALSE | BK63: 0 | BL63: =IF(SUM(BL$51:BL62,BK63)>$BK$4,0,BK63) -> 0 | BM63: 0 | BN63: 0 | BO63: 0 | BP63: 0 | BQ63: 0 | BR63: 0 | BS63: 0 | BT63: 0 | BU63: 0 | BV63: 0 | BW63: 0 | BX63: 0 | BY63: 0 | BZ63: 0 | CA63: 0 | CB63: 0 | CC63: 0 | CD63: 0 | CE63: 0 | CF63: 0 | CG63: 0 | CH63: 0 | CI63: 0 | CJ63: 0 | CK63: 0 | CL63: 0 | CM63: 0 | CN63: 0 | CO63: 0 | CP63: 0 | CQ63: 0 | CR63: 0 | CS63: 0 | CT63: 0 | CU63: 0 | CV63: 0 | CW63: 0 | CX63: 0 | CY63: 0 | CZ63: 0 | DA63: 0 | DB63: 0 | DC63: 0 | DD63: 0 | DE63: 0 | DF63: 0 | DJ63: Manual WHB/Sink tap | DL63: 2.5 | DM63: =DL63/9.5 -> 0.2631578947 | DN63: 9
B64: Notional Building Predicted Consumption (m3 / year) | F64: =AA59 -> 0 | BE64: Feb | BF64: 20 | BG64: 14 | BH64: 7 | BI64: FALSE | BJ64: FALSE | BK64: 0 | BL64: =IF(SUM(BL$51:BL63,BK64)>$BK$4,0,BK64) -> 0 | BM64: 0 | BN64: 0 | BO64: 0 | BP64: 0 | BQ64: 0 | BR64: 0 | BS64: 0 | BT64: 0 | BU64: 0 | BV64: 0 | BW64: 0 | BX64: 0 | BY64: 0 | BZ64: 0 | CA64: 0 | CB64: 0 | CC64: 0 | CD64: 0 | CE64: 0 | CF64: 0 | CG64: 0 | CH64: 0 | CI64: 0 | CJ64: 0 | CK64: 0 | CL64: 0 | CM64: 0 | CN64: 0 | CO64: 0 | CP64: 0 | CQ64: 0 | CR64: 0 | CS64: 0 | CT64: 0 | CU64: 0 | CV64: 0 | CW64: 0 | CX64: 0 | CY64: 0 | CZ64: 0 | DA64: 0 | DB64: 0 | DC64: 0 | DD64: 0 | DE64: 0 | DF64: 0 | DJ64: Timed WHB/Sink tap | DL64: 2.5 | DM64: =DL64/9.5 -> 0.2631578947 | DN64: 7
BE65: Feb | BF65: 20 | BG65: 15 | BH65: 1 | BI65: TRUE | BJ65: TRUE | BK65: 5 | BL65: =IF(SUM(BL$51:BL64,BK65)>$BK$4,0,BK65) -> 5 | BM65: 0 | BN65: 0 | BO65: 0 | BP65: 0 | BQ65: 0 | BR65: 0 | BS65: 0 | BT65: 0 | BU65: 0 | BV65: 0 | BW65: 0 | BX65: 0 | BY65: 0 | BZ65: 0 | CA65: 0 | CB65: 0 | CC65: 0 | CD65: 0 | CE65: 0 | CF65: 0 | CG65: 0 | CH65: 0 | CI65: 0 | CJ65: 0 | CK65: 0 | CL65: 0 | CM65: 0 | CN65: 0 | CO65: 0 | CP65: 0 | CQ65: 0 | CR65: 0 | CS65: 0 | CT65: 0 | CU65: 0 | CV65: 0 | CW65: 0 | CX65: 0 | CY65: 0 | CZ65: 0 | DA65: 0 | DB65: 0 | DC65: 0 | DD65: 0 | DE65: 0 | DF65: 0 | DJ65: PIR WHB / Sink tap | DL65: 2.5 | DM65: =DL65/9.5 -> 0.2631578947 | DN65: 6
B66: Urinals | BE66: Feb | BF66: 20 | BG66: 16 | BH66: 2 | BI66: TRUE | BJ66: FALSE | BK66: 0 | BL66: =IF(SUM(BL$51:BL65,BK66)>$BK$4,0,BK66) -> 0 | BM66: 0 | BN66: 0 | BO66: 0 | BP66: 0 | BQ66: 0 | BR66: 0 | BS66: 0 | BT66: 0 | BU66: 0 | BV66: 0 | BW66: 0 | BX66: 0 | BY66: 0 | BZ66: 0 | CA66: 0 | CB66: 0 | CC66: 0 | CD66: 0 | CE66: 0 | CF66: 0 | CG66: 0 | CH66: 0 | CI66: 0 | CJ66: 0 | CK66: 0 | CL66: 0 | CM66: 0 | CN66: 0 | CO66: 0 | CP66: 0 | CQ66: 0 | CR66: 0 | CS66: 0 | CT66: 0 | CU66: 0 | CV66: 0 | CW66: 0 | CX66: 0 | CY66: 0 | CZ66: 0 | DA66: 0 | DB66: 0 | DC66: 0 | DD66: 0 | DE66: 0 | DF66: 0 | DJ66: Shower (l/min) | DK66: 12 | DL66: 0 or 0.03 | DN66: 300
B67: Are urinals installed in the building? | D67: Yes | E67: =IF(D67="No",N62,"") ->  | BE67: Feb | BF67: 20 | BG67: 17 | BH67: 3 | BI67: TRUE | BJ67: FALSE | BK67: 0 | BL67: =IF(SUM(BL$51:BL66,BK67)>$BK$4,0,BK67) -> 0 | BM67: 0 | BN67: 0 | BO67: 0 | BP67: 0 | BQ67: 0 | BR67: 0 | BS67: 0 | BT67: 0 | BU67: 0 | BV67: 0 | BW67: 0 | BX67: 0 | BY67: 0 | BZ67: 0 | CA67: 0 | CB67: 0 | CC67: 0 | CD67: 0 | CE67: 0 | CF67: 0 | CG67: 0 | CH67: 0 | CI67: 0 | CJ67: 0 | CK67: 0 | CL67: 0 | CM67: 0 | CN67: 0 | CO67: 0 | CP67: 0 | CQ67: 0 | CR67: 0 | CS67: 0 | CT67: 0 | CU67: 0 | CV67: 0 | CW67: 0 | CX67: 0 | CY67: 0 | CZ67: 0 | DA67: 0 | DB67: 0 | DC67: 0 | DD67: 0 | DE67: 0 | DF67: 0 | DJ67: Kitchen | DK67: -
B68: Type - Manually flushed urinals | E68: Flow rate (litres/flush) | F68: % of each type | BE68: Feb | BF68: 20 | BG68: 18 | BH68: 4 | BI68: TRUE | BJ68: FALSE | BK68: 0 | BL68: =IF(SUM(BL$51:BL67,BK68)>$BK$4,0,BK68) -> 0 | BM68: 0 | BN68: 0 | BO68: 0 | BP68: 0 | BQ68: 0 | BR68: 0 | BS68: 0 | BT68: 0 | BU68: 0 | BV68: 0 | BW68: 0 | BX68: 0 | BY68: 0 | BZ68: 0 | CA68: 0 | CB68: 0 | CC68: 0 | CD68: 0 | CE68: 0 | CF68: 0 | CG68: 0 | CH68: 0 | CI68: 0 | CJ68: 0 | CK68: 0 | CL68: 0 | CM68: 0 | CN68: 0 | CO68: 0 | CP68: 0 | CQ68: 0 | CR68: 0 | CS68: 0 | CT68: 0 | CU68: 0 | CV68: 0 | CW68: 0 | CX68: 0 | CY68: 0 | CZ68: 0 | DA68: 0 | DB68: 0 | DC68: 0 | DD68: 0 | DE68: 0 | DF68: 0 | DJ68: Dishwasher | DK68: -
BE69: Feb | BF69: 20 | BG69: 19 | BH69: 5 | BI69: TRUE | BJ69: FALSE | BK69: 0 | BL69: =IF(SUM(BL$51:BL68,BK69)>$BK$4,0,BK69) -> 0 | BM69: 0 | BN69: 0 | BO69: 0 | BP69: 0 | BQ69: 0 | BR69: 0 | BS69: 0 | BT69: 0 | BU69: 0 | BV69: 0 | BW69: 0 | BX69: 0 | BY69: 0 | BZ69: 0 | CA69: 0 | CB69: 0 | CC69: 0 | CD69: 0 | CE69: 0 | CF69: 0 | CG69: 0 | CH69: 0 | CI69: 0 | CJ69: 0 | CK69: 0 | CL69: 0 | CM69: 0 | CN69: 0 | CO69: 0 | CP69: 0 | CQ69: 0 | CR69: 0 | CS69: 0 | CT69: 0 | CU69: 0 | CV69: 0 | CW69: 0 | CX69: 0 | CY69: 0 | CZ69: 0 | DA69: 0 | DB69: 0 | DC69: 0 | DD69: 0 | DE69: 0 | DF69: 0 | DJ69: Laundry | DK69: -
BE70: Feb | BF70: 20 | BG70: 20 | BH70: 6 | BI70: FALSE | BJ70: TRUE | BK70: 5 | BL70: =IF(SUM(BL$51:BL69,BK70)>$BK$4,0,BK70) -> 5 | BM70: 0 | BN70: 0 | BO70: 0 | BP70: 0 | BQ70: 0 | BR70: 0 | BS70: 0 | BT70: 0 | BU70: 0 | BV70: 0 | BW70: 0 | BX70: 0 | BY70: 0 | BZ70: 0 | CA70: 0 | CB70: 0 | CC70: 0 | CD70: 0 | CE70: 0 | CF70: 0 | CG70: 0 | CH70: 0 | CI70: 0 | CJ70: 0 | CK70: 0 | CL70: 0 | CM70: 0 | CN70: 0 | CO70: 0 | CP70: 0 | CQ70: 0 | CR70: 0 | CS70: 0 | CT70: 0 | CU70: 0 | CV70: 0 | CW70: 0 | CX70: 0 | CY70: 0 | CZ70: 0 | DA70: 0 | DB70: 0 | DC70: 0 | DD70: 0 | DE70: 0 | DF70: 0
BE71: Feb | BF71: 20 | BG71: 21 | BH71: 7 | BI71: FALSE | BJ71: FALSE | BK71: 0 | BL71: =IF(SUM(BL$51:BL70,BK71)>$BK$4,0,BK71) -> 0 | BM71: 0 | BN71: 0 | BO71: 0 | BP71: 0 | BQ71: 0 | BR71: 0 | BS71: 0 | BT71: 0 | BU71: 0 | BV71: 0 | BW71: 0 | BX71: 0 | BY71: 0 | BZ71: 0 | CA71: 0 | CB71: 0 | CC71: 0 | CD71: 0 | CE71: 0 | CF71: 0 | CG71: 0 | CH71: 0 | CI71: 0 | CJ71: 0 | CK71: 0 | CL71: 0 | CM71: 0 | CN71: 0 | CO71: 0 | CP71: 0 | CQ71: 0 | CR71: 0 | CS71: 0 | CT71: 0 | CU71: 0 | CV71: 0 | CW71: 0 | CX71: 0 | CY71: 0 | CZ71: 0 | DA71: 0 | DB71: 0 | DC71: 0 | DD71: 0 | DE71: 0 | DF71: 0 | DJ71: Percentage of occupants who use shower
BE72: Feb | BF72: 20 | BG72: 22 | BH72: 1 | BI72: TRUE | BJ72: FALSE | BK72: 0 | BL72: =IF(SUM(BL$51:BL71,BK72)>$BK$4,0,BK72) -> 0 | BM72: 0 | BN72: 0 | BO72: 0 | BP72: 0 | BQ72: 0 | BR72: 0 | BS72: 0 | BT72: 0 | BU72: 0 | BV72: 0 | BW72: 0 | BX72: 0 | BY72: 0 | BZ72: 0 | CA72: 0 | CB72: 0 | CC72: 0 | CD72: 0 | CE72: 0 | CF72: 0 | CG72: 0 | CH72: 0 | CI72: 0 | CJ72: 0 | CK72: 0 | CL72: 0 | CM72: 0 | CN72: 0 | CO72: 0 | CP72: 0 | CQ72: 0 | CR72: 0 | CS72: 0 | CT72: 0 | CU72: 0 | CV72: 0 | CW72: 0 | CX72: 0 | CY72: 0 | CZ72: 0 | DA72: 0 | DB72: 0 | DC72: 0 | DD72: 0 | DE72: 0 | DF72: 0 | DJ72: <Please select> | DK72: 0
B73: Urinals on Auto-timer | C73: Flushes per day | D73: No. of cisterns | E73: Flow rate (litres/flush) | F73: % of each type | BE73: Feb | BF73: 20 | BG73: 23 | BH73: 2 | BI73: TRUE | BJ73: FALSE | BK73: 0 | BL73: =IF(SUM(BL$51:BL72,BK73)>$BK$4,0,BK73) -> 0 | BM73: 0 | BN73: 0 | BO73: 0 | BP73: 0 | BQ73: 0 | BR73: 0 | BS73: 0 | BT73: 0 | BU73: 0 | BV73: 0 | BW73: 0 | BX73: 0 | BY73: 0 | BZ73: 0 | CA73: 0 | CB73: 0 | CC73: 0 | CD73: 0 | CE73: 0 | CF73: 0 | CG73: 0 | CH73: 0 | CI73: 0 | CJ73: 0 | CK73: 0 | CL73: 0 | CM73: 0 | CN73: 0 | CO73: 0 | CP73: 0 | CQ73: 0 | CR73: 0 | CS73: 0 | CT73: 0 | CU73: 0 | CV73: 0 | CW73: 0 | CX73: 0 | CY73: 0 | CZ73: 0 | DA73: 0 | DB73: 0 | DC73: 0 | DD73: 0 | DE73: 0 | DF73: 0 | DJ73: No showers installed | DK73: 0
BE74: Feb | BF74: 20 | BG74: 24 | BH74: 3 | BI74: TRUE | BJ74: FALSE | BK74: 0 | BL74: =IF(SUM(BL$51:BL73,BK74)>$BK$4,0,BK74) -> 0 | BM74: 0 | BN74: 0 | BO74: 0 | BP74: 0 | BQ74: 0 | BR74: 0 | BS74: 0 | BT74: 0 | BU74: 0 | BV74: 0 | BW74: 0 | BX74: 0 | BY74: 0 | BZ74: 0 | CA74: 0 | CB74: 0 | CC74: 0 | CD74: 0 | CE74: 0 | CF74: 0 | CG74: 0 | CH74: 0 | CI74: 0 | CJ74: 0 | CK74: 0 | CL74: 0 | CM74: 0 | CN74: 0 | CO74: 0 | CP74: 0 | CQ74: 0 | CR74: 0 | CS74: 0 | CT74: 0 | CU74: 0 | CV74: 0 | CW74: 0 | CX74: 0 | CY74: 0 | CZ74: 0 | DA74: 0 | DB74: 0 | DC74: 0 | DD74: 0 | DE74: 0 | DF74: 0 | DJ74: No significant gym or cyclist facilities | DK74: 0.03
BE75: Feb | BF75: 20 | BG75: 25 | BH75: 4 | BI75: TRUE | BJ75: TRUE | BK75: 5 | BL75: =IF(SUM(BL$51:BL74,BK75)>$BK$4,0,BK75) -> 5 | BM75: 0 | BN75: 0 | BO75: 0 | BP75: 0 | BQ75: 0 | BR75: 0 | BS75: 0 | BT75: 0 | BU75: 0 | BV75: 0 | BW75: 0 | BX75: 0 | BY75: 0 | BZ75: 0 | CA75: 0 | CB75: 0 | CC75: 0 | CD75: 0 | CE75: 0 | CF75: 0 | CG75: 0 | CH75: 0 | CI75: 0 | CJ75: 0 | CK75: 0 | CL75: 0 | CM75: 0 | CN75: 0 | CO75: 0 | CP75: 0 | CQ75: 0 | CR75: 0 | CS75: 0 | CT75: 0 | CU75: 0 | CV75: 0 | CW75: 0 | CX75: 0 | CY75: 0 | CZ75: 0 | DA75: 0 | DB75: 0 | DC75: 0 | DD75: 0 | DE75: 0 | DF75: 0 | DJ75: Cyclist facilities for 3 % | DK75: 0.03
B76: =IF(F76<>1,$N$61,"") -> Please complete for 100% of fittings | F76: =SUM(F69:F72)+SUM(F74:F75) -> 0 | BE76: Feb | BF76: 20 | BG76: 26 | BH76: 5 | BI76: TRUE | BJ76: FALSE | BK76: 0 | BL76: =IF(SUM(BL$51:BL75,BK76)>$BK$4,0,BK76) -> 0 | BM76: 0 | BN76: 0 | BO76: 0 | BP76: 0 | BQ76: 0 | BR76: 0 | BS76: 0 | BT76: 0 | BU76: 0 | BV76: 0 | BW76: 0 | BX76: 0 | BY76: 0 | BZ76: 0 | CA76: 0 | CB76: 0 | CC76: 0 | CD76: 0 | CE76: 0 | CF76: 0 | CG76: 0 | CH76: 0 | CI76: 0 | CJ76: 0 | CK76: 0 | CL76: 0 | CM76: 0 | CN76: 0 | CO76: 0 | CP76: 0 | CQ76: 0 | CR76: 0 | CS76: 0 | CT76: 0 | CU76: 0 | CV76: 0 | CW76: 0 | CX76: 0 | CY76: 0 | CZ76: 0 | DA76: 0 | DB76: 0 | DC76: 0 | DD76: 0 | DE76: 0 | DF76: 0 | DJ76: Cyclist facilities for 6% | DK76: 0.06
B77: Actual Building Predicted Consumtion (m3 / year) | F77: =W60+W61 -> 0 | BE77: Feb | BF77: 20 | BG77: 27 | BH77: 6 | BI77: FALSE | BJ77: FALSE | BK77: 0 | BL77: =IF(SUM(BL$51:BL76,BK77)>$BK$4,0,BK77) -> 0 | BM77: 0 | BN77: 0 | BO77: 0 | BP77: 0 | BQ77: 0 | BR77: 0 | BS77: 0 | BT77: 0 | BU77: 0 | BV77: 0 | BW77: 0 | BX77: 0 | BY77: 0 | BZ77: 0 | CA77: 0 | CB77: 0 | CC77: 0 | CD77: 0 | CE77: 0 | CF77: 0 | CG77: 0 | CH77: 0 | CI77: 0 | CJ77: 0 | CK77: 0 | CL77: 0 | CM77: 0 | CN77: 0 | CO77: 0 | CP77: 0 | CQ77: 0 | CR77: 0 | CS77: 0 | CT77: 0 | CU77: 0 | CV77: 0 | CW77: 0 | CX77: 0 | CY77: 0 | CZ77: 0 | DA77: 0 | DB77: 0 | DC77: 0 | DD77: 0 | DE77: 0 | DF77: 0 | DJ77: Gym area | DK77: 0.8
B78: Notional Building Predicted Consumption (m3 / year) | F78: =AA60 -> 0 | BE78: Feb | BF78: 20 | BG78: 28 | BH78: 7 | BI78: FALSE | BJ78: FALSE | BK78: 0 | BL78: =$BK$4-SUM(BL51:BL77) -> 5 | BM78: 0 | BN78: 0 | BO78: 0 | BP78: 0 | BQ78: 0 | BR78: 0 | BS78: 0 | BT78: 0 | BU78: 0 | BV78: 0 | BW78: 0 | BX78: 0 | BY78: 0 | BZ78: 0 | CA78: 0 | CB78: 0 | CC78: 0 | CD78: 0 | CE78: 0 | CF78: 0 | CG78: 0 | CH78: 0 | CI78: 0 | CJ78: 0 | CK78: 0 | CL78: 0 | CM78: 0 | CN78: 0 | CO78: 0 | CP78: 0 | CQ78: 0 | CR78: 0 | CS78: 0 | CT78: 0 | CU78: 0 | CV78: 0 | CW78: 0 | CX78: 0 | CY78: 0 | CZ78: 0 | DA78: 0 | DB78: 0 | DC78: 0 | DD78: 0 | DE78: 0 | DF78: 0
BE79: Mar | BF79: 23 | BG79: 1 | BH79: 1 | BI79: TRUE | BJ79: =MOD(BG79,$BL$7)=0 -> FALSE | BK79: =IF(BJ79,BL$8,0) -> 0 | BL79: =BK79 -> 0 | BM79: 0 | BN79: 0 | BO79: 0 | BP79: =$Q$336/$BF$79*BR$16*$BI79 -> 0 | BQ79: =AQ$371/$BF79*$BI79 -> 0 | BR79: 0 | BS79: =$R$336/$BF79*BU$16*$BI79 -> 0 | BT79: =AR$371/$BF79*$BI79 -> 0 | BU79: 0 | BV79: =$S$336/$BF79*BX$16*$BI79 -> 0 | BW79: =AS$371/$BF79*$BI79 -> 0 | BX79: 0 | BY79: =$T$336/$BF79*CA$16*$BI79 -> 0 | BZ79: =AT$371/$BF79*$BI79 -> 0 | CA79: 0 | CB79: =$W$336/BF79*BI79*$C$419 -> 0 | CC79: =AU$371/$BF79*$BI79 -> 0 | CD79: 0 | CE79: =$X$336/BF79*BI79*$C$420 -> 0 | CF79: =AV$371/$BF79*$BI79 -> 0 | CG79: 0 | CH79: =$Y$336/BF79*BI79*$C$421 -> 0 | CI79: =AW$371/$BF79*$BI79 -> 0 | CJ79: 0 | CK79: =$Z$336/BF79*BI79*$CM$16 -> 0 | CL79: =AX$371/$BF79*$BI79 -> 0 | CM79: 0 | CN79: =$AA$336/BF79*BI79*$CP$16 -> 0 | CO79: =$AY$371/$BF79*$BI79 -> 0 | CP79: 0 | CQ79: =$AB$336/BF79*BI79*$CS$16 -> 0 | CR79: =AZ$371/$BF79*$BI79 -> 0 | CS79: 0 | CT79: =$AC$336/BF79*BI79*$CV$16 -> 0 | CU79: =BA$371/$BF79*$BI79 -> 0 | CV79: 0 | CW79: =$AD$336/BF79*BI79*$CY$16 -> 0 | CX79: =BB$371/$BF79*$BI79 -> 0 | CY79: 0 | CZ79: 0 | DA79: 0 | DB79: 0 | DC79: 0 | DD79: 0 | DE79: 0 | DF79: 0
B80: Indoor taps | N80: Tap input verification - Check that "Controls" were entered, otherwise flowrate is not included in total | BE80: Mar | BF80: 23 | BG80: 2 | BH80: 2 | BI80: TRUE | BJ80: FALSE | BK80: 0 | BL80: =IF(SUM(BL$79:BL79,BK80)>$BL$4,0,BK80) -> 0 | BM80: 0 | BN80: 0 | BO80: 0 | BP80: 0 | BQ80: 0 | BR80: 0 | BS80: 0 | BT80: 0 | BU80: 0 | BV80: 0 | BW80: 0 | BX80: 0 | BY80: 0 | BZ80: 0 | CA80: 0 | CB80: 0 | CC80: 0 | CD80: 0 | CE80: 0 | CF80: 0 | CG80: 0 | CH80: 0 | CI80: 0 | CJ80: 0 | CK80: 0 | CL80: 0 | CM80: 0 | CN80: 0 | CO80: 0 | CP80: 0 | CQ80: 0 | CR80: 0 | CS80: 0 | CT80: 0 | CU80: 0 | CV80: 0 | CW80: 0 | CX80: 0 | CY80: 0 | CZ80: 0 | DA80: 0 | DB80: 0 | DC80: 0 | DD80: 0 | DE80: 0 | DF80: 0
B81: Type | D81: Controls | E81: Flow rate (litres/min) | F81: % of each type | N81: Flow rate entered | O81: Controls entered | P81: ERROR | U81: Duration per use (min) | BE81: Mar | BF81: 23 | BG81: 3 | BH81: 3 | BI81: TRUE | BJ81: FALSE | BK81: 0 | BL81: =IF(SUM(BL$79:BL80,BK81)>$BL$4,0,BK81) -> 0 | BM81: 0 | BN81: 0 | BO81: 0 | BP81: 0 | BQ81: 0 | BR81: 0 | BS81: 0 | BT81: 0 | BU81: 0 | BV81: 0 | BW81: 0 | BX81: 0 | BY81: 0 | BZ81: 0 | CA81: 0 | CB81: 0 | CC81: 0 | CD81: 0 | CE81: 0 | CF81: 0 | CG81: 0 | CH81: 0 | CI81: 0 | CJ81: 0 | CK81: 0 | CL81: 0 | CM81: 0 | CN81: 0 | CO81: 0 | CP81: 0 | CQ81: 0 | CR81: 0 | CS81: 0 | CT81: 0 | CU81: 0 | CV81: 0 | CW81: 0 | CX81: 0 | CY81: 0 | CZ81: 0 | DA81: 0 | DB81: 0 | DC81: 0 | DD81: 0 | DE81: 0 | DF81: 0
D82: <Please select> | N82: =1-ISBLANK(E82) -> 0 | O82: =1-(OR(ISBLANK(D82),D82=$DJ$62)) -> 0 | P82: =IF(N82+O82=1,1,0) -> 0 | U82: =IFERROR(VLOOKUP(D82,$DJ$62:$DN$65,5,FALSE)/60,0) -> 0 | BE82: Mar | BF82: 23 | BG82: 4 | BH82: 4 | BI82: TRUE | BJ82: FALSE | BK82: 0 | BL82: =IF(SUM(BL$79:BL81,BK82)>$BL$4,0,BK82) -> 0 | BM82: 0 | BN82: 0 | BO82: 0 | BP82: 0 | BQ82: 0 | BR82: 0 | BS82: 0 | BT82: 0 | BU82: 0 | BV82: 0 | BW82: 0 | BX82: 0 | BY82: 0 | BZ82: 0 | CA82: 0 | CB82: 0 | CC82: 0 | CD82: 0 | CE82: 0 | CF82: 0 | CG82: 0 | CH82: 0 | CI82: 0 | CJ82: 0 | CK82: 0 | CL82: 0 | CM82: 0 | CN82: 0 | CO82: 0 | CP82: 0 | CQ82: 0 | CR82: 0 | CS82: 0 | CT82: 0 | CU82: 0 | CV82: 0 | CW82: 0 | CX82: 0 | CY82: 0 | CZ82: 0 | DA82: 0 | DB82: 0 | DC82: 0 | DD82: 0 | DE82: 0 | DF82: 0
D83: <Please select> | N83: =1-ISBLANK(E83) -> 0 | O83: =1-(OR(ISBLANK(D83),D83=$DJ$62)) -> 0 | P83: =IF(N83+O83=1,1,0) -> 0 | U83: =IFERROR(VLOOKUP(D83,$DJ$62:$DN$65,5,FALSE)/60,0) -> 0 | BE83: Mar | BF83: 23 | BG83: 5 | BH83: 5 | BI83: TRUE | BJ83: FALSE | BK83: 0 | BL83: =IF(SUM(BL$79:BL82,BK83)>$BL$4,0,BK83) -> 0 | BM83: 0 | BN83: 0 | BO83: 0 | BP83: 0 | BQ83: 0 | BR83: 0 | BS83: 0 | BT83: 0 | BU83: 0 | BV83: 0 | BW83: 0 | BX83: 0 | BY83: 0 | BZ83: 0 | CA83: 0 | CB83: 0 | CC83: 0 | CD83: 0 | CE83: 0 | CF83: 0 | CG83: 0 | CH83: 0 | CI83: 0 | CJ83: 0 | CK83: 0 | CL83: 0 | CM83: 0 | CN83: 0 | CO83: 0 | CP83: 0 | CQ83: 0 | CR83: 0 | CS83: 0 | CT83: 0 | CU83: 0 | CV83: 0 | CW83: 0 | CX83: 0 | CY83: 0 | CZ83: 0 | DA83: 0 | DB83: 0 | DC83: 0 | DD83: 0 | DE83: 0 | DF83: 0
D84: <Please select> | N84: =1-ISBLANK(E84) -> 0 | O84: =1-(OR(ISBLANK(D84),D84=$DJ$62)) -> 0 | P84: =IF(N84+O84=1,1,0) -> 0 | U84: =IFERROR(VLOOKUP(D84,$DJ$62:$DN$65,5,FALSE)/60,0) -> 0 | BE84: Mar | BF84: 23 | BG84: 6 | BH84: 6 | BI84: =BH84<=5 -> FALSE | BJ84: TRUE | BK84: 6 | BL84: =IF(SUM(BL$79:BL83,BK84)>$BL$4,0,BK84) -> 6 | BM84: =BL84*$BJ$13 -> 0 | BN84: =$BJ$14*(BL84>0) -> 0 | BO84: =BM84-BN84 -> 0 | BP84: 0 | BQ84: 0 | BR84: =IF(BP84-(BQ84*$BR$17)>0,BP84-(BQ84*$BR$17),0) -> 0 | BS84: 0 | BT84: 0 | BU84: =IF(BS84-(BT84*BU$17)>0,BS84-(BT84*BU$17),0) -> 0 | BV84: 0 | BW84: 0 | BX84: =IF(BV84-(BW84*BX$17)>0,BV84-(BW84*BX$17),0) -> 0 | BY84: 0 | BZ84: 0 | CA84: =IF(BY84-(BZ84*CA$17)>0,BY84-(BZ84*CA$17),0) -> 0 | CB84: 0 | CC84: 0 | CD84: =IF(CB84-(CC84*CD$17)>0,CB84-(CC84*CD$17),0) -> 0 | CE84: 0 | CF84: 0 | CG84: =IF(CE84-(CF84*CG$17)>0,CE84-(CF84*CG$17),0) -> 0 | CH84: 0 | CI84: 0 | CJ84: =IF(CH84-(CI84*CJ$17)>0,CH84-(CI84*CJ$17),0) -> 0 | CK84: 0 | CL84: 0 | CM84: =IF(CK84-(CL84*CM$17)>0,CK84-(CL84*CM$17),0) -> 0 | CN84: 0 | CO84: 0 | CP84: =IF(CN84-(CO84*CP$17)>0,CN84-(CO84*CP$17),0) -> 0 | CQ84: 0 | CR84: 0 | CS84: =IF(CQ84-(CR84*CS$17)>0,CQ84-(CR84*CS$17),0) -> 0 | CT84: 0 | CU84: 0 | CV84: =IF(CT84-(CU84*CV$17)>0,CT84-(CU84*CV$17),0) -> 0 | CW84: 0 | CX84: 0 | CY84: =IF(CW84-(CX84*CY$17)>0,CW84-(CX84*CY$17),0) -> 0 | CZ84: =BO84 -> 0 | DA84: =BR84+BU84+BX84+CA84+CD84+CG84+CJ84+CM84+CP84+CS84+CV84+CY84 -> 0 | DB84: =CZ84-DA84 -> 0 | DC84: 0 | DD84: 0 | DE84: 0 | DF84: 0
D85: <Please select> | N85: =1-ISBLANK(E85) -> 0 | O85: =1-(OR(ISBLANK(D85),D85=$DJ$62)) -> 0 | P85: =IF(N85+O85=1,1,0) -> 0 | U85: =IFERROR(VLOOKUP(D85,$DJ$62:$DN$65,5,FALSE)/60,0) -> 0 | BE85: Mar | BF85: 23 | BG85: 7 | BH85: 7 | BI85: FALSE | BJ85: FALSE | BK85: 0 | BL85: =IF(SUM(BL$79:BL84,BK85)>$BL$4,0,BK85) -> 0 | BM85: 0 | BN85: 0 | BO85: 0 | BP85: 0 | BQ85: 0 | BR85: 0 | BS85: 0 | BT85: 0 | BU85: 0 | BV85: 0 | BW85: 0 | BX85: 0 | BY85: 0 | BZ85: 0 | CA85: 0 | CB85: 0 | CC85: 0 | CD85: 0 | CE85: 0 | CF85: 0 | CG85: 0 | CH85: 0 | CI85: 0 | CJ85: 0 | CK85: 0 | CL85: 0 | CM85: 0 | CN85: 0 | CO85: 0 | CP85: 0 | CQ85: 0 | CR85: 0 | CS85: 0 | CT85: 0 | CU85: 0 | CV85: 0 | CW85: 0 | CX85: 0 | CY85: 0 | CZ85: 0 | DA85: 0 | DB85: 0 | DC85: =IF(DC84+$DB85<0,0,IF(DC84+$DB85>$F$405,$F$405,DC84+$DB85)) -> 0 | DD85: =IF(DD84+$DB85<0,0,IF(DD84+$DB85>$F$405,$F$405,DD84+$DB85)) -> 0 | DE85: =IF(DE84+$DB85<0,0,IF(DE84+$DB85>$F$405,$F$405,DE84+$DB85)) -> 0 | DF85: =IF(DA85-(DE84+CZ85)<0,0,DA85-(DE84+CZ85)) -> 0
B86: =IF(F86<>1,$N$61,"") -> Please complete for 100% of fittings | F86: =SUM(F82:F85) -> 0 | G86: =IF(SUM(P82:P85)>0,N87,"") ->  | BE86: Mar | BF86: 23 | BG86: 8 | BH86: 1 | BI86: TRUE | BJ86: FALSE | BK86: 0 | BL86: =IF(SUM(BL$79:BL85,BK86)>$BL$4,0,BK86) -> 0 | BM86: 0 | BN86: 0 | BO86: 0 | BP86: 0 | BQ86: 0 | BR86: 0 | BS86: 0 | BT86: 0 | BU86: 0 | BV86: 0 | BW86: 0 | BX86: 0 | BY86: 0 | BZ86: 0 | CA86: 0 | CB86: 0 | CC86: 0 | CD86: 0 | CE86: 0 | CF86: 0 | CG86: 0 | CH86: 0 | CI86: 0 | CJ86: 0 | CK86: 0 | CL86: 0 | CM86: 0 | CN86: 0 | CO86: 0 | CP86: 0 | CQ86: 0 | CR86: 0 | CS86: 0 | CT86: 0 | CU86: 0 | CV86: 0 | CW86: 0 | CX86: 0 | CY86: 0 | CZ86: 0 | DA86: 0 | DB86: 0 | DC86: 0 | DD86: 0 | DE86: 0 | DF86: 0
B87: Actual Building Predicted Consumtion (m3 / year) | F87: =W62 -> 0 | N87: Please specify flow rate and controls for each different indoor tap type | BE87: Mar | BF87: 23 | BG87: 9 | BH87: 2 | BI87: TRUE | BJ87: FALSE | BK87: 0 | BL87: =IF(SUM(BL$79:BL86,BK87)>$BL$4,0,BK87) -> 0 | BM87: 0 | BN87: 0 | BO87: 0 | BP87: 0 | BQ87: 0 | BR87: 0 | BS87: 0 | BT87: 0 | BU87: 0 | BV87: 0 | BW87: 0 | BX87: 0 | BY87: 0 | BZ87: 0 | CA87: 0 | CB87: 0 | CC87: 0 | CD87: 0 | CE87: 0 | CF87: 0 | CG87: 0 | CH87: 0 | CI87: 0 | CJ87: 0 | CK87: 0 | CL87: 0 | CM87: 0 | CN87: 0 | CO87: 0 | CP87: 0 | CQ87: 0 | CR87: 0 | CS87: 0 | CT87: 0 | CU87: 0 | CV87: 0 | CW87: 0 | CX87: 0 | CY87: 0 | CZ87: 0 | DA87: 0 | DB87: 0 | DC87: 0 | DD87: 0 | DE87: 0 | DF87: 0
B88: Notional Building Predicted Consumption (m3 / year) | F88: =AA62 -> 0 | BE88: Mar | BF88: 23 | BG88: 10 | BH88: 3 | BI88: TRUE | BJ88: FALSE | BK88: 0 | BL88: =IF(SUM(BL$79:BL87,BK88)>$BL$4,0,BK88) -> 0 | BM88: 0 | BN88: 0 | BO88: 0 | BP88: 0 | BQ88: 0 | BR88: 0 | BS88: 0 | BT88: 0 | BU88: 0 | BV88: 0 | BW88: 0 | BX88: 0 | BY88: 0 | BZ88: 0 | CA88: 0 | CB88: 0 | CC88: 0 | CD88: 0 | CE88: 0 | CF88: 0 | CG88: 0 | CH88: 0 | CI88: 0 | CJ88: 0 | CK88: 0 | CL88: 0 | CM88: 0 | CN88: 0 | CO88: 0 | CP88: 0 | CQ88: 0 | CR88: 0 | CS88: 0 | CT88: 0 | CU88: 0 | CV88: 0 | CW88: 0 | CX88: 0 | CY88: 0 | CZ88: 0 | DA88: 0 | DB88: 0 | DC88: 0 | DD88: 0 | DE88: 0 | DF88: 0
BE89: Mar | BF89: 23 | BG89: 11 | BH89: 4 | BI89: TRUE | BJ89: FALSE | BK89: 0 | BL89: =IF(SUM(BL$79:BL88,BK89)>$BL$4,0,BK89) -> 0 | BM89: 0 | BN89: 0 | BO89: 0 | BP89: 0 | BQ89: 0 | BR89: 0 | BS89: 0 | BT89: 0 | BU89: 0 | BV89: 0 | BW89: 0 | BX89: 0 | BY89: 0 | BZ89: 0 | CA89: 0 | CB89: 0 | CC89: 0 | CD89: 0 | CE89: 0 | CF89: 0 | CG89: 0 | CH89: 0 | CI89: 0 | CJ89: 0 | CK89: 0 | CL89: 0 | CM89: 0 | CN89: 0 | CO89: 0 | CP89: 0 | CQ89: 0 | CR89: 0 | CS89: 0 | CT89: 0 | CU89: 0 | CV89: 0 | CW89: 0 | CX89: 0 | CY89: 0 | CZ89: 0 | DA89: 0 | DB89: 0 | DC89: 0 | DD89: 0 | DE89: 0 | DF89: 0
B90: Showers | BE90: Mar | BF90: 23 | BG90: 12 | BH90: 5 | BI90: TRUE | BJ90: TRUE | BK90: 6 | BL90: =IF(SUM(BL$79:BL89,BK90)>$BL$4,0,BK90) -> 6 | BM90: 0 | BN90: 0 | BO90: 0 | BP90: 0 | BQ90: 0 | BR90: 0 | BS90: 0 | BT90: 0 | BU90: 0 | BV90: 0 | BW90: 0 | BX90: 0 | BY90: 0 | BZ90: 0 | CA90: 0 | CB90: 0 | CC90: 0 | CD90: 0 | CE90: 0 | CF90: 0 | CG90: 0 | CH90: 0 | CI90: 0 | CJ90: 0 | CK90: 0 | CL90: 0 | CM90: 0 | CN90: 0 | CO90: 0 | CP90: 0 | CQ90: 0 | CR90: 0 | CS90: 0 | CT90: 0 | CU90: 0 | CV90: 0 | CW90: 0 | CX90: 0 | CY90: 0 | CZ90: 0 | DA90: 0 | DB90: 0 | DC90: 0 | DD90: 0 | DE90: 0 | DF90: 0
B91: Please select expected anticipated shower usage | E91: <Please select> | G91: ERROR: PLEASE SELECT SHOWER USAGE | N91: No shower usage selected, but there are occupants | BE91: Mar | BF91: 23 | BG91: 13 | BH91: 6 | BI91: FALSE | BJ91: FALSE | BK91: 0 | BL91: =IF(SUM(BL$79:BL90,BK91)>$BL$4,0,BK91) -> 0 | BM91: 0 | BN91: 0 | BO91: 0 | BP91: 0 | BQ91: 0 | BR91: 0 | BS91: 0 | BT91: 0 | BU91: 0 | BV91: 0 | BW91: 0 | BX91: 0 | BY91: 0 | BZ91: 0 | CA91: 0 | CB91: 0 | CC91: 0 | CD91: 0 | CE91: 0 | CF91: 0 | CG91: 0 | CH91: 0 | CI91: 0 | CJ91: 0 | CK91: 0 | CL91: 0 | CM91: 0 | CN91: 0 | CO91: 0 | CP91: 0 | CQ91: 0 | CR91: 0 | CS91: 0 | CT91: 0 | CU91: 0 | CV91: 0 | CW91: 0 | CX91: 0 | CY91: 0 | CZ91: 0 | DA91: 0 | DB91: 0 | DC91: 0 | DD91: 0 | DE91: 0 | DF91: 0
B92: Type | E92: Flow rate (litres/min) | F92: % of each type | N92: =(AND(SUM(G13:G27)>0,E91=DJ72,(SUM(E93:F95)>0))) -> FALSE | BE92: Mar | BF92: 23 | BG92: 14 | BH92: 7 | BI92: FALSE | BJ92: FALSE | BK92: 0 | BL92: =IF(SUM(BL$79:BL91,BK92)>$BL$4,0,BK92) -> 0 | BM92: 0 | BN92: 0 | BO92: 0 | BP92: 0 | BQ92: 0 | BR92: 0 | BS92: 0 | BT92: 0 | BU92: 0 | BV92: 0 | BW92: 0 | BX92: 0 | BY92: 0 | BZ92: 0 | CA92: 0 | CB92: 0 | CC92: 0 | CD92: 0 | CE92: 0 | CF92: 0 | CG92: 0 | CH92: 0 | CI92: 0 | CJ92: 0 | CK92: 0 | CL92: 0 | CM92: 0 | CN92: 0 | CO92: 0 | CP92: 0 | CQ92: 0 | CR92: 0 | CS92: 0 | CT92: 0 | CU92: 0 | CV92: 0 | CW92: 0 | CX92: 0 | CY92: 0 | CZ92: 0 | DA92: 0 | DB92: 0 | DC92: 0 | DD92: 0 | DE92: 0 | DF92: 0
G93: ERROR: SHOWER FLOW RATES HAVE BEEN ENTERED, BUT NO OCCUPANTS HAVE ACCESS TO SHOWER UNDER BUIDLING INPUTS. PLEASE CHECK 'BUILDING INFORMATION INPUT' | N93: Number of occupants with access to shower defined | BE93: Mar | BF93: 23 | BG93: 15 | BH93: 1 | BI93: TRUE | BJ93: FALSE | BK93: 0 | BL93: =IF(SUM(BL$79:BL92,BK93)>$BL$4,0,BK93) -> 0 | BM93: 0 | BN93: 0 | BO93: 0 | BP93: 0 | BQ93: 0 | BR93: 0 | BS93: 0 | BT93: 0 | BU93: 0 | BV93: 0 | BW93: 0 | BX93: 0 | BY93: 0 | BZ93: 0 | CA93: 0 | CB93: 0 | CC93: 0 | CD93: 0 | CE93: 0 | CF93: 0 | CG93: 0 | CH93: 0 | CI93: 0 | CJ93: 0 | CK93: 0 | CL93: 0 | CM93: 0 | CN93: 0 | CO93: 0 | CP93: 0 | CQ93: 0 | CR93: 0 | CS93: 0 | CT93: 0 | CU93: 0 | CV93: 0 | CW93: 0 | CX93: 0 | CY93: 0 | CZ93: 0 | DA93: 0 | DB93: 0 | DC93: 0 | DD93: 0 | DE93: 0 | DF93: 0
N94: =AND(SUM(E93:F95)>0,SUM(G13:G27)=0) -> FALSE | BE94: Mar | BF94: 23 | BG94: 16 | BH94: 2 | BI94: TRUE | BJ94: FALSE | BK94: 0 | BL94: =IF(SUM(BL$79:BL93,BK94)>$BL$4,0,BK94) -> 0 | BM94: 0 | BN94: 0 | BO94: 0 | BP94: 0 | BQ94: 0 | BR94: 0 | BS94: 0 | BT94: 0 | BU94: 0 | BV94: 0 | BW94: 0 | BX94: 0 | BY94: 0 | BZ94: 0 | CA94: 0 | CB94: 0 | CC94: 0 | CD94: 0 | CE94: 0 | CF94: 0 | CG94: 0 | CH94: 0 | CI94: 0 | CJ94: 0 | CK94: 0 | CL94: 0 | CM94: 0 | CN94: 0 | CO94: 0 | CP94: 0 | CQ94: 0 | CR94: 0 | CS94: 0 | CT94: 0 | CU94: 0 | CV94: 0 | CW94: 0 | CX94: 0 | CY94: 0 | CZ94: 0 | DA94: 0 | DB94: 0 | DC94: 0 | DD94: 0 | DE94: 0 | DF94: 0
BE95: Mar | BF95: 23 | BG95: 17 | BH95: 3 | BI95: TRUE | BJ95: FALSE | BK95: 0 | BL95: =IF(SUM(BL$79:BL94,BK95)>$BL$4,0,BK95) -> 0 | BM95: 0 | BN95: 0 | BO95: 0 | BP95: 0 | BQ95: 0 | BR95: 0 | BS95: 0 | BT95: 0 | BU95: 0 | BV95: 0 | BW95: 0 | BX95: 0 | BY95: 0 | BZ95: 0 | CA95: 0 | CB95: 0 | CC95: 0 | CD95: 0 | CE95: 0 | CF95: 0 | CG95: 0 | CH95: 0 | CI95: 0 | CJ95: 0 | CK95: 0 | CL95: 0 | CM95: 0 | CN95: 0 | CO95: 0 | CP95: 0 | CQ95: 0 | CR95: 0 | CS95: 0 | CT95: 0 | CU95: 0 | CV95: 0 | CW95: 0 | CX95: 0 | CY95: 0 | CZ95: 0 | DA95: 0 | DB95: 0 | DC95: 0 | DD95: 0 | DE95: 0 | DF95: 0
BE96: Mar | BF96: 23 | BG96: 18 | BH96: 4 | BI96: TRUE | BJ96: TRUE | BK96: 6 | BL96: =IF(SUM(BL$79:BL95,BK96)>$BL$4,0,BK96) -> 6 | BM96: 0 | BN96: 0 | BO96: 0 | BP96: 0 | BQ96: 0 | BR96: 0 | BS96: 0 | BT96: 0 | BU96: 0 | BV96: 0 | BW96: 0 | BX96: 0 | BY96: 0 | BZ96: 0 | CA96: 0 | CB96: 0 | CC96: 0 | CD96: 0 | CE96: 0 | CF96: 0 | CG96: 0 | CH96: 0 | CI96: 0 | CJ96: 0 | CK96: 0 | CL96: 0 | CM96: 0 | CN96: 0 | CO96: 0 | CP96: 0 | CQ96: 0 | CR96: 0 | CS96: 0 | CT96: 0 | CU96: 0 | CV96: 0 | CW96: 0 | CX96: 0 | CY96: 0 | CZ96: 0 | DA96: 0 | DB96: 0 | DC96: 0 | DD96: 0 | DE96: 0 | DF96: 0
B97: =IF(F97<>1,$N$61,"") -> Please complete for 100% of fittings | F97: =SUM(F93:F96) -> 0 | BE97: Mar | BF97: 23 | BG97: 19 | BH97: 5 | BI97: TRUE | BJ97: FALSE | BK97: 0 | BL97: =IF(SUM(BL$79:BL96,BK97)>$BL$4,0,BK97) -> 0 | BM97: 0 | BN97: 0 | BO97: 0 | BP97: 0 | BQ97: 0 | BR97: 0 | BS97: 0 | BT97: 0 | BU97: 0 | BV97: 0 | BW97: 0 | BX97: 0 | BY97: 0 | BZ97: 0 | CA97: 0 | CB97: 0 | CC97: 0 | CD97: 0 | CE97: 0 | CF97: 0 | CG97: 0 | CH97: 0 | CI97: 0 | CJ97: 0 | CK97: 0 | CL97: 0 | CM97: 0 | CN97: 0 | CO97: 0 | CP97: 0 | CQ97: 0 | CR97: 0 | CS97: 0 | CT97: 0 | CU97: 0 | CV97: 0 | CW97: 0 | CX97: 0 | CY97: 0 | CZ97: 0 | DA97: 0 | DB97: 0 | DC97: 0 | DD97: 0 | DE97: 0 | DF97: 0
B98: Actual Building Predicted Consumtion (m3 / year) | F98: =W63 -> 0 | BE98: Mar | BF98: 23 | BG98: 20 | BH98: 6 | BI98: FALSE | BJ98: FALSE | BK98: 0 | BL98: =IF(SUM(BL$79:BL97,BK98)>$BL$4,0,BK98) -> 0 | BM98: 0 | BN98: 0 | BO98: 0 | BP98: 0 | BQ98: 0 | BR98: 0 | BS98: 0 | BT98: 0 | BU98: 0 | BV98: 0 | BW98: 0 | BX98: 0 | BY98: 0 | BZ98: 0 | CA98: 0 | CB98: 0 | CC98: 0 | CD98: 0 | CE98: 0 | CF98: 0 | CG98: 0 | CH98: 0 | CI98: 0 | CJ98: 0 | CK98: 0 | CL98: 0 | CM98: 0 | CN98: 0 | CO98: 0 | CP98: 0 | CQ98: 0 | CR98: 0 | CS98: 0 | CT98: 0 | CU98: 0 | CV98: 0 | CW98: 0 | CX98: 0 | CY98: 0 | CZ98: 0 | DA98: 0 | DB98: 0 | DC98: 0 | DD98: 0 | DE98: 0 | DF98: 0
B99: Notional Building Predicted Consumption (m3 / year) | F99: =AA63 -> 0 | BE99: Mar | BF99: 23 | BG99: 21 | BH99: 7 | BI99: FALSE | BJ99: FALSE | BK99: 0 | BL99: =IF(SUM(BL$79:BL98,BK99)>$BL$4,0,BK99) -> 0 | BM99: 0 | BN99: 0 | BO99: 0 | BP99: 0 | BQ99: 0 | BR99: 0 | BS99: 0 | BT99: 0 | BU99: 0 | BV99: 0 | BW99: 0 | BX99: 0 | BY99: 0 | BZ99: 0 | CA99: 0 | CB99: 0 | CC99: 0 | CD99: 0 | CE99: 0 | CF99: 0 | CG99: 0 | CH99: 0 | CI99: 0 | CJ99: 0 | CK99: 0 | CL99: 0 | CM99: 0 | CN99: 0 | CO99: 0 | CP99: 0 | CQ99: 0 | CR99: 0 | CS99: 0 | CT99: 0 | CU99: 0 | CV99: 0 | CW99: 0 | CX99: 0 | CY99: 0 | CZ99: 0 | DA99: 0 | DB99: 0 | DC99: 0 | DD99: 0 | DE99: 0 | DF99: 0
BE100: Mar | BF100: 23 | BG100: 22 | BH100: 1 | BI100: TRUE | BJ100: FALSE | BK100: 0 | BL100: =IF(SUM(BL$79:BL99,BK100)>$BL$4,0,BK100) -> 0 | BM100: 0 | BN100: 0 | BO100: 0 | BP100: 0 | BQ100: 0 | BR100: 0 | BS100: 0 | BT100: 0 | BU100: 0 | BV100: 0 | BW100: 0 | BX100: 0 | BY100: 0 | BZ100: 0 | CA100: 0 | CB100: 0 | CC100: 0 | CD100: 0 | CE100: 0 | CF100: 0 | CG100: 0 | CH100: 0 | CI100: 0 | CJ100: 0 | CK100: 0 | CL100: 0 | CM100: 0 | CN100: 0 | CO100: 0 | CP100: 0 | CQ100: 0 | CR100: 0 | CS100: 0 | CT100: 0 | CU100: 0 | CV100: 0 | CW100: 0 | CX100: 0 | CY100: 0 | CZ100: 0 | DA100: 0 | DB100: 0 | DC100: 0 | DD100: 0 | DE100: 0 | DF100: 0
B101: Summary of occupant amenity water consumption | BE101: Mar | BF101: 23 | BG101: 23 | BH101: 2 | BI101: TRUE | BJ101: FALSE | BK101: 0 | BL101: =IF(SUM(BL$79:BL100,BK101)>$BL$4,0,BK101) -> 0 | BM101: 0 | BN101: 0 | BO101: 0 | BP101: 0 | BQ101: 0 | BR101: 0 | BS101: 0 | BT101: 0 | BU101: 0 | BV101: 0 | BW101: 0 | BX101: 0 | BY101: 0 | BZ101: 0 | CA101: 0 | CB101: 0 | CC101: 0 | CD101: 0 | CE101: 0 | CF101: 0 | CG101: 0 | CH101: 0 | CI101: 0 | CJ101: 0 | CK101: 0 | CL101: 0 | CM101: 0 | CN101: 0 | CO101: 0 | CP101: 0 | CQ101: 0 | CR101: 0 | CS101: 0 | CT101: 0 | CU101: 0 | CV101: 0 | CW101: 0 | CX101: 0 | CY101: 0 | CZ101: 0 | DA101: 0 | DB101: 0 | DC101: 0 | DD101: 0 | DE101: 0 | DF101: 0
BE102: Mar | BF102: 23 | BG102: 24 | BH102: 3 | BI102: TRUE | BJ102: TRUE | BK102: 6 | BL102: =IF(SUM(BL$79:BL101,BK102)>$BL$4,0,BK102) -> 6 | BM102: 0 | BN102: 0 | BO102: 0 | BP102: 0 | BQ102: 0 | BR102: 0 | BS102: 0 | BT102: 0 | BU102: 0 | BV102: 0 | BW102: 0 | BX102: 0 | BY102: 0 | BZ102: 0 | CA102: 0 | CB102: 0 | CC102: 0 | CD102: 0 | CE102: 0 | CF102: 0 | CG102: 0 | CH102: 0 | CI102: 0 | CJ102: 0 | CK102: 0 | CL102: 0 | CM102: 0 | CN102: 0 | CO102: 0 | CP102: 0 | CQ102: 0 | CR102: 0 | CS102: 0 | CT102: 0 | CU102: 0 | CV102: 0 | CW102: 0 | CX102: 0 | CY102: 0 | CZ102: 0 | DA102: 0 | DB102: 0 | DC102: 0 | DD102: 0 | DE102: 0 | DF102: 0
C103: =$T$56 -> Actual Building | D103: =$X$56 -> Notional Building | BE103: Mar | BF103: 23 | BG103: 25 | BH103: 4 | BI103: TRUE | BJ103: FALSE | BK103: 0 | BL103: =IF(SUM(BL$79:BL102,BK103)>$BL$4,0,BK103) -> 0 | BM103: 0 | BN103: 0 | BO103: 0 | BP103: 0 | BQ103: 0 | BR103: 0 | BS103: 0 | BT103: 0 | BU103: 0 | BV103: 0 | BW103: 0 | BX103: 0 | BY103: 0 | BZ103: 0 | CA103: 0 | CB103: 0 | CC103: 0 | CD103: 0 | CE103: 0 | CF103: 0 | CG103: 0 | CH103: 0 | CI103: 0 | CJ103: 0 | CK103: 0 | CL103: 0 | CM103: 0 | CN103: 0 | CO103: 0 | CP103: 0 | CQ103: 0 | CR103: 0 | CS103: 0 | CT103: 0 | CU103: 0 | CV103: 0 | CW103: 0 | CX103: 0 | CY103: 0 | CZ103: 0 | DA103: 0 | DB103: 0 | DC103: 0 | DD103: 0 | DE103: 0 | DF103: 0
C104: (m3 per year) | D104: =C104 -> (m3 per year) | BE104: Mar | BF104: 23 | BG104: 26 | BH104: 5 | BI104: TRUE | BJ104: FALSE | BK104: 0 | BL104: =IF(SUM(BL$79:BL103,BK104)>$BL$4,0,BK104) -> 0 | BM104: 0 | BN104: 0 | BO104: 0 | BP104: 0 | BQ104: 0 | BR104: 0 | BS104: 0 | BT104: 0 | BU104: 0 | BV104: 0 | BW104: 0 | BX104: 0 | BY104: 0 | BZ104: 0 | CA104: 0 | CB104: 0 | CC104: 0 | CD104: 0 | CE104: 0 | CF104: 0 | CG104: 0 | CH104: 0 | CI104: 0 | CJ104: 0 | CK104: 0 | CL104: 0 | CM104: 0 | CN104: 0 | CO104: 0 | CP104: 0 | CQ104: 0 | CR104: 0 | CS104: 0 | CT104: 0 | CU104: 0 | CV104: 0 | CW104: 0 | CX104: 0 | CY104: 0 | CZ104: 0 | DA104: 0 | DB104: 0 | DC104: 0 | DD104: 0 | DE104: 0 | DF104: 0
B105: =B56 -> WC | C105: =F63 -> 0 | D105: =F64 -> 0 | BE105: Mar | BF105: 23 | BG105: 27 | BH105: 6 | BI105: FALSE | BJ105: FALSE | BK105: 0 | BL105: =IF(SUM(BL$79:BL104,BK105)>$BL$4,0,BK105) -> 0 | BM105: 0 | BN105: 0 | BO105: 0 | BP105: 0 | BQ105: 0 | BR105: 0 | BS105: 0 | BT105: 0 | BU105: 0 | BV105: 0 | BW105: 0 | BX105: 0 | BY105: 0 | BZ105: 0 | CA105: 0 | CB105: 0 | CC105: 0 | CD105: 0 | CE105: 0 | CF105: 0 | CG105: 0 | CH105: 0 | CI105: 0 | CJ105: 0 | CK105: 0 | CL105: 0 | CM105: 0 | CN105: 0 | CO105: 0 | CP105: 0 | CQ105: 0 | CR105: 0 | CS105: 0 | CT105: 0 | CU105: 0 | CV105: 0 | CW105: 0 | CX105: 0 | CY105: 0 | CZ105: 0 | DA105: 0 | DB105: 0 | DC105: 0 | DD105: 0 | DE105: 0 | DF105: 0
B106: Urinals | C106: =F77 -> 0 | D106: =F78 -> 0 | BE106: Mar | BF106: 23 | BG106: 28 | BH106: 7 | BI106: FALSE | BJ106: FALSE | BK106: 0 | BL106: =IF(SUM(BL$79:BL105,BK106)>$BL$4,0,BK106) -> 0 | BM106: 0 | BN106: 0 | BO106: 0 | BP106: 0 | BQ106: 0 | BR106: 0 | BS106: 0 | BT106: 0 | BU106: 0 | BV106: 0 | BW106: 0 | BX106: 0 | BY106: 0 | BZ106: 0 | CA106: 0 | CB106: 0 | CC106: 0 | CD106: 0 | CE106: 0 | CF106: 0 | CG106: 0 | CH106: 0 | CI106: 0 | CJ106: 0 | CK106: 0 | CL106: 0 | CM106: 0 | CN106: 0 | CO106: 0 | CP106: 0 | CQ106: 0 | CR106: 0 | CS106: 0 | CT106: 0 | CU106: 0 | CV106: 0 | CW106: 0 | CX106: 0 | CY106: 0 | CZ106: 0 | DA106: 0 | DB106: 0 | DC106: 0 | DD106: 0 | DE106: 0 | DF106: 0
B107: Indoor taps | C107: =F87 -> 0 | D107: =F88 -> 0 | BE107: Mar | BF107: 23 | BG107: 29 | BH107: 1 | BI107: TRUE | BJ107: FALSE | BK107: 0 | BL107: =IF(SUM(BL$79:BL106,BK107)>$BL$4,0,BK107) -> 0 | BM107: 0 | BN107: 0 | BO107: 0 | BP107: 0 | BQ107: 0 | BR107: 0 | BS107: 0 | BT107: 0 | BU107: 0 | BV107: 0 | BW107: 0 | BX107: 0 | BY107: 0 | BZ107: 0 | CA107: 0 | CB107: 0 | CC107: 0 | CD107: 0 | CE107: 0 | CF107: 0 | CG107: 0 | CH107: 0 | CI107: 0 | CJ107: 0 | CK107: 0 | CL107: 0 | CM107: 0 | CN107: 0 | CO107: 0 | CP107: 0 | CQ107: 0 | CR107: 0 | CS107: 0 | CT107: 0 | CU107: 0 | CV107: 0 | CW107: 0 | CX107: 0 | CY107: 0 | CZ107: 0 | DA107: 0 | DB107: 0 | DC107: 0 | DD107: 0 | DE107: 0 | DF107: 0
B108: Showers | C108: =F98 -> 0 | D108: =F99 -> 0 | BE108: Mar | BF108: 23 | BG108: 30 | BH108: 2 | BI108: TRUE | BJ108: TRUE | BK108: 6 | BL108: =IF(SUM(BL$79:BL107,BK108)>$BL$4,0,BK108) -> 6 | BM108: 0 | BN108: 0 | BO108: 0 | BP108: 0 | BQ108: 0 | BR108: 0 | BS108: 0 | BT108: 0 | BU108: 0 | BV108: 0 | BW108: 0 | BX108: 0 | BY108: 0 | BZ108: 0 | CA108: 0 | CB108: 0 | CC108: 0 | CD108: 0 | CE108: 0 | CF108: 0 | CG108: 0 | CH108: 0 | CI108: 0 | CJ108: 0 | CK108: 0 | CL108: 0 | CM108: 0 | CN108: 0 | CO108: 0 | CP108: 0 | CQ108: 0 | CR108: 0 | CS108: 0 | CT108: 0 | CU108: 0 | CV108: 0 | CW108: 0 | CX108: 0 | CY108: 0 | CZ108: 0 | DA108: 0 | DB108: 0 | DC108: 0 | DD108: 0 | DE108: 0 | DF108: 0
C109: =SUM(C105:C108) -> 0 | D109: =SUM(D105:D108) -> 0 | BE109: Mar | BF109: 23 | BG109: 31 | BH109: 3 | BI109: TRUE | BJ109: FALSE | BK109: 0 | BL109: =$BL$4-SUM(BL79:BL108) -> 0 | BM109: 0 | BN109: 0 | BO109: 0 | BP109: 0 | BQ109: 0 | BR109: 0 | BS109: 0 | BT109: 0 | BU109: 0 | BV109: 0 | BW109: 0 | BX109: 0 | BY109: 0 | BZ109: 0 | CA109: 0 | CB109: 0 | CC109: 0 | CD109: 0 | CE109: 0 | CF109: 0 | CG109: 0 | CH109: 0 | CI109: 0 | CJ109: 0 | CK109: 0 | CL109: 0 | CM109: 0 | CN109: 0 | CO109: 0 | CP109: 0 | CQ109: 0 | CR109: 0 | CS109: 0 | CT109: 0 | CU109: 0 | CV109: 0 | CW109: 0 | CX109: 0 | CY109: 0 | CZ109: 0 | DA109: 0 | DB109: 0 | DC109: 0 | DD109: 0 | DE109: 0 | DF109: 0
BE110: Apr | BF110: 22 | BG110: 1 | BH110: 4 | BI110: TRUE | BJ110: =MOD(BG110,$BM$7)=0 -> FALSE | BK110: =IF(BJ110,BM$8,0) -> 0 | BL110: =BK110 -> 0 | BM110: 0 | BN110: 0 | BO110: 0 | BP110: =$Q$337/$BF$110*BR$16*$BI110 -> 0 | BQ110: =AQ$372/$BF110*$BI110 -> 0 | BR110: 0 | BS110: =$R$337/$BF110*BU$16*$BI110 -> 0 | BT110: =AR$372/$BF110*$BI110 -> 0 | BU110: 0 | BV110: =$S$337/$BF110*BX$16*$BI110 -> 0 | BW110: =AS$372/$BF110*$BI110 -> 0 | BX110: 0 | BY110: =$T$337/$BF110*CA$16*$BI110 -> 0 | BZ110: =AT$372/$BF110*$BI110 -> 0 | CA110: 0 | CB110: =$W$337/BF110*BI110*$C$419 -> 0 | CC110: =AU$372/$BF110*$BI110 -> 0 | CD110: 0 | CE110: =$X$337/BF110*BI110*$C$420 -> 0 | CF110: =AV$372/$BF110*$BI110 -> 0 | CG110: 0 | CH110: =$Y$337/BF110*BI110*$C$421 -> 0 | CI110: =AW$372/$BF110*$BI110 -> 0 | CJ110: 0 | CK110: =$Z$337/BF110*BI110*$CM$16 -> 0 | CL110: =AX$372/$BF110*$BI110 -> 0 | CM110: 0 | CN110: =$AA$337/BF110*BI110*$CP$16 -> 0 | CO110: =$AY$372/$BF110*$BI110 -> 0 | CP110: 0 | CQ110: =$AB$337/BF110*BI110*$CS$16 -> 0 | CR110: =AZ$372/$BF110*$BI110 -> 0 | CS110: 0 | CT110: =$AC$337/BF110*BI110*$CV$16 -> 0 | CU110: =BA$372/$BF110*$BI110 -> 0 | CV110: 0 | CW110: =$AD$337/BF110*BI110*$CY$16 -> 0 | CX110: =BB$372/$BF110*$BI110 -> 0 | CY110: 0 | CZ110: 0 | DA110: 0 | DB110: 0 | DC110: 0 | DD110: 0 | DE110: 0 | DF110: 0
BE111: Apr | BF111: 22 | BG111: 2 | BH111: 5 | BI111: TRUE | BJ111: FALSE | BK111: 0 | BL111: =IF(SUM(BL$110:BL110,BK111)>$BM$4,0,BK111) -> 0 | BM111: 0 | BN111: 0 | BO111: 0 | BP111: 0 | BQ111: 0 | BR111: 0 | BS111: 0 | BT111: 0 | BU111: 0 | BV111: 0 | BW111: 0 | BX111: 0 | BY111: 0 | BZ111: 0 | CA111: 0 | CB111: 0 | CC111: 0 | CD111: 0 | CE111: 0 | CF111: 0 | CG111: 0 | CH111: 0 | CI111: 0 | CJ111: 0 | CK111: 0 | CL111: 0 | CM111: 0 | CN111: 0 | CO111: 0 | CP111: 0 | CQ111: 0 | CR111: 0 | CS111: 0 | CT111: 0 | CU111: 0 | CV111: 0 | CW111: 0 | CX111: 0 | CY111: 0 | CZ111: 0 | DA111: 0 | DB111: 0 | DC111: 0 | DD111: 0 | DE111: 0 | DF111: 0
BE112: Apr | BF112: 22 | BG112: 3 | BH112: 6 | BI112: FALSE | BJ112: FALSE | BK112: 0 | BL112: =IF(SUM(BL$110:BL111,BK112)>$BM$4,0,BK112) -> 0 | BM112: 0 | BN112: 0 | BO112: 0 | BP112: 0 | BQ112: 0 | BR112: 0 | BS112: 0 | BT112: 0 | BU112: 0 | BV112: 0 | BW112: 0 | BX112: 0 | BY112: 0 | BZ112: 0 | CA112: 0 | CB112: 0 | CC112: 0 | CD112: 0 | CE112: 0 | CF112: 0 | CG112: 0 | CH112: 0 | CI112: 0 | CJ112: 0 | CK112: 0 | CL112: 0 | CM112: 0 | CN112: 0 | CO112: 0 | CP112: 0 | CQ112: 0 | CR112: 0 | CS112: 0 | CT112: 0 | CU112: 0 | CV112: 0 | CW112: 0 | CX112: 0 | CY112: 0 | CZ112: 0 | DA112: 0 | DB112: 0 | DC112: 0 | DD112: 0 | DE112: 0 | DF112: 0
BE113: Apr | BF113: 22 | BG113: 4 | BH113: 7 | BI113: FALSE | BJ113: FALSE | BK113: 0 | BL113: =IF(SUM(BL$110:BL112,BK113)>$BM$4,0,BK113) -> 0 | BM113: 0 | BN113: 0 | BO113: 0 | BP113: 0 | BQ113: 0 | BR113: 0 | BS113: 0 | BT113: 0 | BU113: 0 | BV113: 0 | BW113: 0 | BX113: 0 | BY113: 0 | BZ113: 0 | CA113: 0 | CB113: 0 | CC113: 0 | CD113: 0 | CE113: 0 | CF113: 0 | CG113: 0 | CH113: 0 | CI113: 0 | CJ113: 0 | CK113: 0 | CL113: 0 | CM113: 0 | CN113: 0 | CO113: 0 | CP113: 0 | CQ113: 0 | CR113: 0 | CS113: 0 | CT113: 0 | CU113: 0 | CV113: 0 | CW113: 0 | CX113: 0 | CY113: 0 | CZ113: 0 | DA113: 0 | DB113: 0 | DC113: 0 | DD113: 0 | DE113: 0 | DF113: 0
BE114: Apr | BF114: 22 | BG114: 5 | BH114: 1 | BI114: TRUE | BJ114: FALSE | BK114: 0 | BL114: =IF(SUM(BL$110:BL113,BK114)>$BM$4,0,BK114) -> 0 | BM114: 0 | BN114: 0 | BO114: 0 | BP114: 0 | BQ114: 0 | BR114: 0 | BS114: 0 | BT114: 0 | BU114: 0 | BV114: 0 | BW114: 0 | BX114: 0 | BY114: 0 | BZ114: 0 | CA114: 0 | CB114: 0 | CC114: 0 | CD114: 0 | CE114: 0 | CF114: 0 | CG114: 0 | CH114: 0 | CI114: 0 | CJ114: 0 | CK114: 0 | CL114: 0 | CM114: 0 | CN114: 0 | CO114: 0 | CP114: 0 | CQ114: 0 | CR114: 0 | CS114: 0 | CT114: 0 | CU114: 0 | CV114: 0 | CW114: 0 | CX114: 0 | CY114: 0 | CZ114: 0 | DA114: 0 | DB114: 0 | DC114: 0 | DD114: 0 | DE114: 0 | DF114: 0
BE115: Apr | BF115: 22 | BG115: 6 | BH115: 2 | BI115: TRUE | BJ115: FALSE | BK115: 0 | BL115: =IF(SUM(BL$110:BL114,BK115)>$BM$4,0,BK115) -> 0 | BM115: 0 | BN115: 0 | BO115: 0 | BP115: 0 | BQ115: 0 | BR115: 0 | BS115: 0 | BT115: 0 | BU115: 0 | BV115: 0 | BW115: 0 | BX115: 0 | BY115: 0 | BZ115: 0 | CA115: 0 | CB115: 0 | CC115: 0 | CD115: 0 | CE115: 0 | CF115: 0 | CG115: 0 | CH115: 0 | CI115: 0 | CJ115: 0 | CK115: 0 | CL115: 0 | CM115: 0 | CN115: 0 | CO115: 0 | CP115: 0 | CQ115: 0 | CR115: 0 | CS115: 0 | CT115: 0 | CU115: 0 | CV115: 0 | CW115: 0 | CX115: 0 | CY115: 0 | CZ115: 0 | DA115: 0 | DB115: 0 | DC115: 0 | DD115: 0 | DE115: 0 | DF115: 0
BE116: Apr | BF116: 22 | BG116: 7 | BH116: 3 | BI116: TRUE | BJ116: FALSE | BK116: 0 | BL116: =IF(SUM(BL$110:BL115,BK116)>$BM$4,0,BK116) -> 0 | BM116: 0 | BN116: 0 | BO116: 0 | BP116: 0 | BQ116: 0 | BR116: 0 | BS116: 0 | BT116: 0 | BU116: 0 | BV116: 0 | BW116: 0 | BX116: 0 | BY116: 0 | BZ116: 0 | CA116: 0 | CB116: 0 | CC116: 0 | CD116: 0 | CE116: 0 | CF116: 0 | CG116: 0 | CH116: 0 | CI116: 0 | CJ116: 0 | CK116: 0 | CL116: 0 | CM116: 0 | CN116: 0 | CO116: 0 | CP116: 0 | CQ116: 0 | CR116: 0 | CS116: 0 | CT116: 0 | CU116: 0 | CV116: 0 | CW116: 0 | CX116: 0 | CY116: 0 | CZ116: 0 | DA116: 0 | DB116: 0 | DC116: 0 | DD116: 0 | DE116: 0 | DF116: 0
BE117: Apr | BF117: 22 | BG117: 8 | BH117: 4 | BI117: TRUE | BJ117: FALSE | BK117: 0 | BL117: =IF(SUM(BL$110:BL116,BK117)>$BM$4,0,BK117) -> 0 | BM117: 0 | BN117: 0 | BO117: 0 | BP117: 0 | BQ117: 0 | BR117: 0 | BS117: 0 | BT117: 0 | BU117: 0 | BV117: 0 | BW117: 0 | BX117: 0 | BY117: 0 | BZ117: 0 | CA117: 0 | CB117: 0 | CC117: 0 | CD117: 0 | CE117: 0 | CF117: 0 | CG117: 0 | CH117: 0 | CI117: 0 | CJ117: 0 | CK117: 0 | CL117: 0 | CM117: 0 | CN117: 0 | CO117: 0 | CP117: 0 | CQ117: 0 | CR117: 0 | CS117: 0 | CT117: 0 | CU117: 0 | CV117: 0 | CW117: 0 | CX117: 0 | CY117: 0 | CZ117: 0 | DA117: 0 | DB117: 0 | DC117: 0 | DD117: 0 | DE117: 0 | DF117: 0
BE118: Apr | BF118: 22 | BG118: 9 | BH118: 5 | BI118: TRUE | BJ118: FALSE | BK118: 0 | BL118: =IF(SUM(BL$110:BL117,BK118)>$BM$4,0,BK118) -> 0 | BM118: 0 | BN118: 0 | BO118: 0 | BP118: 0 | BQ118: 0 | BR118: 0 | BS118: 0 | BT118: 0 | BU118: 0 | BV118: 0 | BW118: 0 | BX118: 0 | BY118: 0 | BZ118: 0 | CA118: 0 | CB118: 0 | CC118: 0 | CD118: 0 | CE118: 0 | CF118: 0 | CG118: 0 | CH118: 0 | CI118: 0 | CJ118: 0 | CK118: 0 | CL118: 0 | CM118: 0 | CN118: 0 | CO118: 0 | CP118: 0 | CQ118: 0 | CR118: 0 | CS118: 0 | CT118: 0 | CU118: 0 | CV118: 0 | CW118: 0 | CX118: 0 | CY118: 0 | CZ118: 0 | DA118: 0 | DB118: 0 | DC118: 0 | DD118: 0 | DE118: 0 | DF118: 0
BE119: Apr | BF119: 22 | BG119: 10 | BH119: 6 | BI119: FALSE | BJ119: TRUE | BK119: 6.666666667 | BL119: =IF(SUM(BL$110:BL118,BK119)>$BM$4,0,BK119) -> 6.666666667 | BM119: 0 | BN119: 0 | BO119: 0 | BP119: 0 | BQ119: 0 | BR119: 0 | BS119: 0 | BT119: 0 | BU119: 0 | BV119: 0 | BW119: 0 | BX119: 0 | BY119: 0 | BZ119: 0 | CA119: 0 | CB119: 0 | CC119: 0 | CD119: 0 | CE119: 0 | CF119: 0 | CG119: 0 | CH119: 0 | CI119: 0 | CJ119: 0 | CK119: 0 | CL119: 0 | CM119: 0 | CN119: 0 | CO119: 0 | CP119: 0 | CQ119: 0 | CR119: 0 | CS119: 0 | CT119: 0 | CU119: 0 | CV119: 0 | CW119: 0 | CX119: 0 | CY119: 0 | CZ119: 0 | DA119: 0 | DB119: 0 | DC119: 0 | DD119: 0 | DE119: 0 | DF119: 0
BE120: Apr | BF120: 22 | BG120: 11 | BH120: 7 | BI120: FALSE | BJ120: FALSE | BK120: 0 | BL120: =IF(SUM(BL$110:BL119,BK120)>$BM$4,0,BK120) -> 0 | BM120: 0 | BN120: 0 | BO120: 0 | BP120: 0 | BQ120: 0 | BR120: 0 | BS120: 0 | BT120: 0 | BU120: 0 | BV120: 0 | BW120: 0 | BX120: 0 | BY120: 0 | BZ120: 0 | CA120: 0 | CB120: 0 | CC120: 0 | CD120: 0 | CE120: 0 | CF120: 0 | CG120: 0 | CH120: 0 | CI120: 0 | CJ120: 0 | CK120: 0 | CL120: 0 | CM120: 0 | CN120: 0 | CO120: 0 | CP120: 0 | CQ120: 0 | CR120: 0 | CS120: 0 | CT120: 0 | CU120: 0 | CV120: 0 | CW120: 0 | CX120: 0 | CY120: 0 | CZ120: 0 | DA120: 0 | DB120: 0 | DC120: 0 | DD120: 0 | DE120: 0 | DF120: 0
BE121: Apr | BF121: 22 | BG121: 12 | BH121: 1 | BI121: TRUE | BJ121: FALSE | BK121: 0 | BL121: =IF(SUM(BL$110:BL120,BK121)>$BM$4,0,BK121) -> 0 | BM121: 0 | BN121: 0 | BO121: 0 | BP121: 0 | BQ121: 0 | BR121: 0 | BS121: 0 | BT121: 0 | BU121: 0 | BV121: 0 | BW121: 0 | BX121: 0 | BY121: 0 | BZ121: 0 | CA121: 0 | CB121: 0 | CC121: 0 | CD121: 0 | CE121: 0 | CF121: 0 | CG121: 0 | CH121: 0 | CI121: 0 | CJ121: 0 | CK121: 0 | CL121: 0 | CM121: 0 | CN121: 0 | CO121: 0 | CP121: 0 | CQ121: 0 | CR121: 0 | CS121: 0 | CT121: 0 | CU121: 0 | CV121: 0 | CW121: 0 | CX121: 0 | CY121: 0 | CZ121: 0 | DA121: 0 | DB121: 0 | DC121: 0 | DD121: 0 | DE121: 0 | DF121: 0
BE122: Apr | BF122: 22 | BG122: 13 | BH122: 2 | BI122: TRUE | BJ122: FALSE | BK122: 0 | BL122: =IF(SUM(BL$110:BL121,BK122)>$BM$4,0,BK122) -> 0 | BM122: 0 | BN122: 0 | BO122: 0 | BP122: 0 | BQ122: 0 | BR122: 0 | BS122: 0 | BT122: 0 | BU122: 0 | BV122: 0 | BW122: 0 | BX122: 0 | BY122: 0 | BZ122: 0 | CA122: 0 | CB122: 0 | CC122: 0 | CD122: 0 | CE122: 0 | CF122: 0 | CG122: 0 | CH122: 0 | CI122: 0 | CJ122: 0 | CK122: 0 | CL122: 0 | CM122: 0 | CN122: 0 | CO122: 0 | CP122: 0 | CQ122: 0 | CR122: 0 | CS122: 0 | CT122: 0 | CU122: 0 | CV122: 0 | CW122: 0 | CX122: 0 | CY122: 0 | CZ122: 0 | DA122: 0 | DB122: 0 | DC122: 0 | DD122: 0 | DE122: 0 | DF122: 0
BE123: Apr | BF123: 22 | BG123: 14 | BH123: 3 | BI123: TRUE | BJ123: FALSE | BK123: 0 | BL123: =IF(SUM(BL$110:BL122,BK123)>$BM$4,0,BK123) -> 0 | BM123: 0 | BN123: 0 | BO123: 0 | BP123: 0 | BQ123: 0 | BR123: 0 | BS123: 0 | BT123: 0 | BU123: 0 | BV123: 0 | BW123: 0 | BX123: 0 | BY123: 0 | BZ123: 0 | CA123: 0 | CB123: 0 | CC123: 0 | CD123: 0 | CE123: 0 | CF123: 0 | CG123: 0 | CH123: 0 | CI123: 0 | CJ123: 0 | CK123: 0 | CL123: 0 | CM123: 0 | CN123: 0 | CO123: 0 | CP123: 0 | CQ123: 0 | CR123: 0 | CS123: 0 | CT123: 0 | CU123: 0 | CV123: 0 | CW123: 0 | CX123: 0 | CY123: 0 | CZ123: 0 | DA123: 0 | DB123: 0 | DC123: 0 | DD123: 0 | DE123: 0 | DF123: 0
BE124: Apr | BF124: 22 | BG124: 15 | BH124: 4 | BI124: TRUE | BJ124: FALSE | BK124: 0 | BL124: =IF(SUM(BL$110:BL123,BK124)>$BM$4,0,BK124) -> 0 | BM124: 0 | BN124: 0 | BO124: 0 | BP124: 0 | BQ124: 0 | BR124: 0 | BS124: 0 | BT124: 0 | BU124: 0 | BV124: 0 | BW124: 0 | BX124: 0 | BY124: 0 | BZ124: 0 | CA124: 0 | CB124: 0 | CC124: 0 | CD124: 0 | CE124: 0 | CF124: 0 | CG124: 0 | CH124: 0 | CI124: 0 | CJ124: 0 | CK124: 0 | CL124: 0 | CM124: 0 | CN124: 0 | CO124: 0 | CP124: 0 | CQ124: 0 | CR124: 0 | CS124: 0 | CT124: 0 | CU124: 0 | CV124: 0 | CW124: 0 | CX124: 0 | CY124: 0 | CZ124: 0 | DA124: 0 | DB124: 0 | DC124: 0 | DD124: 0 | DE124: 0 | DF124: 0
BE125: Apr | BF125: 22 | BG125: 16 | BH125: 5 | BI125: TRUE | BJ125: FALSE | BK125: 0 | BL125: =IF(SUM(BL$110:BL124,BK125)>$BM$4,0,BK125) -> 0 | BM125: 0 | BN125: 0 | BO125: 0 | BP125: 0 | BQ125: 0 | BR125: 0 | BS125: 0 | BT125: 0 | BU125: 0 | BV125: 0 | BW125: 0 | BX125: 0 | BY125: 0 | BZ125: 0 | CA125: 0 | CB125: 0 | CC125: 0 | CD125: 0 | CE125: 0 | CF125: 0 | CG125: 0 | CH125: 0 | CI125: 0 | CJ125: 0 | CK125: 0 | CL125: 0 | CM125: 0 | CN125: 0 | CO125: 0 | CP125: 0 | CQ125: 0 | CR125: 0 | CS125: 0 | CT125: 0 | CU125: 0 | CV125: 0 | CW125: 0 | CX125: 0 | CY125: 0 | CZ125: 0 | DA125: 0 | DB125: 0 | DC125: 0 | DD125: 0 | DE125: 0 | DF125: 0
BE126: Apr | BF126: 22 | BG126: 17 | BH126: 6 | BI126: FALSE | BJ126: FALSE | BK126: 0 | BL126: =IF(SUM(BL$110:BL125,BK126)>$BM$4,0,BK126) -> 0 | BM126: 0 | BN126: 0 | BO126: 0 | BP126: 0 | BQ126: 0 | BR126: 0 | BS126: 0 | BT126: 0 | BU126: 0 | BV126: 0 | BW126: 0 | BX126: 0 | BY126: 0 | BZ126: 0 | CA126: 0 | CB126: 0 | CC126: 0 | CD126: 0 | CE126: 0 | CF126: 0 | CG126: 0 | CH126: 0 | CI126: 0 | CJ126: 0 | CK126: 0 | CL126: 0 | CM126: 0 | CN126: 0 | CO126: 0 | CP126: 0 | CQ126: 0 | CR126: 0 | CS126: 0 | CT126: 0 | CU126: 0 | CV126: 0 | CW126: 0 | CX126: 0 | CY126: 0 | CZ126: 0 | DA126: 0 | DB126: 0 | DC126: 0 | DD126: 0 | DE126: 0 | DF126: 0
BE127: Apr | BF127: 22 | BG127: 18 | BH127: 7 | BI127: FALSE | BJ127: FALSE | BK127: 0 | BL127: =IF(SUM(BL$110:BL126,BK127)>$BM$4,0,BK127) -> 0 | BM127: 0 | BN127: 0 | BO127: 0 | BP127: 0 | BQ127: 0 | BR127: 0 | BS127: 0 | BT127: 0 | BU127: 0 | BV127: 0 | BW127: 0 | BX127: 0 | BY127: 0 | BZ127: 0 | CA127: 0 | CB127: 0 | CC127: 0 | CD127: 0 | CE127: 0 | CF127: 0 | CG127: 0 | CH127: 0 | CI127: 0 | CJ127: 0 | CK127: 0 | CL127: 0 | CM127: 0 | CN127: 0 | CO127: 0 | CP127: 0 | CQ127: 0 | CR127: 0 | CS127: 0 | CT127: 0 | CU127: 0 | CV127: 0 | CW127: 0 | CX127: 0 | CY127: 0 | CZ127: 0 | DA127: 0 | DB127: 0 | DC127: 0 | DD127: 0 | DE127: 0 | DF127: 0
BE128: Apr | BF128: 22 | BG128: 19 | BH128: 1 | BI128: TRUE | BJ128: FALSE | BK128: 0 | BL128: =IF(SUM(BL$110:BL127,BK128)>$BM$4,0,BK128) -> 0 | BM128: 0 | BN128: 0 | BO128: 0 | BP128: 0 | BQ128: 0 | BR128: 0 | BS128: 0 | BT128: 0 | BU128: 0 | BV128: 0 | BW128: 0 | BX128: 0 | BY128: 0 | BZ128: 0 | CA128: 0 | CB128: 0 | CC128: 0 | CD128: 0 | CE128: 0 | CF128: 0 | CG128: 0 | CH128: 0 | CI128: 0 | CJ128: 0 | CK128: 0 | CL128: 0 | CM128: 0 | CN128: 0 | CO128: 0 | CP128: 0 | CQ128: 0 | CR128: 0 | CS128: 0 | CT128: 0 | CU128: 0 | CV128: 0 | CW128: 0 | CX128: 0 | CY128: 0 | CZ128: 0 | DA128: 0 | DB128: 0 | DC128: 0 | DD128: 0 | DE128: 0 | DF128: 0
BE129: Apr | BF129: 22 | BG129: 20 | BH129: 2 | BI129: TRUE | BJ129: TRUE | BK129: 6.666666667 | BL129: =IF(SUM(BL$110:BL128,BK129)>$BM$4,0,BK129) -> 6.666666667 | BM129: 0 | BN129: 0 | BO129: 0 | BP129: 0 | BQ129: 0 | BR129: 0 | BS129: 0 | BT129: 0 | BU129: 0 | BV129: 0 | BW129: 0 | BX129: 0 | BY129: 0 | BZ129: 0 | CA129: 0 | CB129: 0 | CC129: 0 | CD129: 0 | CE129: 0 | CF129: 0 | CG129: 0 | CH129: 0 | CI129: 0 | CJ129: 0 | CK129: 0 | CL129: 0 | CM129: 0 | CN129: 0 | CO129: 0 | CP129: 0 | CQ129: 0 | CR129: 0 | CS129: 0 | CT129: 0 | CU129: 0 | CV129: 0 | CW129: 0 | CX129: 0 | CY129: 0 | CZ129: 0 | DA129: 0 | DB129: 0 | DC129: 0 | DD129: 0 | DE129: 0 | DF129: 0
B130: Heat Rejection Water Demand | BE130: Apr | BF130: 22 | BG130: 21 | BH130: 3 | BI130: TRUE | BJ130: FALSE | BK130: 0 | BL130: =IF(SUM(BL$110:BL129,BK130)>$BM$4,0,BK130) -> 0 | BM130: 0 | BN130: 0 | BO130: 0 | BP130: 0 | BQ130: 0 | BR130: 0 | BS130: 0 | BT130: 0 | BU130: 0 | BV130: 0 | BW130: 0 | BX130: 0 | BY130: 0 | BZ130: 0 | CA130: 0 | CB130: 0 | CC130: 0 | CD130: 0 | CE130: 0 | CF130: 0 | CG130: 0 | CH130: 0 | CI130: 0 | CJ130: 0 | CK130: 0 | CL130: 0 | CM130: 0 | CN130: 0 | CO130: 0 | CP130: 0 | CQ130: 0 | CR130: 0 | CS130: 0 | CT130: 0 | CU130: 0 | CV130: 0 | CW130: 0 | CX130: 0 | CY130: 0 | CZ130: 0 | DA130: 0 | DB130: 0 | DC130: 0 | DD130: 0 | DE130: 0 | DF130: 0
B131: STEP 2b - Please provide information regarding Heat Rejection water demand in the building. | BE131: Apr | BF131: 22 | BG131: 22 | BH131: 4 | BI131: TRUE | BJ131: FALSE | BK131: 0 | BL131: =IF(SUM(BL$110:BL130,BK131)>$BM$4,0,BK131) -> 0 | BM131: 0 | BN131: 0 | BO131: 0 | BP131: 0 | BQ131: 0 | BR131: 0 | BS131: 0 | BT131: 0 | BU131: 0 | BV131: 0 | BW131: 0 | BX131: 0 | BY131: 0 | BZ131: 0 | CA131: 0 | CB131: 0 | CC131: 0 | CD131: 0 | CE131: 0 | CF131: 0 | CG131: 0 | CH131: 0 | CI131: 0 | CJ131: 0 | CK131: 0 | CL131: 0 | CM131: 0 | CN131: 0 | CO131: 0 | CP131: 0 | CQ131: 0 | CR131: 0 | CS131: 0 | CT131: 0 | CU131: 0 | CV131: 0 | CW131: 0 | CX131: 0 | CY131: 0 | CZ131: 0 | DA131: 0 | DB131: 0 | DC131: 0 | DD131: 0 | DE131: 0 | DF131: 0
N132: Data Validation | BE132: Apr | BF132: 22 | BG132: 23 | BH132: 5 | BI132: TRUE | BJ132: FALSE | BK132: 0 | BL132: =IF(SUM(BL$110:BL131,BK132)>$BM$4,0,BK132) -> 0 | BM132: 0 | BN132: 0 | BO132: 0 | BP132: 0 | BQ132: 0 | BR132: 0 | BS132: 0 | BT132: 0 | BU132: 0 | BV132: 0 | BW132: 0 | BX132: 0 | BY132: 0 | BZ132: 0 | CA132: 0 | CB132: 0 | CC132: 0 | CD132: 0 | CE132: 0 | CF132: 0 | CG132: 0 | CH132: 0 | CI132: 0 | CJ132: 0 | CK132: 0 | CL132: 0 | CM132: 0 | CN132: 0 | CO132: 0 | CP132: 0 | CQ132: 0 | CR132: 0 | CS132: 0 | CT132: 0 | CU132: 0 | CV132: 0 | CW132: 0 | CX132: 0 | CY132: 0 | CZ132: 0 | DA132: 0 | DB132: 0 | DC132: 0 | DD132: 0 | DE132: 0 | DF132: 0 | DK132: Notional Building
B133: Please enter the area of the project that is air conditioned | F133: m2 | N133: Water cooled chiller | BE133: Apr | BF133: 22 | BG133: 24 | BH133: 6 | BI133: FALSE | BJ133: FALSE | BK133: 0 | BL133: =IF(SUM(BL$110:BL132,BK133)>$BM$4,0,BK133) -> 0 | BM133: 0 | BN133: 0 | BO133: 0 | BP133: 0 | BQ133: 0 | BR133: 0 | BS133: 0 | BT133: 0 | BU133: 0 | BV133: 0 | BW133: 0 | BX133: 0 | BY133: 0 | BZ133: 0 | CA133: 0 | CB133: 0 | CC133: 0 | CD133: 0 | CE133: 0 | CF133: 0 | CG133: 0 | CH133: 0 | CI133: 0 | CJ133: 0 | CK133: 0 | CL133: 0 | CM133: 0 | CN133: 0 | CO133: 0 | CP133: 0 | CQ133: 0 | CR133: 0 | CS133: 0 | CT133: 0 | CU133: 0 | CV133: 0 | CW133: 0 | CX133: 0 | CY133: 0 | CZ133: 0 | DA133: 0 | DB133: 0 | DC133: 0 | DD133: 0 | DE133: 0 | DF133: 0 | DJ133: Drift Co-efficient | DK133: 3e-05 | DL133: ASHRAE 2008 HVAC Systems and Equipment S39.11 SI - Cooling Towers (TC 8.6)
N134: Air cooled chiller | BE134: Apr | BF134: 22 | BG134: 25 | BH134: 7 | BI134: FALSE | BJ134: FALSE | BK134: 0 | BL134: =IF(SUM(BL$110:BL133,BK134)>$BM$4,0,BK134) -> 0 | BM134: 0 | BN134: 0 | BO134: 0 | BP134: 0 | BQ134: 0 | BR134: 0 | BS134: 0 | BT134: 0 | BU134: 0 | BV134: 0 | BW134: 0 | BX134: 0 | BY134: 0 | BZ134: 0 | CA134: 0 | CB134: 0 | CC134: 0 | CD134: 0 | CE134: 0 | CF134: 0 | CG134: 0 | CH134: 0 | CI134: 0 | CJ134: 0 | CK134: 0 | CL134: 0 | CM134: 0 | CN134: 0 | CO134: 0 | CP134: 0 | CQ134: 0 | CR134: 0 | CS134: 0 | CT134: 0 | CU134: 0 | CV134: 0 | CW134: 0 | CX134: 0 | CY134: 0 | CZ134: 0 | DA134: 0 | DB134: 0 | DC134: 0 | DD134: 0 | DE134: 0 | DF134: 0 | DJ134: Condenser Water dT | DK134: 5.5 | DL134: Industry standard
B135: Actual Building | H135: Notional Building | O135: Logical tests | BE135: Apr | BF135: 22 | BG135: 26 | BH135: 1 | BI135: TRUE | BJ135: FALSE | BK135: 0 | BL135: =IF(SUM(BL$110:BL134,BK135)>$BM$4,0,BK135) -> 0 | BM135: 0 | BN135: 0 | BO135: 0 | BP135: 0 | BQ135: 0 | BR135: 0 | BS135: 0 | BT135: 0 | BU135: 0 | BV135: 0 | BW135: 0 | BX135: 0 | BY135: 0 | BZ135: 0 | CA135: 0 | CB135: 0 | CC135: 0 | CD135: 0 | CE135: 0 | CF135: 0 | CG135: 0 | CH135: 0 | CI135: 0 | CJ135: 0 | CK135: 0 | CL135: 0 | CM135: 0 | CN135: 0 | CO135: 0 | CP135: 0 | CQ135: 0 | CR135: 0 | CS135: 0 | CT135: 0 | CU135: 0 | CV135: 0 | CW135: 0 | CX135: 0 | CY135: 0 | CZ135: 0 | DA135: 0 | DB135: 0 | DC135: 0 | DD135: 0 | DE135: 0 | DF135: 0 | DJ135: Cycles of conentration | DK135: 6 | DL135: Eurovent, 9/5, 2nd Edition: 2002, Recommended Code of Practice to Keep Your Cooling System Efficient & Safe
B136: Please select Actual building chiller type | E136: Air cooled chiller | H136: Notional Building chiller type | I136: =IF(E133>=2000,N133,N134) -> Air cooled chiller | N136: Nominated area > 2000 | O136: =E133>2000 -> FALSE | BE136: Apr | BF136: 22 | BG136: 27 | BH136: 2 | BI136: TRUE | BJ136: FALSE | BK136: 0 | BL136: =IF(SUM(BL$110:BL135,BK136)>$BM$4,0,BK136) -> 0 | BM136: 0 | BN136: 0 | BO136: 0 | BP136: 0 | BQ136: 0 | BR136: 0 | BS136: 0 | BT136: 0 | BU136: 0 | BV136: 0 | BW136: 0 | BX136: 0 | BY136: 0 | BZ136: 0 | CA136: 0 | CB136: 0 | CC136: 0 | CD136: 0 | CE136: 0 | CF136: 0 | CG136: 0 | CH136: 0 | CI136: 0 | CJ136: 0 | CK136: 0 | CL136: 0 | CM136: 0 | CN136: 0 | CO136: 0 | CP136: 0 | CQ136: 0 | CR136: 0 | CS136: 0 | CT136: 0 | CU136: 0 | CV136: 0 | CW136: 0 | CX136: 0 | CY136: 0 | CZ136: 0 | DA136: 0 | DB136: 0 | DC136: 0 | DD136: 0 | DE136: 0 | DF136: 0
B137: Please enter cooling tower characteristics. Refer to the PWC Guide for more details | H137: Drift Co-efficient | I137: =DK133 -> 3e-05 | N137: Actual cooling towers | O137: =E136=N133 -> FALSE | BE137: Apr | BF137: 22 | BG137: 28 | BH137: 3 | BI137: TRUE | BJ137: FALSE | BK137: 0 | BL137: =IF(SUM(BL$110:BL136,BK137)>$BM$4,0,BK137) -> 0 | BM137: 0 | BN137: 0 | BO137: 0 | BP137: 0 | BQ137: 0 | BR137: 0 | BS137: 0 | BT137: 0 | BU137: 0 | BV137: 0 | BW137: 0 | BX137: 0 | BY137: 0 | BZ137: 0 | CA137: 0 | CB137: 0 | CC137: 0 | CD137: 0 | CE137: 0 | CF137: 0 | CG137: 0 | CH137: 0 | CI137: 0 | CJ137: 0 | CK137: 0 | CL137: 0 | CM137: 0 | CN137: 0 | CO137: 0 | CP137: 0 | CQ137: 0 | CR137: 0 | CS137: 0 | CT137: 0 | CU137: 0 | CV137: 0 | CW137: 0 | CX137: 0 | CY137: 0 | CZ137: 0 | DA137: 0 | DB137: 0 | DC137: 0 | DD137: 0 | DE137: 0 | DF137: 0 | DJ137: List of constants
B138: Drift Co-efficient | C138: 3e-05 | H138: Condenser Water dT (oC) | I138: 5.5 | N138: Actl other water hr | O138: =F158="yes" -> FALSE | BE138: Apr | BF138: 22 | BG138: 29 | BH138: 4 | BI138: TRUE | BJ138: FALSE | BK138: 0 | BL138: =IF(SUM(BL$110:BL137,BK138)>$BM$4,0,BK138) -> 0 | BM138: 0 | BN138: 0 | BO138: 0 | BP138: 0 | BQ138: 0 | BR138: 0 | BS138: 0 | BT138: 0 | BU138: 0 | BV138: 0 | BW138: 0 | BX138: 0 | BY138: 0 | BZ138: 0 | CA138: 0 | CB138: 0 | CC138: 0 | CD138: 0 | CE138: 0 | CF138: 0 | CG138: 0 | CH138: 0 | CI138: 0 | CJ138: 0 | CK138: 0 | CL138: 0 | CM138: 0 | CN138: 0 | CO138: 0 | CP138: 0 | CQ138: 0 | CR138: 0 | CS138: 0 | CT138: 0 | CU138: 0 | CV138: 0 | CW138: 0 | CX138: 0 | CY138: 0 | CZ138: 0 | DA138: 0 | DB138: 0 | DC138: 0 | DD138: 0 | DE138: 0 | DF138: 0 | DJ138: Latent heat of vaporisation (kJ/kg) | DL138: 2256
B139: Condenser Water dT (oC) | C139: 5.5 | H139: Cycles of concentration | I139: =DK135 -> 6 | N139: Conversion factor | O139: 0.9 | BE139: Apr | BF139: 22 | BG139: 30 | BH139: 5 | BI139: TRUE | BJ139: TRUE | BK139: 6.666666667 | BL139: =$BM$4-SUM(BL110:BL138) -> 6.666666667 | BM139: 0 | BN139: 0 | BO139: 0 | BP139: 0 | BQ139: 0 | BR139: 0 | BS139: 0 | BT139: 0 | BU139: 0 | BV139: 0 | BW139: 0 | BX139: 0 | BY139: 0 | BZ139: 0 | CA139: 0 | CB139: 0 | CC139: 0 | CD139: 0 | CE139: 0 | CF139: 0 | CG139: 0 | CH139: 0 | CI139: 0 | CJ139: 0 | CK139: 0 | CL139: 0 | CM139: 0 | CN139: 0 | CO139: 0 | CP139: 0 | CQ139: 0 | CR139: 0 | CS139: 0 | CT139: 0 | CU139: 0 | CV139: 0 | CW139: 0 | CX139: 0 | CY139: 0 | CZ139: 0 | DA139: 0 | DB139: 0 | DC139: 0 | DD139: 0 | DE139: 0 | DF139: 0 | DJ139: Density of water (kg/L) | DL139: 1
B140: Cycles of concentration | C140: 6 | BE140: May | BF140: 21 | BG140: 1 | BH140: 6 | BI140: FALSE | BJ140: =MOD(BG140,$BN$7)=0 -> FALSE | BK140: =IF(BJ140,BN$8,0) -> 0 | BL140: =BK140 -> 0 | BM140: 0 | BN140: 0 | BO140: 0 | BP140: =$Q$338/$BF$140*BR$16*$BI140 -> 0 | BQ140: =AQ$373/$BF140*$BI140 -> 0 | BR140: 0 | BS140: =$R$338/$BF140*BU$16*$BI140 -> 0 | BT140: =AR$373/$BF140*$BI140 -> 0 | BU140: 0 | BV140: =$S$338/$BF140*BX$16*$BI140 -> 0 | BW140: =AS$373/$BF140*$BI140 -> 0 | BX140: 0 | BY140: =$T$338/$BF140*CA$16*$BI140 -> 0 | BZ140: =AT$373/$BF140*$BI140 -> 0 | CA140: 0 | CB140: =$W$338/BF140*BI140*$C$419 -> 0 | CC140: =AU$373/$BF140*$BI140 -> 0 | CD140: 0 | CE140: =$X$338/BF140*BI140*$C$420 -> 0 | CF140: =AV$373/$BF140*$BI140 -> 0 | CG140: 0 | CH140: =$Y$338/BF140*BI140*$C$421 -> 0 | CI140: =AW$373/$BF140*$BI140 -> 0 | CJ140: 0 | CK140: =$Z$338/BF140*BI140*$CM$16 -> 0 | CL140: =AX$373/$BF140*$BI140 -> 0 | CM140: 0 | CN140: =$AA$338/BF140*BI140*$CP$16 -> 0 | CO140: =$AY$373/$BF140*$BI140 -> 0 | CP140: 0 | CQ140: =$AB$338/BF140*BI140*$CS$16 -> 0 | CR140: =AZ$373/$BF140*$BI140 -> 0 | CS140: 0 | CT140: =$AC$338/BF140*BI140*$CV$16 -> 0 | CU140: =BA$373/$BF140*$BI140 -> 0 | CV140: 0 | CW140: =$AD$338/BF140*BI140*$CY$16 -> 0 | CX140: =BB$373/$BF140*$BI140 -> 0 | CY140: 0 | CZ140: 0 | DA140: 0 | DB140: 0 | DC140: 0 | DD140: 0 | DE140: 0 | DF140: 0 | DJ140: Specific heat of water (kJ/LoC) | DL140: 4.18
P141: =C142 -> Actual Building | V141: =I142 -> Notional Building | BE141: May | BF141: 21 | BG141: 2 | BH141: 7 | BI141: FALSE | BJ141: FALSE | BK141: 0 | BL141: =IF(SUM(BL$140:BL140,BK141)>$BN$4,0,BK141) -> 0 | BM141: 0 | BN141: 0 | BO141: 0 | BP141: 0 | BQ141: 0 | BR141: 0 | BS141: 0 | BT141: 0 | BU141: 0 | BV141: 0 | BW141: 0 | BX141: 0 | BY141: 0 | BZ141: 0 | CA141: 0 | CB141: 0 | CC141: 0 | CD141: 0 | CE141: 0 | CF141: 0 | CG141: 0 | CH141: 0 | CI141: 0 | CJ141: 0 | CK141: 0 | CL141: 0 | CM141: 0 | CN141: 0 | CO141: 0 | CP141: 0 | CQ141: 0 | CR141: 0 | CS141: 0 | CT141: 0 | CU141: 0 | CV141: 0 | CW141: 0 | CX141: 0 | CY141: 0 | CZ141: 0 | DA141: 0 | DB141: 0 | DC141: 0 | DD141: 0 | DE141: 0 | DF141: 0
C142: =B135 -> Actual Building | I142: =H135 -> Notional Building | P142: Evaporation (litres) | Q142: Drift | S142: Bleed (litres) | T142: Monthly Make-up water (m3) | V142: Evaporation (litres) | W142: Drift | Y142: Bleed (litres) | Z142: Monthly Make-up water (m3) | BE142: May | BF142: 21 | BG142: 3 | BH142: 1 | BI142: TRUE | BJ142: FALSE | BK142: 0 | BL142: =IF(SUM(BL$140:BL141,BK142)>$BN$4,0,BK142) -> 0 | BM142: 0 | BN142: 0 | BO142: 0 | BP142: 0 | BQ142: 0 | BR142: 0 | BS142: 0 | BT142: 0 | BU142: 0 | BV142: 0 | BW142: 0 | BX142: 0 | BY142: 0 | BZ142: 0 | CA142: 0 | CB142: 0 | CC142: 0 | CD142: 0 | CE142: 0 | CF142: 0 | CG142: 0 | CH142: 0 | CI142: 0 | CJ142: 0 | CK142: 0 | CL142: 0 | CM142: 0 | CN142: 0 | CO142: 0 | CP142: 0 | CQ142: 0 | CR142: 0 | CS142: 0 | CT142: 0 | CU142: 0 | CV142: 0 | CW142: 0 | CX142: 0 | CY142: 0 | CZ142: 0 | DA142: 0 | DB142: 0 | DC142: 0 | DD142: 0 | DE142: 0 | DF142: 0
C143: Heat rejection load (kWh/month) | D143: Monthly make-up water (m3) | I143: Heat rejection load (kWh/month) | J143: Monthly make-up water (m3) | N143: Base case water cooled | O143: =I136=N133 -> FALSE | Q143: Condenser water flow | R143: Drift (litres) | W143: Condenser water flow | X143: Drift (litres) | BE143: May | BF143: 21 | BG143: 4 | BH143: 2 | BI143: TRUE | BJ143: FALSE | BK143: 0 | BL143: =IF(SUM(BL$140:BL142,BK143)>$BN$4,0,BK143) -> 0 | BM143: 0 | BN143: 0 | BO143: 0 | BP143: 0 | BQ143: 0 | BR143: 0 | BS143: 0 | BT143: 0 | BU143: 0 | BV143: 0 | BW143: 0 | BX143: 0 | BY143: 0 | BZ143: 0 | CA143: 0 | CB143: 0 | CC143: 0 | CD143: 0 | CE143: 0 | CF143: 0 | CG143: 0 | CH143: 0 | CI143: 0 | CJ143: 0 | CK143: 0 | CL143: 0 | CM143: 0 | CN143: 0 | CO143: 0 | CP143: 0 | CQ143: 0 | CR143: 0 | CS143: 0 | CT143: 0 | CU143: 0 | CV143: 0 | CW143: 0 | CX143: 0 | CY143: 0 | CZ143: 0 | DA143: 0 | DB143: 0 | DC143: 0 | DD143: 0 | DE143: 0 | DF143: 0
B144: January | D144: =T144 -> 0 | H144: January | I144: 20000 | J144: =Z144 -> 0 | O144: Jan | P144: =C144*3600/($DL$138*$DL$139)*$O$137 -> 0 | Q144: =(C144*3600)/($DL$140*$C$139)*$O$137 -> 0 | R144: =Q144*$C$138 -> 0 | S144: =P144/($C$140-1) -> 0 | T144: =SUM(S144,R144,P144)/1000 -> 0 | V144: =I144*3600/($DL$138*$DL$139)*$O$143*$O$139 -> 0 | W144: =(I144*3600)/($DL$140*$I$138)*$O$143*$O$139 -> 0 | X144: =W144*$I$137*$O$143 -> 0 | Y144: =V144/($I$139-1) -> 0 | Z144: =SUM(Y144,X144,V144)/1000 -> 0 | BE144: May | BF144: 21 | BG144: 5 | BH144: 3 | BI144: TRUE | BJ144: FALSE | BK144: 0 | BL144: =IF(SUM(BL$140:BL143,BK144)>$BN$4,0,BK144) -> 0 | BM144: 0 | BN144: 0 | BO144: 0 | BP144: 0 | BQ144: 0 | BR144: 0 | BS144: 0 | BT144: 0 | BU144: 0 | BV144: 0 | BW144: 0 | BX144: 0 | BY144: 0 | BZ144: 0 | CA144: 0 | CB144: 0 | CC144: 0 | CD144: 0 | CE144: 0 | CF144: 0 | CG144: 0 | CH144: 0 | CI144: 0 | CJ144: 0 | CK144: 0 | CL144: 0 | CM144: 0 | CN144: 0 | CO144: 0 | CP144: 0 | CQ144: 0 | CR144: 0 | CS144: 0 | CT144: 0 | CU144: 0 | CV144: 0 | CW144: 0 | CX144: 0 | CY144: 0 | CZ144: 0 | DA144: 0 | DB144: 0 | DC144: 0 | DD144: 0 | DE144: 0 | DF144: 0
B145: February | D145: 0 | H145: February | I145: 20000 | J145: 0 | O145: Feb | P145: 0 | Q145: 0 | R145: 0 | S145: 0 | T145: 0 | V145: 0 | W145: 0 | X145: 0 | Y145: 0 | Z145: 0 | BE145: May | BF145: 21 | BG145: 6 | BH145: 4 | BI145: TRUE | BJ145: FALSE | BK145: 0 | BL145: =IF(SUM(BL$140:BL144,BK145)>$BN$4,0,BK145) -> 0 | BM145: 0 | BN145: 0 | BO145: 0 | BP145: 0 | BQ145: 0 | BR145: 0 | BS145: 0 | BT145: 0 | BU145: 0 | BV145: 0 | BW145: 0 | BX145: 0 | BY145: 0 | BZ145: 0 | CA145: 0 | CB145: 0 | CC145: 0 | CD145: 0 | CE145: 0 | CF145: 0 | CG145: 0 | CH145: 0 | CI145: 0 | CJ145: 0 | CK145: 0 | CL145: 0 | CM145: 0 | CN145: 0 | CO145: 0 | CP145: 0 | CQ145: 0 | CR145: 0 | CS145: 0 | CT145: 0 | CU145: 0 | CV145: 0 | CW145: 0 | CX145: 0 | CY145: 0 | CZ145: 0 | DA145: 0 | DB145: 0 | DC145: 0 | DD145: 0 | DE145: 0 | DF145: 0
B146: March | D146: 0 | H146: March | I146: 20000 | J146: 0 | O146: Mar | P146: 0 | Q146: 0 | R146: 0 | S146: 0 | T146: 0 | V146: 0 | W146: 0 | X146: 0 | Y146: 0 | Z146: 0 | BE146: May | BF146: 21 | BG146: 7 | BH146: 5 | BI146: TRUE | BJ146: FALSE | BK146: 0 | BL146: =IF(SUM(BL$140:BL145,BK146)>$BN$4,0,BK146) -> 0 | BM146: 0 | BN146: 0 | BO146: 0 | BP146: 0 | BQ146: 0 | BR146: 0 | BS146: 0 | BT146: 0 | BU146: 0 | BV146: 0 | BW146: 0 | BX146: 0 | BY146: 0 | BZ146: 0 | CA146: 0 | CB146: 0 | CC146: 0 | CD146: 0 | CE146: 0 | CF146: 0 | CG146: 0 | CH146: 0 | CI146: 0 | CJ146: 0 | CK146: 0 | CL146: 0 | CM146: 0 | CN146: 0 | CO146: 0 | CP146: 0 | CQ146: 0 | CR146: 0 | CS146: 0 | CT146: 0 | CU146: 0 | CV146: 0 | CW146: 0 | CX146: 0 | CY146: 0 | CZ146: 0 | DA146: 0 | DB146: 0 | DC146: 0 | DD146: 0 | DE146: 0 | DF146: 0
B147: April | D147: 0 | H147: April | I147: 10000 | J147: 0 | O147: Apr | P147: 0 | Q147: 0 | R147: 0 | S147: 0 | T147: 0 | V147: 0 | W147: 0 | X147: 0 | Y147: 0 | Z147: 0 | BE147: May | BF147: 21 | BG147: 8 | BH147: 6 | BI147: FALSE | BJ147: FALSE | BK147: 0 | BL147: =IF(SUM(BL$140:BL146,BK147)>$BN$4,0,BK147) -> 0 | BM147: 0 | BN147: 0 | BO147: 0 | BP147: 0 | BQ147: 0 | BR147: 0 | BS147: 0 | BT147: 0 | BU147: 0 | BV147: 0 | BW147: 0 | BX147: 0 | BY147: 0 | BZ147: 0 | CA147: 0 | CB147: 0 | CC147: 0 | CD147: 0 | CE147: 0 | CF147: 0 | CG147: 0 | CH147: 0 | CI147: 0 | CJ147: 0 | CK147: 0 | CL147: 0 | CM147: 0 | CN147: 0 | CO147: 0 | CP147: 0 | CQ147: 0 | CR147: 0 | CS147: 0 | CT147: 0 | CU147: 0 | CV147: 0 | CW147: 0 | CX147: 0 | CY147: 0 | CZ147: 0 | DA147: 0 | DB147: 0 | DC147: 0 | DD147: 0 | DE147: 0 | DF147: 0
B148: May | D148: 0 | H148: May | I148: 10000 | J148: 0 | O148: May | P148: 0 | Q148: 0 | R148: 0 | S148: 0 | T148: 0 | V148: 0 | W148: 0 | X148: 0 | Y148: 0 | Z148: 0 | BE148: May | BF148: 21 | BG148: 9 | BH148: 7 | BI148: =BH148<=5 -> FALSE | BJ148: FALSE | BK148: 0 | BL148: =IF(SUM(BL$140:BL147,BK148)>$BN$4,0,BK148) -> 0 | BM148: =BL148*$BJ$13 -> 0 | BN148: =$BJ$14*(BL148>0) -> 0 | BO148: =BM148-BN148 -> 0 | BP148: 0 | BQ148: 0 | BR148: =IF(BP148-(BQ148*$BR$17)>0,BP148-(BQ148*$BR$17),0) -> 0 | BS148: 0 | BT148: 0 | BU148: =IF(BS148-(BT148*BU$17)>0,BS148-(BT148*BU$17),0) -> 0 | BV148: 0 | BW148: 0 | BX148: =IF(BV148-(BW148*BX$17)>0,BV148-(BW148*BX$17),0) -> 0 | BY148: 0 | BZ148: 0 | CA148: =IF(BY148-(BZ148*CA$17)>0,BY148-(BZ148*CA$17),0) -> 0 | CB148: 0 | CC148: 0 | CD148: =IF(CB148-(CC148*CD$17)>0,CB148-(CC148*CD$17),0) -> 0 | CE148: 0 | CF148: 0 | CG148: =IF(CE148-(CF148*CG$17)>0,CE148-(CF148*CG$17),0) -> 0 | CH148: 0 | CI148: 0 | CJ148: =IF(CH148-(CI148*CJ$17)>0,CH148-(CI148*CJ$17),0) -> 0 | CK148: 0 | CL148: 0 | CM148: =IF(CK148-(CL148*CM$17)>0,CK148-(CL148*CM$17),0) -> 0 | CN148: 0 | CO148: 0 | CP148: =IF(CN148-(CO148*CP$17)>0,CN148-(CO148*CP$17),0) -> 0 | CQ148: 0 | CR148: 0 | CS148: =IF(CQ148-(CR148*CS$17)>0,CQ148-(CR148*CS$17),0) -> 0 | CT148: 0 | CU148: 0 | CV148: =IF(CT148-(CU148*CV$17)>0,CT148-(CU148*CV$17),0) -> 0 | CW148: 0 | CX148: 0 | CY148: =IF(CW148-(CX148*CY$17)>0,CW148-(CX148*CY$17),0) -> 0 | CZ148: =BO148 -> 0 | DA148: =BR148+BU148+BX148+CA148+CD148+CG148+CJ148+CM148+CP148+CS148+CV148+CY148 -> 0 | DB148: =CZ148-DA148 -> 0 | DC148: 0 | DD148: 0 | DE148: 0 | DF148: 0
B149: June | D149: 0 | H149: June | I149: 5000 | J149: 0 | O149: Jun | P149: 0 | Q149: 0 | R149: 0 | S149: 0 | T149: 0 | V149: 0 | W149: 0 | X149: 0 | Y149: 0 | Z149: 0 | BE149: May | BF149: 21 | BG149: 10 | BH149: 1 | BI149: TRUE | BJ149: FALSE | BK149: 0 | BL149: =IF(SUM(BL$140:BL148,BK149)>$BN$4,0,BK149) -> 0 | BM149: 0 | BN149: 0 | BO149: 0 | BP149: 0 | BQ149: 0 | BR149: 0 | BS149: 0 | BT149: 0 | BU149: 0 | BV149: 0 | BW149: 0 | BX149: 0 | BY149: 0 | BZ149: 0 | CA149: 0 | CB149: 0 | CC149: 0 | CD149: 0 | CE149: 0 | CF149: 0 | CG149: 0 | CH149: 0 | CI149: 0 | CJ149: 0 | CK149: 0 | CL149: 0 | CM149: 0 | CN149: 0 | CO149: 0 | CP149: 0 | CQ149: 0 | CR149: 0 | CS149: 0 | CT149: 0 | CU149: 0 | CV149: 0 | CW149: 0 | CX149: 0 | CY149: 0 | CZ149: 0 | DA149: 0 | DB149: 0 | DC149: =IF(DC148+$DB149<0,0,IF(DC148+$DB149>$F$405,$F$405,DC148+$DB149)) -> 0 | DD149: =IF(DD148+$DB149<0,0,IF(DD148+$DB149>$F$405,$F$405,DD148+$DB149)) -> 0 | DE149: =IF(DE148+$DB149<0,0,IF(DE148+$DB149>$F$405,$F$405,DE148+$DB149)) -> 0 | DF149: =IF(DA149-(DE148+CZ149)<0,0,DA149-(DE148+CZ149)) -> 0
B150: July | D150: 0 | H150: July | I150: 5000 | J150: 0 | O150: Jul | P150: 0 | Q150: 0 | R150: 0 | S150: 0 | T150: 0 | V150: 0 | W150: 0 | X150: 0 | Y150: 0 | Z150: 0 | BE150: May | BF150: 21 | BG150: 11 | BH150: 2 | BI150: TRUE | BJ150: FALSE | BK150: 0 | BL150: =IF(SUM(BL$140:BL149,BK150)>$BN$4,0,BK150) -> 0 | BM150: 0 | BN150: 0 | BO150: 0 | BP150: 0 | BQ150: 0 | BR150: 0 | BS150: 0 | BT150: 0 | BU150: 0 | BV150: 0 | BW150: 0 | BX150: 0 | BY150: 0 | BZ150: 0 | CA150: 0 | CB150: 0 | CC150: 0 | CD150: 0 | CE150: 0 | CF150: 0 | CG150: 0 | CH150: 0 | CI150: 0 | CJ150: 0 | CK150: 0 | CL150: 0 | CM150: 0 | CN150: 0 | CO150: 0 | CP150: 0 | CQ150: 0 | CR150: 0 | CS150: 0 | CT150: 0 | CU150: 0 | CV150: 0 | CW150: 0 | CX150: 0 | CY150: 0 | CZ150: 0 | DA150: 0 | DB150: 0 | DC150: 0 | DD150: 0 | DE150: 0 | DF150: 0
B151: August | D151: 0 | H151: August | I151: 10000 | J151: 0 | O151: Aug | P151: 0 | Q151: 0 | R151: 0 | S151: 0 | T151: 0 | V151: 0 | W151: 0 | X151: 0 | Y151: 0 | Z151: 0 | BE151: May | BF151: 21 | BG151: 12 | BH151: 3 | BI151: TRUE | BJ151: FALSE | BK151: 0 | BL151: =IF(SUM(BL$140:BL150,BK151)>$BN$4,0,BK151) -> 0 | BM151: 0 | BN151: 0 | BO151: 0 | BP151: 0 | BQ151: 0 | BR151: 0 | BS151: 0 | BT151: 0 | BU151: 0 | BV151: 0 | BW151: 0 | BX151: 0 | BY151: 0 | BZ151: 0 | CA151: 0 | CB151: 0 | CC151: 0 | CD151: 0 | CE151: 0 | CF151: 0 | CG151: 0 | CH151: 0 | CI151: 0 | CJ151: 0 | CK151: 0 | CL151: 0 | CM151: 0 | CN151: 0 | CO151: 0 | CP151: 0 | CQ151: 0 | CR151: 0 | CS151: 0 | CT151: 0 | CU151: 0 | CV151: 0 | CW151: 0 | CX151: 0 | CY151: 0 | CZ151: 0 | DA151: 0 | DB151: 0 | DC151: 0 | DD151: 0 | DE151: 0 | DF151: 0
B152: September | D152: 0 | H152: September | I152: 10000 | J152: 0 | O152: Sep | P152: 0 | Q152: 0 | R152: 0 | S152: 0 | T152: 0 | V152: 0 | W152: 0 | X152: 0 | Y152: 0 | Z152: 0 | BE152: May | BF152: 21 | BG152: 13 | BH152: 4 | BI152: TRUE | BJ152: FALSE | BK152: 0 | BL152: =IF(SUM(BL$140:BL151,BK152)>$BN$4,0,BK152) -> 0 | BM152: 0 | BN152: 0 | BO152: 0 | BP152: 0 | BQ152: 0 | BR152: 0 | BS152: 0 | BT152: 0 | BU152: 0 | BV152: 0 | BW152: 0 | BX152: 0 | BY152: 0 | BZ152: 0 | CA152: 0 | CB152: 0 | CC152: 0 | CD152: 0 | CE152: 0 | CF152: 0 | CG152: 0 | CH152: 0 | CI152: 0 | CJ152: 0 | CK152: 0 | CL152: 0 | CM152: 0 | CN152: 0 | CO152: 0 | CP152: 0 | CQ152: 0 | CR152: 0 | CS152: 0 | CT152: 0 | CU152: 0 | CV152: 0 | CW152: 0 | CX152: 0 | CY152: 0 | CZ152: 0 | DA152: 0 | DB152: 0 | DC152: 0 | DD152: 0 | DE152: 0 | DF152: 0
B153: October | D153: 0 | H153: October | I153: 20000 | J153: 0 | O153: Oct | P153: 0 | Q153: 0 | R153: 0 | S153: 0 | T153: 0 | V153: 0 | W153: 0 | X153: 0 | Y153: 0 | Z153: 0 | BE153: May | BF153: 21 | BG153: 14 | BH153: 5 | BI153: TRUE | BJ153: FALSE | BK153: 0 | BL153: =IF(SUM(BL$140:BL152,BK153)>$BN$4,0,BK153) -> 0 | BM153: 0 | BN153: 0 | BO153: 0 | BP153: 0 | BQ153: 0 | BR153: 0 | BS153: 0 | BT153: 0 | BU153: 0 | BV153: 0 | BW153: 0 | BX153: 0 | BY153: 0 | BZ153: 0 | CA153: 0 | CB153: 0 | CC153: 0 | CD153: 0 | CE153: 0 | CF153: 0 | CG153: 0 | CH153: 0 | CI153: 0 | CJ153: 0 | CK153: 0 | CL153: 0 | CM153: 0 | CN153: 0 | CO153: 0 | CP153: 0 | CQ153: 0 | CR153: 0 | CS153: 0 | CT153: 0 | CU153: 0 | CV153: 0 | CW153: 0 | CX153: 0 | CY153: 0 | CZ153: 0 | DA153: 0 | DB153: 0 | DC153: 0 | DD153: 0 | DE153: 0 | DF153: 0
B154: November | D154: 0 | H154: November | I154: 20000 | J154: 0 | O154: Nov | P154: 0 | Q154: 0 | R154: 0 | S154: 0 | T154: 0 | V154: 0 | W154: 0 | X154: 0 | Y154: 0 | Z154: 0 | BE154: May | BF154: 21 | BG154: 15 | BH154: 6 | BI154: FALSE | BJ154: FALSE | BK154: 0 | BL154: =IF(SUM(BL$140:BL153,BK154)>$BN$4,0,BK154) -> 0 | BM154: 0 | BN154: 0 | BO154: 0 | BP154: 0 | BQ154: 0 | BR154: 0 | BS154: 0 | BT154: 0 | BU154: 0 | BV154: 0 | BW154: 0 | BX154: 0 | BY154: 0 | BZ154: 0 | CA154: 0 | CB154: 0 | CC154: 0 | CD154: 0 | CE154: 0 | CF154: 0 | CG154: 0 | CH154: 0 | CI154: 0 | CJ154: 0 | CK154: 0 | CL154: 0 | CM154: 0 | CN154: 0 | CO154: 0 | CP154: 0 | CQ154: 0 | CR154: 0 | CS154: 0 | CT154: 0 | CU154: 0 | CV154: 0 | CW154: 0 | CX154: 0 | CY154: 0 | CZ154: 0 | DA154: 0 | DB154: 0 | DC154: 0 | DD154: 0 | DE154: 0 | DF154: 0
B155: December | D155: 0 | H155: December | I155: 20000 | J155: 0 | O155: Dec | P155: 0 | Q155: 0 | R155: 0 | S155: 0 | T155: 0 | V155: 0 | W155: 0 | X155: 0 | Y155: 0 | Z155: 0 | BE155: May | BF155: 21 | BG155: 16 | BH155: 7 | BI155: FALSE | BJ155: TRUE | BK155: 5.5 | BL155: =IF(SUM(BL$140:BL154,BK155)>$BN$4,0,BK155) -> 5.5 | BM155: 0 | BN155: 0 | BO155: 0 | BP155: 0 | BQ155: 0 | BR155: 0 | BS155: 0 | BT155: 0 | BU155: 0 | BV155: 0 | BW155: 0 | BX155: 0 | BY155: 0 | BZ155: 0 | CA155: 0 | CB155: 0 | CC155: 0 | CD155: 0 | CE155: 0 | CF155: 0 | CG155: 0 | CH155: 0 | CI155: 0 | CJ155: 0 | CK155: 0 | CL155: 0 | CM155: 0 | CN155: 0 | CO155: 0 | CP155: 0 | CQ155: 0 | CR155: 0 | CS155: 0 | CT155: 0 | CU155: 0 | CV155: 0 | CW155: 0 | CX155: 0 | CY155: 0 | CZ155: 0 | DA155: 0 | DB155: 0 | DC155: 0 | DD155: 0 | DE155: 0 | DF155: 0
C156: =SUM(C144:C155) -> 0 | D156: =SUM(D144:D155) -> 0 | I156: =SUM(I144:I155)*O143 -> 0 | J156: =SUM(J144:J155) -> 0 | R156: Total bleed (m3) | S156: =SUM(S144:S155)/1000 -> 0 | BE156: May | BF156: 21 | BG156: 17 | BH156: 1 | BI156: TRUE | BJ156: FALSE | BK156: 0 | BL156: =IF(SUM(BL$140:BL155,BK156)>$BN$4,0,BK156) -> 0 | BM156: 0 | BN156: 0 | BO156: 0 | BP156: 0 | BQ156: 0 | BR156: 0 | BS156: 0 | BT156: 0 | BU156: 0 | BV156: 0 | BW156: 0 | BX156: 0 | BY156: 0 | BZ156: 0 | CA156: 0 | CB156: 0 | CC156: 0 | CD156: 0 | CE156: 0 | CF156: 0 | CG156: 0 | CH156: 0 | CI156: 0 | CJ156: 0 | CK156: 0 | CL156: 0 | CM156: 0 | CN156: 0 | CO156: 0 | CP156: 0 | CQ156: 0 | CR156: 0 | CS156: 0 | CT156: 0 | CU156: 0 | CV156: 0 | CW156: 0 | CX156: 0 | CY156: 0 | CZ156: 0 | DA156: 0 | DB156: 0 | DC156: 0 | DD156: 0 | DE156: 0 | DF156: 0
R157: Total annual (m3) | T157: =SUM(T144:T155) -> 0 | X157: Total annual (m3) | Z157: =SUM(Z144:Z155) -> 0 | BE157: May | BF157: 21 | BG157: 18 | BH157: 2 | BI157: TRUE | BJ157: FALSE | BK157: 0 | BL157: =IF(SUM(BL$140:BL156,BK157)>$BN$4,0,BK157) -> 0 | BM157: 0 | BN157: 0 | BO157: 0 | BP157: 0 | BQ157: 0 | BR157: 0 | BS157: 0 | BT157: 0 | BU157: 0 | BV157: 0 | BW157: 0 | BX157: 0 | BY157: 0 | BZ157: 0 | CA157: 0 | CB157: 0 | CC157: 0 | CD157: 0 | CE157: 0 | CF157: 0 | CG157: 0 | CH157: 0 | CI157: 0 | CJ157: 0 | CK157: 0 | CL157: 0 | CM157: 0 | CN157: 0 | CO157: 0 | CP157: 0 | CQ157: 0 | CR157: 0 | CS157: 0 | CT157: 0 | CU157: 0 | CV157: 0 | CW157: 0 | CX157: 0 | CY157: 0 | CZ157: 0 | DA157: 0 | DB157: 0 | DC157: 0 | DD157: 0 | DE157: 0 | DF157: 0
B158: Does the building have any non-cooling tower water based heat rejection systems? | F158: None | BE158: May | BF158: 21 | BG158: 19 | BH158: 3 | BI158: TRUE | BJ158: FALSE | BK158: 0 | BL158: =IF(SUM(BL$140:BL157,BK158)>$BN$4,0,BK158) -> 0 | BM158: 0 | BN158: 0 | BO158: 0 | BP158: 0 | BQ158: 0 | BR158: 0 | BS158: 0 | BT158: 0 | BU158: 0 | BV158: 0 | BW158: 0 | BX158: 0 | BY158: 0 | BZ158: 0 | CA158: 0 | CB158: 0 | CC158: 0 | CD158: 0 | CE158: 0 | CF158: 0 | CG158: 0 | CH158: 0 | CI158: 0 | CJ158: 0 | CK158: 0 | CL158: 0 | CM158: 0 | CN158: 0 | CO158: 0 | CP158: 0 | CQ158: 0 | CR158: 0 | CS158: 0 | CT158: 0 | CU158: 0 | CV158: 0 | CW158: 0 | CX158: 0 | CY158: 0 | CZ158: 0 | DA158: 0 | DB158: 0 | DC158: 0 | DD158: 0 | DE158: 0 | DF158: 0
BE159: May | BF159: 21 | BG159: 20 | BH159: 4 | BI159: TRUE | BJ159: FALSE | BK159: 0 | BL159: =IF(SUM(BL$140:BL158,BK159)>$BN$4,0,BK159) -> 0 | BM159: 0 | BN159: 0 | BO159: 0 | BP159: 0 | BQ159: 0 | BR159: 0 | BS159: 0 | BT159: 0 | BU159: 0 | BV159: 0 | BW159: 0 | BX159: 0 | BY159: 0 | BZ159: 0 | CA159: 0 | CB159: 0 | CC159: 0 | CD159: 0 | CE159: 0 | CF159: 0 | CG159: 0 | CH159: 0 | CI159: 0 | CJ159: 0 | CK159: 0 | CL159: 0 | CM159: 0 | CN159: 0 | CO159: 0 | CP159: 0 | CQ159: 0 | CR159: 0 | CS159: 0 | CT159: 0 | CU159: 0 | CV159: 0 | CW159: 0 | CX159: 0 | CY159: 0 | CZ159: 0 | DA159: 0 | DB159: 0 | DC159: 0 | DD159: 0 | DE159: 0 | DF159: 0
C160: Non Cooling tower heat rejection water demand (m3/month) | BE160: May | BF160: 21 | BG160: 21 | BH160: 5 | BI160: TRUE | BJ160: FALSE | BK160: 0 | BL160: =IF(SUM(BL$140:BL159,BK160)>$BN$4,0,BK160) -> 0 | BM160: 0 | BN160: 0 | BO160: 0 | BP160: 0 | BQ160: 0 | BR160: 0 | BS160: 0 | BT160: 0 | BU160: 0 | BV160: 0 | BW160: 0 | BX160: 0 | BY160: 0 | BZ160: 0 | CA160: 0 | CB160: 0 | CC160: 0 | CD160: 0 | CE160: 0 | CF160: 0 | CG160: 0 | CH160: 0 | CI160: 0 | CJ160: 0 | CK160: 0 | CL160: 0 | CM160: 0 | CN160: 0 | CO160: 0 | CP160: 0 | CQ160: 0 | CR160: 0 | CS160: 0 | CT160: 0 | CU160: 0 | CV160: 0 | CW160: 0 | CX160: 0 | CY160: 0 | CZ160: 0 | DA160: 0 | DB160: 0 | DC160: 0 | DD160: 0 | DE160: 0 | DF160: 0
BE161: May | BF161: 21 | BG161: 22 | BH161: 6 | BI161: FALSE | BJ161: FALSE | BK161: 0 | BL161: =IF(SUM(BL$140:BL160,BK161)>$BN$4,0,BK161) -> 0 | BM161: 0 | BN161: 0 | BO161: 0 | BP161: 0 | BQ161: 0 | BR161: 0 | BS161: 0 | BT161: 0 | BU161: 0 | BV161: 0 | BW161: 0 | BX161: 0 | BY161: 0 | BZ161: 0 | CA161: 0 | CB161: 0 | CC161: 0 | CD161: 0 | CE161: 0 | CF161: 0 | CG161: 0 | CH161: 0 | CI161: 0 | CJ161: 0 | CK161: 0 | CL161: 0 | CM161: 0 | CN161: 0 | CO161: 0 | CP161: 0 | CQ161: 0 | CR161: 0 | CS161: 0 | CT161: 0 | CU161: 0 | CV161: 0 | CW161: 0 | CX161: 0 | CY161: 0 | CZ161: 0 | DA161: 0 | DB161: 0 | DC161: 0 | DD161: 0 | DE161: 0 | DF161: 0
B162: January | BE162: May | BF162: 21 | BG162: 23 | BH162: 7 | BI162: FALSE | BJ162: FALSE | BK162: 0 | BL162: =IF(SUM(BL$140:BL161,BK162)>$BN$4,0,BK162) -> 0 | BM162: 0 | BN162: 0 | BO162: 0 | BP162: 0 | BQ162: 0 | BR162: 0 | BS162: 0 | BT162: 0 | BU162: 0 | BV162: 0 | BW162: 0 | BX162: 0 | BY162: 0 | BZ162: 0 | CA162: 0 | CB162: 0 | CC162: 0 | CD162: 0 | CE162: 0 | CF162: 0 | CG162: 0 | CH162: 0 | CI162: 0 | CJ162: 0 | CK162: 0 | CL162: 0 | CM162: 0 | CN162: 0 | CO162: 0 | CP162: 0 | CQ162: 0 | CR162: 0 | CS162: 0 | CT162: 0 | CU162: 0 | CV162: 0 | CW162: 0 | CX162: 0 | CY162: 0 | CZ162: 0 | DA162: 0 | DB162: 0 | DC162: 0 | DD162: 0 | DE162: 0 | DF162: 0
B163: February | BE163: May | BF163: 21 | BG163: 24 | BH163: 1 | BI163: TRUE | BJ163: FALSE | BK163: 0 | BL163: =IF(SUM(BL$140:BL162,BK163)>$BN$4,0,BK163) -> 0 | BM163: 0 | BN163: 0 | BO163: 0 | BP163: 0 | BQ163: 0 | BR163: 0 | BS163: 0 | BT163: 0 | BU163: 0 | BV163: 0 | BW163: 0 | BX163: 0 | BY163: 0 | BZ163: 0 | CA163: 0 | CB163: 0 | CC163: 0 | CD163: 0 | CE163: 0 | CF163: 0 | CG163: 0 | CH163: 0 | CI163: 0 | CJ163: 0 | CK163: 0 | CL163: 0 | CM163: 0 | CN163: 0 | CO163: 0 | CP163: 0 | CQ163: 0 | CR163: 0 | CS163: 0 | CT163: 0 | CU163: 0 | CV163: 0 | CW163: 0 | CX163: 0 | CY163: 0 | CZ163: 0 | DA163: 0 | DB163: 0 | DC163: 0 | DD163: 0 | DE163: 0 | DF163: 0
B164: March | BE164: May | BF164: 21 | BG164: 25 | BH164: 2 | BI164: TRUE | BJ164: FALSE | BK164: 0 | BL164: =IF(SUM(BL$140:BL163,BK164)>$BN$4,0,BK164) -> 0 | BM164: 0 | BN164: 0 | BO164: 0 | BP164: 0 | BQ164: 0 | BR164: 0 | BS164: 0 | BT164: 0 | BU164: 0 | BV164: 0 | BW164: 0 | BX164: 0 | BY164: 0 | BZ164: 0 | CA164: 0 | CB164: 0 | CC164: 0 | CD164: 0 | CE164: 0 | CF164: 0 | CG164: 0 | CH164: 0 | CI164: 0 | CJ164: 0 | CK164: 0 | CL164: 0 | CM164: 0 | CN164: 0 | CO164: 0 | CP164: 0 | CQ164: 0 | CR164: 0 | CS164: 0 | CT164: 0 | CU164: 0 | CV164: 0 | CW164: 0 | CX164: 0 | CY164: 0 | CZ164: 0 | DA164: 0 | DB164: 0 | DC164: 0 | DD164: 0 | DE164: 0 | DF164: 0
B165: April | BE165: May | BF165: 21 | BG165: 26 | BH165: 3 | BI165: TRUE | BJ165: FALSE | BK165: 0 | BL165: =IF(SUM(BL$140:BL164,BK165)>$BN$4,0,BK165) -> 0 | BM165: 0 | BN165: 0 | BO165: 0 | BP165: 0 | BQ165: 0 | BR165: 0 | BS165: 0 | BT165: 0 | BU165: 0 | BV165: 0 | BW165: 0 | BX165: 0 | BY165: 0 | BZ165: 0 | CA165: 0 | CB165: 0 | CC165: 0 | CD165: 0 | CE165: 0 | CF165: 0 | CG165: 0 | CH165: 0 | CI165: 0 | CJ165: 0 | CK165: 0 | CL165: 0 | CM165: 0 | CN165: 0 | CO165: 0 | CP165: 0 | CQ165: 0 | CR165: 0 | CS165: 0 | CT165: 0 | CU165: 0 | CV165: 0 | CW165: 0 | CX165: 0 | CY165: 0 | CZ165: 0 | DA165: 0 | DB165: 0 | DC165: 0 | DD165: 0 | DE165: 0 | DF165: 0
B166: May | BE166: May | BF166: 21 | BG166: 27 | BH166: 4 | BI166: TRUE | BJ166: FALSE | BK166: 0 | BL166: =IF(SUM(BL$140:BL165,BK166)>$BN$4,0,BK166) -> 0 | BM166: 0 | BN166: 0 | BO166: 0 | BP166: 0 | BQ166: 0 | BR166: 0 | BS166: 0 | BT166: 0 | BU166: 0 | BV166: 0 | BW166: 0 | BX166: 0 | BY166: 0 | BZ166: 0 | CA166: 0 | CB166: 0 | CC166: 0 | CD166: 0 | CE166: 0 | CF166: 0 | CG166: 0 | CH166: 0 | CI166: 0 | CJ166: 0 | CK166: 0 | CL166: 0 | CM166: 0 | CN166: 0 | CO166: 0 | CP166: 0 | CQ166: 0 | CR166: 0 | CS166: 0 | CT166: 0 | CU166: 0 | CV166: 0 | CW166: 0 | CX166: 0 | CY166: 0 | CZ166: 0 | DA166: 0 | DB166: 0 | DC166: 0 | DD166: 0 | DE166: 0 | DF166: 0
B167: June | BE167: May | BF167: 21 | BG167: 28 | BH167: 5 | BI167: TRUE | BJ167: FALSE | BK167: 0 | BL167: =IF(SUM(BL$140:BL166,BK167)>$BN$4,0,BK167) -> 0 | BM167: 0 | BN167: 0 | BO167: 0 | BP167: 0 | BQ167: 0 | BR167: 0 | BS167: 0 | BT167: 0 | BU167: 0 | BV167: 0 | BW167: 0 | BX167: 0 | BY167: 0 | BZ167: 0 | CA167: 0 | CB167: 0 | CC167: 0 | CD167: 0 | CE167: 0 | CF167: 0 | CG167: 0 | CH167: 0 | CI167: 0 | CJ167: 0 | CK167: 0 | CL167: 0 | CM167: 0 | CN167: 0 | CO167: 0 | CP167: 0 | CQ167: 0 | CR167: 0 | CS167: 0 | CT167: 0 | CU167: 0 | CV167: 0 | CW167: 0 | CX167: 0 | CY167: 0 | CZ167: 0 | DA167: 0 | DB167: 0 | DC167: 0 | DD167: 0 | DE167: 0 | DF167: 0
B168: July | BE168: May | BF168: 21 | BG168: 29 | BH168: 6 | BI168: FALSE | BJ168: FALSE | BK168: 0 | BL168: =IF(SUM(BL$140:BL167,BK168)>$BN$4,0,BK168) -> 0 | BM168: 0 | BN168: 0 | BO168: 0 | BP168: 0 | BQ168: 0 | BR168: 0 | BS168: 0 | BT168: 0 | BU168: 0 | BV168: 0 | BW168: 0 | BX168: 0 | BY168: 0 | BZ168: 0 | CA168: 0 | CB168: 0 | CC168: 0 | CD168: 0 | CE168: 0 | CF168: 0 | CG168: 0 | CH168: 0 | CI168: 0 | CJ168: 0 | CK168: 0 | CL168: 0 | CM168: 0 | CN168: 0 | CO168: 0 | CP168: 0 | CQ168: 0 | CR168: 0 | CS168: 0 | CT168: 0 | CU168: 0 | CV168: 0 | CW168: 0 | CX168: 0 | CY168: 0 | CZ168: 0 | DA168: 0 | DB168: 0 | DC168: 0 | DD168: 0 | DE168: 0 | DF168: 0
B169: August | BE169: May | BF169: 21 | BG169: 30 | BH169: 7 | BI169: FALSE | BJ169: FALSE | BK169: 0 | BL169: =IF(SUM(BL$140:BL168,BK169)>$BN$4,0,BK169) -> 0 | BM169: 0 | BN169: 0 | BO169: 0 | BP169: 0 | BQ169: 0 | BR169: 0 | BS169: 0 | BT169: 0 | BU169: 0 | BV169: 0 | BW169: 0 | BX169: 0 | BY169: 0 | BZ169: 0 | CA169: 0 | CB169: 0 | CC169: 0 | CD169: 0 | CE169: 0 | CF169: 0 | CG169: 0 | CH169: 0 | CI169: 0 | CJ169: 0 | CK169: 0 | CL169: 0 | CM169: 0 | CN169: 0 | CO169: 0 | CP169: 0 | CQ169: 0 | CR169: 0 | CS169: 0 | CT169: 0 | CU169: 0 | CV169: 0 | CW169: 0 | CX169: 0 | CY169: 0 | CZ169: 0 | DA169: 0 | DB169: 0 | DC169: 0 | DD169: 0 | DE169: 0 | DF169: 0
B170: September | BE170: May | BF170: 21 | BG170: 31 | BH170: 1 | BI170: TRUE | BJ170: FALSE | BK170: 0 | BL170: =$BN$4-SUM(BL140:BL169) -> 5.5 | BM170: 0 | BN170: 0 | BO170: 0 | BP170: 0 | BQ170: 0 | BR170: 0 | BS170: 0 | BT170: 0 | BU170: 0 | BV170: 0 | BW170: 0 | BX170: 0 | BY170: 0 | BZ170: 0 | CA170: 0 | CB170: 0 | CC170: 0 | CD170: 0 | CE170: 0 | CF170: 0 | CG170: 0 | CH170: 0 | CI170: 0 | CJ170: 0 | CK170: 0 | CL170: 0 | CM170: 0 | CN170: 0 | CO170: 0 | CP170: 0 | CQ170: 0 | CR170: 0 | CS170: 0 | CT170: 0 | CU170: 0 | CV170: 0 | CW170: 0 | CX170: 0 | CY170: 0 | CZ170: 0 | DA170: 0 | DB170: 0 | DC170: 0 | DD170: 0 | DE170: 0 | DF170: 0
B171: October | BE171: Jun | BF171: 22 | BG171: 1 | BH171: 2 | BI171: TRUE | BJ171: =MOD(BG171,$BO$7)=0 -> FALSE | BK171: =IF(BJ171,BO$8,0) -> 0 | BL171: =BK171 -> 0 | BM171: 0 | BN171: 0 | BO171: 0 | BP171: =$Q$339/$BF$171*BR$16*$BI171 -> 0 | BQ171: =AQ$374/$BF171*$BI171 -> 0 | BR171: 0 | BS171: =$R$339/$BF171*BU$16*$BI171 -> 0 | BT171: =AR$374/$BF171*$BI171 -> 0 | BU171: 0 | BV171: =$S$339/$BF171*BX$16*$BI171 -> 0 | BW171: =AS$374/$BF171*$BI171 -> 0 | BX171: 0 | BY171: =$T$339/$BF171*CA$16*$BI171 -> 0 | BZ171: =AT$374/$BF171*$BI171 -> 0 | CA171: 0 | CB171: =$W$339/BF171*BI171*$C$419 -> 0 | CC171: =AU$374/$BF171*$BI171 -> 0 | CD171: 0 | CE171: =$X$339/BF171*BI171*$C$420 -> 0 | CF171: =AV$374/$BF171*$BI171 -> 0 | CG171: 0 | CH171: =$Y$339/BF171*BI171*$C$421 -> 0 | CI171: =AW$374/$BF171*$BI171 -> 0 | CJ171: 0 | CK171: =$Z$339/BF171*BI171*$CM$16 -> 0 | CL171: =AX$374/$BF171*$BI171 -> 0 | CM171: 0 | CN171: =$AA$339/BF171*BI171*$CP$16 -> 0 | CO171: =$AY$374/$BF171*$BI171 -> 0 | CP171: 0 | CQ171: =$AB$339/BF171*BI171*$CS$16 -> 0 | CR171: =AZ$374/$BF171*$BI171 -> 0 | CS171: 0 | CT171: =$AC$339/BF171*BI171*$CV$16 -> 0 | CU171: =BA$374/$BF171*$BI171 -> 0 | CV171: 0 | CW171: =$AD$339/BF171*BI171*$CY$16 -> 0 | CX171: =BB$374/$BF171*$BI171 -> 0 | CY171: 0 | CZ171: 0 | DA171: 0 | DB171: 0 | DC171: 0 | DD171: 0 | DE171: 0 | DF171: 0
B172: November | BE172: Jun | BF172: 22 | BG172: 2 | BH172: 3 | BI172: TRUE | BJ172: FALSE | BK172: 0 | BL172: =IF(SUM(BL$171:BL171,BK172)>$BO$4,0,BK172) -> 0 | BM172: 0 | BN172: 0 | BO172: 0 | BP172: 0 | BQ172: 0 | BR172: 0 | BS172: 0 | BT172: 0 | BU172: 0 | BV172: 0 | BW172: 0 | BX172: 0 | BY172: 0 | BZ172: 0 | CA172: 0 | CB172: 0 | CC172: 0 | CD172: 0 | CE172: 0 | CF172: 0 | CG172: 0 | CH172: 0 | CI172: 0 | CJ172: 0 | CK172: 0 | CL172: 0 | CM172: 0 | CN172: 0 | CO172: 0 | CP172: 0 | CQ172: 0 | CR172: 0 | CS172: 0 | CT172: 0 | CU172: 0 | CV172: 0 | CW172: 0 | CX172: 0 | CY172: 0 | CZ172: 0 | DA172: 0 | DB172: 0 | DC172: 0 | DD172: 0 | DE172: 0 | DF172: 0
B173: December | BE173: Jun | BF173: 22 | BG173: 3 | BH173: 4 | BI173: TRUE | BJ173: FALSE | BK173: 0 | BL173: =IF(SUM(BL$171:BL172,BK173)>$BO$4,0,BK173) -> 0 | BM173: 0 | BN173: 0 | BO173: 0 | BP173: 0 | BQ173: 0 | BR173: 0 | BS173: 0 | BT173: 0 | BU173: 0 | BV173: 0 | BW173: 0 | BX173: 0 | BY173: 0 | BZ173: 0 | CA173: 0 | CB173: 0 | CC173: 0 | CD173: 0 | CE173: 0 | CF173: 0 | CG173: 0 | CH173: 0 | CI173: 0 | CJ173: 0 | CK173: 0 | CL173: 0 | CM173: 0 | CN173: 0 | CO173: 0 | CP173: 0 | CQ173: 0 | CR173: 0 | CS173: 0 | CT173: 0 | CU173: 0 | CV173: 0 | CW173: 0 | CX173: 0 | CY173: 0 | CZ173: 0 | DA173: 0 | DB173: 0 | DC173: 0 | DD173: 0 | DE173: 0 | DF173: 0
C174: =SUM(C162:C173)*O138 -> 0 | BE174: Jun | BF174: 22 | BG174: 4 | BH174: 5 | BI174: TRUE | BJ174: FALSE | BK174: 0 | BL174: =IF(SUM(BL$171:BL173,BK174)>$BO$4,0,BK174) -> 0 | BM174: 0 | BN174: 0 | BO174: 0 | BP174: 0 | BQ174: 0 | BR174: 0 | BS174: 0 | BT174: 0 | BU174: 0 | BV174: 0 | BW174: 0 | BX174: 0 | BY174: 0 | BZ174: 0 | CA174: 0 | CB174: 0 | CC174: 0 | CD174: 0 | CE174: 0 | CF174: 0 | CG174: 0 | CH174: 0 | CI174: 0 | CJ174: 0 | CK174: 0 | CL174: 0 | CM174: 0 | CN174: 0 | CO174: 0 | CP174: 0 | CQ174: 0 | CR174: 0 | CS174: 0 | CT174: 0 | CU174: 0 | CV174: 0 | CW174: 0 | CX174: 0 | CY174: 0 | CZ174: 0 | DA174: 0 | DB174: 0 | DC174: 0 | DD174: 0 | DE174: 0 | DF174: 0
BE175: Jun | BF175: 22 | BG175: 5 | BH175: 6 | BI175: FALSE | BJ175: FALSE | BK175: 0 | BL175: =IF(SUM(BL$171:BL174,BK175)>$BO$4,0,BK175) -> 0 | BM175: 0 | BN175: 0 | BO175: 0 | BP175: 0 | BQ175: 0 | BR175: 0 | BS175: 0 | BT175: 0 | BU175: 0 | BV175: 0 | BW175: 0 | BX175: 0 | BY175: 0 | BZ175: 0 | CA175: 0 | CB175: 0 | CC175: 0 | CD175: 0 | CE175: 0 | CF175: 0 | CG175: 0 | CH175: 0 | CI175: 0 | CJ175: 0 | CK175: 0 | CL175: 0 | CM175: 0 | CN175: 0 | CO175: 0 | CP175: 0 | CQ175: 0 | CR175: 0 | CS175: 0 | CT175: 0 | CU175: 0 | CV175: 0 | CW175: 0 | CX175: 0 | CY175: 0 | CZ175: 0 | DA175: 0 | DB175: 0 | DC175: 0 | DD175: 0 | DE175: 0 | DF175: 0
B176: Summary of Heat rejection water demand | BE176: Jun | BF176: 22 | BG176: 6 | BH176: 7 | BI176: FALSE | BJ176: FALSE | BK176: 0 | BL176: =IF(SUM(BL$171:BL175,BK176)>$BO$4,0,BK176) -> 0 | BM176: 0 | BN176: 0 | BO176: 0 | BP176: 0 | BQ176: 0 | BR176: 0 | BS176: 0 | BT176: 0 | BU176: 0 | BV176: 0 | BW176: 0 | BX176: 0 | BY176: 0 | BZ176: 0 | CA176: 0 | CB176: 0 | CC176: 0 | CD176: 0 | CE176: 0 | CF176: 0 | CG176: 0 | CH176: 0 | CI176: 0 | CJ176: 0 | CK176: 0 | CL176: 0 | CM176: 0 | CN176: 0 | CO176: 0 | CP176: 0 | CQ176: 0 | CR176: 0 | CS176: 0 | CT176: 0 | CU176: 0 | CV176: 0 | CW176: 0 | CX176: 0 | CY176: 0 | CZ176: 0 | DA176: 0 | DB176: 0 | DC176: 0 | DD176: 0 | DE176: 0 | DF176: 0
BE177: Jun | BF177: 22 | BG177: 7 | BH177: 1 | BI177: TRUE | BJ177: FALSE | BK177: 0 | BL177: =IF(SUM(BL$171:BL176,BK177)>$BO$4,0,BK177) -> 0 | BM177: 0 | BN177: 0 | BO177: 0 | BP177: 0 | BQ177: 0 | BR177: 0 | BS177: 0 | BT177: 0 | BU177: 0 | BV177: 0 | BW177: 0 | BX177: 0 | BY177: 0 | BZ177: 0 | CA177: 0 | CB177: 0 | CC177: 0 | CD177: 0 | CE177: 0 | CF177: 0 | CG177: 0 | CH177: 0 | CI177: 0 | CJ177: 0 | CK177: 0 | CL177: 0 | CM177: 0 | CN177: 0 | CO177: 0 | CP177: 0 | CQ177: 0 | CR177: 0 | CS177: 0 | CT177: 0 | CU177: 0 | CV177: 0 | CW177: 0 | CX177: 0 | CY177: 0 | CZ177: 0 | DA177: 0 | DB177: 0 | DC177: 0 | DD177: 0 | DE177: 0 | DF177: 0
C178: =C142 -> Actual Building | D178: =I142 -> Notional Building | BE178: Jun | BF178: 22 | BG178: 8 | BH178: 2 | BI178: TRUE | BJ178: FALSE | BK178: 0 | BL178: =IF(SUM(BL$171:BL177,BK178)>$BO$4,0,BK178) -> 0 | BM178: 0 | BN178: 0 | BO178: 0 | BP178: 0 | BQ178: 0 | BR178: 0 | BS178: 0 | BT178: 0 | BU178: 0 | BV178: 0 | BW178: 0 | BX178: 0 | BY178: 0 | BZ178: 0 | CA178: 0 | CB178: 0 | CC178: 0 | CD178: 0 | CE178: 0 | CF178: 0 | CG178: 0 | CH178: 0 | CI178: 0 | CJ178: 0 | CK178: 0 | CL178: 0 | CM178: 0 | CN178: 0 | CO178: 0 | CP178: 0 | CQ178: 0 | CR178: 0 | CS178: 0 | CT178: 0 | CU178: 0 | CV178: 0 | CW178: 0 | CX178: 0 | CY178: 0 | CZ178: 0 | DA178: 0 | DB178: 0 | DC178: 0 | DD178: 0 | DE178: 0 | DF178: 0
C179: (m3) | D179: (m3) | BE179: Jun | BF179: 22 | BG179: 9 | BH179: 3 | BI179: TRUE | BJ179: FALSE | BK179: 0 | BL179: =IF(SUM(BL$171:BL178,BK179)>$BO$4,0,BK179) -> 0 | BM179: 0 | BN179: 0 | BO179: 0 | BP179: 0 | BQ179: 0 | BR179: 0 | BS179: 0 | BT179: 0 | BU179: 0 | BV179: 0 | BW179: 0 | BX179: 0 | BY179: 0 | BZ179: 0 | CA179: 0 | CB179: 0 | CC179: 0 | CD179: 0 | CE179: 0 | CF179: 0 | CG179: 0 | CH179: 0 | CI179: 0 | CJ179: 0 | CK179: 0 | CL179: 0 | CM179: 0 | CN179: 0 | CO179: 0 | CP179: 0 | CQ179: 0 | CR179: 0 | CS179: 0 | CT179: 0 | CU179: 0 | CV179: 0 | CW179: 0 | CX179: 0 | CY179: 0 | CZ179: 0 | DA179: 0 | DB179: 0 | DC179: 0 | DD179: 0 | DE179: 0 | DF179: 0
B180: January | C180: =(D144+C162*$O$138) -> 0 | D180: =J144 -> 0 | BE180: Jun | BF180: 22 | BG180: 10 | BH180: 4 | BI180: TRUE | BJ180: FALSE | BK180: 0 | BL180: =IF(SUM(BL$171:BL179,BK180)>$BO$4,0,BK180) -> 0 | BM180: 0 | BN180: 0 | BO180: 0 | BP180: 0 | BQ180: 0 | BR180: 0 | BS180: 0 | BT180: 0 | BU180: 0 | BV180: 0 | BW180: 0 | BX180: 0 | BY180: 0 | BZ180: 0 | CA180: 0 | CB180: 0 | CC180: 0 | CD180: 0 | CE180: 0 | CF180: 0 | CG180: 0 | CH180: 0 | CI180: 0 | CJ180: 0 | CK180: 0 | CL180: 0 | CM180: 0 | CN180: 0 | CO180: 0 | CP180: 0 | CQ180: 0 | CR180: 0 | CS180: 0 | CT180: 0 | CU180: 0 | CV180: 0 | CW180: 0 | CX180: 0 | CY180: 0 | CZ180: 0 | DA180: 0 | DB180: 0 | DC180: 0 | DD180: 0 | DE180: 0 | DF180: 0
B181: February | C181: 0 | D181: 0 | BE181: Jun | BF181: 22 | BG181: 11 | BH181: 5 | BI181: TRUE | BJ181: FALSE | BK181: 0 | BL181: =IF(SUM(BL$171:BL180,BK181)>$BO$4,0,BK181) -> 0 | BM181: 0 | BN181: 0 | BO181: 0 | BP181: 0 | BQ181: 0 | BR181: 0 | BS181: 0 | BT181: 0 | BU181: 0 | BV181: 0 | BW181: 0 | BX181: 0 | BY181: 0 | BZ181: 0 | CA181: 0 | CB181: 0 | CC181: 0 | CD181: 0 | CE181: 0 | CF181: 0 | CG181: 0 | CH181: 0 | CI181: 0 | CJ181: 0 | CK181: 0 | CL181: 0 | CM181: 0 | CN181: 0 | CO181: 0 | CP181: 0 | CQ181: 0 | CR181: 0 | CS181: 0 | CT181: 0 | CU181: 0 | CV181: 0 | CW181: 0 | CX181: 0 | CY181: 0 | CZ181: 0 | DA181: 0 | DB181: 0 | DC181: 0 | DD181: 0 | DE181: 0 | DF181: 0
B182: March | C182: 0 | D182: 0 | BE182: Jun | BF182: 22 | BG182: 12 | BH182: 6 | BI182: FALSE | BJ182: FALSE | BK182: 0 | BL182: =IF(SUM(BL$171:BL181,BK182)>$BO$4,0,BK182) -> 0 | BM182: 0 | BN182: 0 | BO182: 0 | BP182: 0 | BQ182: 0 | BR182: 0 | BS182: 0 | BT182: 0 | BU182: 0 | BV182: 0 | BW182: 0 | BX182: 0 | BY182: 0 | BZ182: 0 | CA182: 0 | CB182: 0 | CC182: 0 | CD182: 0 | CE182: 0 | CF182: 0 | CG182: 0 | CH182: 0 | CI182: 0 | CJ182: 0 | CK182: 0 | CL182: 0 | CM182: 0 | CN182: 0 | CO182: 0 | CP182: 0 | CQ182: 0 | CR182: 0 | CS182: 0 | CT182: 0 | CU182: 0 | CV182: 0 | CW182: 0 | CX182: 0 | CY182: 0 | CZ182: 0 | DA182: 0 | DB182: 0 | DC182: 0 | DD182: 0 | DE182: 0 | DF182: 0
B183: April | C183: 0 | D183: 0 | BE183: Jun | BF183: 22 | BG183: 13 | BH183: 7 | BI183: FALSE | BJ183: FALSE | BK183: 0 | BL183: =IF(SUM(BL$171:BL182,BK183)>$BO$4,0,BK183) -> 0 | BM183: 0 | BN183: 0 | BO183: 0 | BP183: 0 | BQ183: 0 | BR183: 0 | BS183: 0 | BT183: 0 | BU183: 0 | BV183: 0 | BW183: 0 | BX183: 0 | BY183: 0 | BZ183: 0 | CA183: 0 | CB183: 0 | CC183: 0 | CD183: 0 | CE183: 0 | CF183: 0 | CG183: 0 | CH183: 0 | CI183: 0 | CJ183: 0 | CK183: 0 | CL183: 0 | CM183: 0 | CN183: 0 | CO183: 0 | CP183: 0 | CQ183: 0 | CR183: 0 | CS183: 0 | CT183: 0 | CU183: 0 | CV183: 0 | CW183: 0 | CX183: 0 | CY183: 0 | CZ183: 0 | DA183: 0 | DB183: 0 | DC183: 0 | DD183: 0 | DE183: 0 | DF183: 0
B184: May | C184: 0 | D184: 0 | BE184: Jun | BF184: 22 | BG184: 14 | BH184: 1 | BI184: TRUE | BJ184: FALSE | BK184: 0 | BL184: =IF(SUM(BL$171:BL183,BK184)>$BO$4,0,BK184) -> 0 | BM184: 0 | BN184: 0 | BO184: 0 | BP184: 0 | BQ184: 0 | BR184: 0 | BS184: 0 | BT184: 0 | BU184: 0 | BV184: 0 | BW184: 0 | BX184: 0 | BY184: 0 | BZ184: 0 | CA184: 0 | CB184: 0 | CC184: 0 | CD184: 0 | CE184: 0 | CF184: 0 | CG184: 0 | CH184: 0 | CI184: 0 | CJ184: 0 | CK184: 0 | CL184: 0 | CM184: 0 | CN184: 0 | CO184: 0 | CP184: 0 | CQ184: 0 | CR184: 0 | CS184: 0 | CT184: 0 | CU184: 0 | CV184: 0 | CW184: 0 | CX184: 0 | CY184: 0 | CZ184: 0 | DA184: 0 | DB184: 0 | DC184: 0 | DD184: 0 | DE184: 0 | DF184: 0
B185: June | C185: 0 | D185: 0 | BE185: Jun | BF185: 22 | BG185: 15 | BH185: 2 | BI185: TRUE | BJ185: TRUE | BK185: 4 | BL185: =IF(SUM(BL$171:BL184,BK185)>$BO$4,0,BK185) -> 4 | BM185: 0 | BN185: 0 | BO185: 0 | BP185: 0 | BQ185: 0 | BR185: 0 | BS185: 0 | BT185: 0 | BU185: 0 | BV185: 0 | BW185: 0 | BX185: 0 | BY185: 0 | BZ185: 0 | CA185: 0 | CB185: 0 | CC185: 0 | CD185: 0 | CE185: 0 | CF185: 0 | CG185: 0 | CH185: 0 | CI185: 0 | CJ185: 0 | CK185: 0 | CL185: 0 | CM185: 0 | CN185: 0 | CO185: 0 | CP185: 0 | CQ185: 0 | CR185: 0 | CS185: 0 | CT185: 0 | CU185: 0 | CV185: 0 | CW185: 0 | CX185: 0 | CY185: 0 | CZ185: 0 | DA185: 0 | DB185: 0 | DC185: 0 | DD185: 0 | DE185: 0 | DF185: 0
B186: July | C186: 0 | D186: 0 | BE186: Jun | BF186: 22 | BG186: 16 | BH186: 3 | BI186: TRUE | BJ186: FALSE | BK186: 0 | BL186: =IF(SUM(BL$171:BL185,BK186)>$BO$4,0,BK186) -> 0 | BM186: 0 | BN186: 0 | BO186: 0 | BP186: 0 | BQ186: 0 | BR186: 0 | BS186: 0 | BT186: 0 | BU186: 0 | BV186: 0 | BW186: 0 | BX186: 0 | BY186: 0 | BZ186: 0 | CA186: 0 | CB186: 0 | CC186: 0 | CD186: 0 | CE186: 0 | CF186: 0 | CG186: 0 | CH186: 0 | CI186: 0 | CJ186: 0 | CK186: 0 | CL186: 0 | CM186: 0 | CN186: 0 | CO186: 0 | CP186: 0 | CQ186: 0 | CR186: 0 | CS186: 0 | CT186: 0 | CU186: 0 | CV186: 0 | CW186: 0 | CX186: 0 | CY186: 0 | CZ186: 0 | DA186: 0 | DB186: 0 | DC186: 0 | DD186: 0 | DE186: 0 | DF186: 0
B187: August | C187: 0 | D187: 0 | BE187: Jun | BF187: 22 | BG187: 17 | BH187: 4 | BI187: TRUE | BJ187: FALSE | BK187: 0 | BL187: =IF(SUM(BL$171:BL186,BK187)>$BO$4,0,BK187) -> 0 | BM187: 0 | BN187: 0 | BO187: 0 | BP187: 0 | BQ187: 0 | BR187: 0 | BS187: 0 | BT187: 0 | BU187: 0 | BV187: 0 | BW187: 0 | BX187: 0 | BY187: 0 | BZ187: 0 | CA187: 0 | CB187: 0 | CC187: 0 | CD187: 0 | CE187: 0 | CF187: 0 | CG187: 0 | CH187: 0 | CI187: 0 | CJ187: 0 | CK187: 0 | CL187: 0 | CM187: 0 | CN187: 0 | CO187: 0 | CP187: 0 | CQ187: 0 | CR187: 0 | CS187: 0 | CT187: 0 | CU187: 0 | CV187: 0 | CW187: 0 | CX187: 0 | CY187: 0 | CZ187: 0 | DA187: 0 | DB187: 0 | DC187: 0 | DD187: 0 | DE187: 0 | DF187: 0
B188: September | C188: 0 | D188: 0 | BE188: Jun | BF188: 22 | BG188: 18 | BH188: 5 | BI188: TRUE | BJ188: FALSE | BK188: 0 | BL188: =IF(SUM(BL$171:BL187,BK188)>$BO$4,0,BK188) -> 0 | BM188: 0 | BN188: 0 | BO188: 0 | BP188: 0 | BQ188: 0 | BR188: 0 | BS188: 0 | BT188: 0 | BU188: 0 | BV188: 0 | BW188: 0 | BX188: 0 | BY188: 0 | BZ188: 0 | CA188: 0 | CB188: 0 | CC188: 0 | CD188: 0 | CE188: 0 | CF188: 0 | CG188: 0 | CH188: 0 | CI188: 0 | CJ188: 0 | CK188: 0 | CL188: 0 | CM188: 0 | CN188: 0 | CO188: 0 | CP188: 0 | CQ188: 0 | CR188: 0 | CS188: 0 | CT188: 0 | CU188: 0 | CV188: 0 | CW188: 0 | CX188: 0 | CY188: 0 | CZ188: 0 | DA188: 0 | DB188: 0 | DC188: 0 | DD188: 0 | DE188: 0 | DF188: 0
B189: October | C189: 0 | D189: 0 | BE189: Jun | BF189: 22 | BG189: 19 | BH189: 6 | BI189: FALSE | BJ189: FALSE | BK189: 0 | BL189: =IF(SUM(BL$171:BL188,BK189)>$BO$4,0,BK189) -> 0 | BM189: 0 | BN189: 0 | BO189: 0 | BP189: 0 | BQ189: 0 | BR189: 0 | BS189: 0 | BT189: 0 | BU189: 0 | BV189: 0 | BW189: 0 | BX189: 0 | BY189: 0 | BZ189: 0 | CA189: 0 | CB189: 0 | CC189: 0 | CD189: 0 | CE189: 0 | CF189: 0 | CG189: 0 | CH189: 0 | CI189: 0 | CJ189: 0 | CK189: 0 | CL189: 0 | CM189: 0 | CN189: 0 | CO189: 0 | CP189: 0 | CQ189: 0 | CR189: 0 | CS189: 0 | CT189: 0 | CU189: 0 | CV189: 0 | CW189: 0 | CX189: 0 | CY189: 0 | CZ189: 0 | DA189: 0 | DB189: 0 | DC189: 0 | DD189: 0 | DE189: 0 | DF189: 0
B190: November | C190: 0 | D190: 0 | BE190: Jun | BF190: 22 | BG190: 20 | BH190: 7 | BI190: FALSE | BJ190: FALSE | BK190: 0 | BL190: =IF(SUM(BL$171:BL189,BK190)>$BO$4,0,BK190) -> 0 | BM190: 0 | BN190: 0 | BO190: 0 | BP190: 0 | BQ190: 0 | BR190: 0 | BS190: 0 | BT190: 0 | BU190: 0 | BV190: 0 | BW190: 0 | BX190: 0 | BY190: 0 | BZ190: 0 | CA190: 0 | CB190: 0 | CC190: 0 | CD190: 0 | CE190: 0 | CF190: 0 | CG190: 0 | CH190: 0 | CI190: 0 | CJ190: 0 | CK190: 0 | CL190: 0 | CM190: 0 | CN190: 0 | CO190: 0 | CP190: 0 | CQ190: 0 | CR190: 0 | CS190: 0 | CT190: 0 | CU190: 0 | CV190: 0 | CW190: 0 | CX190: 0 | CY190: 0 | CZ190: 0 | DA190: 0 | DB190: 0 | DC190: 0 | DD190: 0 | DE190: 0 | DF190: 0
B191: December | C191: 0 | D191: 0 | BE191: Jun | BF191: 22 | BG191: 21 | BH191: 1 | BI191: TRUE | BJ191: FALSE | BK191: 0 | BL191: =IF(SUM(BL$171:BL190,BK191)>$BO$4,0,BK191) -> 0 | BM191: 0 | BN191: 0 | BO191: 0 | BP191: 0 | BQ191: 0 | BR191: 0 | BS191: 0 | BT191: 0 | BU191: 0 | BV191: 0 | BW191: 0 | BX191: 0 | BY191: 0 | BZ191: 0 | CA191: 0 | CB191: 0 | CC191: 0 | CD191: 0 | CE191: 0 | CF191: 0 | CG191: 0 | CH191: 0 | CI191: 0 | CJ191: 0 | CK191: 0 | CL191: 0 | CM191: 0 | CN191: 0 | CO191: 0 | CP191: 0 | CQ191: 0 | CR191: 0 | CS191: 0 | CT191: 0 | CU191: 0 | CV191: 0 | CW191: 0 | CX191: 0 | CY191: 0 | CZ191: 0 | DA191: 0 | DB191: 0 | DC191: 0 | DD191: 0 | DE191: 0 | DF191: 0
C192: =SUM(C180:C191) -> 0 | D192: =SUM(D180:D191) -> 0 | BE192: Jun | BF192: 22 | BG192: 22 | BH192: 2 | BI192: TRUE | BJ192: FALSE | BK192: 0 | BL192: =IF(SUM(BL$171:BL191,BK192)>$BO$4,0,BK192) -> 0 | BM192: 0 | BN192: 0 | BO192: 0 | BP192: 0 | BQ192: 0 | BR192: 0 | BS192: 0 | BT192: 0 | BU192: 0 | BV192: 0 | BW192: 0 | BX192: 0 | BY192: 0 | BZ192: 0 | CA192: 0 | CB192: 0 | CC192: 0 | CD192: 0 | CE192: 0 | CF192: 0 | CG192: 0 | CH192: 0 | CI192: 0 | CJ192: 0 | CK192: 0 | CL192: 0 | CM192: 0 | CN192: 0 | CO192: 0 | CP192: 0 | CQ192: 0 | CR192: 0 | CS192: 0 | CT192: 0 | CU192: 0 | CV192: 0 | CW192: 0 | CX192: 0 | CY192: 0 | CZ192: 0 | DA192: 0 | DB192: 0 | DC192: 0 | DD192: 0 | DE192: 0 | DF192: 0 | DL192: Consumption (mm/m2/day) (7 day week)
Q193: Actual building | U193: Controls | AI193: Notional building | BE193: Jun | BF193: 22 | BG193: 23 | BH193: 3 | BI193: TRUE | BJ193: FALSE | BK193: 0 | BL193: =IF(SUM(BL$171:BL192,BK193)>$BO$4,0,BK193) -> 0 | BM193: 0 | BN193: 0 | BO193: 0 | BP193: 0 | BQ193: 0 | BR193: 0 | BS193: 0 | BT193: 0 | BU193: 0 | BV193: 0 | BW193: 0 | BX193: 0 | BY193: 0 | BZ193: 0 | CA193: 0 | CB193: 0 | CC193: 0 | CD193: 0 | CE193: 0 | CF193: 0 | CG193: 0 | CH193: 0 | CI193: 0 | CJ193: 0 | CK193: 0 | CL193: 0 | CM193: 0 | CN193: 0 | CO193: 0 | CP193: 0 | CQ193: 0 | CR193: 0 | CS193: 0 | CT193: 0 | CU193: 0 | CV193: 0 | CW193: 0 | CX193: 0 | CY193: 0 | CZ193: 0 | DA193: 0 | DB193: 0 | DC193: 0 | DD193: 0 | DE193: 0 | DF193: 0 | DJ193: Irrigation requirement | DK193: Peak established demand
B194: Irrigation Water Demand | O194: Landscape area | P194: Area | Q194: Plant water demand (mm/m2/day) | R194: Microclimate factor | S194: Irrigation water demand (mm/m2/day) | T194: Irrigation application efficiency | U194: No controls | V194: Seasonal Programmable Timer | W194: Rainwater sensing | AI194: Irrigation (mm/m2/day) | AJ194: Microclimate factor | AK194: Density factor | AL194: Daily water demand (mm/m2/day) | AM194: Irrigation application efficiency | BE194: Jun | BF194: 22 | BG194: 24 | BH194: 4 | BI194: TRUE | BJ194: FALSE | BK194: 0 | BL194: =IF(SUM(BL$171:BL193,BK194)>$BO$4,0,BK194) -> 0 | BM194: 0 | BN194: 0 | BO194: 0 | BP194: 0 | BQ194: 0 | BR194: 0 | BS194: 0 | BT194: 0 | BU194: 0 | BV194: 0 | BW194: 0 | BX194: 0 | BY194: 0 | BZ194: 0 | CA194: 0 | CB194: 0 | CC194: 0 | CD194: 0 | CE194: 0 | CF194: 0 | CG194: 0 | CH194: 0 | CI194: 0 | CJ194: 0 | CK194: 0 | CL194: 0 | CM194: 0 | CN194: 0 | CO194: 0 | CP194: 0 | CQ194: 0 | CR194: 0 | CS194: 0 | CT194: 0 | CU194: 0 | CV194: 0 | CW194: 0 | CX194: 0 | CY194: 0 | CZ194: 0 | DA194: 0 | DB194: 0 | DC194: 0 | DD194: 0 | DE194: 0 | DF194: 0 | DJ194: <please select> | DL194: 0 | DN194: Average irrigation application efficiency
B195: STEP 2c - Please provide information regarding irrigation water consumption in the building. | O195: =B197 -> 0 | P195: 0 | Q195: =IFERROR(VLOOKUP(D197,$DJ$194:$DL$200,3,FALSE),0) -> 0 | R195: =IFERROR(VLOOKUP(H197,$DJ$203:$DK$206,2,FALSE),0) -> 0 | S195: =Q195*R195 -> 0 | T195: =IFERROR(VLOOKUP(F197,$DN$196:$DO$206,2,FALSE),1) -> 1 | U195: =$I197=U$194 -> FALSE | V195: FALSE | W195: FALSE | AI195: =$DL$199 -> 4.285714286 | AJ195: =$DO$214 -> 1 | AK195: =$DO$215 -> 1 | AL195: =AI195*AJ195*AK195 -> 4.285714286 | AM195: =$DO$216 -> 0.75 | BE195: Jun | BF195: 22 | BG195: 25 | BH195: 5 | BI195: TRUE | BJ195: FALSE | BK195: 0 | BL195: =IF(SUM(BL$171:BL194,BK195)>$BO$4,0,BK195) -> 0 | BM195: 0 | BN195: 0 | BO195: 0 | BP195: 0 | BQ195: 0 | BR195: 0 | BS195: 0 | BT195: 0 | BU195: 0 | BV195: 0 | BW195: 0 | BX195: 0 | BY195: 0 | BZ195: 0 | CA195: 0 | CB195: 0 | CC195: 0 | CD195: 0 | CE195: 0 | CF195: 0 | CG195: 0 | CH195: 0 | CI195: 0 | CJ195: 0 | CK195: 0 | CL195: 0 | CM195: 0 | CN195: 0 | CO195: 0 | CP195: 0 | CQ195: 0 | CR195: 0 | CS195: 0 | CT195: 0 | CU195: 0 | CV195: 0 | CW195: 0 | CX195: 0 | CY195: 0 | CZ195: 0 | DA195: 0 | DB195: 0 | DC195: 0 | DD195: 0 | DE195: 0 | DF195: 0 | DJ195: Xeriscaping | DK195: 0mm/m2/week | DL195: 0 | DN195: Rainfall | DO195: 0.6
B196: Landscape Area description | C196: Area (m2) | D196: Irrigation requirements | E196: Consumption per week | F196: Irrigation system | H196: Microclimate | I196: Irrigation System Controls | K196: Actual building irrigation demands (m3/year) | L196: Notional building irrigation demands (m3/year) | O196: 0 | P196: 0 | Q196: =IFERROR(VLOOKUP(D198,$DJ$194:$DL$200,3,FALSE),0) -> 0 | R196: =IFERROR(VLOOKUP(H198,$DJ$203:$DK$206,2,FALSE),0) -> 0 | S196: =Q196*R196 -> 0 | T196: =IFERROR(VLOOKUP(F198,$DN$196:$DO$206,2,FALSE),1) -> 1 | U196: FALSE | V196: FALSE | W196: FALSE | BE196: Jun | BF196: 22 | BG196: 26 | BH196: 6 | BI196: FALSE | BJ196: FALSE | BK196: 0 | BL196: =IF(SUM(BL$171:BL195,BK196)>$BO$4,0,BK196) -> 0 | BM196: 0 | BN196: 0 | BO196: 0 | BP196: 0 | BQ196: 0 | BR196: 0 | BS196: 0 | BT196: 0 | BU196: 0 | BV196: 0 | BW196: 0 | BX196: 0 | BY196: 0 | BZ196: 0 | CA196: 0 | CB196: 0 | CC196: 0 | CD196: 0 | CE196: 0 | CF196: 0 | CG196: 0 | CH196: 0 | CI196: 0 | CJ196: 0 | CK196: 0 | CL196: 0 | CM196: 0 | CN196: 0 | CO196: 0 | CP196: 0 | CQ196: 0 | CR196: 0 | CS196: 0 | CT196: 0 | CU196: 0 | CV196: 0 | CW196: 0 | CX196: 0 | CY196: 0 | CZ196: 0 | DA196: 0 | DB196: 0 | DC196: 0 | DD196: 0 | DE196: 0 | DF196: 0 | DJ196: Low | DK196: 7.5mm/m2/week | DL196: =7.5/7 -> 1.071428571 | DN196: <Please select> | DO196: 1
D197: <please select> | E197: =IFERROR(VLOOKUP(D197,$DJ$194:$DK$200,2,FALSE),"") ->  | F197: <Please select> | H197: <Please select> | K197: =IFERROR(U217,"") -> 0 | L197: =AI217 -> 0 | O197: 0 | P197: 0 | Q197: =IFERROR(VLOOKUP(D199,$DJ$194:$DL$200,3,FALSE),0) -> 0 | R197: =IFERROR(VLOOKUP(H199,$DJ$203:$DK$206,2,FALSE),0) -> 0 | S197: =Q197*R197 -> 0 | T197: =IFERROR(VLOOKUP(F199,$DN$196:$DO$206,2,FALSE),1) -> 1 | U197: FALSE | V197: FALSE | W197: FALSE | BE197: Jun | BF197: 22 | BG197: 27 | BH197: 7 | BI197: FALSE | BJ197: FALSE | BK197: 0 | BL197: =IF(SUM(BL$171:BL196,BK197)>$BO$4,0,BK197) -> 0 | BM197: 0 | BN197: 0 | BO197: 0 | BP197: 0 | BQ197: 0 | BR197: 0 | BS197: 0 | BT197: 0 | BU197: 0 | BV197: 0 | BW197: 0 | BX197: 0 | BY197: 0 | BZ197: 0 | CA197: 0 | CB197: 0 | CC197: 0 | CD197: 0 | CE197: 0 | CF197: 0 | CG197: 0 | CH197: 0 | CI197: 0 | CJ197: 0 | CK197: 0 | CL197: 0 | CM197: 0 | CN197: 0 | CO197: 0 | CP197: 0 | CQ197: 0 | CR197: 0 | CS197: 0 | CT197: 0 | CU197: 0 | CV197: 0 | CW197: 0 | CX197: 0 | CY197: 0 | CZ197: 0 | DA197: 0 | DB197: 0 | DC197: 0 | DD197: 0 | DE197: 0 | DF197: 0 | DJ197: Medium low | DK197: 12.5mm/m2/week | DL197: =12.5/7 -> 1.785714286 | DN197: Sprinklers - Day | DO197: 0.65
D198: <please select> | E198: =IFERROR(VLOOKUP(D198,$DJ$194:$DK$200,2,FALSE),"") ->  | F198: <Please select> | H198: <Please select> | K198: =IFERROR(X217,"") -> 0 | L198: =AJ217 -> 0 | O198: 0 | P198: 0 | Q198: =IFERROR(VLOOKUP(D200,$DJ$194:$DL$200,3,FALSE),0) -> 0 | R198: =IFERROR(VLOOKUP(H200,$DJ$203:$DK$206,2,FALSE),0) -> 0 | S198: =Q198*R198 -> 0 | T198: =IFERROR(VLOOKUP(F200,$DN$196:$DO$206,2,FALSE),1) -> 1 | U198: FALSE | V198: FALSE | W198: FALSE | BE198: Jun | BF198: 22 | BG198: 28 | BH198: 1 | BI198: TRUE | BJ198: FALSE | BK198: 0 | BL198: =IF(SUM(BL$171:BL197,BK198)>$BO$4,0,BK198) -> 0 | BM198: 0 | BN198: 0 | BO198: 0 | BP198: 0 | BQ198: 0 | BR198: 0 | BS198: 0 | BT198: 0 | BU198: 0 | BV198: 0 | BW198: 0 | BX198: 0 | BY198: 0 | BZ198: 0 | CA198: 0 | CB198: 0 | CC198: 0 | CD198: 0 | CE198: 0 | CF198: 0 | CG198: 0 | CH198: 0 | CI198: 0 | CJ198: 0 | CK198: 0 | CL198: 0 | CM198: 0 | CN198: 0 | CO198: 0 | CP198: 0 | CQ198: 0 | CR198: 0 | CS198: 0 | CT198: 0 | CU198: 0 | CV198: 0 | CW198: 0 | CX198: 0 | CY198: 0 | CZ198: 0 | DA198: 0 | DB198: 0 | DC198: 0 | DD198: 0 | DE198: 0 | DF198: 0 | DJ198: Medium | DK198: 20mm/m2/week | DL198: =20/7 -> 2.857142857 | DN198: Sprinklers - Night | DO198: 0.75
D199: <please select> | E199: =IFERROR(VLOOKUP(D199,$DJ$194:$DK$200,2,FALSE),"") ->  | F199: <Please select> | H199: <Please select> | K199: =IFERROR(AA217,"") -> 0 | L199: =AK217 -> 0 | O199: 0 | P199: 0 | Q199: =IFERROR(VLOOKUP(D201,$DJ$194:$DL$200,3,FALSE),0) -> 0 | R199: =IFERROR(VLOOKUP(H201,$DJ$203:$DK$206,2,FALSE),0) -> 0 | S199: =Q199*R199 -> 0 | T199: =IFERROR(VLOOKUP(F201,$DN$196:$DO$206,2,FALSE),1) -> 1 | U199: FALSE | V199: FALSE | W199: FALSE | BE199: Jun | BF199: 22 | BG199: 29 | BH199: 2 | BI199: TRUE | BJ199: FALSE | BK199: 0 | BL199: =IF(SUM(BL$171:BL198,BK199)>$BO$4,0,BK199) -> 0 | BM199: 0 | BN199: 0 | BO199: 0 | BP199: 0 | BQ199: 0 | BR199: 0 | BS199: 0 | BT199: 0 | BU199: 0 | BV199: 0 | BW199: 0 | BX199: 0 | BY199: 0 | BZ199: 0 | CA199: 0 | CB199: 0 | CC199: 0 | CD199: 0 | CE199: 0 | CF199: 0 | CG199: 0 | CH199: 0 | CI199: 0 | CJ199: 0 | CK199: 0 | CL199: 0 | CM199: 0 | CN199: 0 | CO199: 0 | CP199: 0 | CQ199: 0 | CR199: 0 | CS199: 0 | CT199: 0 | CU199: 0 | CV199: 0 | CW199: 0 | CX199: 0 | CY199: 0 | CZ199: 0 | DA199: 0 | DB199: 0 | DC199: 0 | DD199: 0 | DE199: 0 | DF199: 0 | DJ199: Medium high | DK199: 30mm/m2/week | DL199: =30/7 -> 4.285714286 | DN199: Sprays - Day | DO199: 0.65
D200: <please select> | E200: =IFERROR(VLOOKUP(D200,$DJ$194:$DK$200,2,FALSE),"") ->  | F200: <Please select> | H200: <Please select> | K200: =IFERROR(AD217,"") -> 0 | L200: =AL217 -> 0 | BE200: Jun | BF200: 22 | BG200: 30 | BH200: 3 | BI200: TRUE | BJ200: TRUE | BK200: 4 | BL200: =$BO$4-SUM(BL171:BL199) -> 4 | BM200: 0 | BN200: 0 | BO200: 0 | BP200: 0 | BQ200: 0 | BR200: 0 | BS200: 0 | BT200: 0 | BU200: 0 | BV200: 0 | BW200: 0 | BX200: 0 | BY200: 0 | BZ200: 0 | CA200: 0 | CB200: 0 | CC200: 0 | CD200: 0 | CE200: 0 | CF200: 0 | CG200: 0 | CH200: 0 | CI200: 0 | CJ200: 0 | CK200: 0 | CL200: 0 | CM200: 0 | CN200: 0 | CO200: 0 | CP200: 0 | CQ200: 0 | CR200: 0 | CS200: 0 | CT200: 0 | CU200: 0 | CV200: 0 | CW200: 0 | CX200: 0 | CY200: 0 | CZ200: 0 | DA200: 0 | DB200: 0 | DC200: 0 | DD200: 0 | DE200: 0 | DF200: 0 | DJ200: High | DK200: 40mm/m2/week | DL200: =40/7 -> 5.714285714 | DN200: Sprays - Night | DO200: 0.7
... 272 more rows

Sheet Rainfall data (hidden)
B1: Precipitation Average Monthly (mm)
D2: Jan | E2: Feb | F2: Mar | G2: Apr | H2: May | I2: Jun | J2: Jul | K2: Aug | L2: Sep | M2: Oct | N2: Nov | O2: Dec | P2: TOTAL | Q2: SANS 204 REGION | R2: Diversity Factor for irrigation
A3: 2 | B3: <Please select> | S3: January | T3: February | U3: March | V3: April | W3: May | X3: June | Y3: July | Z3: August | AA3: September | AB3: October | AC3: November | AD3: December | AE3: Total
A4: 3 | B4: Beaufort West | C4: Precip (mm) | D4: 35 | E4: 30 | F4: 30 | G4: 20 | H4: 11 | I4: 8 | J4: 9 | K4: 14 | L4: 12 | M4: 21 | N4: 27 | O4: 19 | P4: 236 | Q4: =R6 -> Zone 1 - Cold Interior | R4: Climatic Zone
A5: 5 | B5: Bela-Bela | C5: Precip (mm) | D5: 120 | E5: 84 | F5: 74 | G5: 37 | H5: 7 | I5: 6 | J5: 2 | K5: 5 | L5: 16 | M5: 58 | N5: 101 | O5: 124 | P5: 634 | Q5: =R7 -> Zone 2 - Temperate Interior
A6: 7 | B6: Belfast | C6: Precip (mm) | D6: 170 | E6: 101 | F6: 83 | G6: 53 | H6: 16 | I6: 7 | J6: 5 | K6: 9 | L6: 33 | M6: 93 | N6: 156 | O6: 152 | P6: 878 | Q6: =R6 -> Zone 1 - Cold Interior | R6: Zone 1 - Cold Interior | S6: 0.5 | T6: 0.5 | U6: 0.5 | V6: 1 | W6: 1 | X6: 1 | Y6: 1 | Z6: 1 | AA6: 1 | AB6: 0.5 | AC6: 0.5 | AD6: 0.5 | AE6: =SUM(S6:AD6) -> 9
A7: 9 | B7: Bethal | C7: Precip (mm) | D7: 146 | E7: 75 | F7: 61 | G7: 48 | H7: 14 | I7: 7 | J7: 6 | K7: 13 | L7: 28 | M7: 78 | N7: 129 | O7: 106 | P7: 711 | Q7: =R6 -> Zone 1 - Cold Interior | R7: Zone 2 - Temperate Interior | S7: 0.5 | T7: 0.5 | U7: 0.5 | V7: 1 | W7: 1 | X7: 1 | Y7: 1 | Z7: 1 | AA7: 1 | AB7: 0.5 | AC7: 0.5 | AD7: 0.5 | AE7: 9
A8: 11 | B8: Bethlehem | C8: Precip (mm) | D8: 96 | E8: 77 | F8: 94 | G8: 58 | H8: 9 | I8: 12 | J8: 7 | K8: 27 | L8: 35 | M8: 83 | N8: 96 | O8: 86 | P8: 680 | Q8: =R6 -> Zone 1 - Cold Interior | R8: Zone 3 - Hot Interior | S8: 0.5 | T8: 0.5 | U8: 0.5 | V8: 1 | W8: 1 | X8: 1 | Y8: 1 | Z8: 1 | AA8: 1 | AB8: 0.5 | AC8: 0.5 | AD8: 0.5 | AE8: 9
A9: 13 | B9: Bloemfontein | C9: Precip (mm) | D9: 83 | E9: 111 | F9: 72 | G9: 56 | H9: 17 | I9: 12 | J9: 8 | K9: 15 | L9: 24 | M9: 43 | N9: 58 | O9: 60 | P9: 559 | Q9: =R6 -> Zone 1 - Cold Interior | R9: Zone 4 - Temperate Coastal | S9: 1 | T9: 1 | U9: 1 | V9: 1 | W9: 0.5 | X9: 0.5 | Y9: 0.5 | Z9: 0.5 | AA9: 1 | AB9: 1 | AC9: 1 | AD9: 1 | AE9: 10
B10: Calvinia | C10: Precip (mm) | D10: 14 | E10: 12 | F10: 26 | G10: 27 | H10: 22 | I10: 34 | J10: 23 | K10: 24 | L10: 13 | M10: 11 | N10: 13 | O10: 9 | P10: 228 | Q10: =R7 -> Zone 2 - Temperate Interior | R10: Zone 5 - Sub-tropical Coastal | S10: 0.5 | T10: 0.5 | U10: 0.5 | V10: 0.5 | W10: 1 | X10: 1 | Y10: 1 | Z10: 1 | AA10: 0.5 | AB10: 0.5 | AC10: 0.5 | AD10: 0.5 | AE10: 8
A11: 15 | B11: Cape Town | C11: Precip (mm) | D11: 15 | E11: 17 | F11: 20 | G11: 41 | H11: 69 | I11: 93 | J11: 82 | K11: 77 | L11: 40 | M11: 30 | N11: 14 | O11: 17 | P11: 515 | Q11: =R9 -> Zone 4 - Temperate Coastal | R11: Zone 6 - Arid Interior | S11: 1 | T11: 0.5 | U11: 1 | V11: 1 | W11: 1 | X11: 1 | Y11: 1 | Z11: 1 | AA11: 1 | AB11: 1 | AC11: 1 | AD11: 1 | AE11: 11.5
B12: De Aar | C12: Precip (mm) | D12: 36 | E12: 60 | F12: 52 | G12: 41 | H12: 16 | I12: 13 | J12: 13 | K12: 15 | L12: 11 | M12: 26 | N12: 30 | O12: 23 | P12: 336 | Q12: =R6 -> Zone 1 - Cold Interior
A13: 17 | B13: Durban | C13: Precip (mm) | D13: 134 | E13: 113 | F13: 120 | G13: 73 | H13: 59 | I13: 28 | J13: 39 | K13: 62 | L13: 73 | M13: 98 | N13: 108 | O13: 102 | P13: 1009 | Q13: =R10 -> Zone 5 - Sub-tropical Coastal | R13: Evapo-Transpiration | S13: (mm/m2/day)
B14: East London | C14: Precip (mm) | D14: 69 | E14: 92 | F14: 105 | G14: 83 | H14: 52 | I14: 40 | J14: 47 | K14: 78 | L14: 80 | M14: 102 | N14: 110 | O14: 63 | P14: 921 | Q14: =R10 -> Zone 5 - Sub-tropical Coastal
A15: 19 | B15: George | C15: Precip (mm) | D15: 63 | E15: 59 | F15: 69 | G15: 71 | H15: 53 | I15: 45 | J15: 43 | K15: 68 | L15: 60 | M15: 64 | N15: 61 | O15: 59 | P15: 715 | Q15: =R9 -> Zone 4 - Temperate Coastal | R15: Zone 1 - Cold Interior | S15: 3.806225806 | T15: 3.406642336 | U15: 2.990740741 | V15: 2.788433333 | W15: 2.416042945 | X15: 2.100395137 | Y15: 2.260615836 | Z15: 2.858855422 | AA15: 3.803575949 | AB15: 3.954387097 | AC15: 3.9602 | AD15: 4.262387097
B16: Johannesburg | C16: Precip (mm) | D16: 125 | E16: 90 | F16: 91 | G16: 54 | H16: 13 | I16: 9 | J16: 4 | K16: 6 | L16: 27 | M16: 72 | N16: 117 | O16: 105 | P16: 713 | Q16: =R6 -> Zone 1 - Cold Interior | R16: Zone 2 - Temperate Interior | S16: 3.755443548 | T16: 4.091733333 | U16: 3.542672414 | V16: 2.774809524 | W16: 2.434881517 | X16: 2.116683673 | Y16: 2.280506912 | Z16: 3.017346939 | AA16: 3.997213115 | AB16: 4.216504065 | AC16: 4.221548117 | AD16: 4.392608696
A17: 21 | B17: Kimberley | C17: Precip (mm) | D17: 57 | E17: 76 | F17: 65 | G17: 49 | H17: 16 | I17: 7 | J17: 7 | K17: 7 | L17: 12 | M17: 30 | N17: 42 | O17: 46 | P17: 414 | Q17: =R11 -> Zone 6 - Arid Interior | R17: Zone 3 - Hot Interior | S17: 4.396489676 | T17: 4.521136364 | U17: 3.89829912 | V17: 3.051091445 | W17: 2.745579515 | X17: 2.370558659 | Y17: 2.608921833 | Z17: 3.134489247 | AA17: 3.840956522 | AB17: 3.705249267 | AC17: 3.869027356 | AD17: 4.331671554
B18: Ladysmith | C18: Precip (mm) | D18: 145 | E18: 106 | F18: 90 | G18: 39 | H18: 14 | I18: 6 | J18: 5 | K18: 26 | L18: 38 | M18: 77 | N18: 91 | O18: 112 | P18: 749 | Q18: =R6 -> Zone 1 - Cold Interior | R18: Zone 4 - Temperate Coastal | S18: 4.920555556 | T18: 4.42561753 | U18: 3.679820789 | V18: 2.453828996 | W18: 1.596115108 | X18: 1.357126866 | Y18: 1.557797834 | Z18: 1.804265233 | AA18: 2.388023256 | AB18: 3.377903226 | AC18: 4.225882353 | AD18: 4.166612903
A19: 23 | B19: Langebaan | C19: Precip (mm) | D19: 8 | E19: 4 | F19: 11 | G19: 24 | H19: 40 | I19: 41 | J19: 47 | K19: 45 | L19: 24 | M19: 12 | N19: 12 | O19: 10 | P19: 278 | Q19: =R9 -> Zone 4 - Temperate Coastal | R19: Zone 5 - Sub-tropical Coastal | S19: 3.453387097 | T19: 4.063414634 | U19: 3.414709677 | V19: 2.541466667 | W19: 2.148947368 | X19: 1.723266667 | Y19: 1.911935484 | Z19: 2.28415493 | AA19: 2.708416667 | AB19: 2.689596774 | AC19: 3.070083333 | AD19: 3.444516129
B20: Musina | C20: Precip (mm) | D20: 58 | E20: 57 | F20: 39 | G20: 27 | H20: 10 | I20: 4 | J20: 1 | K20: 1 | L20: 12 | M20: 24 | N20: 49 | O20: 57 | P20: 339 | Q20: =R8 -> Zone 3 - Hot Interior | R20: Zone 6 - Arid Interior | S20: 5.364731183 | T20: 5.045964392 | U20: 4.361693548 | V20: 3.262711864 | W20: 2.541832884 | X20: 2.101472222 | Y20: 2.321209677 | Z20: 3.101854839 | AA20: 4.183132184 | AB20: 5.044369501 | AC20: 5.725266458 | AD20: 6.345571848
A21: 25 | B21: Nelspruit | C21: Precip (mm) | D21: 127 | E21: 108 | F21: 90 | G21: 51 | H21: 15 | I21: 9 | J21: 10 | K21: 10 | L21: 26 | M21: 75 | N21: 115 | O21: 131 | P21: 767 | Q21: =R8 -> Zone 3 - Hot Interior
B22: Nmmabatho | C22: Precip (mm) | D22: 117 | E22: 83 | F22: 74 | G22: 57 | H22: 14 | I22: 5 | J22: 3 | K22: 5 | L22: 13 | M22: 37 | N22: 64 | O22: 67 | P22: 539 | Q22: =R7 -> Zone 2 - Temperate Interior | R22: A-pan Evaporation data
A23: 27 | B23: Pietermaritzburg | C23: Precip (mm) | D23: 141 | E23: 117 | F23: 113 | G23: 48 | H23: 24 | I23: 13 | J23: 11 | K23: 31 | L23: 60 | M23: 74 | N23: 104 | O23: 108 | P23: 844 | Q23: =R10 -> Zone 5 - Sub-tropical Coastal | R23: Cape Town | S23: 194 | T23: 195 | U23: 168 | V23: 111 | W23: 73 | X23: 55 | Y23: 57 | Z23: 71 | AA23: 98 | AB23: 168 | AC23: 198 | AD23: 219 | AE23: =SUM(S23:AD23) -> 1607
B24: Pilansberg | C24: Precip (mm) | D24: 78 | E24: 71 | F24: 58 | G24: 38 | H24: 6 | I24: 12 | J24: 3 | K24: 5 | L24: 25 | M24: 57 | N24: 61 | O24: 105 | P24: 519 | Q24: =R7 -> Zone 2 - Temperate Interior
A25: 29 | B25: Polokwane | C25: Precip (mm) | D25: 82 | E25: 60 | F25: 52 | G25: 33 | H25: 11 | I25: 5 | J25: 3 | K25: 6 | L25: 17 | M25: 43 | N25: 85 | O25: 81 | P25: 478 | Q25: =R7 -> Zone 2 - Temperate Interior
B26: Port Elizabeth | C26: Precip (mm) | D26: 36 | E26: 40 | F26: 54 | G26: 58 | H26: 59 | I26: 62 | J26: 47 | K26: 64 | L26: 62 | M26: 59 | N26: 49 | O26: 34 | P26: 624 | Q26: =R9 -> Zone 4 - Temperate Coastal
A27: 31 | B27: Pretoria | C27: Precip (mm) | D27: 136 | E27: 75 | F27: 82 | G27: 51 | H27: 13 | I27: 7 | J27: 3 | K27: 6 | L27: 22 | M27: 71 | N27: 98 | O27: 110 | P27: 674 | Q27: =R7 -> Zone 2 - Temperate Interior
B28: Richards Bay | C28: Precip (mm) | D28: 172 | E28: 167 | F28: 107 | G28: 109 | H28: 109 | I28: 57 | J28: 60 | K28: 65 | L28: 77 | M28: 105 | N28: 114 | O28: 86 | P28: 1228 | Q28: =R10 -> Zone 5 - Sub-tropical Coastal
A29: 33 | B29: Skukuza | C29: Precip (mm) | D29: 94 | E29: 96 | F29: 66 | G29: 38 | H29: 14 | I29: 11 | J29: 11 | K29: 8 | L29: 28 | M29: 40 | N29: 63 | O29: 92 | P29: 561 | Q29: =R8 -> Zone 3 - Hot Interior
B30: Thohoyandou | C30: Precip (mm) | D30: 74 | E30: 108 | F30: 75 | G30: 47 | H30: 15 | I30: 17 | J30: 14 | K30: 11 | L30: 39 | M30: 93 | N30: 76 | O30: 128 | P30: 697 | Q30: =R8 -> Zone 3 - Hot Interior
A31: 35 | B31: Tstsikama | C31: Precip (mm) | D31: 77 | E31: 70 | F31: 81 | G31: 80 | H31: 86 | I31: 75 | J31: 78 | K31: 111 | L31: 66 | M31: 83 | N31: 78 | O31: 60 | P31: 945 | Q31: =R9 -> Zone 4 - Temperate Coastal
B32: Umtata | C32: Precip (mm) | D32: 87 | E32: 89 | F32: 83 | G32: 58 | H32: 18 | I32: 11 | J32: 18 | K32: 15 | L32: 35 | M32: 73 | N32: 75 | O32: 88 | P32: 650 | Q32: =R10 -> Zone 5 - Sub-tropical Coastal
A33: 37 | B33: Upington | C33: Precip (mm) | D33: 24 | E33: 35 | F33: 37 | G33: 26 | H33: 10 | I33: 4 | J33: 2 | K33: 4 | L33: 4 | M33: 9 | N33: 17 | O33: 17 | P33: 189 | Q33: =R11 -> Zone 6 - Arid Interior
B35: For graph | D35: 2 | E35: 3 | F35: 4 | G35: 5 | H35: 6 | I35: 7 | J35: 8 | K35: 9 | L35: 10 | M35: 11 | N35: 12 | O35: 13 | P35: 14
B36: Select city | D36: Beaufort West | F36: Select SANS 204 Climatic Zone | I36: Zone 4 - Temperate Coastal
B37: Rainfall | D37: =VLOOKUP($D$36,$B$4:$P$6,D35,FALSE) -> Precip (mm) | E37: 35 | F37: 30 | G37: 30 | H37: 20 | I37: 11 | J37: 8 | K37: 9 | L37: 14 | M37: 12 | N37: 21 | O37: 27 | P37: =SUM(D37:O37) -> 217
B38: Diversity Factor | D38: 1 | E38: 0.3 | F38: 1 | G38: 1 | H38: 1 | I38: 1 | J38: 1 | K38: 1 | L38: 1 | M38: 1 | N38: 1 | O38: 1 | P38: =SUM(D38:O38) -> 11.3
D40: 125 | E40: 90 | F40: 91 | G40: 54 | H40: 13 | I40: 9 | J40: 4 | K40: 6 | L40: 27 | M40: 72 | N40: 117 | O40: 105 | P40: 713
D41: 0.3 | E41: 0.3 | F41: 0.3 | G41: 1 | H41: 1 | I41: 1 | J41: 1 | K41: 1 | L41: 1 | M41: 0.3 | N41: 0.3 | O41: 0.3 | P41: 7.8
B43: Rainy days per month
D44: Jan | E44: Feb | F44: Mar | G44: Apr | H44: May | I44: Jun | J44: Jul | K44: Aug | L44: Sep | M44: Oct | N44: Nov | O44: Dec | P44: TOTAL
B45: =B4 -> Beaufort West | C45: Number of rainy days | D45: 6 | E45: 6 | F45: 5 | G45: 3 | H45: 2 | I45: 2 | J45: 2 | K45: 2 | L45: 2 | M45: 4 | N45: 5 | O45: 4 | P45: 43
B46: Bela-Bela | C46: Number of rainy days | D46: 14 | E46: 10 | F46: 8 | G46: 4 | H46: 1 | I46: 1 | J46: 0 | K46: 1 | L46: 2 | M46: 7 | N46: 12 | O46: 14 | P46: 74
B47: Belfast | C47: Number of rainy days | D47: 16 | E47: 10 | F47: 8 | G47: 5 | H47: 2 | I47: 1 | J47: 0 | K47: 1 | L47: 3 | M47: 8 | N47: 15 | O47: 14 | P47: 83
B48: Bethal | C48: Number of rainy days | D48: 19 | E48: 9 | F48: 8 | G48: 6 | H48: 2 | I48: 1 | J48: 1 | K48: 2 | L48: 3 | M48: 10 | N48: 16 | O48: 13 | P48: 90
B49: Bethlehem | C49: Number of rainy days | D49: 14 | E49: 11 | F49: 14 | G49: 8 | H49: 1 | I49: 2 | J49: 1 | K49: 4 | L49: 5 | M49: 12 | N49: 14 | O49: 12 | P49: 98
B50: Bloemfontein | C50: Number of rainy days | D50: 13 | E50: 16 | F50: 11 | G50: 8 | H50: 3 | I50: 2 | J50: 1 | K50: 2 | L50: 4 | M50: 6 | N50: 9 | O50: 9 | P50: 84
B51: Calvinia | C51: Number of rainy days | D51: 3 | E51: 3 | F51: 6 | G51: 5 | H51: 5 | I51: 8 | J51: 5 | K51: 5 | L51: 3 | M51: 2 | N51: 3 | O51: 2 | P51: 50
B52: Cape Town | C52: Number of rainy days | D52: 3 | E52: 4 | F52: 4 | G52: 8 | H52: 14 | I52: 19 | J52: 16 | K52: 15 | L52: 8 | M52: 6 | N52: 3 | O52: 3 | P52: 103
B53: De Aar | C53: Number of rainy days | D53: 6 | E53: 10 | F53: 8 | G53: 6 | H53: 3 | I53: 2 | J53: 2 | K53: 3 | L53: 2 | M53: 4 | N53: 5 | O53: 4 | P53: 55
B54: Durban | C54: Number of rainy days | D54: 17 | E54: 15 | F54: 15 | G54: 9 | H54: 8 | I54: 4 | J54: 5 | K54: 8 | L54: 9 | M54: 13 | N54: 14 | O54: 13 | P54: 130
B55: East London | C55: Number of rainy days | D55: 9 | E55: 12 | F55: 14 | G55: 11 | H55: 7 | I55: 5 | J55: 6 | K55: 10 | L55: 11 | M55: 13 | N55: 15 | O55: 8 | P55: 121
B56: George | C56: Number of rainy days | D56: 10 | E56: 10 | F56: 12 | G56: 12 | H56: 9 | I56: 8 | J56: 7 | K56: 12 | L56: 10 | M56: 11 | N56: 10 | O56: 10 | P56: 121
B57: Johannesburg | C57: Number of rainy days | D57: 17 | E57: 13 | F57: 13 | G57: 7 | H57: 2 | I57: 1 | J57: 1 | K57: 1 | L57: 4 | M57: 10 | N57: 15 | O57: 15 | P57: 99
B58: Kimberley | C58: Number of rainy days | D58: 10 | E58: 13 | F58: 11 | G58: 8 | H58: 3 | I58: 1 | J58: 2 | K58: 1 | L58: 2 | M58: 5 | N58: 7 | O58: 8 | P58: 71
B59: Ladysmith | C59: Number of rainy days | D59: 18 | E59: 13 | F59: 11 | G59: 5 | H59: 2 | I59: 1 | J59: 0 | K59: 3 | L59: 5 | M59: 10 | N59: 11 | O59: 14 | P59: 93
B60: Langebaan | C60: Number of rainy days | D60: 2 | E60: 1 | F60: 3 | G60: 7 | H60: 11 | I60: 11 | J60: 13 | K60: 12 | L60: 7 | M60: 3 | N60: 3 | O60: 3 | P60: 76
B61: Musina | C61: Number of rainy days | D61: 7 | E61: 7 | F61: 5 | G61: 3 | H61: 1 | I61: 1 | J61: 0 | K61: 0 | L61: 2 | M61: 3 | N61: 6 | O61: 7 | P61: 42
B62: Nelspruit | C62: Number of rainy days | D62: 17 | E62: 14 | F62: 12 | G62: 7 | H62: 2 | I62: 1 | J62: 1 | K62: 2 | L62: 3 | M62: 10 | N62: 14 | O62: 17 | P62: 100
B63: Nmmabatho | C63: Number of rainy days | D63: 16 | E63: 11 | F63: 10 | G63: 7 | H63: 2 | I63: 1 | J63: 0 | K63: 1 | L63: 2 | M63: 5 | N63: 8 | O63: 9 | P63: 72
B64: Pietermaritzburg | C64: Number of rainy days | D64: 23 | E64: 19 | F64: 18 | G64: 8 | H64: 4 | I64: 2 | J64: 2 | K64: 5 | L64: 10 | M64: 12 | N64: 17 | O64: 18 | P64: 138
B65: Pilansberg | C65: Number of rainy days | D65: 10 | E65: 9 | F65: 8 | G65: 5 | H65: 1 | I65: 2 | J65: 0 | K65: 1 | L65: 3 | M65: 8 | N65: 8 | O65: 14 | P65: 69
B66: Polokwane | C66: Number of rainy days | D66: 11 | E66: 8 | F66: 7 | G66: 4 | H66: 2 | I66: 1 | J66: 0 | K66: 1 | L66: 2 | M66: 6 | N66: 12 | O66: 11 | P66: 65
B67: Port Elizabeth | C67: Number of rainy days | D67: 7 | E67: 7 | F67: 10 | G67: 10 | H67: 11 | I67: 11 | J67: 8 | K67: 12 | L67: 11 | M67: 10 | N67: 9 | O67: 6 | P67: 112
B68: Pretoria | C68: Number of rainy days | D68: 18 | E68: 10 | F68: 10 | G68: 6 | H68: 2 | I68: 1 | J68: 1 | K68: 1 | L68: 3 | M68: 9 | N68: 12 | O68: 14 | P68: 87
B69: Richards Bay | C69: Number of rainy days | D69: 16 | E69: 15 | F69: 10 | G69: 10 | H69: 10 | I69: 5 | J69: 6 | K69: 6 | L69: 7 | M69: 10 | N69: 10 | O69: 8 | P69: 113
B70: Skukuza | C70: Number of rainy days | D70: 12 | E70: 12 | F70: 8 | G70: 5 | H70: 2 | I70: 1 | J70: 1 | K70: 1 | L70: 4 | M70: 5 | N70: 8 | O70: 12 | P70: 71
B71: Thohoyandou | C71: Number of rainy days | D71: 10 | E71: 15 | F71: 10 | G71: 6 | H71: 2 | I71: 2 | J71: 2 | K71: 2 | L71: 5 | M71: 13 | N71: 10 | O71: 17 | P71: 94
B72: Tstsikama | C72: Number of rainy days | D72: 7 | E72: 7 | F72: 8 | G72: 8 | H72: 8 | I72: 7 | J72: 8 | K72: 10 | L72: 6 | M72: 8 | N72: 8 | O72: 6 | P72: 91
B73: Umtata | C73: Number of rainy days | D73: 15 | E73: 16 | F73: 14 | G73: 10 | H73: 3 | I73: 2 | J73: 3 | K73: 3 | L73: 6 | M73: 13 | N73: 13 | O73: 15 | P73: 113
B74: Upington | C74: Number of rainy days | D74: 5 | E74: 7 | F74: 7 | G74: 5 | H74: 2 | I74: 1 | J74: 0 | K74: 1 | L74: 1 | M74: 2 | N74: 3 | O74: 3 | P74: 37

Sheet Materials
A1: Green Star SA - Interiors PILOT v0.1 | I1: Category Score
A2: Materials | D2: Category Summary: | E2: =E13 -> 30 | F2: =F13 -> 30 | G2: =G13 -> 0 | H2: =H13 -> 0 | I2: ='Credit Summary'!I54 -> 0
A3: Credit Summary for: | C3: =IF(' Building Input'!$C$3=0,"",' Building Input'!$C$3) ->  | G3: =IF(OR((J3=Calculation!$D$97),(J3=Calculation!$D$98),((G2+H2)>F2)),Calculation!$D$99,"") ->  | J3: =T(J5:J16) -> 
A4: Ref No. | B4: Title | C4: Aim of Credit | D4: Credit Criteria Summary | E4: No. of Points Available | F4: No. of Points Available | G4: No. of Points Achieved | H4: Points to be Confirmed | I4: Comments
A5: INT-Mat-1 | B5: Operational Waste Management | C5: To encourage and recognise developments which provide a spatial allocation for recycling and an operational waste management plan to facilitate the recovery of resources used within the tenancy to reduce waste going to disposal. | D5: One point is awarded independently of each other: Recycling storage space For tenants who occupy the entire building: One point is awarded where: • A dedicated storage area for the separation and collection of recyclables is provided; AND • Is sufficiently sized to handle the collection and sorting of all waste streams in accordance with Table Mat 1.1 provided in the additional guidance: AND • Recycling waste collection areas for the tenants and/or visitors are provided in the fit out design OR For multi tenanted buildings where the landlord provides a shared waste collection and storage facility: One point is awarded where: • A storage area for the separation and collection of recyclables is provided for all tenants; AND • Is sufficiently sized to deal with all waste streams, based on the projected waste profile of the tenants and the collection frequency of each waste profile, for the waste streams stipulated in Table Mat 1.1 ; AND • Is accessible by all tenants | E5: 1 | F5: =IF(G5="na",0,E5) -> 1 | J5: =IF(OR(ISTEXT(G5)=TRUE,ISTEXT(H5)=TRUE),Calculation!$D$100,IF(G5+H5>F5,Calculation!$D$97,"")) -> 
D6: Waste & Recycling Operational Management Plan One point is awarded where: • A comprehensive and project specific Waste & Recycling Operational Management Plan is developed for the tenant to reduce operational waste and increase recycling. | E6: 1 | F6: 1
A7: INT-Mat-2 | B7: Furniture | C7: To recognise the selection of fit-out furniture that has a reduced environmental impact when compared to available alternatives. | D7: Up to eight points are awarded where the furniture used has a reduced environmental impact as determined by the Furniture Calculator against the five assessment criteria. The five technical criteria are: 1. Reused furniture; 2. Furniture certified according to GBCSA recognised standards; 3. Furniture that is sold with a product stewardship commitment or furniture that has been designed for disassembly or furniture that has a manufacturer’s or supplier’s warranty defined under durability; 4. Furniture that contains re-used, recycled or certified content; 5. Furniture that is manufactured in facilities that are ISO 14001 certified. | E7: 8 | F7: 8 | G7: ='Furniture Calculator'!H3 -> 0
A8: INT-Mat-3 | B8: Assemblies | C8: To recognise the selection of assemblies that have a reduced environmental impact when compared to available alternatives. | D8: Up to eight points are awarded where the assemblies used has a reduced environmental impact as determined by the Assemblies Calculator against five assessment criteria. The five technical criteria are: 1. Reused assemblies 2. Assemblies certified according to GBCSA recognised standards; 3. Assemblies that is sold with a product stewardship commitment or that have been designed/installed for disassembly; 4. Assemblies that contain re-used, recycled or certified content; 5. Assemblies that are manufactured in facilities that are ISO 14001 certified. | E8: 8 | F8: =IF(G8="na",0,E8) -> 8 | G8: ='Assemblies Calculator'!H3 -> 0
A9: INT-Mat-4 | B9: Flooring | C9: To recognise the selection of flooring that has a reduced environmental impact when compared to available alternatives. | D9: Up to six points are awarded where the flooring used has a reduced environmental impact as determined by the Flooring Calculator against five assessment criteria. The five technical criteria are: 1. Reused flooring or the use of exposed concrete; 2. Flooring certified according to GBCSA recognised standards; 3. Flooring that is sold with a product stewardship commitment or flooring that has been designed/installed for disassembly; 4. Flooring that contains re-used, recycled or certified content; 5. Flooring that is manufactured in facilities that are ISO 14001 certified. | E9: 6 | F9: 6 | G9: ='Flooring Calculator'!H3 -> 0
A10: INT-Mat-5 | B10: Wall Coverings | C10: To recognise the selection of wall coverings that have a reduced environmental impact when compared to available alternatives. | D10: Up to three points are awarded where the wall coverings used have a reduced environmental impact as determined by the Wall Coverings Calculator against the five assessment criteria. The five technical criteria are: 1. Reused wall coverings or the use of exposed concrete or materials; 2. Wall coverings certified according to GBCSA recognised standards; 3. Wall coverings that are sold with a product stewardship commitment or wall coverings that have been designed/installed for disassembly; 4. Wall coverings that contain re-used, recycled or certified content; 5. Wall coverings that are manufactured in facilities that are ISO 14001 certified. | E10: 3 | F10: 3 | G10: ='Wall Coverings'!H3 -> 0
A11: INT-Mat-6 | B11: Local Sourcing | C11: To encourage and recognise the environmental advantages gained, in the form of reduced transport emissions, by using materials and products that are sourced within close proximity to the site. | D11: Up to two points are awarded independently as follows: One point is awarded where: • 50% of the project contract value is manufactured within South Africa One point is awarded where: • 20% of the project contract value is extracted, harvested, processed and manufactured within South Africa. | E11: 2 | F11: 2
A12: INT-Mat-7 | B12: Sundries Materials Sourcing | C12: To encourage and recognise the selection of fitout finishes that have a reduced environmental impact when compared to available alternatives through responsible manufacturing, product stewardship and resource efficient design. | D12: One point is awarded if: Materials and products (that fall outside the scope of the fit out calculators and as defined in more detail in the Additional Guidance), contain one of the following responsible content options: • 30% by cost is manufactured in ISO 14001 certified facilities OR • 40% by cost is eligible for a take-back scheme OR • 30% of all materials, by cost, contain reused or recycled content If the materials that fall within the scope of this credit represent less than 1% of the project contract value, this credit is deemed non applicable. | E12: 1 | F12: 1
D13: Total Points: | E13: =SUM(E5:E12) -> 30 | F13: =SUM(F5:F12) -> 30 | G13: =SUM(G5:G12) -> 0 | H13: =SUM(H5:H12) -> 0
J16: =IF(ISBLANK(G12),IF(H12>F12,Calculation!$D$97,""),IF(G12="na","",IF(OR(G12="na",ISNUMBER(G12)),IF(G12+H12>F12,Calculation!$D$97,""),Calculation!$D$98))) -> 
A17: =Calculation!$C$86 -> Project Teams are to refer to the Green Star SA Interiors PILOT Technical Manual for explicit credit criteria and documentation requirements.
A18: =Calculation!$C$87 -> The Green Star Technical Clarifications (TC) and Credit Interpretation Request (CIR) rulings provide an essential source of information to all
A19: =Calculation!$C$88 -> projects undertaking Green Star assessment. They are available on the GBCSA website http://www.gbcsa.org.za . Technical Clarifications
A20: =Calculation!$C$89 -> often represent the GBCSA answers to technical queries and complement Green Star SA Technical Manuals. They do not amend but clarify
A21: =Calculation!$C$90 -> Credit Criteria or Compliance Requirements. They are an extension of the Technical Manual; it is the responsibility of the project teams to stay
A22: =Calculation!$C$91 -> up-to-date with this section of the GBCSA website. The CIR rulings offer alternative compliance options whenever those have been deemed
A23: =Calculation!$C$92 -> equivalent in meeting the Aim of Credit.

Sheet Furniture Calculator
A1: Loose Furniture | D1: Please enter data in white fields only | G1: =F19 -> 8 | K1: x | L1: x | M1: x | N1: x | O1: x | P1: x | Q1: x
C3: Total Number of Furniture Items in the Project: | G3: Points Generated: | H3: =IF(L12=1,L9,ROUND(I22,1)) -> 0 | I3: Overall Score: | J3: =IF(H3=L9,"-",ROUND(H22,0)) -> 0 | R3: %
F6: =C24 -> Please complete the Total Number of Furniture Items in The Project (Yellow outlined field above) | I6: Total Items Documented: | J6: =SUM(D28:D427) -> 0 | R6: Items
A9: x | F9: 3 | G9: 3 | H9: 2 | I9: 1,2 | L9: ERROR
A10: x | D10: Yes | E10: Level A | F10: Take back - lease | G10: 35 | H10: Level A | I10: 100 | L10: Total Items
A11: x | D11: No | E11: Level B | F11: Take back - purchase | G11: 30 | H11: Level B | I11: 90 | L11: =IF(F3>0,1,0) -> 0
A12: x | E12: Level C | F12: Durability - Level A | G12: 35 | H12: Level C | I12: 85 | L12: =IF(F3="",0, IF(SUM(D28:D427)>F3,1)) -> 0
A13: x | B13: Please complete the Total Number of Furniture Items in The Project (Yellow outlined field above) | E13: No certification | F13: Durability - Level B | G13: 30 | H13: No certification
F14: Durability - Level C | G14: 20
F15: Design for dissassembly | G15: 35
F16: None | G16: 0
A17: x | H17: 5 | I17: 4
A18: x | B18: The Number of Items Entered Exceeds the Stated Total | H18: 25 | I18: 25
A19: x | D19: To change the number of points available, enter here: | F19: 8
A20: x | B20: Full Points Have Been Generated
A21: x | B21: 4 | H21: Weighted Total: | I21: Points Generated:
A22: x | H22: =IF(F3="",0,SUM(K28:K427)/F3)*100 -> 0 | I22: =IF(H22=0,0,IF(H22>90,F19,(H22/90)*F19)) -> 0
A23: x
A24: x | C24: =IF($F$3="",$B$13,IF($H$3="ERROR",$B$18,IF(H3=F19,B20,""))) -> Please complete the Total Number of Furniture Items in The Project (Yellow outlined field above)
A25: x | E25: 1 | F25: 2 | G25: 3 | H25: 4 | I25: 5 | L25: 1 | M25: 2 | N25: 3 | O25: 4 | P25: 5
B26: Refer to the Fitout Calculator Guide for detailed instructions | E26: Option 1 | F26: Option 2
B27: # | C27: Name of Supplier and Brief Description of Item | D27: Total Number of Items | E27: Certified Product | F27: Re-used | G27: Product Stewardship | H27: Re-used, Recycled or Certified Content | I27: Manufacturers ISO 14001 Certification | J27: Item Score (%) | K27: Weighted Total | L27: 1 | M27: 2 | N27: 3 | O27: 4 | P27: 5 | Q27: Total
B28: 1 | J28: =IF(C28=""," ",IF(Q28>100,100,Q28)) ->  | K28: =IF(J28=" ",0,(D28*J28)/100) -> 0 | L28: =IF(E28=$H$12,$I$12,IF(E28=$H$11,$I$11,IF(E28=$H$10,$I$10,0))) -> 0 | M28: =IF(L28=0,IF(F28=$D$10,$I$10, 0),0) -> 0 | N28: =IF(AND(L28=0,M28=0),IF(G28=$F$10,$G$10,IF(G28=$F$11,$G$11,IF(G28=$F$12,$G$12,IF(G28=$F$13,$G$13,IF(G28=$F$14,$G$14,IF(G28=$F$15,$G$15,IF(G28=$F$16,$G$16,0))))))),0) -> 0 | O28: =IF(AND(L28=0,M28=0),IF(H28=$D$10,$I$18,0),0) -> 0 | P28: =IF(AND(L28=0,M28=0),IF(I28=$D$10,$H$18,0),0) -> 0 | Q28: =SUM(L28:P28) -> 0
B29: =B28+1 -> 2 | K29: 0 | L29: 0 | M29: 0 | N29: 0 | O29: 0 | P29: 0 | Q29: 0
B30: 3 | K30: 0 | L30: 0 | M30: 0 | N30: 0 | O30: 0 | P30: 0 | Q30: 0
B31: 4 | K31: 0 | L31: 0 | M31: 0 | N31: 0 | O31: 0 | P31: 0 | Q31: 0
B32: 5 | K32: 0 | L32: 0 | M32: 0 | N32: 0 | O32: 0 | P32: 0 | Q32: 0
B33: 6 | K33: 0 | L33: 0 | M33: 0 | N33: 0 | O33: 0 | P33: 0 | Q33: 0
B34: 7 | K34: 0 | L34: 0 | M34: 0 | N34: 0 | O34: 0 | P34: 0 | Q34: 0
B35: 8 | K35: 0 | L35: 0 | M35: 0 | N35: 0 | O35: 0 | P35: 0 | Q35: 0
B36: 9 | K36: 0 | L36: 0 | M36: 0 | N36: 0 | O36: 0 | P36: 0 | Q36: 0
B37: 10 | K37: 0 | L37: 0 | M37: 0 | N37: 0 | O37: 0 | P37: 0 | Q37: 0
B38: 11 | K38: 0 | L38: 0 | M38: 0 | N38: 0 | O38: 0 | P38: 0 | Q38: 0
B39: 12 | K39: 0 | L39: 0 | M39: 0 | N39: 0 | O39: 0 | P39: 0 | Q39: 0
B40: 13 | K40: 0 | L40: 0 | M40: 0 | N40: 0 | O40: 0 | P40: 0 | Q40: 0
B41: 14 | K41: 0 | L41: 0 | M41: 0 | N41: 0 | O41: 0 | P41: 0 | Q41: 0
B42: 15 | K42: 0 | L42: 0 | M42: 0 | N42: 0 | O42: 0 | P42: 0 | Q42: 0
B43: 16 | J43: =IF(C43=""," ",IF(Q43>100,100,Q43)) ->  | K43: 0 | L43: 0 | M43: 0 | N43: 0 | O43: 0 | P43: 0 | Q43: 0
B44: 17 | J44: =IF(C44=""," ",IF(Q44>100,100,Q44)) ->  | K44: 0 | L44: 0 | M44: 0 | N44: 0 | O44: 0 | P44: 0 | Q44: 0
B45: 18 | K45: 0 | L45: 0 | M45: 0 | N45: 0 | O45: 0 | P45: 0 | Q45: 0
B46: 19 | J46: =IF(C46=""," ",IF(Q46>100,100,Q46)) ->  | K46: 0 | L46: 0 | M46: 0 | N46: 0 | O46: 0 | P46: 0 | Q46: 0
B47: 20 | K47: =IF(J47=" ",0,(D47*J47)/100) -> 0 | L47: 0 | M47: 0 | N47: 0 | O47: 0 | P47: 0 | Q47: =SUM(L47:P47) -> 0
B48: 21 | K48: 0 | L48: 0 | M48: 0 | N48: 0 | O48: 0 | P48: 0 | Q48: 0
B49: 22 | K49: 0 | L49: 0 | M49: 0 | N49: 0 | O49: 0 | P49: 0 | Q49: 0
B50: 23 | K50: 0 | L50: 0 | M50: 0 | N50: 0 | O50: 0 | P50: 0 | Q50: 0
B51: 24 | K51: 0 | L51: 0 | M51: 0 | N51: 0 | O51: 0 | P51: 0 | Q51: 0
B52: 25 | K52: 0 | L52: 0 | M52: 0 | N52: 0 | O52: 0 | P52: 0 | Q52: 0
B53: 26 | K53: 0 | L53: 0 | M53: 0 | N53: 0 | O53: 0 | P53: 0 | Q53: 0
B54: 27 | K54: 0 | L54: 0 | M54: 0 | N54: 0 | O54: 0 | P54: 0 | Q54: 0
B55: 28 | K55: 0 | L55: 0 | M55: 0 | N55: 0 | O55: 0 | P55: 0 | Q55: 0
B56: 29 | K56: 0 | L56: 0 | M56: 0 | N56: 0 | O56: 0 | P56: 0 | Q56: 0
B57: 30 | K57: 0 | L57: 0 | M57: 0 | N57: 0 | O57: 0 | P57: 0 | Q57: 0
B58: 31 | K58: 0 | L58: 0 | M58: 0 | N58: 0 | O58: 0 | P58: 0 | Q58: 0
B59: 32 | K59: 0 | L59: 0 | M59: 0 | N59: 0 | O59: 0 | P59: 0 | Q59: 0
B60: 33 | K60: 0 | L60: 0 | M60: 0 | N60: 0 | O60: 0 | P60: 0 | Q60: 0
B61: 34 | K61: 0 | L61: 0 | M61: 0 | N61: 0 | O61: 0 | P61: 0 | Q61: 0
B62: 35 | K62: 0 | L62: 0 | M62: 0 | N62: 0 | O62: 0 | P62: 0 | Q62: 0
B63: 36 | K63: 0 | L63: 0 | M63: 0 | N63: 0 | O63: 0 | P63: 0 | Q63: 0
B64: 37 | K64: 0 | L64: 0 | M64: 0 | N64: 0 | O64: 0 | P64: 0 | Q64: 0
B65: 38 | K65: 0 | L65: 0 | M65: 0 | N65: 0 | O65: 0 | P65: 0 | Q65: 0
B66: 39 | K66: 0 | L66: 0 | M66: 0 | N66: 0 | O66: 0 | P66: 0 | Q66: 0
B67: 40 | K67: 0 | L67: 0 | M67: 0 | N67: 0 | O67: 0 | P67: 0 | Q67: 0
B68: 41 | K68: 0 | L68: 0 | M68: 0 | N68: 0 | O68: 0 | P68: 0 | Q68: 0
B69: 42 | K69: 0 | L69: 0 | M69: 0 | N69: 0 | O69: 0 | P69: 0 | Q69: 0
B70: 43 | K70: 0 | L70: 0 | M70: 0 | N70: 0 | O70: 0 | P70: 0 | Q70: 0
B71: 44 | K71: 0 | L71: 0 | M71: 0 | N71: 0 | O71: 0 | P71: 0 | Q71: 0
B72: 45 | K72: 0 | L72: 0 | M72: 0 | N72: 0 | O72: 0 | P72: 0 | Q72: 0
B73: 46 | K73: 0 | L73: 0 | M73: 0 | N73: 0 | O73: 0 | P73: 0 | Q73: 0
B74: 47 | K74: 0 | L74: 0 | M74: 0 | N74: 0 | O74: 0 | P74: 0 | Q74: 0
B75: 48 | K75: 0 | L75: 0 | M75: 0 | N75: 0 | O75: 0 | P75: 0 | Q75: 0
B76: 49 | K76: 0 | L76: 0 | M76: 0 | N76: 0 | O76: 0 | P76: 0 | Q76: 0
B77: 50 | K77: 0 | L77: 0 | M77: 0 | N77: 0 | O77: 0 | P77: 0 | Q77: 0
B78: 51 | K78: 0 | L78: 0 | M78: 0 | N78: 0 | O78: 0 | P78: 0 | Q78: 0
B79: 52 | K79: 0 | L79: 0 | M79: 0 | N79: 0 | O79: 0 | P79: 0 | Q79: 0
B80: 53 | K80: 0 | L80: 0 | M80: 0 | N80: 0 | O80: 0 | P80: 0 | Q80: 0
B81: 54 | K81: 0 | L81: 0 | M81: 0 | N81: 0 | O81: 0 | P81: 0 | Q81: 0
B82: 55 | K82: 0 | L82: 0 | M82: 0 | N82: 0 | O82: 0 | P82: 0 | Q82: 0
B83: 56 | K83: 0 | L83: 0 | M83: 0 | N83: 0 | O83: 0 | P83: 0 | Q83: 0
B84: 57 | K84: 0 | L84: 0 | M84: 0 | N84: 0 | O84: 0 | P84: 0 | Q84: 0
B85: 58 | K85: 0 | L85: 0 | M85: 0 | N85: 0 | O85: 0 | P85: 0 | Q85: 0
B86: 59 | K86: 0 | L86: 0 | M86: 0 | N86: 0 | O86: 0 | P86: 0 | Q86: 0
B87: 60 | K87: 0 | L87: 0 | M87: 0 | N87: 0 | O87: 0 | P87: 0 | Q87: 0
B88: 61 | K88: 0 | L88: 0 | M88: 0 | N88: 0 | O88: 0 | P88: 0 | Q88: 0
B89: 62 | J89: =IF(C89=""," ",IF(Q89>100,100,Q89)) ->  | K89: 0 | L89: =IF(E89=$H$12,$I$12,IF(E89=$H$11,$I$11,IF(E89=$H$10,$I$10,0))) -> 0 | M89: =IF(L89=0,IF(F89=$D$10,$I$10, 0),0) -> 0 | N89: =IF(AND(L89=0,M89=0),IF(G89=$F$10,$G$10,IF(G89=$F$11,$G$11,IF(G89=$F$12,$G$12,IF(G89=$F$13,$G$13,IF(G89=$F$14,$G$14,IF(G89=$F$15,$G$15,IF(G89=$F$16,$G$16,0))))))),0) -> 0 | O89: =IF(AND(L89=0,M89=0),IF(H89=$D$10,$I$18,0),0) -> 0 | P89: =IF(AND(L89=0,M89=0),IF(I89=$D$10,$H$18,0),0) -> 0 | Q89: 0
B90: 63 | K90: 0 | L90: 0 | M90: 0 | N90: 0 | O90: 0 | P90: 0 | Q90: 0
B91: 64 | K91: 0 | L91: 0 | M91: 0 | N91: 0 | O91: 0 | P91: 0 | Q91: 0
B92: 65 | K92: 0 | L92: 0 | M92: 0 | N92: 0 | O92: 0 | P92: 0 | Q92: 0
B93: =B92+1 -> 66 | K93: 0 | L93: 0 | M93: 0 | N93: 0 | O93: 0 | P93: 0 | Q93: 0
B94: 67 | K94: 0 | L94: 0 | M94: 0 | N94: 0 | O94: 0 | P94: 0 | Q94: 0
B95: 68 | K95: 0 | L95: 0 | M95: 0 | N95: 0 | O95: 0 | P95: 0 | Q95: 0
B96: 69 | K96: 0 | L96: 0 | M96: 0 | N96: 0 | O96: 0 | P96: 0 | Q96: 0
B97: 70 | K97: 0 | L97: 0 | M97: 0 | N97: 0 | O97: 0 | P97: 0 | Q97: 0
B98: 71 | K98: 0 | L98: 0 | M98: 0 | N98: 0 | O98: 0 | P98: 0 | Q98: 0
B99: 72 | K99: 0 | L99: 0 | M99: 0 | N99: 0 | O99: 0 | P99: 0 | Q99: 0
B100: 73 | K100: 0 | L100: 0 | M100: 0 | N100: 0 | O100: 0 | P100: 0 | Q100: 0
B101: 74 | K101: 0 | L101: 0 | M101: 0 | N101: 0 | O101: 0 | P101: 0 | Q101: 0
B102: 75 | K102: 0 | L102: 0 | M102: 0 | N102: 0 | O102: 0 | P102: 0 | Q102: 0
B103: 76 | K103: 0 | L103: 0 | M103: 0 | N103: 0 | O103: 0 | P103: 0 | Q103: 0
B104: 77 | K104: 0 | L104: 0 | M104: 0 | N104: 0 | O104: 0 | P104: 0 | Q104: 0
B105: 78 | K105: 0 | L105: 0 | M105: 0 | N105: 0 | O105: 0 | P105: 0 | Q105: 0
B106: 79 | K106: 0 | L106: 0 | M106: 0 | N106: 0 | O106: 0 | P106: 0 | Q106: 0
B107: 80 | K107: 0 | L107: 0 | M107: 0 | N107: 0 | O107: 0 | P107: 0 | Q107: 0
B108: 81 | K108: 0 | L108: 0 | M108: 0 | N108: 0 | O108: 0 | P108: 0 | Q108: 0
B109: 82 | K109: 0 | L109: 0 | M109: 0 | N109: 0 | O109: 0 | P109: 0 | Q109: 0
B110: 83 | K110: 0 | L110: 0 | M110: 0 | N110: 0 | O110: 0 | P110: 0 | Q110: 0
B111: 84 | K111: =IF(J111=" ",0,(D111*J111)/100) -> 0 | L111: 0 | M111: 0 | N111: 0 | O111: 0 | P111: 0 | Q111: =SUM(L111:P111) -> 0
B112: 85 | K112: 0 | L112: 0 | M112: 0 | N112: 0 | O112: 0 | P112: 0 | Q112: 0
B113: 86 | K113: 0 | L113: 0 | M113: 0 | N113: 0 | O113: 0 | P113: 0 | Q113: 0
B114: 87 | K114: 0 | L114: 0 | M114: 0 | N114: 0 | O114: 0 | P114: 0 | Q114: 0
B115: 88 | K115: 0 | L115: 0 | M115: 0 | N115: 0 | O115: 0 | P115: 0 | Q115: 0
B116: 89 | K116: 0 | L116: 0 | M116: 0 | N116: 0 | O116: 0 | P116: 0 | Q116: 0
B117: 90 | K117: 0 | L117: 0 | M117: 0 | N117: 0 | O117: 0 | P117: 0 | Q117: 0
B118: 91 | K118: 0 | L118: 0 | M118: 0 | N118: 0 | O118: 0 | P118: 0 | Q118: 0
B119: 92 | K119: 0 | L119: 0 | M119: 0 | N119: 0 | O119: 0 | P119: 0 | Q119: 0
B120: 93 | K120: 0 | L120: 0 | M120: 0 | N120: 0 | O120: 0 | P120: 0 | Q120: 0
B121: 94 | K121: 0 | L121: 0 | M121: 0 | N121: 0 | O121: 0 | P121: 0 | Q121: 0
B122: 95 | K122: 0 | L122: 0 | M122: 0 | N122: 0 | O122: 0 | P122: 0 | Q122: 0
B123: 96 | K123: 0 | L123: 0 | M123: 0 | N123: 0 | O123: 0 | P123: 0 | Q123: 0
B124: 97 | K124: 0 | L124: 0 | M124: 0 | N124: 0 | O124: 0 | P124: 0 | Q124: 0
B125: 98 | K125: 0 | L125: 0 | M125: 0 | N125: 0 | O125: 0 | P125: 0 | Q125: 0
B126: 99 | K126: 0 | L126: 0 | M126: 0 | N126: 0 | O126: 0 | P126: 0 | Q126: 0
B127: 100 | K127: 0 | L127: 0 | M127: 0 | N127: 0 | O127: 0 | P127: 0 | Q127: 0
B128: 101 | K128: 0 | L128: 0 | M128: 0 | N128: 0 | O128: 0 | P128: 0 | Q128: 0
B129: 102 | K129: 0 | L129: 0 | M129: 0 | N129: 0 | O129: 0 | P129: 0 | Q129: 0
B130: 103 | K130: 0 | L130: 0 | M130: 0 | N130: 0 | O130: 0 | P130: 0 | Q130: 0
B131: 104 | K131: 0 | L131: 0 | M131: 0 | N131: 0 | O131: 0 | P131: 0 | Q131: 0
B132: 105 | K132: 0 | L132: 0 | M132: 0 | N132: 0 | O132: 0 | P132: 0 | Q132: 0
B133: 106 | K133: 0 | L133: 0 | M133: 0 | N133: 0 | O133: 0 | P133: 0 | Q133: 0
B134: 107 | K134: 0 | L134: 0 | M134: 0 | N134: 0 | O134: 0 | P134: 0 | Q134: 0
B135: 108 | K135: 0 | L135: 0 | M135: 0 | N135: 0 | O135: 0 | P135: 0 | Q135: 0
B136: 109 | K136: 0 | L136: 0 | M136: 0 | N136: 0 | O136: 0 | P136: 0 | Q136: 0
B137: 110 | K137: 0 | L137: 0 | M137: 0 | N137: 0 | O137: 0 | P137: 0 | Q137: 0
B138: 111 | K138: 0 | L138: 0 | M138: 0 | N138: 0 | O138: 0 | P138: 0 | Q138: 0
B139: 112 | K139: 0 | L139: 0 | M139: 0 | N139: 0 | O139: 0 | P139: 0 | Q139: 0
B140: 113 | K140: 0 | L140: 0 | M140: 0 | N140: 0 | O140: 0 | P140: 0 | Q140: 0
B141: 114 | K141: 0 | L141: 0 | M141: 0 | N141: 0 | O141: 0 | P141: 0 | Q141: 0
B142: 115 | K142: 0 | L142: 0 | M142: 0 | N142: 0 | O142: 0 | P142: 0 | Q142: 0
B143: 116 | K143: 0 | L143: 0 | M143: 0 | N143: 0 | O143: 0 | P143: 0 | Q143: 0
B144: 117 | K144: 0 | L144: 0 | M144: 0 | N144: 0 | O144: 0 | P144: 0 | Q144: 0
B145: 118 | K145: 0 | L145: 0 | M145: 0 | N145: 0 | O145: 0 | P145: 0 | Q145: 0
B146: 119 | K146: 0 | L146: 0 | M146: 0 | N146: 0 | O146: 0 | P146: 0 | Q146: 0
B147: 120 | K147: 0 | L147: 0 | M147: 0 | N147: 0 | O147: 0 | P147: 0 | Q147: 0
B148: 121 | K148: 0 | L148: 0 | M148: 0 | N148: 0 | O148: 0 | P148: 0 | Q148: 0
B149: 122 | K149: 0 | L149: 0 | M149: 0 | N149: 0 | O149: 0 | P149: 0 | Q149: 0
B150: 123 | K150: 0 | L150: 0 | M150: 0 | N150: 0 | O150: 0 | P150: 0 | Q150: 0
B151: 124 | K151: 0 | L151: 0 | M151: 0 | N151: 0 | O151: 0 | P151: 0 | Q151: 0
B152: 125 | K152: 0 | L152: 0 | M152: 0 | N152: 0 | O152: 0 | P152: 0 | Q152: 0
B153: 126 | J153: =IF(C153=""," ",IF(Q153>100,100,Q153)) ->  | K153: 0 | L153: =IF(E153=$H$12,$I$12,IF(E153=$H$11,$I$11,IF(E153=$H$10,$I$10,0))) -> 0 | M153: =IF(L153=0,IF(F153=$D$10,$I$10, 0),0) -> 0 | N153: =IF(AND(L153=0,M153=0),IF(G153=$F$10,$G$10,IF(G153=$F$11,$G$11,IF(G153=$F$12,$G$12,IF(G153=$F$13,$G$13,IF(G153=$F$14,$G$14,IF(G153=$F$15,$G$15,IF(G153=$F$16,$G$16,0))))))),0) -> 0 | O153: =IF(AND(L153=0,M153=0),IF(H153=$D$10,$I$18,0),0) -> 0 | P153: =IF(AND(L153=0,M153=0),IF(I153=$D$10,$H$18,0),0) -> 0 | Q153: 0
B154: 127 | K154: 0 | L154: 0 | M154: 0 | N154: 0 | O154: 0 | P154: 0 | Q154: 0
B155: 128 | K155: 0 | L155: 0 | M155: 0 | N155: 0 | O155: 0 | P155: 0 | Q155: 0
B156: 129 | K156: 0 | L156: 0 | M156: 0 | N156: 0 | O156: 0 | P156: 0 | Q156: 0
B157: =B156+1 -> 130 | K157: 0 | L157: 0 | M157: 0 | N157: 0 | O157: 0 | P157: 0 | Q157: 0
B158: 131 | K158: 0 | L158: 0 | M158: 0 | N158: 0 | O158: 0 | P158: 0 | Q158: 0
B159: 132 | K159: 0 | L159: 0 | M159: 0 | N159: 0 | O159: 0 | P159: 0 | Q159: 0
B160: 133 | K160: 0 | L160: 0 | M160: 0 | N160: 0 | O160: 0 | P160: 0 | Q160: 0
B161: 134 | K161: 0 | L161: 0 | M161: 0 | N161: 0 | O161: 0 | P161: 0 | Q161: 0
B162: 135 | K162: 0 | L162: 0 | M162: 0 | N162: 0 | O162: 0 | P162: 0 | Q162: 0
B163: 136 | K163: 0 | L163: 0 | M163: 0 | N163: 0 | O163: 0 | P163: 0 | Q163: 0
B164: 137 | K164: 0 | L164: 0 | M164: 0 | N164: 0 | O164: 0 | P164: 0 | Q164: 0
B165: 138 | K165: 0 | L165: 0 | M165: 0 | N165: 0 | O165: 0 | P165: 0 | Q165: 0
B166: 139 | K166: 0 | L166: 0 | M166: 0 | N166: 0 | O166: 0 | P166: 0 | Q166: 0
B167: 140 | K167: 0 | L167: 0 | M167: 0 | N167: 0 | O167: 0 | P167: 0 | Q167: 0
B168: 141 | K168: 0 | L168: 0 | M168: 0 | N168: 0 | O168: 0 | P168: 0 | Q168: 0
B169: 142 | K169: 0 | L169: 0 | M169: 0 | N169: 0 | O169: 0 | P169: 0 | Q169: 0
B170: 143 | K170: 0 | L170: 0 | M170: 0 | N170: 0 | O170: 0 | P170: 0 | Q170: 0
B171: 144 | K171: 0 | L171: 0 | M171: 0 | N171: 0 | O171: 0 | P171: 0 | Q171: 0
B172: 145 | K172: 0 | L172: 0 | M172: 0 | N172: 0 | O172: 0 | P172: 0 | Q172: 0
B173: 146 | K173: 0 | L173: 0 | M173: 0 | N173: 0 | O173: 0 | P173: 0 | Q173: 0
B174: 147 | K174: 0 | L174: 0 | M174: 0 | N174: 0 | O174: 0 | P174: 0 | Q174: 0
B175: 148 | K175: =IF(J175=" ",0,(D175*J175)/100) -> 0 | L175: 0 | M175: 0 | N175: 0 | O175: 0 | P175: 0 | Q175: =SUM(L175:P175) -> 0
B176: 149 | K176: 0 | L176: 0 | M176: 0 | N176: 0 | O176: 0 | P176: 0 | Q176: 0
B177: 150 | K177: 0 | L177: 0 | M177: 0 | N177: 0 | O177: 0 | P177: 0 | Q177: 0
B178: 151 | K178: 0 | L178: 0 | M178: 0 | N178: 0 | O178: 0 | P178: 0 | Q178: 0
B179: 152 | K179: 0 | L179: 0 | M179: 0 | N179: 0 | O179: 0 | P179: 0 | Q179: 0
B180: 153 | K180: 0 | L180: 0 | M180: 0 | N180: 0 | O180: 0 | P180: 0 | Q180: 0
B181: 154 | K181: 0 | L181: 0 | M181: 0 | N181: 0 | O181: 0 | P181: 0 | Q181: 0
B182: 155 | K182: 0 | L182: 0 | M182: 0 | N182: 0 | O182: 0 | P182: 0 | Q182: 0
B183: 156 | K183: 0 | L183: 0 | M183: 0 | N183: 0 | O183: 0 | P183: 0 | Q183: 0
B184: 157 | K184: 0 | L184: 0 | M184: 0 | N184: 0 | O184: 0 | P184: 0 | Q184: 0
B185: 158 | K185: 0 | L185: 0 | M185: 0 | N185: 0 | O185: 0 | P185: 0 | Q185: 0
B186: 159 | K186: 0 | L186: 0 | M186: 0 | N186: 0 | O186: 0 | P186: 0 | Q186: 0
B187: 160 | K187: 0 | L187: 0 | M187: 0 | N187: 0 | O187: 0 | P187: 0 | Q187: 0
B188: 161 | K188: 0 | L188: 0 | M188: 0 | N188: 0 | O188: 0 | P188: 0 | Q188: 0
B189: 162 | K189: 0 | L189: 0 | M189: 0 | N189: 0 | O189: 0 | P189: 0 | Q189: 0
B190: 163 | K190: 0 | L190: 0 | M190: 0 | N190: 0 | O190: 0 | P190: 0 | Q190: 0
B191: 164 | K191: 0 | L191: 0 | M191: 0 | N191: 0 | O191: 0 | P191: 0 | Q191: 0
B192: 165 | K192: 0 | L192: 0 | M192: 0 | N192: 0 | O192: 0 | P192: 0 | Q192: 0
B193: 166 | K193: 0 | L193: 0 | M193: 0 | N193: 0 | O193: 0 | P193: 0 | Q193: 0
B194: 167 | K194: 0 | L194: 0 | M194: 0 | N194: 0 | O194: 0 | P194: 0 | Q194: 0
B195: 168 | K195: 0 | L195: 0 | M195: 0 | N195: 0 | O195: 0 | P195: 0 | Q195: 0
B196: 169 | K196: 0 | L196: 0 | M196: 0 | N196: 0 | O196: 0 | P196: 0 | Q196: 0
B197: 170 | K197: 0 | L197: 0 | M197: 0 | N197: 0 | O197: 0 | P197: 0 | Q197: 0
B198: 171 | K198: 0 | L198: 0 | M198: 0 | N198: 0 | O198: 0 | P198: 0 | Q198: 0
B199: 172 | K199: 0 | L199: 0 | M199: 0 | N199: 0 | O199: 0 | P199: 0 | Q199: 0
B200: 173 | K200: 0 | L200: 0 | M200: 0 | N200: 0 | O200: 0 | P200: 0 | Q200: 0
B201: 174 | K201: 0 | L201: 0 | M201: 0 | N201: 0 | O201: 0 | P201: 0 | Q201: 0
B202: 175 | K202: 0 | L202: 0 | M202: 0 | N202: 0 | O202: 0 | P202: 0 | Q202: 0
B203: 176 | K203: 0 | L203: 0 | M203: 0 | N203: 0 | O203: 0 | P203: 0 | Q203: 0
B204: 177 | K204: 0 | L204: 0 | M204: 0 | N204: 0 | O204: 0 | P204: 0 | Q204: 0
B205: 178 | K205: 0 | L205: 0 | M205: 0 | N205: 0 | O205: 0 | P205: 0 | Q205: 0
... 223 more rows

Sheet Assemblies Calculator
A1: Loose Furniture | D1: Please enter data in white fields only | G1: =F19 -> 8 | K1: x | L1: x | M1: x | N1: x | O1: x | P1: x | Q1: x
C3: Total Area of Assemblies in the Project: | G3: Points Generated: | H3: =IF(L12=1,L9,ROUND(I22,1)) -> 0 | I3: Overall Score: | J3: =IF(H3=L9,"-",ROUND(H22,0)) -> 0 | R3: %
F6: =C24 -> Please complete the Total Area of Assemblies in The Project (Yellow outlined field above) | I6: Total Area Documented: | J6: =SUM(D28:D427) -> 0 | R6: Items
A9: x | F9: 3 | G9: 3 | H9: 2 | I9: 1,2 | L9: ERROR
A10: x | D10: Yes | E10: Level A | F10: Take back - lease | G10: 35 | H10: Level A | I10: 100 | L10: Total Items
A11: x | D11: No | E11: Level B | F11: Take back - purchase | G11: 30 | H11: Level B | I11: 85 | L11: =IF(F3>0,1,0) -> 0
A12: x | E12: Level C | F12: Design for dissassembly | G12: 35 | H12: Level C | I12: 75 | L12: =IF(F3="",0, IF(SUM(D28:D427)>F3,1)) -> 0
A13: x | B13: Please complete the Total Area of Assemblies in The Project (Yellow outlined field above) | E13: No certification | F13: None | G13: 0 | H13: No certification
A17: x | H17: 5 | I17: 4
A18: x | B18: The Area of Items Entered Exceeds the Stated Total | H18: 25 | I18: 25
A19: x | D19: To change the number of points available, enter here: | F19: 8
A20: x | B20: Full Points Have Been Generated
A21: x | B21: 4 | H21: Weighted Total: | I21: Points Generated:
A22: x | H22: =IF(F3="",0,SUM(K28:K427)/F3)*100 -> 0 | I22: =IF(H22=0,0,IF(H22>90,F19,(H22/90)*F19)) -> 0
A23: x
A24: x | C24: =IF($F$3="",$B$13,IF($H$3="ERROR",$B$18,IF(H3=F19,B20,""))) -> Please complete the Total Area of Assemblies in The Project (Yellow outlined field above)
A25: x | E25: 1 | F25: 2 | G25: 3 | H25: 4 | I25: 5 | L25: 1 | M25: 2 | N25: 3 | O25: 4 | P25: 5
B26: Refer to the Fitout Calculator Guide for detailed instructions | E26: Option 1 | F26: Option 2
B27: # | C27: Name of Supplier and Brief Description of Item | D27: Total Area of Items | E27: Certified Product | F27: Re-used | G27: Product Stewardship | H27: Re-used, Recycled or Certified Content | I27: Manufacturers ISO 14001 Certification | J27: Item Score (%) | K27: Weighted Total | L27: 1 | M27: 2 | N27: 3 | O27: 4 | P27: 5 | Q27: Total
B28: 1 | J28: =IF(C28=""," ",IF(Q28>100,100,Q28)) ->  | K28: =IF(J28=" ",0,(D28*J28)/100) -> 0 | L28: =IF(E28=$H$12,$I$12,IF(E28=$H$11,$I$11,IF(E28=$H$10,$I$10,0))) -> 0 | M28: =IF(L28=0,IF(F28=$D$10,$I$10, 0),0) -> 0 | N28: =IF(AND(L28=0,M28=0),IF(G28=$F$10,$G$10,IF(G28=$F$11,$G$11,IF(G28=$F$12,$G$12,IF(G28=$F$13,$G$13,IF(G28=$F$14,$G$14,IF(G28=$F$15,$G$15,IF(G28=$F$16,$G$16,0))))))),0) -> 0 | O28: =IF(AND(L28=0,M28=0),IF(H28=$D$10,$I$18,0),0) -> 0 | P28: =IF(AND(L28=0,M28=0),IF(I28=$D$10,$H$18,0),0) -> 0 | Q28: =SUM(L28:P28) -> 0
B29: =B28+1 -> 2 | K29: 0 | L29: 0 | M29: 0 | N29: 0 | O29: 0 | P29: 0 | Q29: 0
B30: 3 | K30: 0 | L30: 0 | M30: 0 | N30: 0 | O30: 0 | P30: 0 | Q30: 0
B31: 4 | K31: 0 | L31: 0 | M31: 0 | N31: 0 | O31: 0 | P31: 0 | Q31: 0
B32: 5 | K32: 0 | L32: 0 | M32: 0 | N32: 0 | O32: 0 | P32: 0 | Q32: 0
B33: 6 | K33: 0 | L33: 0 | M33: 0 | N33: 0 | O33: 0 | P33: 0 | Q33: 0
B34: 7 | K34: 0 | L34: 0 | M34: 0 | N34: 0 | O34: 0 | P34: 0 | Q34: 0
B35: 8 | K35: 0 | L35: 0 | M35: 0 | N35: 0 | O35: 0 | P35: 0 | Q35: 0
B36: 9 | K36: 0 | L36: 0 | M36: 0 | N36: 0 | O36: 0 | P36: 0 | Q36: 0
B37: 10 | K37: 0 | L37: 0 | M37: 0 | N37: 0 | O37: 0 | P37: 0 | Q37: 0
B38: 11 | K38: 0 | L38: 0 | M38: 0 | N38: 0 | O38: 0 | P38: 0 | Q38: 0
B39: 12 | K39: 0 | L39: 0 | M39: 0 | N39: 0 | O39: 0 | P39: 0 | Q39: 0
B40: 13 | K40: 0 | L40: 0 | M40: 0 | N40: 0 | O40: 0 | P40: 0 | Q40: 0
B41: 14 | K41: 0 | L41: 0 | M41: 0 | N41: 0 | O41: 0 | P41: 0 | Q41: 0
B42: 15 | K42: 0 | L42: 0 | M42: 0 | N42: 0 | O42: 0 | P42: 0 | Q42: 0
B43: 16 | K43: 0 | L43: 0 | M43: 0 | N43: 0 | O43: 0 | P43: 0 | Q43: 0
B44: 17 | K44: 0 | L44: 0 | M44: 0 | N44: 0 | O44: 0 | P44: 0 | Q44: 0
B45: 18 | K45: 0 | L45: 0 | M45: 0 | N45: 0 | O45: 0 | P45: 0 | Q45: 0
B46: 19 | K46: =IF(J46=" ",0,(D46*J46)/100) -> 0 | L46: 0 | M46: 0 | N46: 0 | O46: 0 | P46: 0 | Q46: 0
B47: 20 | K47: =IF(J47=" ",0,(D47*J47)/100) -> 0 | L47: 0 | M47: 0 | N47: 0 | O47: 0 | P47: 0 | Q47: =SUM(L47:P47) -> 0
B48: 21 | K48: 0 | L48: 0 | M48: 0 | N48: 0 | O48: 0 | P48: 0 | Q48: 0
B49: 22 | K49: 0 | L49: 0 | M49: 0 | N49: 0 | O49: 0 | P49: 0 | Q49: 0
B50: 23 | K50: 0 | L50: 0 | M50: 0 | N50: 0 | O50: 0 | P50: 0 | Q50: 0
B51: 24 | K51: 0 | L51: 0 | M51: 0 | N51: 0 | O51: 0 | P51: 0 | Q51: 0
B52: 25 | K52: 0 | L52: 0 | M52: 0 | N52: 0 | O52: 0 | P52: 0 | Q52: 0
B53: 26 | K53: 0 | L53: 0 | M53: 0 | N53: 0 | O53: 0 | P53: 0 | Q53: 0
B54: 27 | K54: 0 | L54: 0 | M54: 0 | N54: 0 | O54: 0 | P54: 0 | Q54: 0
B55: 28 | K55: 0 | L55: 0 | M55: 0 | N55: 0 | O55: 0 | P55: 0 | Q55: 0
B56: 29 | K56: 0 | L56: 0 | M56: 0 | N56: 0 | O56: 0 | P56: 0 | Q56: 0
B57: 30 | K57: 0 | L57: 0 | M57: 0 | N57: 0 | O57: 0 | P57: 0 | Q57: 0
B58: 31 | K58: 0 | L58: 0 | M58: 0 | N58: 0 | O58: 0 | P58: 0 | Q58: 0
B59: 32 | K59: 0 | L59: 0 | M59: 0 | N59: 0 | O59: 0 | P59: 0 | Q59: 0
B60: 33 | K60: 0 | L60: 0 | M60: 0 | N60: 0 | O60: 0 | P60: 0 | Q60: 0
B61: 34 | K61: 0 | L61: 0 | M61: 0 | N61: 0 | O61: 0 | P61: 0 | Q61: 0
B62: 35 | K62: 0 | L62: 0 | M62: 0 | N62: 0 | O62: 0 | P62: 0 | Q62: 0
B63: 36 | K63: 0 | L63: 0 | M63: 0 | N63: 0 | O63: 0 | P63: 0 | Q63: 0
B64: 37 | K64: 0 | L64: 0 | M64: 0 | N64: 0 | O64: 0 | P64: 0 | Q64: 0
B65: 38 | K65: 0 | L65: 0 | M65: 0 | N65: 0 | O65: 0 | P65: 0 | Q65: 0
B66: 39 | K66: 0 | L66: 0 | M66: 0 | N66: 0 | O66: 0 | P66: 0 | Q66: 0
B67: 40 | K67: 0 | L67: 0 | M67: 0 | N67: 0 | O67: 0 | P67: 0 | Q67: 0
B68: 41 | K68: 0 | L68: 0 | M68: 0 | N68: 0 | O68: 0 | P68: 0 | Q68: 0
B69: 42 | K69: 0 | L69: 0 | M69: 0 | N69: 0 | O69: 0 | P69: 0 | Q69: 0
B70: 43 | K70: 0 | L70: 0 | M70: 0 | N70: 0 | O70: 0 | P70: 0 | Q70: 0
B71: 44 | K71: 0 | L71: 0 | M71: 0 | N71: 0 | O71: 0 | P71: 0 | Q71: 0
B72: 45 | K72: 0 | L72: 0 | M72: 0 | N72: 0 | O72: 0 | P72: 0 | Q72: 0
B73: 46 | K73: 0 | L73: 0 | M73: 0 | N73: 0 | O73: 0 | P73: 0 | Q73: 0
B74: 47 | K74: 0 | L74: 0 | M74: 0 | N74: 0 | O74: 0 | P74: 0 | Q74: 0
B75: 48 | K75: 0 | L75: 0 | M75: 0 | N75: 0 | O75: 0 | P75: 0 | Q75: 0
B76: 49 | K76: 0 | L76: 0 | M76: 0 | N76: 0 | O76: 0 | P76: 0 | Q76: 0
B77: 50 | K77: 0 | L77: 0 | M77: 0 | N77: 0 | O77: 0 | P77: 0 | Q77: 0
B78: 51 | K78: 0 | L78: 0 | M78: 0 | N78: 0 | O78: 0 | P78: 0 | Q78: 0
B79: 52 | K79: 0 | L79: 0 | M79: 0 | N79: 0 | O79: 0 | P79: 0 | Q79: 0
B80: 53 | K80: 0 | L80: 0 | M80: 0 | N80: 0 | O80: 0 | P80: 0 | Q80: 0
B81: 54 | K81: 0 | L81: 0 | M81: 0 | N81: 0 | O81: 0 | P81: 0 | Q81: 0
B82: 55 | K82: 0 | L82: 0 | M82: 0 | N82: 0 | O82: 0 | P82: 0 | Q82: 0
B83: 56 | K83: 0 | L83: 0 | M83: 0 | N83: 0 | O83: 0 | P83: 0 | Q83: 0
B84: 57 | K84: 0 | L84: 0 | M84: 0 | N84: 0 | O84: 0 | P84: 0 | Q84: 0
B85: 58 | K85: 0 | L85: 0 | M85: 0 | N85: 0 | O85: 0 | P85: 0 | Q85: 0
B86: 59 | K86: 0 | L86: 0 | M86: 0 | N86: 0 | O86: 0 | P86: 0 | Q86: 0
B87: 60 | K87: 0 | L87: 0 | M87: 0 | N87: 0 | O87: 0 | P87: 0 | Q87: 0
B88: 61 | K88: 0 | L88: 0 | M88: 0 | N88: 0 | O88: 0 | P88: 0 | Q88: 0
B89: 62 | J89: =IF(C89=""," ",IF(Q89>100,100,Q89)) ->  | K89: 0 | L89: =IF(E89=$H$12,$I$12,IF(E89=$H$11,$I$11,IF(E89=$H$10,$I$10,0))) -> 0 | M89: =IF(L89=0,IF(F89=$D$10,$I$10, 0),0) -> 0 | N89: =IF(AND(L89=0,M89=0),IF(G89=$F$10,$G$10,IF(G89=$F$11,$G$11,IF(G89=$F$12,$G$12,IF(G89=$F$13,$G$13,IF(G89=$F$14,$G$14,IF(G89=$F$15,$G$15,IF(G89=$F$16,$G$16,0))))))),0) -> 0 | O89: =IF(AND(L89=0,M89=0),IF(H89=$D$10,$I$18,0),0) -> 0 | P89: =IF(AND(L89=0,M89=0),IF(I89=$D$10,$H$18,0),0) -> 0 | Q89: 0
B90: 63 | K90: 0 | L90: 0 | M90: 0 | N90: 0 | O90: 0 | P90: 0 | Q90: 0
B91: 64 | K91: 0 | L91: 0 | M91: 0 | N91: 0 | O91: 0 | P91: 0 | Q91: 0
B92: 65 | K92: 0 | L92: 0 | M92: 0 | N92: 0 | O92: 0 | P92: 0 | Q92: 0
B93: =B92+1 -> 66 | K93: 0 | L93: 0 | M93: 0 | N93: 0 | O93: 0 | P93: 0 | Q93: 0
B94: 67 | K94: 0 | L94: 0 | M94: 0 | N94: 0 | O94: 0 | P94: 0 | Q94: 0
B95: 68 | K95: 0 | L95: 0 | M95: 0 | N95: 0 | O95: 0 | P95: 0 | Q95: 0
B96: 69 | K96: 0 | L96: 0 | M96: 0 | N96: 0 | O96: 0 | P96: 0 | Q96: 0
B97: 70 | K97: 0 | L97: 0 | M97: 0 | N97: 0 | O97: 0 | P97: 0 | Q97: 0
B98: 71 | K98: 0 | L98: 0 | M98: 0 | N98: 0 | O98: 0 | P98: 0 | Q98: 0
B99: 72 | K99: 0 | L99: 0 | M99: 0 | N99: 0 | O99: 0 | P99: 0 | Q99: 0
B100: 73 | K100: 0 | L100: 0 | M100: 0 | N100: 0 | O100: 0 | P100: 0 | Q100: 0
B101: 74 | K101: 0 | L101: 0 | M101: 0 | N101: 0 | O101: 0 | P101: 0 | Q101: 0
B102: 75 | K102: 0 | L102: 0 | M102: 0 | N102: 0 | O102: 0 | P102: 0 | Q102: 0
B103: 76 | K103: 0 | L103: 0 | M103: 0 | N103: 0 | O103: 0 | P103: 0 | Q103: 0
B104: 77 | K104: 0 | L104: 0 | M104: 0 | N104: 0 | O104: 0 | P104: 0 | Q104: 0
B105: 78 | K105: 0 | L105: 0 | M105: 0 | N105: 0 | O105: 0 | P105: 0 | Q105: 0
B106: 79 | K106: 0 | L106: 0 | M106: 0 | N106: 0 | O106: 0 | P106: 0 | Q106: 0
B107: 80 | K107: 0 | L107: 0 | M107: 0 | N107: 0 | O107: 0 | P107: 0 | Q107: 0
B108: 81 | K108: 0 | L108: 0 | M108: 0 | N108: 0 | O108: 0 | P108: 0 | Q108: 0
B109: 82 | K109: 0 | L109: 0 | M109: 0 | N109: 0 | O109: 0 | P109: 0 | Q109: 0
B110: 83 | K110: 0 | L110: 0 | M110: 0 | N110: 0 | O110: 0 | P110: 0 | Q110: 0
B111: 84 | K111: =IF(J111=" ",0,(D111*J111)/100) -> 0 | L111: 0 | M111: 0 | N111: 0 | O111: 0 | P111: 0 | Q111: =SUM(L111:P111) -> 0
B112: 85 | K112: 0 | L112: 0 | M112: 0 | N112: 0 | O112: 0 | P112: 0 | Q112: 0
B113: 86 | K113: 0 | L113: 0 | M113: 0 | N113: 0 | O113: 0 | P113: 0 | Q113: 0
B114: 87 | K114: 0 | L114: 0 | M114: 0 | N114: 0 | O114: 0 | P114: 0 | Q114: 0
B115: 88 | K115: 0 | L115: 0 | M115: 0 | N115: 0 | O115: 0 | P115: 0 | Q115: 0
B116: 89 | K116: 0 | L116: 0 | M116: 0 | N116: 0 | O116: 0 | P116: 0 | Q116: 0
B117: 90 | K117: 0 | L117: 0 | M117: 0 | N117: 0 | O117: 0 | P117: 0 | Q117: 0
B118: 91 | K118: 0 | L118: 0 | M118: 0 | N118: 0 | O118: 0 | P118: 0 | Q118: 0
B119: 92 | K119: 0 | L119: 0 | M119: 0 | N119: 0 | O119: 0 | P119: 0 | Q119: 0
B120: 93 | K120: 0 | L120: 0 | M120: 0 | N120: 0 | O120: 0 | P120: 0 | Q120: 0
B121: 94 | K121: 0 | L121: 0 | M121: 0 | N121: 0 | O121: 0 | P121: 0 | Q121: 0
B122: 95 | K122: 0 | L122: 0 | M122: 0 | N122: 0 | O122: 0 | P122: 0 | Q122: 0
B123: 96 | K123: 0 | L123: 0 | M123: 0 | N123: 0 | O123: 0 | P123: 0 | Q123: 0
B124: 97 | K124: 0 | L124: 0 | M124: 0 | N124: 0 | O124: 0 | P124: 0 | Q124: 0
B125: 98 | K125: 0 | L125: 0 | M125: 0 | N125: 0 | O125: 0 | P125: 0 | Q125: 0
B126: 99 | K126: 0 | L126: 0 | M126: 0 | N126: 0 | O126: 0 | P126: 0 | Q126: 0
B127: 100 | K127: 0 | L127: 0 | M127: 0 | N127: 0 | O127: 0 | P127: 0 | Q127: 0
B128: 101 | K128: 0 | L128: 0 | M128: 0 | N128: 0 | O128: 0 | P128: 0 | Q128: 0
B129: 102 | K129: 0 | L129: 0 | M129: 0 | N129: 0 | O129: 0 | P129: 0 | Q129: 0
B130: 103 | K130: 0 | L130: 0 | M130: 0 | N130: 0 | O130: 0 | P130: 0 | Q130: 0
B131: 104 | K131: 0 | L131: 0 | M131: 0 | N131: 0 | O131: 0 | P131: 0 | Q131: 0
B132: 105 | K132: 0 | L132: 0 | M132: 0 | N132: 0 | O132: 0 | P132: 0 | Q132: 0
B133: 106 | K133: 0 | L133: 0 | M133: 0 | N133: 0 | O133: 0 | P133: 0 | Q133: 0
B134: 107 | K134: 0 | L134: 0 | M134: 0 | N134: 0 | O134: 0 | P134: 0 | Q134: 0
B135: 108 | K135: 0 | L135: 0 | M135: 0 | N135: 0 | O135: 0 | P135: 0 | Q135: 0
B136: 109 | K136: 0 | L136: 0 | M136: 0 | N136: 0 | O136: 0 | P136: 0 | Q136: 0
B137: 110 | K137: 0 | L137: 0 | M137: 0 | N137: 0 | O137: 0 | P137: 0 | Q137: 0
B138: 111 | K138: 0 | L138: 0 | M138: 0 | N138: 0 | O138: 0 | P138: 0 | Q138: 0
B139: 112 | K139: 0 | L139: 0 | M139: 0 | N139: 0 | O139: 0 | P139: 0 | Q139: 0
B140: 113 | K140: 0 | L140: 0 | M140: 0 | N140: 0 | O140: 0 | P140: 0 | Q140: 0
B141: 114 | K141: 0 | L141: 0 | M141: 0 | N141: 0 | O141: 0 | P141: 0 | Q141: 0
B142: 115 | K142: 0 | L142: 0 | M142: 0 | N142: 0 | O142: 0 | P142: 0 | Q142: 0
B143: 116 | K143: 0 | L143: 0 | M143: 0 | N143: 0 | O143: 0 | P143: 0 | Q143: 0
B144: 117 | K144: 0 | L144: 0 | M144: 0 | N144: 0 | O144: 0 | P144: 0 | Q144: 0
B145: 118 | K145: 0 | L145: 0 | M145: 0 | N145: 0 | O145: 0 | P145: 0 | Q145: 0
B146: 119 | K146: 0 | L146: 0 | M146: 0 | N146: 0 | O146: 0 | P146: 0 | Q146: 0
B147: 120 | K147: 0 | L147: 0 | M147: 0 | N147: 0 | O147: 0 | P147: 0 | Q147: 0
B148: 121 | K148: 0 | L148: 0 | M148: 0 | N148: 0 | O148: 0 | P148: 0 | Q148: 0
B149: 122 | K149: 0 | L149: 0 | M149: 0 | N149: 0 | O149: 0 | P149: 0 | Q149: 0
B150: 123 | K150: 0 | L150: 0 | M150: 0 | N150: 0 | O150: 0 | P150: 0 | Q150: 0
B151: 124 | K151: 0 | L151: 0 | M151: 0 | N151: 0 | O151: 0 | P151: 0 | Q151: 0
B152: 125 | K152: 0 | L152: 0 | M152: 0 | N152: 0 | O152: 0 | P152: 0 | Q152: 0
B153: 126 | J153: =IF(C153=""," ",IF(Q153>100,100,Q153)) ->  | K153: 0 | L153: =IF(E153=$H$12,$I$12,IF(E153=$H$11,$I$11,IF(E153=$H$10,$I$10,0))) -> 0 | M153: =IF(L153=0,IF(F153=$D$10,$I$10, 0),0) -> 0 | N153: =IF(AND(L153=0,M153=0),IF(G153=$F$10,$G$10,IF(G153=$F$11,$G$11,IF(G153=$F$12,$G$12,IF(G153=$F$13,$G$13,IF(G153=$F$14,$G$14,IF(G153=$F$15,$G$15,IF(G153=$F$16,$G$16,0))))))),0) -> 0 | O153: =IF(AND(L153=0,M153=0),IF(H153=$D$10,$I$18,0),0) -> 0 | P153: =IF(AND(L153=0,M153=0),IF(I153=$D$10,$H$18,0),0) -> 0 | Q153: 0
B154: 127 | K154: 0 | L154: 0 | M154: 0 | N154: 0 | O154: 0 | P154: 0 | Q154: 0
B155: 128 | K155: 0 | L155: 0 | M155: 0 | N155: 0 | O155: 0 | P155: 0 | Q155: 0
B156: 129 | K156: 0 | L156: 0 | M156: 0 | N156: 0 | O156: 0 | P156: 0 | Q156: 0
B157: =B156+1 -> 130 | K157: 0 | L157: 0 | M157: 0 | N157: 0 | O157: 0 | P157: 0 | Q157: 0
B158: 131 | K158: 0 | L158: 0 | M158: 0 | N158: 0 | O158: 0 | P158: 0 | Q158: 0
B159: 132 | K159: 0 | L159: 0 | M159: 0 | N159: 0 | O159: 0 | P159: 0 | Q159: 0
B160: 133 | K160: 0 | L160: 0 | M160: 0 | N160: 0 | O160: 0 | P160: 0 | Q160: 0
B161: 134 | K161: 0 | L161: 0 | M161: 0 | N161: 0 | O161: 0 | P161: 0 | Q161: 0
B162: 135 | K162: 0 | L162: 0 | M162: 0 | N162: 0 | O162: 0 | P162: 0 | Q162: 0
B163: 136 | K163: 0 | L163: 0 | M163: 0 | N163: 0 | O163: 0 | P163: 0 | Q163: 0
B164: 137 | K164: 0 | L164: 0 | M164: 0 | N164: 0 | O164: 0 | P164: 0 | Q164: 0
B165: 138 | K165: 0 | L165: 0 | M165: 0 | N165: 0 | O165: 0 | P165: 0 | Q165: 0
